Workbook

Sheet 01.BALANCE ENERGIA Ago-19 Def
B1: Mes | C1: 2019-08-01
B3: Total | C3: =+SUM(C9:C437) -> 0.9999863971 | D3: =+SUM(D9:D437) -> 0.9999863971
B4: Positivo | C4: =+SUMIF(C$9:C$437,">0") -> 3.534924014e+10 | D4: =+SUMIF(D$9:D$437,">0") -> 3.534924014e+10
B5: Negativo | C5: =+SUMIF(C$9:C$437,"<0") -> -3.534924014e+10 | D5: =+SUMIF(D$9:D$437,"<0") -> -3.534924014e+10 | J5: CUADRO DE PAGOS 01.BALANCE ENERGIA Ago-19 Def (Valores en $)
F6: ="Balance Energía "& TEXT(C1,"mmm-yy") -> Balance Energía ago-yy
C7: Datos | K7: Reciben
A8: dd | B8: Empresa | C8: Energía SEN | D8: TOTAL | F8: Empresa | G8: Paga | H8: Recibe | J8: Pagan | K8: AES_GENER | L8: GMETROPOLITANA | M8: IMELSA_ENERGIA | N8: GUACOLDA | O8: ARAUCO BIO | P8: SGA | Q8: ELEKTRAGEN | R8: GESAN | S8: EL MANZANO | T8: ESPINOS | U8: PARQUE_EOLICO_LEBU | V8: ORAFTI | W8: ALTO_MANGA_ENERGY | X8: GENPAC | Y8: MONTE REDONDO | Z8: PANGUIPULLI | AA8: HIDROPALOMA | AB8: BARRICK | AC8: CARRAN | AD8: DONGO | AE8: INACAL | AF8: HIDROLIRCAY | AG8: LOS MORROS | AH8: DIUTO | AI8: LICAN | AJ8: ENERGIA PACIFICO | AK8: DONGUIL | AL8: PEHUI | AM8: COMASA | AN8: ENERBOSCH | AO8: HIDROMUCHI | AP8: BE FORESTALES | AQ8: ALLIPEN | AR8: EL CANELO | AS8: CARBOMET | AT8: HIDROENERSUR | AU8: RUCATAYO | AV8: KALTEMP | AW8: ESTANCILLA SPA | AX8: MAPOCHO TREBAL | AY8: UCUQUER | AZ8: TALINAY | BA8: GENERHOM | BB8: ARRAYAN | BC8: SANTAMARTA | BD8: RIO HUASCO | BE8: SANTA IRENE | BF8: CONTRA | BG8: COLMITO | BH8: COMMONPLACE | BI8: AELA_GENERACION | BJ8: AMANECER SOLAR | BK8: SAN_ANDRES_SPA | BL8: ENERGIA_LEON | BM8: ENERGIAS_DEL_FUTURO | BN8: ARRAYAN_EOLICO | BO8: BIOCRUZ | BP8: HBS | BQ8: LOS_PADRES | BR8: LOS_CURUROS | BS8: LOMAS_COLORADAS | BT8: PAMA | BU8: RIO_PUMA | BV8: GM_HOLDINGS | BW8: PH_PUNTA_SIERRA | BX8: UCUQUER_DOS | BY8: EBCO_ATACAMA | BZ8: ATRIA_ENERGIA | CA8: PV_SALVADOR | CB8: COLLIL | CC8: MARIA_ELENA | CD8: LAS_FLORES | CE8: BESALCO | CF8: LLEUQUEREO | CG8: CURILEUFU | CH8: BIOBIO_NEGRETE | CI8: LUZ_DEL_NORTE | CJ8: RAKI | CK8: TRAILELFU | CL8: GR_PAN_DE_AZUCAR | CM8: PUCLARO | CN8: HUAJACHE | CO8: EL_MIRADOR | CP8: RIO_MULCHEN | CQ8: EGP_SUR | CR8: EL_MORADO | CS8: CAREN | CT8: CHUNGUNGO | CU8: SPVP4 | CV8: RENOVALIA_6 | CW8: RENOVALIA_7 | CX8: AGSA | CY8: TILTIL_SOLAR | CZ8: BELLAVISTA | DA8: MALLARAUCO | DB8: M_VILLARRICA | DC8: CHANLEUFU | DD8: RASO_POWER | DE8: CONEJO_SOLAR | DF8: LOS_LOROS | DG8: ALTOS_DEL_PAICO | DH8: EL_AGRIO | DI8: LA_MONTAÑA_1 | DJ8: SAN_JUAN_LAP | DK8: DIVISADERO | DL8: CUMPEO | DM8: SAFIRA_ENERGIA_CHILE | DN8: TEATINOS | DO8: GR_HUINGAN | DP8: GR_COIGUE | DQ8: HORMIGA_SOLAR | DR8: GESTEL | DS8: CUZCUZ | DT8: GR_ARAUCARIA | DU8: EL_ARROYO | DV8: LOS_PINOS_BIO | DW8: EL_BOCO | DX8: SANTIAGO_SOLAR | DY8: GENERADORA_PIUTEL | DZ8: HIDRORIÑINAHUE | EA8: GR_CANELO | EB8: LA_LEONERA | EC8: CABO_LEONES | ED8: CHILE_GENERACION | EE8: RIO_COLORADO | EF8: LAS_TURCAS | EG8: GR_GUAYACAN | EH8: DOS_VALLES | EI8: SOCER | EJ8: COYANCO | EK8: GR_ESPINO | EL8: LA_MONTAÑA_2 | EM8: HIDROMUNILQUE | EN8: SAN_FRANCISCO | EO8: QUINTA_SOLAR | EP8: VALLE_DE_LA_LUNA_II | EQ8: GR_LINGUE | ER8: QUELTEHUE | ES8: CHESTER_SOLAR_IV | ET8: CHESTER_SOLAR_V | EU8: PV_CHANCON | EV8: PITIO | EW8: CH _SANTA_ELENA | EX8: AMPARO | EY8: PARRONAL | EZ8: EL_PELICANO | FA8: GR_TIACA | FB8: GR_BOLDO | FC8: PV_PORTEZUELO | FD8: LA_CALERA | FE8: CATAN_SOLAR | FF8: SOLAR_E | FG8: GORRIONES | FH8: PV_EL_PICURIO | FI8: CHINCOL | FJ8: VILLA_PRAT_ENERGY | FK8: PS_SANTALAURA | FL8: PV_LIBERTADORES | FM8: PFV_OCOA | FN8: PV_LAS_PALOMAS | FO8: PALACIOS | FP8: ENERGIA_SIETE | FQ8: MINICENTRALES_ARAUCANIA | FR8: LA_ACACIA | FS8: GR_LITRE | FT8: GR_LAUREL | FU8: PATOS | FV8: TACORA_ENERGY | FW8: CH_CONVENTO_VIEJO | FX8: MINICENTRAL_ARRAYAN | FY8: GR_TINEO | FZ8: PV_RODEO | GA8: LIPIGAS | GB8: PV_LA_FRONTERA | GC8: EL_CERNICALO | GD8: FOTOVOLT_SOLAR_I | GE8: ABASTIBLE | GF8: SINERGIA_SOLAR_SPA | GG8: VALLE_SOLAR_OESTE_2 | GH8: PILPEN | GI8: HIDROELECTRICA SAN ANDRES | GJ8: LA_MANGA_ENERGY | GK8: EL_QUEULE | GL8: LOA_SOLAR | GM8: PIQUERO | GN8: PARQUE_SOLAR | GO8: DIEGO_DE_ALMAGRO_SOLAR | GP8: PFALICAHUE_SOLAR | GQ8: LUNA_ENERGY | GR8: CALLE_LARGA_SPA | GS8: NUOVOSOL_SPA | GT8: APOLO_DEL_NORTE_SPA | GU8: SOLAR_UNO | GV8: COCHRANE | GW8: GENERACION_SOLAR_SPA | GX8: NORACID | GY8: ANGAMOS | GZ8: HELIO_ATACAMA_TRES | HA8: PLANTA_SOLAR_SPIII | HB8: VALLE_DE_LOS_VIENTOS | HC8: CALAMA_SOLAR_1 | HD8: PUERTO_SECO | HE8: TECNET | HF8: ENERNUEVAS | HG8: CAVANCHA | HH8: SPS_LA_HUAYCA | HI8: PMGD_PICA_PILOT | HJ8: FV_NORTE_GRANDE_5 | HK8: POZO_ALMONTE_SOLAR_1 | HL8: POZO_ALMONTE_SOLAR_3 | HM8: SOLAR_TI_CUATRO | HN8: SOLAR_LOS_PERALES_I | HO8: VITUCO | HP8: POBLACION_SOLAR | HQ8: LUCE_SOLAR_SPA | HR8: GR_LILEN_SPA | HS8: PFV LAS PERDICES | HT8: PARQUE SOLAR VILLA SECA | HU8: LAS LECHUZAS | HV8: GENERADORA AZUL | HW8: PFV_JOSE_SOLER_MALLAFRE | HX8: TUCUQUERE_SPA | HY8: PFV_LAS_CODORNICES | HZ8: SANTA_CATALINA_SOLAR | IA8: PARSOSY_ILLAPEL5_SPA | IB8: JOAQUIN_SOLAR_SPA | IC8: ANGELA_SOLAR_SPA | ID8: CANENCIA_ENERGIA_SPA | IE8: JAURURO_SOLAR | IF8: GR_BELLOTO_SPA | IG8: MARCHIHUE_VII_SPA | IH8: RANGUIL_SUR_SPA | II8: PARQUE_SOLAR_H6 | IJ8: RLA_SOLAR | IK8: PMGD_CRUZ_SPA | IL8: HIDROPALMAR | IM8: AUSTRIAN_SOLAR | IN8: SOLAR_TI_DIEZ | IO8: EL_NOGAL | IP8: TRICAHUE_SOLAR | IQ8: GR_MOLLE | IR8: REDEN_CABILDO_SOLAR | IS8: REDEN_TALHUEN_SOLAR | IT8: SANTA_CLARA | IU8: LAUREL_SPA | IV8: REDEN_LALAJUELA | IW8: CUMBRES | IX8: SANTA_ADRIANA | IY8: GR_CHAQUIHUE | IZ8: ISABEL_SOLAR_SPA | JA8: CRUCERO_SPA | JB8: EL_ARREBOL | JC8: ALTOS_TILTIL | JD8: FV_ARIZTIA | JE8: HIDROANGOL | JF8: DUQUECO | JG8: STS | JH8: CTNG | JI8: COLBUN_TRANSMISION | JJ8: ZALDIVAR_TRANSMISION | JK8: Total
A9: =+MATCH(B9,RUT[EMPRESA],0) -> 108 | B9: ENEL_GENERACION | C9: =-4552476562.87917+901051664.127952 -> -3651424899 | D9: =+C9 -> -3651424899 | F9: =IFERROR(INDEX($B$9:$B$511,MATCH(0,INDEX(COUNTIF($F$8:F8,$B$9:$B$511),0,0),0)),"") -> ENEL_GENERACION | G9: =IF(SUMIF($B$9:$B$400,F9,$D$9:$D$400)<-0.00001,SUMIF($B$9:$B$400,F9,$D$9:$D$400),"") -> -3651424899 | H9: =IF(SUMIF($B$9:$B$400,F9,$D$9:$D$400)>0.00001,SUMIF($B$9:$B$400,F9,$D$9:$D$400),"") ->  | J9: ENEL_GENERACION | K9: =$JK9*K$61/$JK$61 -> 150429915.7 | L9: 80111404.16 | M9: 10544566.12 | N9: 343546948.5 | O9: 72030322.38 | P9: 36597091.63 | Q9: 220645.3446 | R9: 734850.2517 | S9: 5177958.662 | T9: 23143157.83 | U9: =$JK9*U$61/$JK$61 -> 2109535.44 | V9: 2428577.204 | W9: 2050635.844 | X9: 9719345.399 | Y9: 29244569.7 | Z9: 149370077.6 | AA9: 2865433.163 | AB9: 323188.4192 | AC9: 1110679.285 | AD9: 8857545.779 | AE9: =$JK9*AE$61/$JK$61 -> 927480.6222 | AF9: 5983882.105 | AG9: 504185.2304 | AH9: 9552351.262 | AI9: 27024487.88 | AJ9: 16410492.29 | AK9: 85258.31745 | AL9: 2387742.491 | AM9: 71030021.34 | AN9: 16604405.29 | AO9: =$JK9*AO$61/$JK$61 -> 1800742.875 | AP9: 92157677.02 | AQ9: 2653896.193 | AR9: 4815596.79 | AS9: 5518836.881 | AT9: 46664050.76 | AU9: 46149233.54 | AV9: 280384.8102 | AW9: 4329.32985 | AX9: 3490535.517 | AY9: =$JK9*AY$61/$JK$61 -> 10425790.49 | AZ9: 41516851.34 | BA9: 8440226.43 | BB9: 135708.5626 | BC9: 19822887.24 | BD9: 6447601.701 | BE9: 444412.1236 | BF9: 852539.8936 | BG9: 92068535.55 | BH9: 2119475.627 | BI9: =$JK9*BI$61/$JK$61 -> 13053871.79 | BJ9: 57969496.15 | BK9: 26988685.4 | BL9: 6206933.417 | BM9: 37070.04178 | BN9: 75370620.44 | BO9: 5471761.617 | BP9: 294091.7734 | BQ9: 5852352.291 | BR9: 38923277.46 | BS9: =$JK9*BS$61/$JK$61 -> 1649085.562 | BT9: 1698700.95 | BU9: 1286955.895 | BV9: 41590043.97 | BW9: 105751575.6 | BX9: 8988307.945 | BY9: 750551.8137 | BZ9: 1152941.537 | CA9: 42237865.75 | CB9: 11755169.72 | CC9: =$JK9*CC$61/$JK$61 -> 462432.9185 | CD9: 5478451.521 | CE9: 7679550.019 | CF9: 3871082.916 | CG9: 610833.5072 | CH9: 7203830.714 | CI9: 49855421.91 | CJ9: 190046.3504 | CK9: 5906507.028 | CL9: 2495911.566 | CM9: =$JK9*CM$61/$JK$61 -> 2637193.317 | CN9: 274539.3729 | CO9: 6152938.367 | CP9: 3669427.781 | CQ9: 82513087.74 | CR9: 10309828.25 | CS9: 16469092.16 | CT9: 1035731.75 | CU9: 163933.9787 | CV9: 1404408.387 | CW9: =$JK9*CW$61/$JK$61 -> 1387472.332 | CX9: 2701845.218 | CY9: 1621765.805 | CZ9: 1200100.213 | DA9: 11600820.92 | DB9: 633630.5608 | DC9: 6667966.755 | DD9: 197191.8227 | DE9: 4701227.594 | DF9: 28426186.43 | DG9: =$JK9*DG$61/$JK$61 -> 106733.3925 | DH9: 5689105.712 | DI9: 1440897.008 | DJ9: 92587618 | DK9: 2115347.111 | DL9: 13038513.67 | DM9: 12574353.98 | DN9: 13136.52878 | DO9: 5202836.757 | DP9: 1885042.217 | DQ9: =$JK9*DQ$61/$JK$61 -> 1793152.306 | DR9: 709061.5794 | DS9: 2099154.548 | DT9: 5651887.076 | DU9: 7547316.537 | DV9: 4569386.79 | DW9: 2282177.307 | DX9: 52814251.81 | DY9: 1255149.699 | DZ9: 2402956.073 | EA9: =$JK9*EA$61/$JK$61 -> 6273506.12 | EB9: 4191564.528 | EC9: 103808834.2 | ED9: 121477.7191 | EE9: 5265430.839 | EF9: 2137680.21 | EG9: 2085613.08 | EH9: 243979.3052 | EI9: 11646742.73 | EJ9: 1201687.568 | EK9: =$JK9*EK$61/$JK$61 -> 1716475.341 | EL9: 615912.3582 | EM9: 1962484.064 | EN9: 2185104.43 | EO9: 2167867.991 | EP9: 1941040.622 | EQ9: 4372361.108 | ER9: 2066282.747 | ES9: 5478810.593 | ET9: 1845922.593 | EU9: =$JK9*EU$61/$JK$61 -> 1473380.832 | EV9: 1511286.219 | EW9: 6860195.218 | EX9: 2306682.09 | EY9: 1744748.411 | EZ9: 5905586.123 | FA9: 1830153.709 | FB9: 1907005.419 | FC9: 1639146.796 | FD9: 10649.16806 | FE9: =$JK9*FE$61/$JK$61 -> 2193103.101 | FF9: 14899140.62 | FG9: 1569162.75 | FH9: 1530404.874 | FI9: 1570692.804 | FJ9: 1677138.805 | FK9: 1836418.438 | FL9: 3599949.87 | FM9: 2400354.028 | FN9: 1564376.156 | FO9: =$JK9*FO$61/$JK$61 -> 397952.7187 | FP9: 67519.03507 | FQ9: 8056925.099 | FR9: 748395.5117 | FS9: 5451556.619 | FT9: 1974621.546 | FU9: 1756771.893 | FV9: 3225417.512 | FW9: 0.4187368239 | FX9: 816756.4657 | FY9: =$JK9*FY$61/$JK$61 -> 1146796.675 | FZ9: 1884481.756 | GA9: 3657516.671 | GB9: 3037651.202 | GC9: 1571649.133 | GD9: 488555.2682 | GE9: 1038805.524 | GF9: 9155594.44 | GG9: 9218386.292 | GH9: 2085732.754 | GI9: =$JK9*GI$61/$JK$61 -> 6390121.744 | GJ9: 1159772.637 | GK9: 324751.0356 | GL9: 5741460.323 | GM9: 2160454.113 | GN9: 887392.8838 | GO9: 8108231.061 | GP9: 2108120.758 | GQ9: 1507618.277 | GR9: 2580562.327 | GS9: =$JK9*GS$61/$JK$61 -> 10328814.02 | GT9: 9637513.188 | GU9: 4115549.095 | GV9: 153952182.3 | GW9: 45873106.56 | GX9: 41844276.33 | GY9: 146355578.2 | GZ9: 86303710.66 | HA9: 20062694.97 | HB9: 3811963.592 | HC9: =$JK9*HC$61/$JK$61 -> 11519654.8 | HD9: 11972210.21 | HE9: 2.375801359 | HF9: 6814102.09 | HG9: 5344515.658 | HH9: 15180583.36 | HI9: 279112.8623 | HJ9: 40439428.68 | HK9: 11356954.92 | HL9: 1546505.708 | HM9: =$JK9*HM$61/$JK$61 -> 1711186.579 | HN9: 1026342.985 | HO9: 1095943.437 | HP9: 1464064.789 | HQ9: 1247404.897 | HR9: 1146317.751 | HS9: 1279763.566 | HT9: 155.0446016 | HU9: 665357.7352 | HV9: 6370.453104 | HW9: =$JK9*HW$61/$JK$61 -> 626984.5761 | HX9: 541420.6713 | HY9: 1483432.526 | HZ9: 2325906.912 | IA9: 2218625.495 | IB9: 1846711.398 | IC9: 1970819.893 | ID9: 830307.7027 | IE9: 909892.4567 | IF9: 1282418.539 | IG9: =$JK9*IG$61/$JK$61 -> 1010786.042 | IH9: 961163.5688 | II9: 1704378.213 | IJ9: 1277256.325 | IK9: 2149643.966 | IL9: 25414396.69 | IM9: 60239822.76 | IN9: 1929141.329 | IO9: 8490448.403 | IP9: 4191264.596 | IQ9: =$JK9*IQ$61/$JK$61 -> 4077048.54 | IR9: 1968493.266 | IS9: 2825529.869 | IT9: 2699092.825 | IU9: 2949525.778 | IV9: 4671068.759 | IW9: 21386596.04 | IX9: 1533093.27 | IY9: 5730755.063 | IZ9: 2496187.242 | JA9: =$JK9*JA$61/$JK$61 -> 1530298.66 | JB9: 0.001053760883 | JC9: 1276877.494 | JD9: 1569772.269 | JE9: 35061888.26 | JF9: 73123083.58 | JG9: 3336.244878 | JH9: 11819599.25 | JI9: 4539517.095 | JJ9: 11003058.84 | JK9: 3651424899
A10: =+MATCH(B10,RUT[EMPRESA],0) -> 331 | B10: GASATACAMA | C10: 0 | D10: =+C10 -> 0 | F10: =IFERROR(INDEX($B$9:$B$511,MATCH(0,INDEX(COUNTIF($F$8:F9,$B$9:$B$511),0,0),0)),"") -> GASATACAMA | G10: =IF(SUMIF($B$9:$B$400,F10,$D$9:$D$400)<-0.00001,SUMIF($B$9:$B$400,F10,$D$9:$D$400),"") ->  | H10: =IF(SUMIF($B$9:$B$400,F10,$D$9:$D$400)>0.00001,SUMIF($B$9:$B$400,F10,$D$9:$D$400),"") ->  | J10: COLBUN | K10: 276393052 | L10: 147193032.6 | M10: 19374103.87 | N10: 631217462 | O10: 132345222.3 | P10: 67241823.56 | Q10: 405403.6719 | R10: 1350180.267 | S10: 9513744.596 | T10: 42522180.48 | U10: 3875964.005 | V10: 4462156.76 | W10: 3767744.579 | X10: 17857881.03 | Y10: 53732635.8 | Z10: 274445753.9 | AA10: 5264815.935 | AB10: 593811.6307 | AC10: 2040711.356 | AD10: 16274449.8 | AE10: 1704110.506 | AF10: 10994511.5 | AG10: 926366.8994 | AH10: 17551053.64 | AI10: 49653558.92 | AJ10: 30151888.52 | AK10: 156649.7359 | AL10: 4387128.925 | AM10: 130507314.9 | AN10: 30508175.41 | AO10: 3308602.659 | AP10: 169326303.8 | AQ10: 4876147.573 | AR10: 8847957.454 | AS10: 10140058.66 | AT10: 85738394.17 | AU10: 84792492.54 | AV10: 515166.2358 | AW10: 7954.512802 | AX10: 6413350.429 | AY10: 19155870.95 | AZ10: 76281165.2 | BA10: 15507686.3 | BB10: 249344.7106 | BC10: 36421667.04 | BD10: 11846528.69 | BE10: 816542.5248 | BF10: 1566417.837 | BG10: 169162519.4 | BH10: 3894227.651 | BI10: 23984587.42 | BJ10: 106510502.8 | BK10: 49587777.08 | BL10: 11404335.78 | BM10: 68110.80055 | BN10: 138482533.3 | BO10: 10053564.72 | BP10: 540350.7834 | BQ10: 10752844.63 | BR10: 71515851.09 | BS10: 3029954.442 | BT10: 3121115.489 | BU10: 2364593.944 | BV10: 76415646 | BW10: 194303111.8 | BX10: 16514706.22 | BY10: 1379029.6 | BZ10: 2118362.087 | CA10: 77605924.13 | CB10: 21598411.59 | CC10: 849653.1098 | CD10: 10065856.44 | CE10: 14110054.22 | CF10: 7112550.83 | CG10: 1122317.569 | CH10: 13235989.31 | CI10: 91602073.67 | CJ10: 349182.4785 | CK10: 10852346.07 | CL10: 4585873.841 | CM10: 4845458.471 | CN10: 504426.0963 | CO10: 11305127.75 | CP10: 6742038.9 | CQ10: 151605776.3 | CR10: 18942807.24 | CS10: 30259557.25 | CT10: 1903006.181 | CU10: 301204.8002 | CV10: 2580395.784 | CW10: 2549278.251 | CX10: 4964246.92 | CY10: 2979758.37 | CZ10: 2205009.282 | DA10: 21314818.17 | DB10: 1164203.833 | DC10: 12251417.37 | DD10: 362311.2427 | DE10: 8637820.719 | DF10: 52228975.77 | DG10: 196107.0574 | DH10: 10452902.83 | DI10: 2647438.308 | DJ10: 170116257.7 | DK10: 3886642.103 | DL10: 23956369.12 | DM10: 23103543.31 | DN10: 24136.4576 | DO10: 9559454.47 | DP10: 3463490.417 | DQ10: 3294656.094 | DR10: 1302797.34 | DS10: 3856890.629 | DT10: 10384519 | DU10: 13867094.47 | DV10: 8395582.451 | DW10: 4193168.281 | DX10: 97038492.49 | DY10: 2306154.693 | DZ10: 4415081.666 | EA10: 11526653.43 | EB10: 7701389.096 | EC10: 190733607.5 | ED10: 223197.6091 | EE10: 9674461.977 | EF10: 3927675.92 | EG10: 3832010.153 | EH10: 448276.4247 | EI10: 21399192.8 | EJ10: 2207925.817 | EK10: 3153773.343 | EL10: 1131649.218 | EM10: 3605778.528 | EN10: 4014811.012 | EO10: 3983141.568 | EP10: 3566379.326 | EQ10: 8033576.469 | ER10: 3796493.484 | ES10: 10066516.18 | ET10: 3391613.808 | EU10: 2707122.602 | EV10: 2776768.229 | EW10: 12604609.16 | EX10: 4238192.249 | EY10: 3205720.99 | EZ10: 10850654.04 | FA10: 3362640.78 | FB10: 3503844.6 | FC10: 3011693.409 | FD10: 19566.29468 | FE10: 4029507.406 | FF10: 27375000.03 | FG10: 2883107.922 | FH10: 2811895.97 | FI10: 2885919.172 | FJ10: 3081498.19 | FK10: 3374151.307 | FL10: 6614383.361 | FM10: 4410300.788 | FN10: 2874313.252 | FO10: 731180.1377 | FP10: 124056.3892 | FQ10: 14803425.95 | FR10: 1375067.709 | FS10: 10016440.98 | FT10: 3628079.381 | FU10: 3227812.386 | FV10: 5926234.725 | FW10: 0.7693679026 | FX10: 1500671.002 | FY10: 2107071.798 | FZ10: 3462460.652 | GA10: 6720153.97 | GB10: 5581241.489 | GC10: 2887676.288 | GD10: 897649.1211 | GE10: 1908653.794 | GF10: 16822070.78 | GG10: 16937441.66 | GH10: 3832230.037 | GI10: 11740917.64 | GJ10: 2130913.239 | GK10: 596682.7105 | GL10: 10549096.79 | GM10: 3969519.646 | GN10: 1630455.128 | GO10: 14897693.18 | GP10: 3873364.732 | GQ10: 2770028.919 | GR10: 4741407.28 | GS10: 18977690.81 | GT10: 17707526.27 | GU10: 7561721.814 | GV10: 282864703.7 | GW10: 84285149.44 | GX10: 76882760.91 | GY10: 268907050.4 | GZ10: 158570493.6 | HA10: 36862278.8 | HB10: 7003927.684 | HC10: 21165687.25 | HD10: 21997191.87 | HE10: 4.365188835 | HF10: 12519919.75 | HG10: 9819768.809 | HH10: 27892110.07 | HI10: 512829.2168 | HJ10: 74301558.05 | HK10: 20866749.93 | HL10: 2841478.908 | HM10: 3144056.014 | HN10: 1885755.693 | HO10: 2013636.382 | HP10: 2690005.732 | HQ10: 2291924.747 | HR10: 2106191.846 | HS10: 2351379.087 | HT10: 284.871865 | HU10: 1222497.894 | HV10: 11704.77938 | HW10: 1151992.805 | HX10: 994781.5967 | HY10: 2725591.126 | HZ10: 4273515.059 | IA10: 4076401.086 | IB10: 3393063.122 | IC10: 3621094.399 | ID10: 1525569.425 | IE10: 1671794.815 | IF10: 2356257.212 | IG10: 1857172.077 | IH10: 1765998.013 | II10: 3131546.634 | IJ10: 2346772.396 | IK10: 3949657.578 | IL10: 46695250.95 | IM10: 110681897.2 | IN10: 3544516.11 | IO10: 15599961.85 | IP10: 7700838.014 | IQ10: 7490982.652 | IR10: 3616819.561 | IS10: 5191499.445 | IT10: 4959189.799 | IU10: 5419323.862 | IV10: 8582408.255 | IW10: 39294754.12 | IX10: 2816835.507 | IY10: 10529427.44 | IZ10: 4586380.355 | JA10: 2811700.819 | JB10: 0.001936132086 | JC10: 2346076.35 | JD10: 2884227.824 | JE10: 64421111.05 | JF10: 134353011.8 | JG10: 6129.863862 | JH10: 21716791.46 | JI10: 8340701.239 | JJ10: 20216517.44 | JK10: 6708961227
A11: =+MATCH(B11,RUT[EMPRESA],0) -> 4 | B11: AES_GENER | C11: 1456303597 | D11: 1456303597 | F11: =IFERROR(INDEX($B$9:$B$511,MATCH(0,INDEX(COUNTIF($F$8:F10,$B$9:$B$511),0,0),0)),"") -> AES_GENER | H11: 1456303597 | J11: PEHUENCHE | K11: 27002113.13 | L11: 14379966.83 | M11: 1892745.641 | N11: 61666547.67 | O11: 12929415.7 | P11: 6569164.144 | Q11: 39605.75613 | R11: 131905.343 | S11: 929441.6267 | T11: 4154188.101 | U11: 378660.8158 | V11: 435928.692 | W11: 368088.3605 | X11: 1744618.833 | Y11: 5249389.231 | Z11: 26811872.59 | AA11: 514344.172 | AB11: 58012.19934 | AC11: 199366.5127 | AD11: 1589926.126 | AE11: 166482.4218 | AF11: 1074104.581 | AG11: 90501.05867 | AH11: 1714643.448 | AI11: 4850885.38 | AJ11: 2945677.176 | AK11: 15303.83582 | AL11: 428598.8765 | AM11: 12749862.04 | AN11: 2980484.487 | AO11: 323232.6668 | AP11: 16542268.26 | AQ11: 476373.3656 | AR11: 864397.8074 | AS11: 990629.1384 | AT11: 8376179.509 | AU11: 8283770.013 | AV11: 50328.96767 | AW11: 777.113075 | AX11: 626549.8086 | AY11: 1871425.46 | AZ11: 7452259.156 | BA11: 1515017.461 | BB11: 24359.6358 | BC11: 3558200.781 | BD11: 1157342.073 | BE11: 79771.80855 | BF11: 153030.5893 | BG11: 16526267.4 | BH11: 380445.0757 | BI11: 2343165.062 | BJ11: 10405502.69 | BK11: 4844458.849 | BL11: 1114142.207 | BM11: 6654.058517 | BN11: 13528997.94 | BO11: 982179.1462 | BP11: 52789.36239 | BQ11: 1050495.029 | BR11: 6986713.623 | BS11: 296010.2363 | BT11: 304916.1797 | BU11: 231008.0977 | BV11: 7465397.205 | BW11: 18982367.92 | BX11: 1613397.886 | BY11: 134723.7674 | BZ11: 206952.571 | CA11: 7581680.97 | CB11: 2110048.53 | CC11: 83006.53444 | CD11: 983379.9816 | CE11: 1378476.332 | CF11: 694857.9233 | CG11: 109644.3841 | CH11: 1293084.896 | CI11: 8949029.428 | CJ11: 34113.24821 | CK11: 1060215.784 | CL11: 448015.1847 | CM11: 473375.2056 | CN11: 49279.71387 | CO11: 1104450.116 | CP11: 658660.9026 | CQ11: 14811068.12 | CR11: 1850610.282 | CS11: 2956195.831 | CT11: 185913.4584 | CU11: 29426.08734 | CV11: 252090.7757 | CW11: 249050.7602 | CX11: 484980.1974 | CY11: 291106.3502 | CZ11: 215417.5355 | DA11: 2082342.98 | DB11: 113736.4467 | DC11: 1196897.517 | DD11: 35395.85779 | DE11: 843868.5797 | DF11: 5102489.741 | DG11: 19158.6037 | DH11: 1021192.329 | DI11: 258640.4694 | DJ11: 16619442.51 | DK11: 379704.0085 | DL11: 2340408.286 | DM11: 2257091.796 | DN11: 2358.001961 | DO11: 933907.2353 | DP11: 338364.3669 | DQ11: 321870.1625 | DR11: 127276.286 | DS11: 376797.4496 | DT11: 1014511.598 | DU11: 1354740.472 | DV11: 820203.2051 | DW11: 409649.9657 | DX11: 9480138.278 | DY11: 225298.8976 | DZ11: 431329.7087 | EA11: 1126091.982 | EB11: 752384.2518 | EC11: 18633646.58 | ED11: 21805.20475 | EE11: 945142.8495 | EF11: 383712.7914 | EG11: 374366.7611 | EH11: 43794.19325 | EI11: 2090585.927 | EJ11: 215702.4652 | EK11: 308106.6762 | EL11: 110556.036 | EM11: 352265.1493 | EN11: 392225.4209 | EO11: 389131.4867 | EP11: 348416.0594 | EQ11: 784837.1697 | ER11: 370896.9737 | ES11: 983444.4348 | ET11: 331342.4092 | EU11: 264471.3036 | EV11: 271275.3063 | EW11: 1231402.454 | EX11: 414048.565 | EY11: 313181.6816 | EZ11: 1060050.481 | FA11: 328511.9004 | FB11: 342306.7533 | FC11: 294226.2316 | FD11: 1911.521649 | FE11: 393661.1794 | FF11: 2674390.121 | FG11: 281664.1218 | FH11: 274707.0976 | FI11: 281938.7658 | FJ11: 301045.7829 | FK11: 329636.4169 | FL11: 646189.6437 | FM11: 430862.6427 | FN11: 280804.93 | FO11: 71432.3629 | FP11: 12119.64133 | FQ11: 1446215.016 | FR11: 134336.7121 | FS11: 978552.3568 | FT11: 354443.8226 | FU11: 315339.8921 | FV11: 578961.2268 | FW11: 0.07516310194 | FX11: 146607.4775 | FY11: 205849.5706 | FZ11: 338263.7644 | GA11: 656522.8628 | GB11: 545257.245 | GC11: 282110.4266 | GD11: 87695.48635 | GE11: 186465.1998 | GF11: 1643425.748 | GG11: 1654696.862 | GH11: 374388.2426 | GI11: 1147024.443 | GJ11: 208178.7509 | GK11: 58292.68838 | GL11: 1030589.962 | GM11: 387800.6983 | GN11: 159286.6879 | GO11: 1455424.417 | GP11: 378406.8808 | GQ11: 270616.9121 | GR11: 463209.9644 | GS11: 1854018.22 | GT11: 1729929.982 | GU11: 738739.5102 | GV11: 27634358.66 | GW11: 8234205.324 | GX11: 7511031.818 | GY11: 26270771.07 | GZ11: 15491483.51 | HA11: 3601246.179 | HB11: 684246.0268 | HC11: 2067773.692 | HD11: 2149007.216 | HE11: 0.4264554477 | HF11: 1223128.755 | HG11: 959338.5447 | HH11: 2724908.987 | HI11: 50100.6535 | HJ11: 7258862.194 | HK11: 2038569.125 | HL11: 277597.1913 | HM11: 307157.3455 | HN11: 184228.1786 | HO11: 196721.4335 | HP11: 262799.0775 | HQ11: 223908.7085 | HR11: 205763.604 | HS11: 229717.0774 | HT11: 27.83044751 | HU11: 119431.4625 | HV11: 1143.493929 | HW11: 112543.4949 | HX11: 97184.80626 | HY11: 266275.5789 | HZ11: 417499.4134 | IA11: 398242.4395 | IB11: 331483.9993 | IC11: 353761.4274 | ID11: 149039.9194 | IE11: 163325.3528 | IF11: 230193.6439 | IG11: 181435.7133 | IH11: 172528.498 | II11: 305935.2464 | IJ11: 229267.0285 | IK11: 385860.2811 | IL11: 4561874.619 | IM11: 10813025.46 | IN11: 346280.1409 | IO11: 1524032.286 | IP11: 752330.414 | IQ11: 731828.675 | IR11: 353343.7988 | IS11: 507181.5456 | IT11: 484486.1439 | IU11: 529438.7646 | IV11: 838455.0803 | IW11: 3838885.922 | IX11: 275189.6637 | IY11: 1028668.372 | IZ11: 448064.6684 | JA11: 274688.0323 | JB11: 0.000189149681 | JC11: 229199.0285 | JD11: 281773.5302 | JE11: 6293595.718 | JF11: 13125565.92 | JG11: 598.8546972 | JH11: 2121613.607 | JI11: 814841.6061 | JJ11: 1975044.911 | JK11: 655429392
A12: =+MATCH(B12,RUT[EMPRESA],0) -> 338 | B12: GMETROPOLITANA | C12: 775554021.3 | D12: 775554021.3 | F12: =IFERROR(INDEX($B$9:$B$511,MATCH(0,INDEX(COUNTIF($F$8:F11,$B$9:$B$511),0,0),0)),"") -> GMETROPOLITANA | H12: 775554021.3 | J12: TECNORED | K12: 4412298.158 | L12: 2349767.992 | M12: 309285.3536 | N12: 10076663.02 | O12: 2112739.725 | P12: 1073438.613 | Q12: 6471.804781 | R12: 21554.07983 | S12: 151876.0239 | T12: 678817.8548 | U12: 61875.3211 | V12: 71233.21629 | W12: 60147.72205 | X12: 285080.5945 | Y12: 857779.9199 | Z12: 4381211.777 | AA12: 84046.74968 | AB12: 9479.52181 | AC12: 32577.61689 | AD12: 259802.9304 | AE12: 27204.17027 | AF12: 175514.7696 | AG12: 14788.38536 | AH12: 280182.447 | AI12: 792662.1346 | AJ12: 481340.3276 | AK12: 2500.733417 | AL12: 70035.48294 | AM12: 2083399.641 | AN12: 487028.0393 | AO12: 52818.04775 | AP12: 2703100.289 | AQ12: 77842.10494 | AR12: 141247.4956 | AS12: 161874.4097 | AT12: 1368715.154 | AU12: 1353614.919 | AV12: 8224.038257 | AW12: 126.9846761 | AX12: 102381.786 | AY12: 305801.5153 | AZ12: 1217741.337 | BA12: 247562.4304 | BB12: 3980.502402 | BC12: 581430.1526 | BD12: 189116.2471 | BE12: 13035.16515 | BF12: 25006.06468 | BG12: 2700485.658 | BH12: 62166.87927 | BI12: 382886.4371 | BJ12: 1700318.051 | BK12: 791612.003 | BL12: 182057.1444 | BM12: 1087.310834 | BN12: 2210714.858 | BO12: 160493.6331 | BP12: 8626.080683 | BQ12: 171656.8351 | BR12: 1141668.562 | BS12: 48369.74848 | BT12: 49825.03006 | BU12: 37748.03103 | BV12: 1219888.169 | BW12: 3101826.388 | BX12: 263638.3488 | BY12: 22014.62634 | BZ12: 33817.22177 | CA12: 1238889.595 | CB12: 344793.8759 | CC12: 13563.73767 | CD12: 160689.8564 | CE12: 225250.8369 | CF12: 113543.7186 | CG12: 17916.51312 | CH12: 211297.3928 | CI12: 1462322.074 | CJ12: 5574.297891 | CK12: 173245.2615 | CL12: 73208.21763 | CM12: 77352.18862 | CN12: 8052.584245 | CO12: 180473.4018 | CP12: 107628.9205 | CQ12: 2420212.385 | CR12: 302400.1974 | CS12: 483059.1354 | CT12: 30379.31166 | CU12: 4808.389269 | CV12: 41193.05997 | CW12: 40696.30423 | CX12: 79248.51 | CY12: 47568.42574 | CZ12: 35200.4449 | DA12: 340266.6321 | DB12: 18585.17931 | DC12: 195579.8306 | DD12: 5783.883557 | DE12: 137892.9035 | DF12: 833775.7116 | DG12: 3130.624311 | DH12: 166868.6081 | DI12: 42263.317 | DJ12: 2715710.997 | DK12: 62045.78469 | DL12: 382435.9643 | DM12: 368821.5781 | DN12: 385.3108704 | DO12: 152605.7296 | DP12: 55290.65321 | DQ12: 52595.40684 | DR12: 20797.66572 | DS12: 61570.83652 | DT12: 165776.9389 | DU12: 221372.263 | DV12: 134025.8473 | DW12: 66939.12365 | DX12: 1549108.267 | DY12: 36815.11541 | DZ12: 70481.7164 | EA12: 184009.8053 | EB12: 122943.8464 | EC12: 3044843.346 | ED12: 3563.093907 | EE12: 154441.6926 | EF12: 62700.84253 | EG12: 61173.64826 | EH12: 7156.21912 | EI12: 341613.5764 | EJ12: 35247.00403 | EK12: 50346.37526 | EL12: 18065.48219 | EM12: 57562.11976 | EN12: 64091.85437 | EO12: 63586.28801 | EP12: 56933.15668 | EQ12: 128246.8369 | ER12: 60606.66536 | ES12: 160700.3885 | ET12: 54143.22557 | EU12: 43216.10832 | EV12: 44327.92089 | EW12: 201218.1326 | EX12: 67657.87968 | EY12: 51175.65987 | EZ12: 173218.2502 | FA12: 53680.7044 | FB12: 55934.86147 | FC12: 48078.23202 | FD12: 312.3534596 | FE12: 64326.46544 | FF12: 437010.4869 | FG12: 46025.51215 | FH12: 44888.69501 | FI12: 46070.39055 | FJ12: 49192.58531 | FK12: 53864.45676 | FL12: 105591.0462 | FM12: 70405.39516 | FN12: 45885.11534 | FO12: 11672.45252 | FP12: 1980.418009 | FQ12: 236319.7214 | FR12: 21951.3793 | FS12: 159900.9952 | FT12: 57918.12731 | FU12: 51528.32369 | FV12: 94605.54227 | FW12: 0.0122820764 | FX12: 23956.49185 | FY12: 33636.98526 | FZ12: 55274.2142 | GA12: 107279.5527 | GB12: 89098.12083 | GC12: 46098.44088 | GD12: 14329.93896 | GE12: 30469.46933 | GF12: 268545.0716 | GG12: 270386.8354 | GH12: 61177.15845 | GI12: 187430.2879 | GJ12: 34017.58652 | GK12: 9525.355308 | GL12: 168404.2346 | GM12: 63368.82964 | GN12: 26028.34661 | GO12: 237824.5897 | GP12: 61833.82669 | GQ12: 44220.33554 | GR12: 75691.13066 | GS12: 302957.0737 | GT12: 282680.3531 | GU12: 120714.2184 | GV12: 4515610.658 | GW12: 1345515.768 | GX12: 1227345.123 | GY12: 4292792.726 | GZ12: 2531396.111 | HA12: 588464.0142 | HB12: 111809.6747 | HC12: 337885.928 | HD12: 351159.9458 | HE12: 0.06968523455 | HF12: 199866.1633 | HG12: 156761.3495 | HH12: 445265.5557 | HI12: 8186.730428 | HJ12: 1186139.179 | HK12: 333113.7365 | HL12: 45360.95268 | HM12: 50191.24924 | HN12: 30103.9274 | HO12: 32145.39597 | HP12: 42942.8571 | HQ12: 36587.95063 | HR12: 33622.93783 | HS12: 37537.071 | HT12: 4.547652686 | HU12: 19515.77714 | HV12: 186.853382 | HW12: 18390.24424 | HX12: 15880.54756 | HY12: 43510.93713 | HZ12: 68221.76783 | IA12: 65075.06928 | IB12: 54166.3622 | IC12: 57806.62008 | ID12: 24353.96663 | IE12: 26688.28731 | IF12: 37614.94467 | IG12: 29647.62275 | IH12: 28192.13336 | II12: 49991.55133 | IJ12: 37463.53046 | IK12: 63051.75449 | IL12: 745436.14 | IM12: 1766909.579 | IN12: 56584.1355 | IO12: 249035.5038 | IP12: 122935.049 | IQ12: 119584.9488 | IR12: 57738.37719 | IS12: 82876.33598 | IT12: 79167.77885 | IU12: 86513.29158 | IV12: 137008.3071 | IW12: 627295.6936 | IX12: 44967.54904 | IY12: 168090.2358 | IZ12: 73216.30355 | JA12: 44885.57963 | JB12: 3.090812875e-05 | JC12: 37452.41887 | JD12: 46043.39011 | JE12: 1028409.172 | JF12: 2144791.782 | JG12: 97.85624796 | JH12: 346683.6749 | JI12: 133149.7317 | JJ12: 322733.5203 | JK12: 107100873.4
A13: =+MATCH(B13,RUT[EMPRESA],0) -> 177 | B13: IMELSA_ENERGIA | C13: 102081354.6 | D13: 102081354.6 | F13: =IFERROR(INDEX($B$9:$B$511,MATCH(0,INDEX(COUNTIF($F$8:F12,$B$9:$B$511),0,0),0)),"") -> IMELSA_ENERGIA | H13: 102081354.6 | J13: NUEVA ENERGIA | K13: 4063433.88 | L13: 2163980.431 | M13: 284831.2918 | N13: 9279938.125 | O13: 1945693.122 | P13: 988565.7474 | Q13: 5960.102846 | R13: 19849.87757 | S13: 139867.7421 | T13: 625146.2097 | U13: 56983.06576 | V13: 65601.0664 | W13: 55392.06164 | X13: 262540.3145 | Y13: 789958.3988 | Z13: 4034805.385 | AA13: 77401.48057 | AB13: 8730.01069 | AC13: 30001.82387 | AD13: 239261.2629 | AE13: 25053.23602 | AF13: 161637.4587 | AG13: 13619.12182 | AH13: 258029.4456 | AI13: 729989.2386 | AJ13: 443282.5083 | AK13: 2303.009571 | AL13: 64498.03345 | AM13: 1918672.851 | AN13: 448520.5134 | AO13: 48641.91789 | AP13: 2489376.035 | AQ13: 71687.4144 | AR13: 130079.5727 | AS13: 149075.5921 | AT13: 1260495.852 | AU13: 1246589.538 | AV13: 7573.79363 | AW13: 116.9444622 | AX13: 94286.83258 | AY13: 281622.9078 | AZ13: 1121458.983 | BA13: 227988.5744 | BB13: 3665.778635 | BC13: 535458.5969 | BD13: 174163.5171 | BE13: 12004.52231 | BF13: 23028.9266 | BG13: 2486968.133 | BH13: 57251.57149 | BI13: 352613.0069 | BJ13: 1565880.121 | BK13: 729022.137 | BL13: 167662.5518 | BM13: 1001.341143 | BN13: 2035921.72 | BO13: 147803.9885 | BP13: 7944.048031 | BQ13: 158084.557 | BR13: 1051401.004 | BS13: 44545.32937 | BT13: 45885.54716 | BU13: 34763.43227 | BV13: 1123436.073 | BW13: 2856576.32 | BX13: 242793.4288 | BY13: 20274.01035 | BZ13: 31143.41773 | CA13: 1140935.125 | CB13: 317532.2852 | CC13: 12491.30254 | CD13: 147984.6972 | CE13: 207441.077 | CF13: 104566.2321 | CG13: 16499.91996 | CH13: 194590.8807 | CI13: 1346701.616 | CJ13: 5133.558543 | CK13: 159547.3923 | CL13: 67419.91161 | CM13: 71236.23397 | CN13: 7415.89586 | CO13: 166204.03 | CP13: 99119.0954 | CQ13: 2228855.043 | CR13: 278490.5198 | CS13: 444865.4163 | CT13: 27977.3306 | CU13: 4428.207515 | CV13: 37936.07537 | CW13: 37478.59629 | CX13: 72982.62015 | CY13: 43807.36429 | CZ13: 32417.27446 | DA13: 313362.994 | DB13: 17115.71715 | DC13: 180116.0487 | DD13: 5326.573038 | DE13: 126990.216 | DF13: 767852.1154 | DG13: 2883.097297 | DH13: 153674.9176 | DI13: 38921.71109 | DJ13: 2500989.661 | DK13: 57140.05141 | DL13: 352198.1513 | DM13: 339660.2048 | DN13: 354.8457491 | DO13: 140539.7527 | DP13: 50919.02348 | DQ13: 48436.88038 | DR13: 19153.27035 | DS13: 56702.65566 | DT13: 152669.5626 | DU13: 203869.1678 | DV13: 123428.9138 | DW13: 61646.49196 | DX13: 1426625.942 | DY13: 33904.27888 | DZ13: 64908.98485 | EA13: 169460.823 | EB13: 113223.1261 | EC13: 2804098.719 | ED13: 3281.373103 | EE13: 142230.5528 | EF13: 57743.31622 | EG13: 56336.87162 | EH13: 6590.403046 | EI13: 314603.4403 | EJ13: 32460.15233 | EK13: 46365.6715 | EL13: 16637.11059 | EM13: 53010.89347 | EN13: 59024.34585 | EO13: 58558.75277 | EP13: 52431.6602 | EQ13: 118106.8286 | ER13: 55814.71798 | ES13: 147994.3965 | ET13: 49862.31874 | EU13: 39799.16869 | EV13: 40823.0743 | EW13: 185308.5508 | EX13: 62308.41858 | EY13: 47129.38761 | EZ13: 159522.5167 | FA13: 49436.36743 | FB13: 51512.29655 | FC13: 44276.86205 | FD13: 287.6568139 | FE13: 59240.40708 | FF13: 402457.666 | FG13: 42386.44324 | FH13: 41339.51006 | FI13: 42427.77326 | FJ13: 45303.1075 | FK13: 49605.59117 | FL13: 97242.34836 | FM13: 64838.69805 | FN13: 42257.14709 | FO13: 10749.55438 | FP13: 1823.8336 | FQ13: 217634.7854 | FR13: 20215.76402 | FS13: 147258.2083 | FT13: 53338.75281 | FU13: 47454.16759 | FV13: 87125.42804 | FW13: 0.01131097753 | FX13: 22062.33965 | FY13: 30977.43185 | FZ13: 50903.88424 | GA13: 98797.35083 | GB13: 82053.45828 | GC13: 42453.60576 | GD13: 13196.9231 | GE13: 28060.35982 | GF13: 247312.1949 | GG13: 249008.3372 | GH13: 56340.10427 | GI13: 172610.8605 | GJ13: 31327.94036 | GK13: 8772.220301 | GL13: 155089.1276 | GM13: 58358.48804 | GN13: 23970.38044 | GO13: 219020.6692 | GP13: 56944.85216 | GQ13: 40723.99534 | GR13: 69706.50978 | GS13: 279003.3659 | GT13: 260329.8514 | GU13: 111169.7866 | GV13: 4158577.838 | GW13: 1239130.757 | GX13: 1130303.433 | GY13: 3953377.305 | GZ13: 2331247.879 | HA13: 541936.3168 | HB13: 102969.2926 | HC13: 311170.5234 | HD13: 323395.0132 | HE13: 0.06417547792 | HF13: 184063.4768 | HG13: 144366.803 | HH13: 410060.0367 | HI13: 7539.435594 | HJ13: 1092355.492 | HK13: 306775.6516 | HL13: 41774.42805 | HM13: 46222.81073 | HN13: 27723.71996 | HO13: 29603.77708 | HP13: 39547.52245 | HQ13: 33695.07519 | HR13: 30964.4951 | HS13: 34569.15208 | HT13: 4.18808642 | HU13: 17972.73601 | HV13: 172.0795684 | HW13: 16936.19488 | HX13: 14624.93074 | HY13: 40070.68646 | HZ13: 62827.72216 | IA13: 59929.82155 | IB13: 49883.62604 | IC13: 53236.06204 | ID13: 22428.38756 | IE13: 24578.14204 | IF13: 34640.86856 | IG13: 27303.49365 | IH13: 25963.08448 | II13: 46038.9022 | IJ13: 34501.42612 | IK13: 58066.48286 | IL13: 686497.2307 | IM13: 1627206.501 | IN13: 52110.23485 | IO13: 229345.1773 | IP13: 113215.0243 | IQ13: 110129.8042 | IR13: 53173.21487 | IS13: 76323.6072 | IT13: 72908.27212 | IU13: 79673.00202 | IV13: 126175.5613 | IW13: 577697.7173 | IX13: 41412.12939 | IY13: 154799.9557 | IZ13: 67427.3582 | JA13: 41336.64101 | JB13: 2.846433605e-05 | JC13: 34491.19309 | JD13: 42402.90765 | JE13: 947096.6197 | JF13: 1975210.94 | JG13: 90.11911233 | JH13: 319272.6647 | JI13: 122622.0694 | JJ13: 297216.1612 | JK13: 98632799.03
A14: =+MATCH(B14,RUT[EMPRESA],0) -> 56 | B14: COLBUN | C14: -6708961227 | D14: -6708961227 | F14: =IFERROR(INDEX($B$9:$B$511,MATCH(0,INDEX(COUNTIF($F$8:F13,$B$9:$B$511),0,0),0)),"") -> COLBUN | G14: -6708961227 | J14: PACIFIC HYDRO | K14: 1032155.619 | L14: 549674.1495 | M14: 72350.19127 | N14: 2357203.431 | O14: 494226.8408 | P14: 251106.2617 | Q14: 1513.929801 | R14: 5042.080979 | S14: 35527.90085 | T14: 158793.8163 | U14: 14474.30751 | V14: 16663.37175 | W14: 14070.17547 | X14: 66688.04488 | Y14: 200657.8732 | Z14: 1024883.676 | AA14: 19660.80302 | AB14: 2217.515987 | AC14: 7620.783802 | AD14: 60774.91705 | AE14: 6363.789619 | AF14: 41057.64144 | AG14: 3459.402448 | AH14: 65542.23597 | AI14: 185425.0658 | AJ14: 112598.4932 | AK14: 584.9890365 | AL14: 16383.18959 | AM14: 487363.4032 | AN14: 113929.0024 | AO14: 12355.56683 | AP14: 632328.1094 | AQ14: 18209.36917 | AR14: 33041.60123 | AS14: 37866.79313 | AT14: 320179.4137 | AU14: 316647.0612 | AV14: 1923.824501 | AW14: 29.70514283 | AX14: 23949.86284 | AY14: 71535.22746 | AZ14: 284862.5635 | BA14: 57911.53374 | BB14: 931.1469385 | BC14: 136012.2045 | BD14: 44239.39411 | BE14: 3049.276924 | BF14: 5849.593398 | BG14: 631716.4766 | BH14: 14542.51083 | BI14: 89567.47106 | BJ14: 397750.2807 | BK14: 185179.4117 | BL14: 42588.07948 | BM14: 254.3513486 | BN14: 517145.8686 | BO14: 37543.79223 | BP14: 2017.873074 | BQ14: 40155.16644 | BR14: 267067.0881 | BS14: 11314.98958 | BT14: 11655.41922 | BU14: 8830.28321 | BV14: 285364.7653 | BW14: 725600.905 | BX14: 61672.12492 | BY14: 5149.815237 | BZ14: 7910.76084 | CA14: 289809.7116 | CB14: 80656.59295 | CC14: 3172.924303 | CD14: 37589.69415 | CE14: 52692.24987 | CF14: 26560.94013 | CG14: 4191.155954 | CH14: 49428.16272 | CI14: 342076.5985 | CJ14: 1303.978717 | CK14: 40526.74224 | CL14: 17125.37786 | CM14: 18094.76452 | CN14: 1883.71678 | CO14: 42217.59934 | CP14: 25177.30922 | CQ14: 566152.9941 | CR14: 70739.56742 | CS14: 113000.5687 | CT14: 7106.540882 | CU14: 1124.81202 | CV14: 9636.168454 | CW14: 9519.96388 | CX14: 18538.36526 | CY14: 11127.53857 | CZ14: 8234.334059 | DA14: 79597.54844 | DB14: 4347.575021 | DC14: 45751.40073 | DD14: 1353.006461 | DE14: 32256.87162 | DF14: 195042.6411 | DG14: 732.3375164 | DH14: 39035.07093 | DI14: 9886.530458 | DJ14: 635278.0944 | DK14: 14514.18354 | DL14: 89462.09332 | DM14: 86277.32096 | DN14: 90.13461144 | DO14: 35698.59871 | DP14: 12933.97598 | DQ14: 12303.48512 | DR14: 4865.135304 | DS14: 14403.08035 | DT14: 38779.70002 | DU14: 51784.94675 | DV14: 31352.26281 | DW14: 15658.86759 | DX14: 362378.2313 | DY14: 8612.049068 | DZ14: 16487.57564 | EA14: 43044.85956 | EB14: 28759.88371 | EC14: 712271.0336 | ED14: 833.5038264 | EE14: 36128.08 | EF14: 14667.41925 | EG14: 14310.16729 | EH14: 1674.032786 | EI14: 79912.63507 | EJ14: 8245.225496 | EK14: 11777.37593 | EL14: 4226.00384 | EM14: 13465.33331 | EN14: 14992.81446 | EO14: 14874.54885 | EP14: 13318.20187 | EQ14: 30000.39631 | ER14: 14177.53469 | ES14: 37592.15788 | ET14: 12665.56169 | EU14: 10109.41406 | EV14: 10369.49703 | EW14: 47070.35174 | EX14: 15827.00402 | EY14: 11971.36798 | EZ14: 40520.42357 | FA14: 12557.36551 | FB14: 13084.67368 | FC14: 11246.79601 | FD14: 73.06790407 | FE14: 15047.69632 | FF14: 102228.547 | FG14: 10766.60944 | FH14: 10500.67723 | FI14: 10777.10771 | FJ14: 11507.47333 | FK14: 12600.35014 | FL14: 24700.59542 | FM14: 16469.72204 | FN14: 10733.76684 | FO14: 2730.501662 | FP14: 463.2732202 | FQ14: 55281.56069 | FR14: 5135.020047 | FS14: 37405.15822 | FT14: 13548.61309 | FU14: 12053.86557 | FV14: 22130.78957 | FW14: 0.00287310914 | FX14: 5604.069986 | FY14: 7868.598654 | FZ14: 12930.13045 | GA14: 25095.58266 | GB14: 20842.45506 | GC14: 10783.66944 | GD14: 3352.159462 | GE14: 7127.631193 | GF14: 62819.9398 | GG14: 63250.77806 | GH14: 14310.98842 | GI14: 43845.00274 | GJ14: 7957.63156 | GK14: 2228.237679 | GL14: 39394.2954 | GM14: 14823.67947 | GN14: 6088.732731 | GO14: 55633.58999 | GP14: 14464.60085 | GQ14: 10344.32991 | GR14: 17706.19823 | GS14: 70869.83581 | GT14: 66126.56364 | GU14: 28238.31354 | GV14: 1056323.201 | GW14: 314752.4513 | GX14: 287109.1481 | GY14: 1004200.074 | GZ14: 592161.8682 | HA14: 137657.6145 | HB14: 26155.30045 | HC14: 79040.63751 | HD14: 82145.78851 | HE14: 0.01630125704 | HF14: 46754.08963 | HG14: 36670.71037 | HH14: 104159.6304 | HI14: 1915.097192 | HJ14: 277469.9657 | HK14: 77924.29311 | HL14: 10611.15104 | HM14: 11741.08777 | HN14: 7042.121071 | HO14: 7519.675665 | HP14: 10045.49323 | HQ14: 8558.909097 | HR14: 7865.312581 | HS14: 8780.933966 | HT14: 1.063818696 | HU14: 4565.266969 | HV14: 43.71004888 | HW14: 4301.974447 | HX14: 3714.888662 | HY14: 10178.38248 | HZ14: 15958.91268 | IA14: 15222.81496 | IB14: 12670.97397 | IC14: 13522.52853 | ID14: 5697.050065 | IE14: 6243.110672 | IF14: 8799.150718 | IG14: 6935.379098 | IH14: 6594.900848 | II14: 11694.37304 | IJ14: 8763.730847 | IK14: 14749.50703 | IL14: 174377.6311 | IM14: 413327.8363 | IN14: 13236.5564 | IO14: 58256.12537 | IP14: 28757.82576 | IQ14: 27974.1469 | IR14: 13506.56468 | IS14: 19387.01167 | IT14: 18519.48007 | IU14: 20237.79374 | IV14: 32049.94063 | IW14: 146741.3923 | IX14: 10519.12331 | IY14: 39320.84262 | IZ14: 17127.26938 | JA14: 10499.94846 | JB14: 7.230245469e-06 | JC14: 8761.131549 | JD14: 10770.79158 | JE14: 240572.6602 | JF14: 501724.682 | JG14: 22.89121737 | JH14: 81098.66794 | JI14: 31147.31572 | JJ14: 75496.08041 | JK14: 25053784.75
A15: =+MATCH(B15,RUT[EMPRESA],0) -> 244 | B15: PEHUENCHE | C15: -655429392 | D15: -655429392 | F15: =IFERROR(INDEX($B$9:$B$511,MATCH(0,INDEX(COUNTIF($F$8:F14,$B$9:$B$511),0,0),0)),"") -> PEHUENCHE | G15: -655429392 | J15: ELECTRICA CENIZAS | K15: 11402096.18 | L15: 6072182.725 | M15: 799243.6647 | N15: 26039736.39 | O15: 5459663.126 | P15: 2773939.99 | Q15: 16724.19631 | R15: 55699.24845 | S15: 392472.3511 | T15: 1754175.759 | U15: 159895.8949 | V15: 184078.2183 | W15: 155431.4979 | X15: 736694.6298 | Y15: 2216642.847 | Z15: 11321763.92 | AA15: 217190.4729 | AB15: 24496.62638 | AC15: 84185.86139 | AD15: 671373.034 | AE15: 70300.00125 | AF15: 453558.7153 | AG15: 38215.59338 | AH15: 724037.0198 | AI15: 2048367.897 | AJ15: 1243861.705 | AK15: 6462.301939 | AL15: 180983.0805 | AM15: 5383843.575 | AN15: 1258559.678 | AO15: 136490.4272 | AP15: 6985250.855 | AQ15: 201156.6616 | AR15: 365006.505 | AS15: 418309.8065 | AT15: 3536982.604 | AU15: 3497961.141 | AV15: 21252.25265 | AW15: 328.1490595 | AX15: 264571.1892 | AY15: 790240.8597 | AZ15: 3146841.704 | BA15: 639741.5907 | BB15: 10286.26571 | BC15: 1502510.095 | BD15: 488707.1458 | BE15: 33684.98715 | BF15: 64619.73884 | BG15: 6978494.223 | BH15: 160649.3286 | BI15: 989440.837 | BJ15: 4393898.432 | BK15: 2045654.186 | BL15: 470465.2761 | BM15: 2809.788066 | BN15: 5712846.807 | BO15: 414741.6553 | BP15: 22291.19568 | BQ15: 443589.1851 | BR15: 2950257.276 | BS15: 124995.2983 | BT15: 128755.9826 | BU15: 97547.05259 | BV15: 3152389.466 | BW15: 8015623.956 | BX15: 681284.379 | BY15: 56889.37556 | BZ15: 87389.20206 | CA15: 3201492.24 | CB15: 891003.4625 | CC15: 35050.90454 | CD15: 415248.7282 | CE15: 582084.8037 | CF15: 293415.4389 | CG15: 46299.18436 | CH15: 546026.8345 | CI15: 3778878.112 | CJ15: 14404.89251 | CK15: 447693.9372 | CL15: 189181.943 | CM15: 199890.6381 | CN15: 20809.18759 | CO15: 466372.6276 | CP15: 278130.6384 | CQ15: 6254222.495 | CR15: 781451.3011 | CS15: 1248303.384 | CT15: 78505.08309 | CU15: 12425.66004 | CV15: 106449.5678 | CW15: 105165.8701 | CX15: 204791.0411 | CY15: 122924.55 | CZ15: 90963.67561 | DA15: 879304.328 | DB15: 48027.12655 | DC15: 505410.0969 | DD15: 14946.49597 | DE15: 356337.6935 | DF15: 2154612.068 | DG15: 8090.042474 | DH15: 431215.6277 | DI15: 109215.286 | DJ15: 7017838.977 | DK15: 160336.4005 | DL15: 988276.742 | DM15: 953094.9535 | DN15: 995.705967 | DO15: 394358.0294 | DP15: 142880.0419 | DQ15: 135915.0869 | DR15: 53744.55134 | DS15: 159109.0572 | DT15: 428394.5767 | DU15: 572061.9378 | DV15: 346344.5913 | DW15: 172981.5844 | DX15: 4003147.752 | DY15: 95136.24687 | DZ15: 182136.2203 | EA15: 475511.2695 | EB15: 317706.8982 | EC15: 7868370.507 | ED15: 9207.614258 | EE15: 399102.4564 | EF15: 162029.1765 | EG15: 158082.6581 | EH15: 18492.8343 | EI15: 882785.0512 | EJ15: 91083.99198 | EK15: 130103.2234 | EL15: 46684.14467 | EM15: 148749.881 | EN15: 165623.7774 | EO15: 164317.3117 | EP15: 147124.5381 | EQ15: 331410.6883 | ER15: 156617.4821 | ES15: 415275.9446 | ET15: 139914.9023 | EU15: 111677.4538 | EV15: 114550.5583 | EW15: 519980.3865 | EX15: 174838.9669 | EY15: 132246.2298 | EZ15: 447624.1356 | FA15: 138719.6723 | FB15: 144544.7809 | FC15: 124241.9723 | FD15: 807.1721497 | FE15: 166230.0506 | FF15: 1129306.186 | FG15: 118937.4103 | FH15: 115999.6899 | FI15: 119053.3834 | FJ15: 127121.6425 | FK15: 139194.5183 | FL15: 272864.4397 | FM15: 181938.9938 | FN15: 118574.6021 | FO15: 30163.51604 | FP15: 5117.722285 | FQ15: 610688.6019 | FR15: 56725.93491 | FS15: 413210.1825 | FT15: 149669.8624 | FU15: 133157.5704 | FV15: 244476.1106 | FW15: 0.03173888331 | FX15: 61907.4719 | FY15: 86923.44158 | FZ15: 142837.5609 | GA15: 277227.8152 | GB15: 230244.0377 | GC15: 119125.87 | GD15: 37030.8933 | GE15: 78738.06516 | GF15: 693964.1488 | GG15: 698723.5661 | GH15: 158091.729 | GI15: 484350.3528 | GJ15: 87906.97715 | GK15: 24615.06759 | GL15: 435183.9362 | GM15: 163755.3639 | GN15: 67261.48163 | GO15: 614577.4263 | GP15: 159788.6666 | GQ15: 114272.5403 | GR15: 195598.1942 | GS15: 782890.36 | GT15: 730492.0156 | GU15: 311945.1767 | GV15: 11669072.49 | GW15: 3477031.618 | GX15: 3171659.448 | GY15: 11093274.71 | GZ15: 6541539.329 | HA15: 1520686.737 | HB15: 288934.3872 | HC15: 873152.2014 | HD15: 907454.4226 | HE15: 0.1800779817 | HF15: 516486.6779 | HG15: 405096.8273 | HH15: 1150638.627 | HI15: 21155.84315 | HJ15: 3065176.586 | HK15: 860820.0821 | HL15: 117220.0805 | HM15: 129702.3526 | HN15: 77793.44537 | HO15: 83068.93224 | HP15: 110971.3282 | HQ15: 94549.21614 | HR15: 86887.14073 | HS15: 97001.89756 | HT15: 11.7518743 | HU15: 50431.94272 | HV15: 482.8595342 | HW15: 47523.38262 | HX15: 41037.91816 | HY15: 112439.3394 | HZ15: 176296.1456 | IA15: 168164.5647 | IB15: 139974.6911 | IC15: 149381.7096 | ID15: 62934.61139 | IE15: 68966.87576 | IF15: 97203.13578 | IG15: 76614.27992 | IH15: 72853.05856 | II15: 129186.3007 | IJ15: 96811.85683 | IK15: 162935.9901 | IL15: 1926328.245 | IM15: 4565981.772 | IN15: 146222.6106 | IO15: 643548.2521 | IP15: 317684.1642 | IQ15: 309026.9603 | IR15: 149205.3589 | IS15: 214165.9335 | IT15: 204582.4187 | IU15: 223564.4184 | IV15: 354051.7524 | IW15: 1621034.113 | IX15: 116203.4615 | IY15: 434372.5124 | IZ15: 189202.8384 | JA15: 115991.6392 | JB15: 7.987163246e-05 | JC15: 96783.14269 | JD15: 118983.6098 | JE15: 2657576.589 | JF15: 5542490.855 | JG15: 252.8764629 | JH15: 895887.0105 | JI15: 344080.566 | JJ15: 833995.9151 | JK15: 276766078.8
A16: =+MATCH(B16,RUT[EMPRESA],0) -> 156 | B16: GUACOLDA | C16: 3325858787 | D16: 3325858787 | F16: =IFERROR(INDEX($B$9:$B$511,MATCH(0,INDEX(COUNTIF($F$8:F15,$B$9:$B$511),0,0),0)),"") -> GUACOLDA | H16: 3325858787 | J16: PUNTILLA | K16: 668423.5013 | L16: 355968.7248 | M16: 46853.95038 | N16: 1526523.851 | O16: 320061.0734 | P16: 162616.2988 | Q16: 980.4202381 | R16: 3265.249308 | S16: 23007.85214 | T16: 102834.8019 | U16: 9373.554843 | V16: 10791.19183 | W16: 9111.83912 | X16: 43187.14699 | Y16: 129945.9458 | Z16: 663714.194 | AA16: 12732.32694 | AB16: 1436.062327 | AC16: 4935.216063 | AD16: 39357.80815 | AE16: 4121.187212 | AF16: 26588.90959 | AG16: 2240.307424 | AH16: 42445.12168 | AI16: 120081.1868 | AJ16: 72918.73205 | AK16: 378.8386292 | AL16: 10609.746 | AM16: 315616.3143 | AN16: 73780.36922 | AO16: 8001.459363 | AP16: 409495.391 | AQ16: 11792.37904 | AR16: 21397.72566 | AS16: 24522.5177 | AT16: 207348.0401 | AU16: 205060.4903 | AV16: 1245.867856 | AW16: 19.23703675 | AX16: 15509.92009 | AY16: 46326.18019 | AZ16: 184476.8642 | BA16: 37503.48244 | BB16: 603.0103264 | BC16: 88081.44065 | BD16: 28649.41115 | BE16: 1974.710325 | BF16: 3788.193977 | BG16: 409099.2979 | BH16: 9417.723285 | BI16: 58003.8528 | BJ16: 257582.8977 | BK16: 119922.1013 | BL16: 27580.02055 | BM16: 164.7178156 | BN16: 334903.4251 | BO16: 24313.34247 | BP16: 1306.773669 | BQ16: 26004.4672 | BR16: 172952.5227 | BS16: 7327.582017 | BT16: 7548.044092 | BU16: 5718.487319 | BV16: 184802.0899 | BW16: 469898.8102 | BX16: 39938.83955 | BY16: 3335.017964 | BZ16: 5123.005058 | CA16: 187680.6351 | CB16: 52233.17226 | CC16: 2054.78431 | CD16: 24343.06853 | CE16: 34123.47662 | CF16: 17200.85253 | CG16: 2714.190656 | CH16: 32009.6553 | CI16: 221528.6469 | CJ16: 844.4560135 | CK16: 26245.09952 | CL16: 11090.38678 | CM16: 11718.16112 | CN16: 1219.894115 | CO16: 27340.09779 | CP16: 16304.8138 | CQ16: 366640.4169 | CR16: 45810.91112 | CS16: 73179.11597 | CT16: 4602.192585 | CU16: 728.4277434 | CV16: 6240.378231 | CW16: 6165.124202 | CX16: 12005.43676 | CY16: 7206.188826 | CZ16: 5332.550925 | DA16: 51547.33553 | DB16: 2815.487571 | DC16: 29628.58594 | DD16: 876.2063577 | DE16: 20889.53513 | DF16: 126309.5241 | DG16: 474.2614366 | DH16: 25279.09387 | DI16: 6402.512548 | DJ16: 411405.7999 | DK16: 9399.378545 | DL16: 57935.61022 | DM16: 55873.15312 | DN16: 58.37113265 | DO16: 23118.396 | DP16: 8376.036859 | DQ16: 7967.731266 | DR16: 3150.659371 | DS16: 9327.428167 | DT16: 25113.71578 | DU16: 33535.90755 | DV16: 20303.71088 | DW16: 10140.6754 | DX16: 234675.9748 | DY16: 5577.15899 | DZ16: 10677.34635 | EA16: 27875.83112 | EB16: 18624.88738 | EC16: 461266.3917 | ED16: 539.7766921 | EE16: 23396.52788 | EF16: 9498.613918 | EG16: 9267.257716 | EH16: 1084.102857 | EI16: 51751.38548 | EJ16: 5339.604214 | EK16: 7627.023202 | EL16: 2736.758131 | EM16: 8720.143619 | EN16: 9709.339706 | EO16: 9632.750948 | EP16: 8624.861368 | EQ16: 19428.24276 | ER16: 9181.364905 | ES16: 24344.66404 | ET16: 8202.211887 | EU16: 6546.851867 | EV16: 6715.281475 | EW16: 30482.738 | EX16: 10249.56048 | EY16: 7752.652365 | EZ16: 26241.00755 | FA16: 8132.144089 | FB16: 8473.628619 | FC16: 7283.419893 | FD16: 47.31874085 | FE16: 9744.881174 | FF16: 66203.15973 | FG16: 6972.451289 | FH16: 6800.233712 | FI16: 6979.249962 | FJ16: 7452.234399 | FK16: 8159.98092 | FL16: 15996.09416 | FM16: 10665.78437 | FN16: 6951.182435 | FO16: 1768.271613 | FP16: 300.0155229 | FQ16: 35800.31312 | FR16: 3325.436606 | FS16: 24223.56315 | FT16: 8774.075562 | FU16: 7806.077762 | FV16: 14331.88908 | FW16: 0.001860624149 | FX16: 3629.193129 | FY16: 5095.700846 | FZ16: 8373.546497 | GA16: 16251.88772 | GB16: 13497.56425 | GC16: 6983.499336 | GD16: 2170.856916 | GE16: 4615.850661 | GF16: 40682.16394 | GG16: 40961.17459 | GH16: 9267.789479 | GI16: 28394.00348 | GJ16: 5153.358515 | GK16: 1443.005689 | GL16: 25511.72746 | GM16: 9599.80796 | GN16: 3943.060498 | GO16: 36028.28713 | GP16: 9367.268814 | GQ16: 6698.983262 | GR16: 11466.52578 | GS16: 45895.27287 | GT16: 42823.532 | GU16: 18287.11878 | GV16: 684074.4161 | GW16: 203833.5417 | GX16: 185931.7514 | GY16: 650319.5028 | GZ16: 383483.7518 | HA16: 89147.00744 | HB16: 16938.16046 | HC16: 51186.68026 | HD16: 53197.57461 | HE16: 0.01055668652 | HF16: 30277.9268 | HG16: 23747.93506 | HH16: 67453.72844 | HI16: 1240.216055 | HJ16: 179689.4214 | HK16: 50463.73615 | HL16: 6871.776504 | HM16: 7603.523005 | HN16: 4560.474346 | HO16: 4869.73848 | HP16: 6505.456764 | HQ16: 5542.745569 | HR16: 5093.572786 | HS16: 5686.528772 | HT16: 0.6889284952 | HU16: 2956.464776 | HV16: 28.30660742 | HW16: 2785.956661 | HX16: 2405.760178 | HY16: 6591.51578 | HZ16: 10334.98446 | IA16: 9858.287925 | IB16: 8205.716879 | IC16: 8757.183219 | ID16: 3689.406985 | IE16: 4043.035581 | IF16: 5698.325932 | IG16: 4491.348294 | IH16: 4270.854736 | II16: 7573.270567 | IJ16: 5675.38804 | IK16: 9551.773925 | IL16: 112926.8732 | IM16: 267670.9154 | IN16: 8571.987797 | IO16: 37726.63983 | IP16: 18623.55465 | IQ16: 18116.04458 | IR16: 8746.845035 | IS16: 12555.01978 | IT16: 11993.20672 | IU16: 13105.98586 | IV16: 20755.52672 | IW16: 95029.65775 | IX16: 6812.179389 | IY16: 25464.15948 | IZ16: 11091.61172 | JA16: 6799.761761 | JB16: 4.682303619e-06 | JC16: 5673.704736 | JD16: 6975.159639 | JE16: 155794.7434 | JF16: 324916.6718 | JG16: 14.82434177 | JH16: 52519.45982 | JI16: 20170.98724 | JJ16: 48891.22673 | JK16: 16224819.41
A17: =+MATCH(B17,RUT[EMPRESA],0) -> 19 | B17: ARAUCO BIO | C17: 697321520.8 | D17: 697321520.8 | F17: =IFERROR(INDEX($B$9:$B$511,MATCH(0,INDEX(COUNTIF($F$8:F16,$B$9:$B$511),0,0),0)),"") -> ARAUCO BIO | H17: 697321520.8 | J17: ENLASA | K17: 318053.8607 | L17: 169379.4832 | M17: 22294.36843 | N17: 726361.0619 | O17: 152293.6579 | P17: 77377.20406 | Q17: 466.5102906 | R17: 1553.693349 | S17: 10947.75421 | T17: 48931.56167 | U17: 4460.189237 | V17: 5134.739004 | W17: 4335.657864 | X17: 20549.60486 | Y17: 61831.77233 | Z17: 315813.0458 | AA17: 6058.383241 | AB17: 683.3170382 | AC17: 2348.308399 | AD17: 18727.50256 | AE17: 1960.971601 | AF17: 12651.71756 | AG17: 1065.998464 | AH17: 20196.52928 | AI17: 57137.85494 | AJ17: 34696.69184 | AK17: 180.2615982 | AL17: 5048.402202 | AM17: 150178.7221 | AN17: 35106.68196 | AO17: 3807.309343 | AP17: 194848.9091 | AQ17: 5611.130779 | AR17: 10181.61277 | AS17: 11668.47278 | AT17: 98661.76838 | AU17: 97573.29071 | AV17: 592.8173991 | AW17: 9.153498934 | AX17: 7380.036689 | AY17: 22043.2412 | AZ17: 87779.04842 | BA17: 17845.16457 | BB17: 286.9285146 | BC17: 41911.51598 | BD17: 13632.15956 | BE17: 939.6202278 | BF17: 1802.524473 | BG17: 194660.4373 | BH17: 4481.205768 | BI17: 27599.79157 | BJ17: 122564.8633 | BK17: 57062.15779 | BL17: 13123.31478 | BM17: 78.37716222 | BN17: 159356.0477 | BO17: 11568.94158 | BP17: 621.7980212 | BQ17: 12373.62417 | BR17: 82295.45706 | BS17: 3486.660396 | BT17: 3591.562175 | BU17: 2721.009907 | BV17: 87933.79954 | BW17: 223590.4788 | BX17: 19003.97291 | BY17: 1586.89115 | BZ17: 2437.663448 | CA17: 89303.48865 | CB17: 24853.94673 | CC17: 977.7215812 | CD17: 11583.08604 | CE17: 16236.86699 | CF17: 8184.627778 | CG17: 1291.484837 | CH17: 15231.05401 | CI17: 105409.2821 | CJ17: 401.8148596 | CK17: 12488.12349 | CL17: 5277.103998 | CM17: 5575.8159 | CN17: 580.4583951 | CO17: 13009.15309 | CP17: 7758.268472 | CQ17: 174457.361 | CR17: 21798.06233 | CS17: 34820.58951 | CT17: 2189.846881 | CU17: 346.6054913 | CV17: 2969.339625 | CW17: 2933.531736 | CX17: 5712.509367 | CY17: 3428.898255 | CZ17: 2537.371002 | DA17: 24527.60719 | DB17: 1339.684631 | DC17: 14098.07723 | DD17: 416.9225264 | DE17: 9939.802062 | DF17: 60101.46516 | DG17: 225.6663337 | DH17: 12028.47205 | DI17: 3046.487489 | DJ17: 195757.933 | DK17: 4472.476848 | DL17: 27567.31992 | DM17: 26585.94742 | DN17: 27.77455319 | DO17: 11000.35395 | DP17: 3985.54338 | DQ17: 3791.260609 | DR17: 1499.168379 | DS17: 4438.240925 | DT17: 11949.78071 | DU17: 15957.28583 | DV17: 9661.051146 | DW17: 4825.20581 | DX17: 111665.134 | DY17: 2653.762091 | DZ17: 5080.568267 | EA17: 13264.0694 | EB17: 8862.221815 | EC17: 219482.9422 | ED17: 256.8402525 | EE17: 11132.69657 | EF17: 4519.695705 | EG17: 4409.610208 | EH17: 515.8452664 | EI17: 24624.69963 | EJ17: 2540.727146 | EK17: 3629.142557 | EL17: 1302.223048 | EM17: 4149.278621 | EN17: 4619.964696 | EO17: 4583.521708 | EP17: 4103.940766 | EQ17: 9244.479892 | ER17: 4368.740101 | ES17: 11583.84523 | ET17: 3902.832788 | EU17: 3115.168015 | EV17: 3195.311348 | EW17: 14504.50573 | EX17: 4877.016255 | EY17: 3688.920289 | EZ17: 12486.17642 | FA17: 3869.492647 | FB17: 4031.980161 | FC17: 3465.646871 | FD17: 22.51552823 | FE17: 4636.876282 | FF17: 31501.24211 | FG17: 3317.679655 | FH17: 3235.733905 | FI17: 3320.914646 | FJ17: 3545.973349 | FK17: 3882.738159 | FL17: 7611.371375 | FM17: 5075.066766 | FN17: 3307.559363 | FO17: 841.3911421 | FP17: 142.7554464 | FQ17: 17034.75084 | FR17: 1582.332083 | FS17: 11526.22217 | FT17: 4174.940889 | FU17: 3714.341528 | FV17: 6819.497886 | FW17: 0.0008853349603 | FX17: 1726.867598 | FY17: 2424.671371 | FZ17: 3984.358399 | GA17: 7733.084821 | GB17: 6422.503715 | GC17: 3322.936612 | GD17: 1032.952046 | GE17: 2196.34576 | GF17: 19357.66662 | GG17: 19490.42739 | GH17: 4409.863235 | GI17: 13510.62973 | GJ17: 2452.106439 | GK17: 686.6208768 | GL17: 12139.16536 | GM17: 4567.846549 | GN17: 1876.214125 | GO17: 17143.227 | GP17: 4457.198176 | GQ17: 3187.55622 | GR17: 5456.081041 | GS17: 21838.20392 | GT17: 20376.58708 | GU17: 8701.502441 | GV17: 325500.9865 | GW17: 96989.47564 | GX17: 88471.32283 | GY17: 309439.4918 | GZ17: 182471.8723 | HA17: 42418.54129 | HB17: 8059.631833 | HC17: 24355.99772 | HD17: 25312.83528 | HE17: 0.005023155074 | HF17: 14407.05106 | HG17: 11299.90555 | HH17: 32096.2963 | HI17: 590.1281205 | HJ17: 85501.05447 | HK17: 24012.00149 | HL17: 3269.775887 | HM17: 3617.960533 | HN17: 2169.996222 | HO17: 2317.152406 | HP17: 3095.471113 | HQ17: 2637.387261 | HR17: 2423.658783 | HS17: 2705.803172 | HT17: 0.3278106877 | HU17: 1406.765373 | HV17: 13.46904434 | HW17: 1325.63303 | HX17: 1144.725329 | HY17: 3136.420305 | HZ17: 4917.663282 | IA17: 4690.838261 | IB17: 3904.500557 | IC17: 4166.903058 | ID17: 1755.518968 | IE17: 1923.784955 | IF17: 2711.416578 | IG17: 2137.104189 | IH17: 2032.18743 | II17: 3603.56561 | IJ17: 2700.502112 | IK17: 4544.990665 | IL17: 53733.64032 | IM17: 127365.0132 | IN17: 4078.782101 | IO17: 17951.34885 | IP17: 8861.587668 | IQ17: 8620.100744 | IR17: 4161.983872 | IS17: 5974.015734 | IT17: 5706.689984 | IU17: 6236.180195 | IV17: 9876.03726 | IW17: 45217.66436 | IX17: 3241.417979 | IY17: 12116.53124 | IZ17: 5277.68686 | JA17: 3235.509338 | JB17: 2.227965863e-06 | JC17: 2699.701151 | JD17: 3318.96836 | JE17: 74131.3247 | JF17: 154604.0821 | JG17: 7.053820105 | JH17: 24990.17004 | JI17: 9597.897671 | JJ17: 23263.75926 | JK17: 7720204.992
A18: =+MATCH(B18,RUT[EMPRESA],0) -> 289 | B18: SGA | C18: 354294396.4 | D18: 354294396.4 | F18: =IFERROR(INDEX($B$9:$B$511,MATCH(0,INDEX(COUNTIF($F$8:F17,$B$9:$B$511),0,0),0)),"") -> SGA | H18: 354294396.4 | J18: GAS SUR | K18: 156892.5569 | L18: 83553.0817 | M18: 10997.57274 | N18: 358306.1183 | O18: 75124.82741 | P18: 38169.34455 | Q18: 230.1245209 | R18: 766.420259 | S18: 5400.409688 | T18: 24137.41436 | U18: 2200.163495 | V18: 2532.911658 | W18: 2138.733505 | X18: 10136.89959 | Y18: 30500.94987 | Z18: 155787.187 | AA18: 2988.535449 | AB18: 337.0729633 | AC18: 1158.395337 | AD18: 9238.076076 | AE18: 967.3262505 | AF18: 6240.956524 | AG18: 525.8456045 | AH18: 9962.731197 | AI18: 28185.49078 | AJ18: 17115.50581 | AK18: 88.92111228 | AL18: 2490.322639 | AM18: 74081.55229 | AN18: 17317.74953 | AO18: 1878.104848 | AP18: 96116.87622 | AQ18: 2767.910609 | AR18: 5022.480336 | AS18: 5755.932425 | AT18: 48668.79175 | AU18: 48131.85739 | AV18: 292.4304624 | AW18: 4.515322812 | AX18: 3640.492915 | AY18: 10873.69437 | AZ18: 43300.46276 | BA18: 8802.828211 | BB18: 141.5387577 | BC18: 20674.50114 | BD18: 6724.598044 | BE18: 463.5045767 | BF18: 889.1659825 | BG18: 96023.90514 | BH18: 2210.530724 | BI18: 13614.68105 | BJ18: 60459.932 | BK18: 28148.15019 | BL18: 6473.590376 | BM18: 38.66261318 | BN18: 78608.6285 | BO18: 5706.834754 | BP18: 306.7262923 | BQ18: 6103.776039 | BR18: 40595.46598 | BS18: 1719.932164 | BT18: 1771.679085 | BU18: 1342.244992 | BV18: 43376.79983 | BW18: 110294.7842 | BX18: 9374.455934 | BY18: 782.796378 | BZ18: 1202.473224 | CA18: 44052.45277 | CB18: 12260.18525 | CC18: 482.2995656 | CD18: 5713.812064 | CE18: 8009.472271 | CF18: 4037.389066 | CG18: 637.0756133 | CH18: 7513.31552 | CI18: 51997.26786 | CJ18: 198.210959 | CK18: 6160.257325 | CL18: 2603.138782 | CM18: 2750.490158 | CN18: 286.3338983 | CO18: 6417.275636 | CP18: 3827.070595 | CQ18: 86057.94436 | CR18: 10752.75026 | CS18: 17176.6232 | CT18: 1080.22797 | CU18: 170.9767699 | CV18: 1464.743377 | CW18: 1447.07973 | CX18: 2817.919578 | CY18: 1691.438719 | CZ18: 1251.65789 | DA18: 12099.20546 | DB18: 660.8520544 | DC18: 6954.430233 | DD18: 205.6634089 | DE18: 4903.197708 | DF18: 29647.40791 | DG18: 111.3187811 | DH18: 5933.5162 | DI18: 1502.799591 | DJ18: 96565.28796 | DK18: 2206.224842 | DL18: 13598.66313 | DM18: 13114.56261 | DN18: 13.70088908 | DO18: 5426.356574 | DP18: 1966.025786 | DQ18: 1870.18818 | DR18: 739.5236758 | DS18: 2189.336628 | DT18: 5894.698609 | DU18: 7871.557887 | DV18: 4765.692872 | DW18: 2380.222254 | DX18: 55083.21247 | DY18: 1309.072366 | DZ18: 2506.189814 | EA18: 6543.023118 | EB18: 4371.638934 | EC18: 108268.5804 | ED18: 126.6965408 | EE18: 5491.63977 | EF18: 2229.517397 | EG18: 2175.213403 | EH18: 254.4609352 | EI18: 12147.10012 | EJ18: 1253.313441 | EK18: 1790.217085 | EL18: 642.3726575 | EM18: 2046.794624 | EN18: 2278.979015 | EO18: 2261.00208 | EP18: 2024.429947 | EQ18: 4560.202742 | ER18: 2155.052617 | ES18: 5714.186562 | ET18: 1925.225539 | EU18: 1536.678958 | EV18: 1576.212804 | EW18: 7154.917051 | EX18: 2405.779791 | EY18: 1819.704798 | EZ18: 6159.296857 | FA18: 1908.779205 | FB18: 1988.932552 | FC18: 1709.566417 | FD18: 11.10666849 | FE18: 2287.321319 | FF18: 15539.22474 | FG18: 1636.575777 | FH18: 1596.152817 | FI18: 1638.171563 | FJ18: 1749.190607 | FK18: 1915.313074 | FL18: 3754.607833 | FM18: 2503.475983 | FN18: 1631.583545 | FO18: 415.0492227 | FP18: 70.41973004 | FQ18: 8403.059816 | FR18: 780.5474388 | FS18: 5685.761727 | FT18: 2059.453546 | FU18: 1832.244823 | FV18: 3363.985137 | FW18: 0.0004367262367 | FX18: 851.8452576 | FY18: 1196.064372 | FZ18: 1965.441248 | GA18: 3814.64777 | GB18: 3168.152172 | GC18: 1639.168977 | GD18: 509.5441612 | GE18: 1083.433798 | GF18: 9548.929248 | GG18: 9614.41871 | GH18: 2175.338218 | GI18: 6664.648682 | GJ18: 1209.597796 | GK18: 338.7027115 | GL18: 5988.120025 | GM18: 2253.269692 | GN18: 925.516297 | GO18: 8456.569941 | GP18: 2198.688037 | GQ18: 1572.387283 | GR18: 2691.426236 | GS18: 10772.55168 | GT18: 10051.55178 | GU18: 4292.357792 | GV18: 160566.1442 | GW18: 47843.86768 | GX18: 43641.9543 | GY18: 152643.1812 | GZ18: 90011.41677 | HA18: 20924.61129 | HB18: 3975.729907 | HC18: 12014.55235 | HD18: 12486.55005 | HE18: 0.002477868502 | HF18: 7106.843709 | HG18: 5574.122164 | HH18: 15832.75859 | HI18: 291.1038701 | HJ18: 42176.75279 | HK18: 11844.8627 | HL18: 1612.945362 | HM18: 1784.701112 | HN18: 1070.435853 | HO18: 1143.02642 | HP18: 1526.962687 | HQ18: 1300.994838 | HR18: 1195.564873 | HS18: 1334.743673 | HT18: 0.161705495 | HU18: 693.9422645 | HV18: 6.644135056 | HW18: 653.9205506 | HX18: 564.6807225 | HY18: 1547.162484 | HZ18: 2425.830533 | IA18: 2313.940184 | IB18: 1926.048232 | IC18: 2055.48857 | ID18: 865.9786712 | IE18: 948.9824772 | IF18: 1337.512706 | IG18: 1054.210566 | IH18: 1002.456255 | II18: 1777.600251 | IJ18: 1332.128717 | IK18: 2241.995129 | IL18: 26506.22824 | IM18: 62827.79444 | IN18: 2012.019447 | IO18: 8855.207776 | IP18: 4371.326116 | IQ18: 4252.203208 | IR18: 2053.061988 | IS18: 2946.917863 | IT18: 2815.048939 | IU18: 3076.240779 | IV18: 4871.743215 | IW18: 22305.38866 | IX18: 1598.95671 | IY18: 5976.954855 | IZ18: 2603.426301 | JA18: 1596.042041 | JB18: 1.099031655e-06 | JC18: 1331.733611 | JD18: 1637.211481 | JE18: 36568.18708 | JF18: 76264.53489 | JG18: 3.479573774 | JH18: 12327.38275 | JI18: 4734.539941 | JJ18: 11475.76283 | JK18: 3808294.289
A19: =+MATCH(B19,RUT[EMPRESA],0) -> 306 | B19: TECNORED | C19: -107100873.4 | D19: -107100873.4 | F19: =IFERROR(INDEX($B$9:$B$511,MATCH(0,INDEX(COUNTIF($F$8:F18,$B$9:$B$511),0,0),0)),"") -> TECNORED | G19: -107100873.4 | J19: NORVIND | K19: =$JK19*K$61/$JK$61 -> 4879655.009 | L19: 2598658.736 | M19: 342045.2949 | N19: 11143997.39 | O19: 2336524.1 | P19: 1187138.746 | Q19: 7157.30748 | R19: 23837.1184 | S19: 167962.9467 | T19: 750719.2003 | U19: =$JK19*U$61/$JK$61 -> 68429.24247 | V19: 78778.33913 | W19: 66518.65369 | X19: 315276.7336 | Y19: 948637.1801 | Z19: 4845275.914 | AA19: 92949.10007 | AB19: 10483.60614 | AC19: 36028.28406 | AD19: 287321.6236 | AE19: =$JK19*AE$61/$JK$61 -> 30085.6744 | AF19: 194105.5418 | AG19: 16354.79202 | AH19: 309859.7673 | AI19: 876622.027 | AJ19: 532324.5747 | AK19: 2765.614631 | AL19: 77453.74017 | AM19: 2304076.272 | AN19: 538614.7368 | AO19: =$JK19*AO$61/$JK$61 -> 58412.60994 | AP19: 2989416.488 | AQ19: 86087.2506 | AR19: 156208.6297 | AS19: 179020.3757 | AT19: 1513691.395 | AU19: 1496991.722 | AV19: 9095.14 | AW19: 140.4350723 | AX19: 113226.2093 | AY19: =$JK19*AY$61/$JK$61 -> 338192.4435 | AZ19: 1346726.219 | BA19: 273784.5925 | BB19: 4402.122836 | BC19: 643016.0552 | BD19: 209147.707 | BE19: 14415.86824 | BF19: 27654.74236 | BG19: 2986524.911 | BH19: 68751.68289 | BI19: =$JK19*BI$61/$JK$61 -> 423442.3091 | BJ19: 1880418.14 | BK19: 875460.6639 | BL19: 201340.8942 | BM19: 1202.480333 | BN19: 2444876.897 | BO19: 177493.3453 | BP19: 9539.767327 | BQ19: 189838.9694 | BR19: 1262595.707 | BS19: =$JK19*BS$61/$JK$61 -> 53493.14053 | BT19: 55102.56759 | BU19: 41746.35577 | BV19: 1349100.446 | BW19: 3430376.218 | BX19: 291563.2949 | BY19: 24346.44665 | BZ19: 37399.18965 | CA19: 1370114.529 | CB19: 381314.9301 | CC19: =$JK19*CC$61/$JK$61 -> 15000.42792 | CD19: 177710.3529 | CE19: 249109.7235 | CF19: 125570.4296 | CG19: 19814.25549 | CH19: 233678.311 | CI19: 1617213.292 | CJ19: 6164.735393 | CK19: 191595.6442 | CL19: 80962.5354 | CM19: =$JK19*CM$61/$JK$61 -> 85545.44164 | CN19: 8905.525337 | CO19: 199589.3993 | CP19: 119029.1277 | CQ19: 2676564.698 | CR19: 334430.8533 | CS19: 534225.441 | CT19: 33597.13124 | CU19: 5317.700649 | CV19: 45556.28704 | CW19: =$JK19*CW$61/$JK$61 -> 45006.91423 | CX19: 87642.62406 | CY19: 52606.94055 | CZ19: 38928.92572 | DA19: 376308.1542 | DB19: 20553.74774 | DC19: 216295.9224 | DD19: 6396.520669 | DE19: 152498.7145 | DF19: 922090.4121 | DG19: =$JK19*DG$61/$JK$61 -> 3462.224458 | DH19: 184543.5667 | DI19: 46739.9072 | DJ19: 3003362.94 | DK19: 68617.7618 | DL19: 422944.1216 | DM19: 407887.6804 | DN19: 426.1235418 | DO19: 168769.9439 | DP19: 61147.11726 | DQ19: =$JK19*DQ$61/$JK$61 -> 58166.38659 | DR19: 23000.58383 | DS19: 68092.50645 | DT19: 183336.2663 | DU19: 244820.3256 | DV19: 148222.0543 | DW19: 74029.41013 | DX19: 1713192.001 | DY19: 40714.62441 | DZ19: 77947.2393 | EA19: =$JK19*EA$61/$JK$61 -> 203500.3837 | EB19: 135966.2322 | EC19: 3367357.452 | ED19: 3940.501844 | EE19: 170800.3747 | EF19: 69342.20429 | EG19: 67653.24744 | EH19: 7914.215952 | EI19: 377797.7687 | EJ19: 38980.41645 | EK19: =$JK19*EK$61/$JK$61 -> 55679.1344 | EL19: 19979.00357 | EM19: 63659.18075 | EN19: 70880.55407 | EO19: 70321.43741 | EP19: 62963.59701 | EQ19: 141830.9229 | ER19: 67026.20892 | ES19: 177722.0005 | ET19: 59878.15246 | EU19: =$JK19*EU$61/$JK$61 -> 47793.61953 | EV19: 49023.19685 | EW19: 222531.4413 | EX19: 74824.29782 | EY19: 56596.25801 | EZ19: 191565.7718 | FA19: 59366.6404 | FB19: 61859.56097 | FC19: 53170.74623 | FD19: 345.438379 | FE19: =$JK19*FE$61/$JK$61 -> 71140.01548 | FF19: 483299.2547 | FG19: 50900.59938 | FH19: 49643.36896 | FI19: 50950.23135 | FJ19: 54403.1334 | FK19: 59569.85607 | FL19: 116775.3989 | FM19: 77862.83401 | FN19: 50745.33154 | FO19: =$JK19*FO$61/$JK$61 -> 12908.81517 | FP19: 2190.18668 | FQ19: 261351.04 | FR19: 24276.50039 | FS19: 176837.9344 | FT19: 64052.89712 | FU19: 56986.27648 | FV19: 104626.2949 | FW19: 0.01358301127 | FX19: 26493.99729 | FY19: =$JK19*FY$61/$JK$61 -> 37199.86223 | FZ19: 61128.93701 | GA19: 118642.7544 | GB19: 98535.51958 | GC19: 50981.25282 | GD19: 15847.78633 | GE19: 33696.83854 | GF19: 296989.7447 | GG19: 299026.5907 | GH19: 67657.12944 | GI19: =$JK19*GI$61/$JK$61 -> 207283.1686 | GJ19: 37620.77731 | GK19: 10534.29439 | GL19: 186241.8488 | GM19: 70080.94554 | GN19: 28785.30583 | GO19: 263015.306 | GP19: 68383.35291 | GQ19: 48904.21591 | GR19: 83708.44208 | GS19: =$JK19*GS$61/$JK$61 -> 335046.7147 | GT19: 312622.2552 | GU19: 133500.4388 | GV19: 4993910.514 | GW19: 1488034.698 | GX19: 1357347.251 | GY19: 4747491.392 | GZ19: 2799525.161 | HA19: 650794.9534 | HB19: 123652.7133 | HC19: =$JK19*HC$61/$JK$61 -> 373675.2825 | HD19: 388355.303 | HE19: 0.07706639298 | HF19: 221036.2695 | HG19: 173365.733 | HH19: 492428.712 | HI19: 9053.880473 | HJ19: 1311776.715 | HK19: 368397.6137 | HL19: 50165.64883 | HM19: =$JK19*HM$61/$JK$61 -> 55507.57722 | HN19: 33292.5779 | HO19: 35550.2817 | HP19: 47491.42515 | HQ19: 40463.39802 | HR19: 37184.32687 | HS19: 41513.05056 | HT19: 5.029346478 | HU19: 21582.9158 | HV19: 206.645156 | HW19: =$JK19*HW$61/$JK$61 -> 20338.16487 | HX19: 17562.63758 | HY19: 48119.67702 | HZ19: 75447.9138 | IA19: 71967.91249 | IB19: 59903.73975 | IC19: 63929.57889 | ID19: 26933.57316 | IE19: 29515.14838 | IF19: 41599.17271 | IG19: =$JK19*IG$61/$JK$61 -> 32787.94081 | IH19: 31178.28392 | II19: 55286.72702 | IJ19: 41431.72049 | IK19: 69730.28534 | IL19: 824393.7883 | IM19: 1954063.136 | IN19: 62577.60702 | IO19: 275413.696 | IP19: 135956.5029 | IQ19: =$JK19*IQ$61/$JK$61 -> 132251.5554 | IR19: 63854.10762 | IS19: 91654.7145 | IT19: 87553.34176 | IU19: 95676.90157 | IV19: 151520.4204 | IW19: 693739.7391 | IX19: 49730.57532 | IY19: 185894.5909 | IZ19: 80971.47779 | JA19: =$JK19*JA$61/$JK$61 -> 49639.9236 | JB19: 3.418196138e-05 | JC19: 41419.43196 | JD19: 50920.37099 | JE19: 1137339.723 | JF19: 2371971.156 | JG19: 108.2213199 | JH19: 383404.8992 | JI19: 147253.1393 | JJ19: 356917.9104 | JK19: 118445149.1
A20: =+MATCH(B20,RUT[EMPRESA],0) -> 231 | B20: NUEVA ENERGIA | C20: -98632799.03 | D20: -98632799.03 | F20: =IFERROR(INDEX($B$9:$B$511,MATCH(0,INDEX(COUNTIF($F$8:F19,$B$9:$B$511),0,0),0)),"") -> NUEVA ENERGIA | G20: -98632799.03 | J20: EMELDA | K20: 128821.3464 | L20: 68603.76741 | M20: 9029.887432 | N20: 294198.0009 | O20: 61683.49607 | P20: 31340.08683 | Q20: 188.9506502 | R20: 629.2923746 | S20: 4434.168586 | T20: 19818.74908 | U20: 1806.510324 | V20: 2079.723198 | W20: 1756.071385 | X20: 8323.205893 | Y20: 25043.72104 | Z20: 127913.7492 | AA20: 2453.826797 | AB20: 276.7638812 | AC20: 951.1352862 | AD20: 7585.199846 | AE20: 794.2522735 | AF20: 5124.324814 | AG20: 431.7613284 | AH20: 8180.1997 | AI20: 23142.54382 | AJ20: 14053.20014 | AK20: 73.01135016 | AL20: 2044.754205 | AM20: 60826.8837 | AN20: 14219.25843 | AO20: 1542.074398 | AP20: 78919.64828 | AQ20: 2272.676145 | AR20: 4123.85834 | AS20: 4726.081209 | AT20: 39960.97333 | AU20: 39520.10725 | AV20: 240.1088148 | AW20: 3.707441421 | AX20: 2989.136057 | AY20: 8928.173375 | AZ20: 35553.14556 | BA20: 7227.826513 | BB20: 116.2146484 | BC20: 16975.42016 | BD20: 5521.433211 | BE20: 380.574355 | BF20: 730.0764378 | BG20: 78843.31158 | BH20: 1815.022649 | BI20: 11178.74282 | BJ20: 49642.44321 | BK20: 23111.8842 | BL20: 5315.335825 | BM20: 31.74509986 | BN20: 64543.9756 | BO20: 4685.768091 | BP20: 251.8468354 | BQ20: 5011.688656 | BR20: 33332.12671 | BS20: 1412.201964 | BT20: 1454.690329 | BU20: 1102.090568 | BV20: 35615.82441 | BW20: 90560.84549 | BX20: 7697.178625 | BY20: 642.738479 | BZ20: 987.3267594 | CA20: 36170.58955 | CB20: 10066.59336 | CC20: 396.0065451 | CD20: 4691.497021 | CE20: 6576.417788 | CF20: 3315.019564 | CG20: 523.0900681 | CH20: 6169.033385 | CI20: 42693.91862 | CJ20: 162.7470615 | CK20: 5058.064313 | CL20: 2137.385287 | CM20: 2258.37256 | CN20: 235.1030478 | CO20: 5269.096917 | CP20: 3142.331266 | CQ20: 70660.46014 | CR20: 8828.868585 | CS20: 14103.38241 | CT20: 886.9536219 | CU20: 140.3856126 | CV20: 1202.671546 | CW20: 1188.168278 | CX20: 2313.737512 | CY20: 1388.806566 | CZ20: 1027.711307 | DA20: 9934.416064 | DB20: 542.6124293 | DC20: 5710.143833 | DD20: 168.8661194 | DE20: 4025.917755 | DF20: 24342.89478 | DG20: 91.40162893 | DH20: 4871.891701 | DI20: 1233.918744 | DJ20: 79287.83021 | DK20: 1811.487175 | DL20: 11165.59083 | DM20: 10768.10555 | DN20: 11.24952652 | DO20: 4455.473057 | DP20: 1614.264525 | DQ20: 1535.57418 | DR20: 607.2081271 | DS20: 1797.6206 | DT20: 4840.019352 | DU20: 6463.179041 | DV20: 3913.01528 | DW20: 1954.352976 | DX20: 45227.72613 | DY20: 1074.853187 | DZ20: 2057.782425 | EA20: 5372.345664 | EB20: 3589.465458 | EC20: 88897.17003 | ED20: 104.0280004 | EE20: 4509.075786 | EF20: 1830.612227 | EG20: 1786.024301 | EH20: 208.9327941 | EI20: 9973.741415 | EJ20: 1029.070646 | EK20: 1469.91151 | EL20: 527.4393654 | EM20: 1680.582206 | EN20: 1871.224174 | EO20: 1856.463671 | EP20: 1662.219016 | EQ20: 3744.291436 | ER20: 1769.470683 | ES20: 4691.804514 | ET20: 1580.764257 | EU20: 1261.736415 | EV20: 1294.196867 | EW20: 5874.759557 | EX20: 1975.33776 | EY20: 1494.123283 | EZ20: 5057.275691 | FA20: 1567.2605 | FB20: 1633.072814 | FC20: 1403.690857 | FD20: 9.119463779 | FE20: 1878.073873 | FF20: 12758.94722 | FG20: 1343.759699 | FH20: 1310.569214 | FI20: 1345.069968 | FJ20: 1436.225488 | FK20: 1572.62533 | FL20: 3082.833539 | FM20: 2055.554152 | FN20: 1339.660678 | FO20: 340.7886311 | FP20: 57.82023454 | FQ20: 6899.584664 | FR20: 640.89192 | FS20: 4668.465449 | FT20: 1690.976193 | FU20: 1504.419647 | FV20: 2762.101041 | FW20: 0.0003585871946 | FX20: 699.4331356 | FY20: 982.0645786 | FZ20: 1613.784573 | GA20: 3132.131132 | GB20: 2601.306503 | GC20: 1345.888925 | GD20: 418.3765388 | GE20: 889.5858629 | GF20: 7840.43518 | GG20: 7894.20727 | GH20: 1786.126785 | GI20: 5472.209987 | GJ20: 993.1766034 | GK20: 278.1020348 | GL20: 4916.725812 | GM20: 1850.114762 | GN20: 759.9229553 | GO20: 6943.52076 | GP20: 1805.298854 | GQ20: 1291.055808 | GR20: 2209.876354 | GS20: 8845.127131 | GT20: 8253.128505 | GU20: 3524.369294 | GV20: 131837.6556 | GW20: 39283.64465 | GX20: 35833.53745 | GY20: 125332.2688 | GZ20: 73906.57741 | HA20: 17180.78061 | HB20: 3264.392459 | HC20: 9864.909086 | HD20: 10252.45698 | HE20: 0.002034528362 | HF20: 5835.287495 | HG20: 4576.800432 | HH20: 12999.96201 | HI20: 239.0195764 | HJ20: 34630.48974 | HK20: 9725.580301 | HL20: 1324.357238 | HM20: 1465.382455 | HN20: 878.91351 | HO20: 938.5161752 | HP20: 1253.75858 | HQ20: 1068.22089 | HR20: 981.6544501 | HS20: 1095.931384 | HT20: 0.1327731538 | HU20: 569.7821402 | HV20: 5.455366657 | HW20: 536.9211098 | HX20: 463.6480685 | HY20: 1270.34423 | HZ20: 1991.801024 | IA20: 1899.930092 | IB20: 1581.439753 | IC20: 1687.720631 | ID20: 711.0377994 | IE20: 779.1905675 | IF20: 1098.204982 | IG20: 865.5912508 | IH20: 823.0968189 | II20: 1459.55208 | IJ20: 1093.784296 | IK20: 1840.857444 | IL20: 21763.73486 | IM20: 51586.64778 | IN20: 1652.029002 | IO20: 7270.834329 | IP20: 3589.208609 | IQ20: 3491.399167 | IR20: 1685.728213 | IS20: 2419.655428 | IT20: 2311.380487 | IU20: 2525.839893 | IV20: 4000.0911 | IW20: 18314.50935 | IX20: 1312.871435 | IY20: 4907.558313 | IZ20: 2137.621363 | JA20: 1310.478258 | JB20: 9.023929523e-07 | JC20: 1093.459883 | JD20: 1344.281664 | JE20: 30025.4084 | JF20: 62619.28712 | JG20: 2.857008563 | JH20: 10121.76788 | JI20: 3887.43623 | JJ20: 9422.519771 | JK20: 3126914.415
A21: =+MATCH(B21,RUT[EMPRESA],0) -> 102 | B21: ELEKTRAGEN | C21: 2136055.236 | D21: 2136055.236 | F21: =IFERROR(INDEX($B$9:$B$511,MATCH(0,INDEX(COUNTIF($F$8:F20,$B$9:$B$511),0,0),0)),"") -> ELEKTRAGEN | H21: 2136055.236 | J21: SWO | K21: 1199.583308 | L21: 638.8377125 | M21: 84.08623679 | N21: 2739.569341 | O21: 574.3962032 | P21: 291.8386283 | Q21: 1.759506885 | R21: 5.859965367 | S21: 41.29094106 | T21: 184.5520268 | U21: 16.82220914 | V21: 19.36636515 | W21: 16.35252216 | X21: 77.50562416 | Y21: 233.2069224 | Z21: 1191.131771 | AA21: 22.85001476 | AB21: 2.577222963 | AC21: 8.856963887 | AD21: 70.63331798 | AE21: 7.396070576 | AF21: 47.71767011 | AG21: 4.020557905 | AH21: 76.17395168 | AI21: 215.5031758 | AJ21: 130.863283 | AK21: 0.6798810864 | AL21: 19.04073418 | AM21: 566.4194359 | AN21: 132.4096164 | AO21: 14.35978399 | AP21: 734.8991095 | AQ21: 21.16314139 | AR21: 38.40133462 | AS21: 44.00922897 | AT21: 372.1162518 | AU21: 368.0109105 | AV21: 2.23589129 | AW21: 0.03452366373 | AX21: 27.83481014 | AY21: 83.13907633 | AZ21: 331.0705963 | BA21: 67.30546047 | BB21: 1.082189841 | BC21: 158.0749716 | BD21: 51.41554021 | BE21: 3.543905233 | BF21: 6.798465726 | BG21: 734.1882627 | BH21: 16.90147584 | BI21: 104.0963603 | BJ21: 462.2700189 | BK21: 215.2176737 | BL21: 49.49636307 | BM21: 0.2956101063 | BN21: 601.0329648 | BO21: 43.63383355 | BP21: 2.34519564 | BQ21: 46.66880315 | BR21: 310.3884871 | BS21: 13.15041297 | BT21: 13.54606426 | BU21: 10.26265822 | BV21: 331.6542611 | BW21: 843.3018412 | BX21: 71.67606344 | BY21: 5.985175379 | BZ21: 9.193978585 | CA21: 336.8202296 | CB21: 93.74003378 | CC21: 3.68760966 | CD21: 43.6871813 | CE21: 61.23954784 | CF21: 30.86943465 | CG21: 4.871010371 | CH21: 57.44598766 | CI21: 397.5654156 | CJ21: 1.515499285 | CK21: 47.10065288 | CL21: 19.90331405 | CM21: 21.02994653 | CN21: 2.189277629 | CO21: 49.06578674 | CP21: 29.26136265 | CQ21: 657.989618 | CR21: 82.21435095 | CS21: 131.3305799 | CT21: 8.259304762 | CU21: 1.307269659 | CV21: 11.19926745 | CW21: 11.06421314 | CX21: 21.5455045 | CY21: 12.93255521 | CZ21: 9.570039157 | DA21: 92.50919989 | DB21: 5.052802435 | DC21: 53.17281195 | DD21: 1.572479901 | DE21: 37.48931271 | DF21: 226.680834 | DG21: 0.8511312096 | DH21: 45.36701507 | DI21: 11.4902411 | DJ21: 738.3276165 | DK21: 16.86855353 | DL21: 103.9738891 | DM21: 100.2725095 | DN21: 0.1047554975 | DO21: 41.48932811 | DP21: 15.03201786 | DQ21: 14.29925401 | DR21: 5.654317037 | DS21: 16.7394281 | DT21: 45.07022002 | DU21: 60.18506956 | DV21: 36.43796579 | DW21: 18.19891869 | DX21: 421.1602102 | DY21: 10.00902395 | DZ21: 19.16205286 | EA21: 50.02723821 | EB21: 33.42507254 | EC21: 827.8097091 | ED21: 0.9687078759 | EE21: 41.98847627 | EF21: 17.04664586 | EG21: 16.63144346 | EH21: 1.945580443 | EI21: 92.87539724 | EJ21: 9.582697312 | EK21: 13.68780378 | EL21: 4.911510991 | EM21: 15.64956754 | EN21: 17.42482397 | EO21: 17.28737429 | EP21: 15.47856967 | EQ21: 34.86681076 | ER21: 16.4772963 | ES21: 43.69004467 | ET21: 14.72006363 | EU21: 11.74927902 | EV21: 12.05155048 | EW21: 54.70571221 | EX21: 18.39432881 | EY21: 13.9132636 | EZ21: 47.09330924 | FA21: 14.59431677 | FB21: 15.20716048 | FC21: 13.0711576 | FD21: 0.08492037098 | FE21: 17.48860831 | FF21: 118.8112106 | FG21: 12.51307916 | FH21: 12.20400964 | FI21: 12.52528037 | FJ21: 13.37411982 | FK21: 14.64427401 | FL21: 28.70732031 | FM21: 19.1413032 | FN21: 12.47490911 | FO21: 3.173420903 | FP21: 0.5384215439 | FQ21: 64.2488751 | FR21: 5.967980237 | FS21: 43.47271149 | FT21: 15.74635627 | FU21: 14.00914326 | FV21: 25.72066196 | FW21: 3.339160979e-06 | FX21: 6.513115551 | FY21: 9.144977201 | FZ21: 15.02754854 | GA21: 29.16637909 | GB21: 24.22334455 | GC21: 12.53290649 | GD21: 3.895918855 | GE21: 8.283816168 | GF21: 73.01006729 | GG21: 73.51079255 | GH21: 16.63239779 | GI21: 50.95717396 | GJ21: 9.248452284 | GK21: 2.589683839 | GL21: 45.78450993 | GM21: 17.2282533 | GN21: 7.07639625 | GO21: 64.65800766 | GP21: 16.81092794 | GQ21: 12.02230097 | GR21: 20.57835026 | GS21: 82.36575039 | GT21: 76.85306411 | GU21: 32.8188976 | GV21: 1227.671154 | GW21: 365.8089727 | GX21: 333.6816032 | GY21: 1167.093047 | GZ21: 688.2174352 | HA21: 159.9872864 | HB21: 30.39799548 | HC21: 91.86195149 | HD21: 95.47079424 | HE21: 1.894551121e-05 | HF21: 54.3381487 | HG21: 42.61912762 | HH21: 121.0555382 | HI21: 2.225748311 | HJ21: 322.4788329 | HK21: 90.564523 | HL21: 12.3324036 | HM21: 13.64562925 | HN21: 8.184435307 | HO21: 8.73945483 | HP21: 11.67498948 | HQ21: 9.947264054 | HR21: 9.141158088 | HS21: 10.20530395 | HT21: 0.001236382506 | HU21: 5.305806558 | HV21: 0.05080032901 | HW21: 4.999804916 | HX21: 4.317486964 | HY21: 11.82943492 | HZ21: 18.54763459 | IA21: 17.69213324 | IB21: 14.72635385 | IC21: 15.7160405 | ID21: 6.621178083 | IE21: 7.255816094 | IF21: 10.22647567 | IG21: 8.06037854 | IH21: 7.664670743 | II21: 13.59133685 | IJ21: 10.18531028 | IK21: 17.14204923 | IL21: 202.6637183 | IM21: 480.3744358 | IN21: 15.38368035 | IO21: 67.70594889 | IP21: 33.42268076 | IQ21: 32.51188005 | IR21: 15.69748712 | IS21: 22.53181126 | IT21: 21.5235559 | IU21: 23.52060011 | IV21: 37.2488151 | IW21: 170.544559 | IX21: 12.2254479 | IY21: 45.69914226 | IZ21: 19.90551239 | JA21: 12.20316266 | JB21: 8.403075678e-09 | JC21: 10.18228935 | JD21: 12.51793969 | JE21: 279.5963537 | JF21: 583.1102817 | JG21: 0.02660444001 | JH21: 94.25381849 | JI21: 36.19977389 | JJ21: 87.74242586 | JK21: 29117.80107
A22: =+MATCH(B22,RUT[EMPRESA],0) -> 138 | B22: GESAN | C22: 7114044.171 | D22: 7114044.171 | F22: =IFERROR(INDEX($B$9:$B$511,MATCH(0,INDEX(COUNTIF($F$8:F21,$B$9:$B$511),0,0),0)),"") -> GESAN | H22: 7114044.171 | J22: NUEVA DEGAN | K22: 245778.4521 | L22: 130889.2371 | M22: 17228.13662 | N22: 561300.8345 | O22: 117686.0404 | P22: 59793.80159 | Q22: 360.4992464 | R22: 1200.627924 | S22: 8459.957309 | T22: 37812.22293 | U22: 3446.643925 | V22: 3967.907201 | W22: 3350.411393 | X22: 15879.85778 | Y22: 47780.95527 | Z22: 244046.8459 | AA22: 4681.660055 | AB22: 528.0382497 | AC22: 1814.672528 | AD22: 14471.81487 | AE22: 1515.355178 | AF22: 9776.707474 | AG22: 823.7581262 | AH22: 15607.01604 | AI22: 44153.69621 | AJ22: 26812.12294 | AK22: 139.2984713 | AL22: 3901.189804 | AM22: 116051.7083 | AN22: 27128.9458 | AO22: 2942.126201 | AP22: 150570.9227 | AQ22: 4336.042437 | AR22: 7867.915896 | AS22: 9016.897866 | AT22: 76241.60467 | AU22: 75400.47557 | AV22: 458.1039903 | AW22: 7.073433393 | AX22: 5702.977444 | AY22: 17034.0762 | AZ22: 67831.90305 | BA22: 13789.98172 | BB22: 221.7261127 | BC22: 32387.43117 | BD22: 10534.35122 | BE22: 726.0984181 | BF22: 1392.913998 | BG22: 150425.2798 | BH22: 3462.884603 | BI22: 21327.94124 | BJ22: 94712.89647 | BK22: 44095.20068 | BL22: 10141.13769 | BM22: 60.56652658 | BN22: 123143.5538 | BO22: 8939.984404 | BP22: 480.4989785 | BQ22: 9561.808769 | BR22: 63594.41764 | BS22: 2694.342377 | BT22: 2775.405996 | BU22: 2102.68035 | BV22: 67951.48812 | BW22: 172781.1814 | BX22: 14685.45936 | BY22: 1226.281768 | BZ22: 1883.722297 | CA22: 69009.92542 | CB22: 19206.06951 | CC22: 755.5415182 | CD22: 8950.914639 | CE22: 12547.15797 | CF22: 6324.731106 | CG22: 998.0043742 | CH22: 11769.90862 | CI22: 81455.79533 | CJ22: 310.5053779 | CK22: 9650.288958 | CL22: 4077.920794 | CM22: 4308.752605 | CN22: 448.5534794 | CO22: 10052.9184 | CP22: 5995.258827 | CQ22: 134813.2044 | CR22: 16844.61244 | CS22: 26907.86577 | CT22: 1692.220228 | CU22: 267.8419339 | CV22: 2294.578959 | CW22: 2266.908151 | CX22: 4414.383484 | CY22: 2649.706259 | CZ22: 1960.77204 | DA22: 18953.88823 | DB22: 1035.251118 | DC22: 10894.39251 | DD22: 322.1799381 | DE22: 7681.054898 | DF22: 46443.84772 | DG22: 174.3853134 | DH22: 9295.089937 | DI22: 2354.195537 | DJ22: 151273.3775 | DK22: 3456.139266 | DL22: 21302.84853 | DM22: 20544.48573 | DN22: 21.46298956 | DO22: 8500.604142 | DP22: 3079.857859 | DQ22: 2929.724424 | DR22: 1158.493353 | DS22: 3429.683206 | DT22: 9234.280631 | DU22: 12331.10959 | DV22: 7465.648085 | DW22: 3728.713157 | DX22: 86290.05073 | DY22: 2050.714107 | DZ22: 3926.046367 | EA22: 10249.90685 | EB22: 6848.346865 | EC22: 169607.0523 | ED22: 198.4751877 | EE22: 8602.872874 | EF22: 3492.627984 | EG22: 3407.558609 | EH22: 398.6232106 | EI22: 19028.91713 | EJ22: 1963.365525 | EK22: 2804.446512 | EL22: 1006.302405 | EM22: 3206.385467 | EN22: 3570.111582 | EO22: 3541.949995 | EP22: 3171.350307 | EQ22: 7143.739595 | ER22: 3375.975934 | ES22: 8951.501305 | ET22: 3015.942643 | EU22: 2407.268917 | EV22: 2469.200264 | EW22: 11208.46312 | EX22: 3768.750058 | EY22: 2850.640192 | EZ22: 9648.784347 | FA22: 2990.178805 | FB22: 3115.742222 | FC22: 2678.104022 | FD22: 17.39903947 | FE22: 3583.180133 | FF22: 24342.81573 | FG22: 2563.761271 | FH22: 2500.437092 | FI22: 2566.261134 | FJ22: 2740.176896 | FK22: 3000.414371 | FL22: 5881.743019 | FM22: 3921.795042 | FN22: 2555.940741 | FO22: 650.1911721 | FP22: 110.3153176 | FQ22: 13163.72857 | FR22: 1222.758715 | FS22: 8906.972666 | FT22: 3226.216173 | FU22: 2870.284641 | FV22: 5269.816976 | FW22: 0.0006841490798 | FX22: 1334.449593 | FY22: 1873.682574 | FZ22: 3078.942156 | GA22: 5975.797976 | GB22: 4963.03682 | GC22: 2567.823623 | GD22: 798.2212647 | GE22: 1697.242285 | GF22: 14958.77877 | GG22: 15061.37062 | GH22: 3407.754138 | GI22: 10440.43815 | GJ22: 1894.883224 | GK22: 530.5913153 | GL22: 9380.629008 | GM22: 3529.836902 | GN22: 1449.858217 | GO22: 13247.55432 | GP22: 3444.33256 | GQ22: 2463.207433 | GR22: 4216.226615 | GS22: 16875.63214 | GT22: 15746.15702 | GU22: 6724.14979 | GV22: 251533.2731 | GW22: 74949.32819 | GX22: 68366.86318 | GY22: 239121.6354 | GZ22: 141006.4768 | HA22: 32779.23869 | HB22: 6228.139573 | HC22: 18821.27576 | HD22: 19560.679 | HE22: 0.003881679902 | HF22: 11133.15431 | HG22: 8732.084835 | HH22: 24802.64822 | HI22: 456.0258305 | HJ22: 66071.56653 | HK22: 18555.45015 | HL22: 2526.743283 | HM22: 2795.80552 | HN22: 1676.880486 | HO22: 1790.596506 | HP22: 2392.047991 | HQ22: 2038.060337 | HR22: 1872.900089 | HS22: 2090.929233 | HT22: 0.2533181117 | HU22: 1087.088253 | HV22: 10.40830273 | HW22: 1024.392641 | HX22: 884.5948884 | HY22: 2423.69178 | HZ22: 3800.160346 | IA22: 3624.879648 | IB22: 3017.231424 | IC22: 3220.00488 | ID22: 1356.59015 | IE22: 1486.618925 | IF22: 2095.267034 | IG22: 1651.462926 | IH22: 1570.387732 | II22: 2784.681738 | IJ22: 2086.832801 | IK22: 3512.174849 | IL22: 41523.06441 | IM22: 98422.24748 | IN22: 3151.908764 | IO22: 13872.0364 | IP22: 6847.856823 | IQ22: 6661.246032 | IR22: 3216.203543 | IS22: 4616.464446 | IT22: 4409.886513 | IU22: 4819.053955 | IV22: 7631.78018 | IW22: 34942.28156 | IX22: 2504.829501 | IY22: 9363.138322 | IZ22: 4078.371204 | JA22: 2500.263556 | JB22: 1.721676951e-06 | JC22: 2086.213852 | JD22: 2564.757127 | JE22: 57285.52452 | JF22: 119471.4376 | JG22: 5.450891188 | JH22: 19311.33707 | JI22: 7416.845775 | JJ22: 17977.24048 | JK22: 5965844.994
A23: =+MATCH(B23,RUT[EMPRESA],0) -> 237 | B23: PACIFIC HYDRO | C23: -25053784.75 | D23: -25053784.75 | F23: =IFERROR(INDEX($B$9:$B$511,MATCH(0,INDEX(COUNTIF($F$8:F22,$B$9:$B$511),0,0),0)),"") -> PACIFIC HYDRO | G23: -25053784.75 | J23: CHACAYES | K23: 13652318.25 | L23: 7270537.775 | M23: 956975.6904 | N23: 31178720.35 | O23: 6537136.446 | P23: 3321381.519 | Q23: 20024.74341 | R23: 66691.58493 | S23: 469927.4023 | T23: 2100365.173 | U23: 191451.6075 | V23: 220406.3514 | W23: 186106.1546 | X23: 882082.5027 | Y23: 2654100.886 | Z23: 13556132.28 | AA23: 260053.3629 | AB23: 29331.07508 | AC23: 100800.0769 | AD23: 803869.5846 | AE23: 84173.81983 | AF23: 543069.259 | AG23: 45757.50234 | AH23: 866926.8929 | AI23: 2452616.604 | AJ23: 1489339.818 | AK23: 7737.647644 | AL23: 216700.3832 | AM23: 6446353.784 | AN23: 1506938.459 | AO23: 163427.0331 | AP23: 8363801.372 | AQ23: 240855.2531 | AR23: 437041.1272 | AS23: 500863.9212 | AT23: 4235011.823 | AU23: 4188289.411 | AV23: 25446.41897 | AW23: 392.9098054 | AX23: 316784.7399 | AY23: 946196.1673 | AZ23: 3767875.987 | BA23: 765995.625 | BB23: 12316.27683 | BC23: 1799032.884 | BD23: 585154.2888 | BE23: 40332.77367 | BF23: 77372.54847 | BG23: 8355711.308 | BH23: 192353.7326 | BI23: 1184708.581 | BJ23: 5261041.371 | BK23: 2449367.337 | BL23: 563312.3568 | BM23: 3364.304271 | BN23: 6840286.335 | BO23: 496591.5895 | BP23: 26690.39908 | BQ23: 531132.2259 | BR23: 3532495.306 | BS23: 149663.3219 | BT23: 154166.1834 | BU23: 116798.1207 | BV23: 3774518.609 | BW23: 9597520.266 | BX23: 815736.9495 | BY23: 68116.58554 | BZ23: 104635.602 | CA23: 3833311.895 | CB23: 1066844.432 | CC23: 41968.25705 | CD23: 497198.7341 | CE23: 696960.1781 | CF23: 351321.4488 | CG23: 55436.40304 | CH23: 653786.1105 | CI23: 4524645.8 | CJ23: 17247.72127 | CK23: 536047.0575 | CL23: 226517.3045 | CM23: 239339.3778 | CN23: 24915.91431 | CO23: 558412.0176 | CP23: 333020.1683 | CQ23: 7488503.387 | CR23: 935671.9752 | CS23: 1494658.07 | CT23: 93998.1878 | CU23: 14877.88409 | CV23: 127457.5616 | CW23: 125920.5241 | CX23: 245206.8832 | CY23: 147183.9081 | CZ23: 108915.5036 | DA23: 1052836.455 | DB23: 57505.3574 | DC23: 605153.5944 | DD23: 17896.21104 | DE23: 426661.5118 | DF23: 2579828.233 | DG23: 9686.625399 | DH23: 516316.727 | DI23: 130769.0988 | DJ23: 8402820.812 | DK23: 191979.0477 | DL23: 1183314.75 | DM23: 1141189.779 | DN23: 1192.210145 | DO23: 472185.2223 | DP23: 171077.6486 | DQ23: 162738.1484 | DR23: 64351.12519 | DS23: 190509.4861 | DT23: 512938.937 | DU23: 684959.2834 | DV23: 414696.2547 | DW23: 207119.7789 | DX23: 4793175.415 | DY23: 113911.5386 | DZ23: 218081.097 | EA23: 569354.1851 | EB23: 380406.8667 | EC23: 9421206.111 | ED23: 11024.75178 | EE23: 477865.9696 | EF23: 194005.8957 | EG23: 189280.5255 | EH23: 22142.42496 | EI23: 1057004.104 | EJ23: 109059.5646 | EK23: 155779.3043 | EL23: 55897.33588 | EM23: 178105.9098 | EN23: 198309.8969 | EO23: 196745.5981 | EP23: 176159.8029 | EQ23: 396815.1219 | ER23: 187526.1946 | ES23: 497231.3218 | ET23: 167527.3338 | EU23: 133717.1793 | EV23: 137157.2957 | EW23: 622599.3541 | EX23: 209343.7189 | EY23: 158345.2364 | EZ23: 535963.4804 | FA23: 166096.2233 | FB23: 173070.9264 | FC23: 148761.3259 | FD23: 966.4688747 | FE23: 199035.8191 | FF23: 1352176.582 | FG23: 142409.9 | FH23: 138892.4157 | FI23: 142548.7605 | FJ23: 152209.3036 | FK23: 166664.7809 | FL23: 326714.6768 | FM23: 217844.9476 | FN23: 141975.491 | FO23: 36116.33456 | FP23: 6127.713029 | FQ23: 731208.982 | FR23: 67920.88962 | FS23: 494757.8781 | FT23: 179207.4511 | FU23: 159436.4316 | FV23: 292723.8651 | FW23: 0.0380026031 | FX23: 74125.01128 | FY23: 104077.9229 | FZ23: 171026.7838 | GA23: 331939.1714 | GB23: 275683.0697 | GC23: 142635.5525 | GD23: 44338.99979 | GE23: 94277.14926 | GF23: 830919.0924 | GG23: 836617.7883 | GH23: 189291.3866 | GI23: 579937.6758 | GJ23: 105255.5608 | GK23: 29472.89086 | GL23: 521068.1876 | GM23: 196072.749 | GN23: 80535.64347 | GO23: 735865.2721 | GP23: 191323.2175 | GQ23: 136824.4103 | GR23: 234199.8131 | GS23: 937395.0346 | GT23: 874655.7926 | GU23: 373508.0602 | GV23: 13971982.75 | GW23: 4163229.413 | GX23: 3797591.553 | GY23: 13282550.35 | GZ23: 7832522.661 | HA23: 1820796.716 | HB23: 345956.0544 | HC23: 1045470.196 | HD23: 1086542.016 | HE23: 0.2156166617 | HF23: 618416.1565 | HG23: 485043.3393 | HH23: 1377719.015 | HI23: 25330.9829 | HJ23: 3670094.126 | HK23: 1030704.313 | HL23: 140353.6524 | HM23: 155299.3209 | HN23: 93146.10723 | HO23: 99462.71993 | HP23: 132871.6987 | HQ23: 113208.6564 | HR23: 104034.458 | HS23: 116145.3784 | HT23: 14.07112564 | HU23: 60384.76792 | HV23: 578.1526417 | HW23: 56902.19879 | HX23: 49136.81746 | HY23: 134629.4243 | HZ23: 211088.4742 | IA23: 201352.1126 | IB23: 167598.922 | IC23: 178862.4308 | ID23: 75354.85841 | IE23: 82577.59987 | IF23: 116386.3313 | IG23: 91734.23158 | IH23: 87230.72712 | II23: 154681.4254 | IJ23: 115917.8328 | IK23: 195091.6705 | IL23: 2306492.229 | IM23: 5467085.636 | IN23: 175079.8785 | IO23: 770553.5372 | IP23: 380379.6462 | IQ23: 370013.9291 | IR23: 178651.277 | IS23: 256431.9258 | IT23: 244957.0888 | IU23: 267685.2168 | IV23: 423924.4365 | IW23: 1940947.809 | IX23: 139136.402 | IY23: 520096.628 | IZ23: 226542.3235 | JA23: 138882.7762 | JB23: 9.563442789e-05 | JC23: 115883.4519 | JD23: 142465.2171 | JE23: 3182053.614 | JF23: 6636310.361 | JG23: 302.7820405 | JH23: 1072691.756 | JI23: 411985.4204 | JJ23: 998586.3534 | JK23: 331386310.6
A24: =+MATCH(B24,RUT[EMPRESA],0) -> 100 | B24: ELECTRICA CENIZAS | C24: -276766078.8 | D24: -276766078.8 | F24: =IFERROR(INDEX($B$9:$B$511,MATCH(0,INDEX(COUNTIF($F$8:F23,$B$9:$B$511),0,0),0)),"") -> ELECTRICA CENIZAS | G24: -276766078.8 | J24: LA ARENA SPA | K24: 4375937.619 | L24: 2330404.198 | M24: 306736.6178 | N24: 9993623.999 | O24: 2095329.216 | P24: 1064592.699 | Q24: 6418.472411 | R24: 21376.45857 | S24: 150624.4552 | T24: 673223.9029 | U24: 61365.42354 | V24: 70646.20288 | W24: 59652.06116 | X24: 282731.3235 | Y24: 850711.1907 | Z24: 4345107.412 | AA24: 83354.14346 | AB24: 9401.403669 | AC24: 32309.15368 | AD24: 257661.9657 | AE24: 26979.98816 | AF24: 174068.4005 | AG24: 14666.51833 | AH24: 277873.5402 | AI24: 786130.0232 | AJ24: 477373.7339 | AK24: 2480.125558 | AL24: 69458.33973 | AM24: 2066230.915 | AN24: 483014.5747 | AO24: 52382.7887 | AP24: 2680824.78 | AQ24: 77200.62949 | AR24: 140083.5137 | AS24: 160540.4471 | AT24: 1357435.947 | AU24: 1342460.149 | AV24: 8156.266212 | AW24: 125.9382302 | AX24: 101538.0857 | AY24: 303281.4888 | AZ24: 1207706.265 | BA24: 245522.3363 | BB24: 3947.700173 | BC24: 576638.7461 | BD24: 187557.792 | BE24: 12927.74593 | BF24: 24799.99656 | BG24: 2678231.696 | BH24: 61654.57905 | BI24: 379731.1749 | BJ24: 1686306.196 | BK24: 785088.5454 | BL24: 180556.8614 | BM24: 1078.350603 | BN24: 2192496.963 | BO24: 159171.0491 | BP24: 8554.995516 | BQ24: 170242.2582 | BR24: 1132260.384 | BS24: 47971.14664 | BT24: 49414.43565 | BU24: 37436.95985 | BV24: 1209835.405 | BW24: 3076265.087 | BX24: 261465.7775 | BY24: 21833.20984 | BZ24: 33538.54332 | CA24: 1228680.245 | CB24: 341952.5241 | CC24: 13451.96263 | CD24: 159365.6554 | CE24: 223394.6065 | CF24: 112608.036 | CG24: 17768.86805 | CH24: 209556.1489 | CI24: 1450271.478 | CJ24: 5528.36163 | CK24: 171817.5948 | CL24: 72604.92878 | CM24: 76714.75044 | CN24: 7986.225106 | CO24: 178986.17 | CP24: 106741.9801 | CQ24: 2400268.078 | CR24: 299908.2003 | CS24: 479078.3775 | CT24: 30128.96408 | CU24: 4768.764651 | CV24: 40853.59925 | CW24: 40360.93714 | CX24: 78595.44475 | CY24: 47176.42738 | CZ24: 34910.36768 | DA24: 337462.5881 | DB24: 18432.02394 | DC24: 193968.1108 | DD24: 5736.220158 | DE24: 136756.5659 | DF24: 826904.7945 | DG24: 3104.825694 | DH24: 165493.4897 | DI24: 41915.03659 | DJ24: 2693331.567 | DK24: 61534.48238 | DL24: 379284.4144 | DM24: 365782.2206 | DN24: 382.1356291 | DO24: 151348.1476 | DP24: 54835.01809 | DQ24: 52161.98251 | DR24: 20626.27786 | DS24: 61063.44813 | DT24: 164410.8165 | DU24: 219547.9948 | DV24: 132921.3771 | DW24: 66387.49668 | DX24: 1536342.49 | DY24: 36511.73213 | DZ24: 69900.89589 | EA24: 182493.4309 | EB24: 121930.6999 | EC24: 3019751.627 | ED24: 3533.731426 | EE24: 153168.9809 | EF24: 62184.14207 | EG24: 60669.53299 | EH24: 7097.246679 | EI24: 338798.4326 | EJ24: 34956.54313 | EK24: 49931.48458 | EL24: 17916.60951 | EM24: 57087.76611 | EN24: 63563.69096 | EO24: 63062.29084 | EP24: 56463.98614 | EQ24: 127189.9899 | ER24: 60107.22244 | ES24: 159376.1006 | ET24: 53697.04608 | EU24: 42859.97622 | EV24: 43962.62664 | EW24: 199559.9491 | EX24: 67100.32964 | EY24: 50753.93528 | EZ24: 171790.8061 | FA24: 53238.33643 | FB24: 55473.91761 | FC24: 47682.03248 | FD24: 309.7794404 | FE24: 63796.36867 | FF24: 433409.2033 | FG24: 45646.22852 | FH24: 44518.77957 | FI24: 45690.73708 | FJ24: 48787.2027 | FK24: 53420.57454 | FL24: 104720.8993 | FM24: 69825.20359 | FN24: 45506.98868 | FO24: 11576.26303 | FP24: 1964.097927 | FQ24: 234372.2754 | FR24: 21770.484 | FS24: 158583.2949 | FT24: 57440.8399 | FU24: 51103.69289 | FV24: 93825.92393 | FW24: 0.01218086317 | FX24: 23759.07296 | FY24: 33359.79208 | FZ24: 54818.71455 | GA24: 106395.4913 | GB24: 88363.88764 | GC24: 45718.55627 | GD24: 14211.84986 | GE24: 30218.37878 | GF24: 266332.0653 | GG24: 268158.6516 | GH24: 60673.01425 | GI24: 185885.7262 | GJ24: 33737.25691 | GK24: 9446.859466 | GL24: 167016.4614 | GM24: 62846.62449 | GN24: 25813.85414 | GO24: 235864.7424 | GP24: 61324.27107 | GQ24: 43855.92788 | GR24: 75067.3808 | GS24: 300460.4875 | GT24: 280350.8618 | GU24: 119719.4456 | GV24: 4478398.748 | GW24: 1334427.742 | GX24: 1217230.908 | GY24: 4257416.998 | GZ24: 2510535.569 | HA24: 583614.6436 | HB24: 110888.2818 | HC24: 335101.5027 | HD24: 348266.1329 | HE24: 0.06911097764 | HF24: 198219.1211 | HG24: 155469.5222 | HH24: 441596.2443 | HI24: 8119.265826 | HJ24: 1176364.531 | HK24: 330368.6375 | HL24: 44987.1455 | HM24: 49777.63691 | HN24: 29855.84919 | HO24: 31880.49458 | HP24: 42588.97679 | HQ24: 36286.43936 | HR24: 33345.86041 | HS24: 37227.73829 | HT24: 4.510176726 | HU24: 19354.95297 | HV24: 185.3135745 | HW24: 18238.69527 | HX24: 15749.68032 | HY24: 43152.37542 | HZ24: 67659.57094 | IA24: 64538.80347 | IB24: 53719.99205 | IC24: 57330.25157 | ID24: 24153.27227 | IE24: 26468.35645 | IF24: 37304.97022 | IG24: 29403.30482 | IH24: 27959.80971 | II24: 49579.58466 | IJ24: 37154.80377 | IK24: 62532.16226 | IL24: 739293.2051 | IM24: 1752348.961 | IN24: 56117.84115 | IO24: 246983.2705 | IP24: 121921.9749 | IQ24: 118599.482 | IR24: 57262.57105 | IS24: 82193.37482 | IT24: 78515.37889 | IU24: 85800.35926 | IV24: 135879.2592 | IW24: 622126.3217 | IX24: 44596.98379 | IY24: 166705.0503 | IZ24: 72612.94806 | JA24: 44515.68987 | JB24: 3.065342333e-05 | JC24: 37143.78376 | JD24: 45663.95915 | JE24: 1019934.334 | JF24: 2127117.141 | JG24: 97.04984145 | JH24: 343826.7498 | JI24: 132052.4813 | JJ24: 320073.9618 | JK24: 106218284.4
A25: =+MATCH(B25,RUT[EMPRESA],0) -> 261 | B25: PUNTILLA | C25: -16224819.41 | D25: -16224819.41 | F25: =IFERROR(INDEX($B$9:$B$511,MATCH(0,INDEX(COUNTIF($F$8:F24,$B$9:$B$511),0,0),0)),"") -> PUNTILLA | G25: -16224819.41 | J25: CARDONES SA | K25: 98714.82886 | L25: 52570.55097 | M25: 6919.534821 | N25: 225441.7153 | O25: 47267.59909 | P25: 24015.67282 | Q25: 144.791462 | R25: 482.2220134 | S25: 3397.870036 | T25: 15186.95835 | U25: 1384.315274 | V25: 1593.676244 | W25: 1345.664294 | X25: 6378.010073 | Y25: 19190.81507 | Z25: 98019.34394 | AA25: 1880.349018 | AB25: 212.0820805 | AC25: 728.8478159 | AD25: 5812.48159 | AE25: 608.6295433 | AF25: 3926.731562 | AG25: 330.8554585 | AH25: 6268.425503 | AI25: 17733.95726 | AJ25: 10768.86157 | AK25: 55.94804847 | AL25: 1566.879768 | AM25: 46611.18347 | AN25: 10896.11078 | AO25: 1181.680013 | AP25: 60475.53289 | AQ25: 1741.534636 | AR25: 3160.081629 | AS25: 3621.560483 | AT25: 30621.7933 | AU25: 30283.96094 | AV25: 183.9935788 | AW25: 2.840984476 | AX25: 2290.552478 | AY25: 6841.592104 | AZ25: 27244.10803 | BA25: 5538.629093 | BB25: 89.05441094 | BC25: 13008.13679 | BD25: 4231.03274 | BE25: 291.6312657 | BF25: 559.452083 | BG25: 60417.03665 | BH25: 1390.838204 | BI25: 8566.186544 | BJ25: 38040.63084 | BK25: 17710.46303 | BL25: 4073.101864 | BM25: 24.32603125 | BN25: 49459.56303 | BO25: 3590.668844 | BP25: 192.9883357 | BQ25: 3840.419322 | BR25: 25542.15799 | BS25: 1082.159743 | BT25: 1114.718258 | BU25: 844.5237128 | BV25: 27292.13836 | BW25: 69396.09475 | BX25: 5898.290086 | BY25: 492.5256621 | BZ25: 756.5810696 | CA25: 27717.25072 | CB25: 7713.954776 | CC25: 303.456837 | CD25: 3595.05888 | CE25: 5039.459487 | CF25: 2540.274558 | CG25: 400.8399848 | CH25: 4727.283883 | CI25: 32716.02871 | CJ25: 124.7118491 | CK25: 3875.956639 | CL25: 1637.862269 | CM25: 1730.573907 | CN25: 180.1576972 | CO25: 4037.669336 | CP25: 2407.944814 | CQ25: 54146.57913 | CR25: 6765.495591 | CS25: 10807.31586 | CT25: 679.6658893 | CU25: 107.576439 | CV25: 921.5981602 | CW25: 910.4844149 | CX25: 1772.999652 | CY25: 1064.232025 | CZ25: 787.5274446 | DA25: 7612.668308 | DB25: 415.7998233 | DC25: 4375.64027 | DD25: 129.4008372 | DE25: 3085.030495 | DF25: 18653.77717 | DG25: 70.04038077 | DH25: 3733.293967 | DI25: 945.5426526 | DJ25: 60757.66793 | DK25: 1388.128997 | DL25: 8556.108271 | DM25: 8251.518292 | DN25: 8.620427556 | DO25: 3414.195492 | DP25: 1236.998764 | DQ25: 1176.698944 | DR25: 465.2990207 | DS25: 1377.503145 | DT25: 3708.870425 | DU25: 4952.685487 | DV25: 2998.514177 | DW25: 1497.605986 | DX25: 34657.66636 | DY25: 823.6519125 | DZ25: 1576.863195 | EA25: 4116.788074 | EB25: 2750.580382 | EC25: 68121.23275 | ED25: 79.71587426 | EE25: 3455.27086 | EF25: 1402.784381 | EG25: 1368.616989 | EH25: 160.1036286 | EI25: 7642.803029 | EJ25: 788.569096 | EK25: 1126.382134 | EL25: 404.1728186 | EM25: 1287.817504 | EN25: 1433.90501 | EO25: 1422.594148 | EP25: 1273.745929 | EQ25: 2869.222365 | ER25: 1355.932075 | ES25: 3595.29451 | ET25: 1211.32776 | EU25: 966.859125 | EV25: 991.7333251 | EW25: 4501.784062 | EX25: 1513.686468 | EY25: 1144.935434 | EZ25: 3875.352324 | FA25: 1200.979933 | FB25: 1251.411414 | FC25: 1075.637746 | FD25: 6.988176502 | FE25: 1439.153883 | FF25: 9777.085291 | FG25: 1029.712951 | FH25: 1004.279332 | FI25: 1030.716999 | FJ25: 1100.568789 | FK25: 1205.090962 | FL25: 2362.352153 | FM25: 1575.155686 | FN25: 1026.571901 | FO25: 261.1437648 | FP25: 44.30721084 | FQ25: 5287.099833 | FR25: 491.1106578 | FS25: 3577.40996 | FT25: 1295.782338 | FU25: 1152.82546 | FV25: 2116.577253 | FW25: 0.0002747826701 | FX25: 535.970351 | FY25: 752.5487 | FZ25: 1236.63098 | GA25: 2400.128528 | GB25: 1993.361607 | GC25: 1031.34456 | GD25: 320.5987948 | GE25: 681.6829557 | GF25: 6008.066507 | GG25: 6049.271655 | GH25: 1368.695521 | GI25: 4193.313354 | GJ25: 761.063761 | GK25: 213.1074976 | GL25: 3767.650009 | GM25: 1417.729027 | GN25: 582.3232449 | GO25: 5320.767733 | GP25: 1383.386934 | GQ25: 989.3263552 | GR25: 1693.411628 | GS25: 6777.954392 | GT25: 6324.310298 | GU25: 2700.697682 | GV25: 101026.2039 | GW25: 30102.76142 | GX25: 27458.97023 | GY25: 96041.17493 | GZ25: 56634.05439 | HA25: 13165.50296 | HB25: 2501.479389 | HC25: 7559.405634 | HD25: 7856.380668 | HE25: 0.001559043781 | HF25: 4471.536918 | HG25: 3507.167747 | HH25: 9961.773106 | HI25: 183.1589036 | HJ25: 26537.08381 | HK25: 7452.639034 | HL25: 1014.84499 | HM25: 1122.911553 | HN25: 673.504812 | HO25: 719.177886 | HP25: 960.7457695 | HQ25: 818.5696331 | HR25: 752.2344216 | HS25: 839.8039767 | HT25: 0.1017430691 | HU25: 436.6197684 | HV25: 4.180406437 | HW25: 411.438608 | HX25: 355.2900276 | HY25: 973.4552285 | HZ25: 1526.302143 | IA25: 1455.902139 | IB25: 1211.845388 | IC25: 1293.287625 | ID25: 544.8629176 | IE25: 597.0878712 | IF25: 841.5462174 | IG25: 663.296065 | IH25: 630.7329014 | II25: 1118.443781 | IJ25: 838.1586793 | IK25: 1410.635213 | IL25: 16677.38633 | IM25: 39530.46019 | IN25: 1265.937399 | IO25: 5571.585659 | IP25: 2750.383561 | IQ25: 2675.432921 | IR25: 1291.760851 | IS25: 1854.163755 | IT25: 1771.193482 | IU25: 1935.532112 | IV25: 3065.239723 | IW25: 14034.27076 | IX25: 1006.043506 | IY25: 3760.625023 | IZ25: 1638.043173 | JA25: 1004.209632 | JB25: 6.91496932e-07 | JC25: 837.9100837 | JD25: 1030.112928 | JE25: 23008.24462 | JF25: 47984.68873 | JG25: 2.189304173 | JH25: 7756.234599 | JI25: 2978.913144 | JJ25: 7220.406029 | JK25: 2396130.997
A26: =+MATCH(B26,RUT[EMPRESA],0) -> 91 | B26: EL MANZANO | C26: 50127528.09 | D26: 50127528.09 | F26: =IFERROR(INDEX($B$9:$B$511,MATCH(0,INDEX(COUNTIF($F$8:F25,$B$9:$B$511),0,0),0)),"") -> EL MANZANO | H26: 50127528.09 | J26: CAPULLO | K26: 362553.1705 | L26: 193077.5766 | M26: 25413.60115 | N26: 827987.1382 | O26: 173601.2523 | P26: 88203.14457 | Q26: 531.7803235 | R26: 1771.072511 | S26: 12479.46807 | T26: 55777.6371 | U26: 5084.219841 | V26: 5853.146702 | W26: 4942.265129 | X26: 23424.72555 | Y26: 70482.73222 | Z26: 359998.8404 | AA26: 6906.019148 | AB26: 778.9207718 | AC26: 2676.863137 | AD26: 21347.69065 | AE26: 2235.333568 | AF26: 14421.83504 | AG26: 1215.14363 | AH26: 23022.25072 | AI26: 65132.08304 | AJ26: 39551.149 | AK26: 205.4822218 | AL26: 5754.73041 | AM26: 171190.4133 | AN26: 40018.50134 | AO26: 4339.994711 | AP26: 222110.4614 | AQ26: 6396.19104 | AR26: 11606.13483 | AS26: 13301.02327 | AT26: 112465.6587 | AU26: 111224.8907 | AV26: 675.7592161 | AW26: 10.43417631 | AX26: 8412.586768 | AY26: 25127.33839 | AZ26: 100060.3239 | BA26: 20341.90366 | BB26: 327.0730387 | BC26: 47775.40812 | BD26: 15539.4519 | BE26: 1071.083658 | BF26: 2054.717906 | BG26: 221895.6204 | BH26: 5108.176821 | BI26: 31461.31262 | BJ26: 139713.0652 | BK26: 65045.795 | BL26: 14959.41402 | BM26: 89.34300811 | BN26: 181651.7498 | BO26: 13187.56654 | BP26: 708.7945529 | BQ26: 14104.83326 | BR26: 93809.51644 | BS26: 3974.483373 | BT26: 4094.06209 | BU26: 3101.709775 | BV26: 100236.7264 | BW26: 254873.2998 | BX26: 21662.84231 | BY26: 1808.915058 | BZ26: 2778.719962 | CA26: 101798.0504 | CB26: 28331.29322 | CC26: 1114.515819 | CD26: 13203.68997 | CE26: 18508.58717 | CF26: 9329.749193 | CG26: 1472.178081 | CH26: 17362.04965 | CI26: 120157.2254 | CJ26: 458.0332745 | CK26: 14235.35232 | CL26: 6015.430158 | CM26: 6355.935212 | CN26: 661.6710485 | CO26: 14829.27982 | CP26: 8843.737429 | CQ26: 198865.9066 | CR26: 24847.85624 | CS26: 39692.38134 | CT26: 2496.231072 | CU26: 395.0994951 | CV26: 3384.783611 | CW26: 3343.965797 | CX26: 6511.753632 | CY26: 3908.639659 | CZ26: 2892.377723 | DA26: 27959.2951 | DB26: 1527.121568 | DC26: 16070.55669 | DD26: 475.2546737 | DE26: 11330.49209 | DF26: 68510.33563 | DG26: 257.2395901 | DH26: 13711.39048 | DI26: 3472.725329 | DJ26: 223146.668 | DK26: 5098.226627 | DL26: 31424.29782 | DM26: 30305.62027 | DN26: 31.66052535 | DO26: 12539.4271 | DP26: 4543.165693 | DQ26: 4321.700579 | DR26: 1708.918884 | DS26: 5059.200713 | DT26: 13621.68934 | DU26: 18189.88947 | DV26: 11012.74078 | DW26: 5500.306335 | DX26: 127288.3412 | DY26: 3025.053234 | DZ26: 5791.39687 | EA26: 15119.86179 | EB26: 10102.14625 | EC26: 250191.0726 | ED26: 292.7750905 | EE26: 12690.28594 | EF26: 5152.051932 | EG26: 5026.564237 | EH26: 588.0178169 | EI26: 28069.97188 | EJ26: 2896.20343 | EK26: 4136.90039 | EL26: 1484.418689 | EM26: 4729.809335 | EN26: 5266.349682 | EO26: 5224.80791 | EP26: 4678.128205 | EQ26: 10537.88653 | ER26: 4979.975942 | ES26: 13204.55537 | ET26: 4448.88296 | EU26: 3551.015033 | EV26: 3642.371318 | EW26: 16533.8491 | EX26: 5559.365643 | EY26: 4205.041698 | EZ26: 14233.13284 | FA26: 4410.878159 | FB26: 4596.099502 | FC26: 3950.52982 | FD26: 25.66570368 | FE26: 5285.627389 | FF26: 35908.61993 | FG26: 3781.860327 | FH26: 3688.449445 | FI26: 3785.54793 | FJ26: 4042.094875 | FK26: 4425.976867 | FL26: 8676.287777 | FM26: 5785.125646 | FN26: 3770.324092 | FO26: 959.1112194 | FP26: 162.7285379 | FQ26: 19418.10394 | FR26: 1803.718125 | FS26: 13138.8702 | FT26: 4759.062043 | FU26: 4234.019654 | FV26: 7773.622286 | FW26: 0.001009203272 | FX26: 1968.475783 | FY26: 2763.910147 | FZ26: 4541.81492 | GA26: 8815.030301 | GB26: 7321.084169 | GC26: 3787.852792 | GD26: 1177.473647 | GE26: 2503.639217 | GF26: 22066.02175 | GG26: 22217.35724 | GH26: 5026.852665 | GI26: 15400.91868 | GJ26: 2795.183689 | GK26: 782.6868546 | GL26: 13837.57103 | GM26: 5206.939621 | GN26: 2138.717568 | GO26: 19541.75713 | GP26: 5080.810296 | GQ26: 3633.531161 | GR26: 6219.448101 | GS26: 24893.61409 | GT26: 23227.50063 | GU26: 9918.940431 | GV26: 371042.2329 | GW26: 110559.3934 | GX26: 100849.4552 | GY26: 352733.5546 | GZ26: 208001.7381 | HA26: 48353.37197 | HB26: 9187.264911 | HC26: 27763.67554 | HD26: 28854.38543 | HE26: 0.005725950926 | HF26: 16422.75943 | HG26: 12880.88933 | HH26: 36586.92889 | HI26: 672.6936771 | HJ26: 97463.61296 | HK26: 27371.55037 | HL26: 3727.254284 | HM26: 4124.153874 | HN26: 2473.603082 | HO26: 2641.348071 | HP26: 3528.562313 | HQ26: 3006.387381 | HR26: 2762.755887 | HS26: 3084.375447 | HT26: 0.3736750873 | HU26: 1603.587659 | HV26: 15.35351502 | HW26: 1511.103991 | HX26: 1304.885268 | HY26: 3575.240757 | HZ26: 5605.699646 | IA26: 5347.139255 | IB26: 4450.784069 | IC26: 4749.899629 | ID26: 2001.135803 | IE26: 2192.944093 | IF26: 3090.774231 | IG26: 2436.109084 | IH26: 2316.513292 | II26: 4107.74494 | IJ26: 3078.332709 | IK26: 5180.885941 | IL26: 61251.58053 | IM26: 145184.81 | IN26: 4649.449559 | IO26: 20462.94431 | IP26: 10101.42338 | IQ26: 9826.149722 | IR26: 4744.292194 | IS26: 6809.847679 | IT26: 6505.120052 | IU26: 7108.691894 | IV26: 11257.80587 | IW26: 51544.12381 | IX26: 3694.928785 | IY26: 13811.77014 | IZ26: 6016.094569 | JA26: 3688.193459 | JB26: 2.539683328e-06 | JC26: 3077.419684 | JD26: 3783.329337 | JE26: 84503.13021 | JF26: 176234.9308 | JG26: 8.040728818 | JH26: 28486.5757 | JI26: 10940.75143 | JJ26: 26518.62064 | JK26: 8800348.439
A27: =+MATCH(B27,RUT[EMPRESA],0) -> 125 | B27: ESPINOS | C27: 224047616.1 | D27: 224047616.1 | F27: =IFERROR(INDEX($B$9:$B$511,MATCH(0,INDEX(COUNTIF($F$8:F26,$B$9:$B$511),0,0),0)),"") -> ESPINOS | H27: 224047616.1 | J27: ORAZUL_CHILE | K27: 331047.705 | L27: 176299.3509 | M27: 23205.1876 | N27: 756035.9809 | O27: 158515.4974 | P27: 80538.38985 | Q27: 485.5692075 | R27: 1617.168289 | S27: 11395.01624 | T27: 50930.62275 | U27: 4642.406817 | V27: 5344.514792 | W27: 4512.787811 | X27: 21389.14307 | Y27: 64357.86153 | Z27: 328715.3433 | AA27: 6305.893799 | AB27: 711.2334269 | AC27: 2444.246721 | AD27: 19492.60018 | AE27: 2041.085578 | AF27: 13168.59369 | AG27: 1109.549006 | AH27: 21021.64286 | AI27: 59472.17778 | AJ27: 36114.19833 | AK27: 187.6260463 | AL27: 5254.650766 | AM27: 156314.1576 | AN27: 36540.93828 | AO27: 3962.854019 | AP27: 202809.3105 | AQ27: 5840.369184 | AR27: 10597.57468 | AS27: 12145.1792 | AT27: 102692.5186 | AU27: 101559.572 | AV27: 617.0364951 | AW27: 9.527458048 | AX27: 7681.542376 | AY27: 22943.80075 | AZ27: 91365.1935 | BA27: 18574.21495 | BB27: 298.650757 | BC27: 43623.77852 | BD27: 14189.09089 | BE27: 978.0076849 | BF27: 1876.165215 | BG27: 202613.1389 | BH27: 4664.281962 | BI27: 28727.3597 | BJ27: 127572.1559 | BK27: 59393.38808 | BL27: 13659.45765 | BM27: 81.57920052 | BN27: 165866.4156 | BO27: 12041.58174 | BP27: 647.2010981 | BQ27: 12879.13901 | BR27: 85657.57426 | BS27: 3629.105208 | BT27: 3738.292668 | BU27: 2832.174661 | BV27: 91526.26687 | BW27: 232725.0948 | BX27: 19780.36551 | BY27: 1651.72236 | BZ27: 2537.252302 | CA27: 92951.91356 | CB27: 25869.33549 | CC27: 1017.66564 | CD27: 12056.30406 | CE27: 16900.21162 | CF27: 8519.004411 | CG27: 1344.247451 | CH27: 15853.30693 | CI27: 109715.6967 | CJ27: 418.2306947 | CK27: 12998.31611 | CL27: 5492.695998 | CM27: 5803.611543 | CN27: 604.1725736 | CO27: 13540.63197 | CP27: 8075.226526 | CQ27: 181584.6815 | CR27: 22688.60529 | CS27: 36243.15775 | CT27: 2279.31138 | CU27: 360.7657903 | CV27: 3090.649697 | CW27: 3053.378905 | CX27: 5945.889516 | CY27: 3568.983239 | CZ27: 2641.03333 | DA27: 25529.66359 | DB27: 1394.41641 | DC27: 14674.04326 | DD27: 433.9555735 | DE27: 10345.88498 | DF27: 62556.864 | DG27: 234.8857571 | DH27: 12519.88596 | DI27: 3170.949378 | DJ27: 203755.4718 | DK27: 4655.196428 | DL27: 28693.56144 | DM27: 27672.09572 | DN27: 28.90926107 | DO27: 11449.76489 | DP27: 4148.36967 | DQ27: 3946.149626 | DR27: 1560.415742 | DS27: 4619.561823 | DT27: 12437.97975 | DU27: 16609.20839 | DV27: 10055.74591 | DW27: 5022.335859 | DX27: 116227.1266 | DY27: 2762.179487 | DZ27: 5288.130952 | EA27: 13805.96269 | EB27: 9224.281029 | EC27: 228449.7479 | ED27: 267.3332622 | EE27: 11587.51427 | EF27: 4704.344375 | EG27: 4589.76142 | EH27: 536.9197255 | EI27: 25630.72268 | EJ27: 2644.526588 | EK27: 3777.408368 | EL27: 1355.424363 | EM27: 4318.794188 | EN27: 4808.709778 | EO27: 4770.777939 | EP27: 4271.60409 | EQ27: 9622.155963 | ER27: 4547.221596 | ES27: 12057.09426 | ET27: 4062.280001 | EU27: 3242.435793 | EV27: 3325.85332 | EW27: 15097.07609 | EX27: 5076.262979 | EY27: 3839.628272 | EZ27: 12996.28949 | FA27: 4027.577774 | FB27: 4196.70359 | FC27: 3607.233192 | FD27: 23.43538271 | FE27: 4826.312274 | FF27: 32788.20097 | FG27: 3453.220889 | FH27: 3367.927309 | FI27: 3456.588044 | FJ27: 3690.841346 | FK27: 4041.364421 | FL27: 7922.328062 | FM27: 5282.40469 | FN27: 3442.68714 | FO27: 875.7655259 | FP27: 148.5876097 | FQ27: 17730.6924 | FR27: 1646.977035 | FS27: 11997.11706 | FT27: 4345.504868 | FU27: 3866.088076 | FV27: 7098.103194 | FW27: 0.0009215046349 | FX27: 1797.417437 | FY27: 2523.729443 | FZ27: 4147.136277 | GA27: 8049.014016 | GB27: 6684.890133 | GC27: 3458.692616 | GD27: 1075.152502 | GE27: 2286.075766 | GF27: 20148.50911 | GG27: 20286.69372 | GH27: 4590.024785 | GI27: 14062.59605 | GJ27: 2552.285349 | GK27: 714.6722413 | GL27: 12635.10157 | GM27: 4754.462385 | GN27: 1952.865401 | GO27: 17843.60027 | GP27: 4639.293557 | GQ27: 3317.781363 | GR27: 5678.985009 | GS27: 22730.38683 | GT27: 21209.05678 | GU27: 9056.995589 | GV27: 338799.0774 | GW27: 100951.9056 | GX27: 92085.75025 | GY27: 322081.4027 | GZ27: 189926.6194 | HA27: 44151.51796 | HB27: 8388.901853 | HC27: 25351.04316 | HD27: 26346.97157 | HE27: 0.005228372187 | HF27: 14995.63998 | HG27: 11761.55444 | HH27: 33407.56564 | HI27: 614.2373481 | HJ27: 88994.13388 | HK27: 24992.99322 | HL27: 3403.36005 | HM27: 3765.76951 | HN27: 2258.649738 | HO27: 2411.817874 | HP27: 3221.93419 | HQ27: 2745.135676 | HR27: 2522.675486 | HS27: 2816.346666 | HT27: 0.3412031397 | HU27: 1464.237683 | HV27: 14.01931172 | HW27: 1379.790742 | HX27: 1191.492196 | HY27: 3264.556329 | HZ27: 5118.570609 | IA27: 4882.478828 | IB27: 4064.015905 | IC27: 4337.138658 | ID27: 1827.239337 | IE27: 2002.379701 | IF27: 2822.189403 | IG27: 2224.413927 | IH27: 2115.210875 | II27: 3750.786493 | IJ27: 2810.829036 | IK27: 4730.67274 | IL27: 55928.88661 | IM27: 132568.4122 | IN27: 4245.417587 | IO27: 18684.73731 | IP27: 9223.620973 | IQ27: 8972.268288 | IR27: 4332.018502 | IS27: 6218.079523 | IT27: 5939.832387 | IU27: 6490.95451 | IV27: 10279.51512 | IW27: 47064.99704 | IX27: 3373.843601 | IY27: 12611.54274 | IZ27: 5493.302671 | JA27: 3367.693567 | JB27: 2.318987684e-06 | JC27: 2809.995352 | JD27: 3454.562244 | JE27: 77159.90259 | JF27: 160920.3122 | JG27: 7.341998466 | JH27: 26011.1241 | JI27: 9990.012352 | JJ27: 24214.18213 | JK27: 8035607.991
A28: =+MATCH(B28,RUT[EMPRESA],0) -> 119 | B28: ENLASA | C28: -7720204.992 | D28: -7720204.992 | F28: =IFERROR(INDEX($B$9:$B$511,MATCH(0,INDEX(COUNTIF($F$8:F27,$B$9:$B$511),0,0),0)),"") -> ENLASA | G28: -7720204.992 | J28: WENKE | K28: 200.3850906 | L28: 106.7150168 | M28: 14.04623427 | N28: 457.6329521 | O28: 95.95034744 | P28: 48.7503532 | Q28: 0.2939178498 | R28: 0.9788813188 | S28: 6.897469235 | T28: 30.82860053 | U28: 2.810075698 | V28: 3.235065716 | W28: 2.731616564 | X28: 12.94697201 | Y28: 38.95618583 | Z28: 198.9732986 | AA28: 3.81699399 | AB28: 0.4305137071 | AC28: 1.479516678 | AD28: 11.79898363 | AE28: 1.235480906 | AF28: 7.971025924 | AG28: 0.6716164308 | AH28: 12.72452201 | AI28: 35.9988532 | AJ28: 21.86013313 | AK28: 0.113571131 | AL28: 3.180670501 | AM28: 94.61786371 | AN28: 22.11844129 | AO28: 2.398738459 | AP28: 122.7616487 | AQ28: 3.535209248 | AR28: 6.41477325 | AS28: 7.351547219 | AT28: 62.16037545 | AU28: 61.47459633 | AV28: 0.3734957594 | AW28: 0.005767025463 | AX28: 4.64968203 | AY28: 13.8880153 | AZ28: 55.30388008 | BA28: 11.24307974 | BB28: 0.1807750306 | BC28: 26.40572546 | BD28: 8.588738783 | BE28: 0.5919937084 | BF28: 1.135653657 | BG28: 122.6429049 | BH28: 2.823316849 | BI28: 17.38883698 | BJ28: 77.22016385 | BK28: 35.95116133 | BL28: 8.268148722 | BM28: 0.04938036192 | BN28: 100.3999008 | BO28: 7.288839073 | BP28: 0.3917545681 | BQ28: 7.795817332 | BR28: 51.84902514 | BS28: 2.196718373 | BT28: 2.262810174 | BU28: 1.714331704 | BV28: 55.40137872 | BW28: 140.869846 | BX28: 11.97316965 | BY28: 0.9997970981 | BZ28: 1.535813494 | CA28: 56.26433091 | CB28: 15.6588584 | CC28: 0.6159988978 | CD28: 7.297750579 | CE28: 10.22979584 | CF28: 5.156602643 | CG28: 0.813680757 | CH28: 9.59609838 | CI28: 66.41154581 | CJ28: 0.2531574585 | CK28: 7.867955921 | CL28: 3.324760657 | CM28: 3.512959635 | CN28: 0.3657091533 | CO28: 8.196222848 | CP28: 4.887981323 | CQ28: 109.914258 | CR28: 13.73354401 | CS28: 21.93819301 | CT28: 1.379680362 | CU28: 0.2183736195 | CV28: 1.870788138 | CW28: 1.848227912 | CX28: 3.599081315 | CY28: 2.160326197 | CZ28: 1.59863275 | DA28: 15.45325304 | DB28: 0.8440483181 | DC28: 8.882283262 | DD28: 0.2626758186 | DE28: 6.26242402 | DF28: 37.86603161 | DG28: 0.1421777073 | DH28: 7.578359386 | DI28: 1.919393999 | DJ28: 123.3343656 | DK28: 2.817817324 | DL28: 17.3683787 | DM28: 16.7500796 | DN28: 0.01749894293 | DO28: 6.930608916 | DP28: 2.511032155 | DQ28: 2.388627193 | DR28: 0.9445286742 | DS28: 2.796247491 | DT28: 7.528781085 | DU28: 10.05364991 | DV28: 6.086801163 | DW28: 3.040048944 | DX28: 70.35295197 | DY28: 1.67196322 | DZ28: 3.200936251 | EA28: 8.356829068 | EB28: 5.583510659 | EC28: 138.2819537 | ED28: 0.1618183699 | EE28: 7.013989411 | EF28: 2.84756686 | EG28: 2.778209135 | EH28: 0.3250006154 | EI28: 15.51442468 | EJ28: 1.600747239 | EK28: 2.286487133 | EL28: 0.8204462066 | EM28: 2.614191102 | EN28: 2.910739842 | EO28: 2.887779481 | EP28: 2.585626662 | EQ28: 5.824346659 | ER28: 2.752459533 | ES28: 7.298228893 | ET28: 2.458921581 | EU28: 1.96266514 | EV28: 2.013158251 | EW28: 9.138347476 | EX28: 3.072691342 | EY28: 2.324149201 | EZ28: 7.8667292 | FA28: 2.437916122 | FB28: 2.540288957 | FC28: 2.183479115 | FD28: 0.0141855727 | FE28: 2.921394734 | FF28: 19.84688769 | FG28: 2.090254578 | FH28: 2.03862588 | FI28: 2.092292736 | FJ28: 2.234087614 | FK28: 2.446261259 | FL28: 4.795430998 | FM28: 3.197470112 | FN28: 2.083878438 | FO28: 0.5301059382 | FP28: 0.08994093958 | FQ28: 10.73249066 | FR28: 0.9969247256 | FS28: 7.261924345 | FT28: 2.630359231 | FU28: 2.340165474 | FV28: 4.296522918 | FW28: 5.577920855e-07 | FX28: 1.087987171 | FY28: 1.527628029 | FZ28: 2.510285575 | GA28: 4.872114739 | GB28: 4.046402663 | GC28: 2.093566645 | GD28: 0.6507960283 | GE28: 1.383774884 | GF28: 12.1960091 | GG28: 12.27965304 | GH28: 2.778368551 | GI28: 8.512170725 | GJ28: 1.544913084 | GK28: 0.4325952413 | GL28: 7.648100059 | GM28: 2.877903581 | GN28: 1.182080722 | GO28: 10.80083445 | GP28: 2.808191224 | GQ28: 2.008272249 | GR28: 3.437522473 | GS28: 13.75883462 | GT28: 12.83796474 | GU28: 5.482251815 | GV28: 205.0770411 | GW28: 61.10677236 | GX28: 55.74003725 | GY28: 194.957736 | GZ28: 114.9636813 | HA28: 26.72516919 | HB28: 5.077850813 | HC28: 15.34513305 | HD28: 15.94797428 | HE28: 3.164763926e-06 | HF28: 9.076947616 | HG28: 7.119336932 | HH28: 20.22179271 | HI28: 0.3718014195 | HJ28: 53.86866397 | HK28: 15.12840336 | HL28: 2.060073523 | HM28: 2.279442065 | HN28: 1.36717375 | HO28: 1.459887309 | HP28: 1.9502554 | HQ28: 1.661646502 | HR28: 1.526990063 | HS28: 1.704750927 | HT28: 0.0002065322339 | HU28: 0.8863115387 | HV28: 0.00848597047 | HW28: 0.8351953167 | HX28: 0.721217118 | HY28: 1.976054828 | HZ28: 3.098300395 | IA28: 2.955392674 | IB28: 2.459972334 | IC28: 2.625295115 | ID28: 1.106038539 | IE28: 1.212052015 | IF28: 1.708287569 | IG28: 1.346450616 | IH28: 1.280349377 | II28: 2.270372759 | IJ28: 1.701411073 | IK28: 2.863503572 | IL28: 33.85407855 | IM28: 80.24442669 | IN28: 2.569775821 | IO28: 11.30997956 | IP28: 5.583111124 | IQ28: 5.43096589 | IR28: 2.622195856 | IS28: 3.7638395 | IT28: 3.595414899 | IU28: 3.929012309 | IV28: 6.222249957 | IW28: 28.48871493 | IX28: 2.042207046 | IY28: 7.633839766 | IZ28: 3.32512788 | JA28: 2.038484395 | JB28: 1.403696658e-09 | JC28: 1.700906439 | JD28: 2.091066507 | JE28: 46.70533533 | JF28: 97.40599575 | JG28: 0.004444154137 | JH28: 15.74468386 | JI28: 6.047012259 | JJ28: 14.6569845 | JK28: 4863.999995
A29: =+MATCH(B29,RUT[EMPRESA],0) -> 241 | B29: PARQUE_EOLICO_LEBU | C29: 20422294.56 | D29: 20422294.56 | F29: =IFERROR(INDEX($B$9:$B$511,MATCH(0,INDEX(COUNTIF($F$8:F28,$B$9:$B$511),0,0),0)),"") -> PARQUE_EOLICO_LEBU | H29: 20422294.56 | J29: AGUAS DEL MELADO | K29: =$JK29*K$61/$JK$61 -> 9346749.437 | L29: 4977608.464 | M29: 655171.659 | N29: 21345802.35 | O29: 4475501.91 | P29: 2273908.378 | Q29: 13709.48551 | R29: 45658.87805 | S29: 321725.1168 | T29: 1437967.285 | U29: =$JK29*U$61/$JK$61 -> 131072.9923 | V29: 150896.1998 | W29: 127413.3495 | X29: 603897.74 | Y29: 1817069.857 | Z29: 9280897.9 | AA29: 178039.6252 | AB29: 20080.854 | AC29: 69010.48193 | AD29: 550351.0431 | AE29: =$JK29*AE$61/$JK$61 -> 57627.69289 | AF29: 371800.0268 | AG29: 31326.83413 | AH29: 593521.7962 | AI29: 1679128.222 | AJ29: 1019642.661 | AK29: 5297.404621 | AL29: 148358.9928 | AM29: 4413349.624 | AN29: 1031691.17 | AO29: =$JK29*AO$61/$JK$61 -> 111886.6043 | AP29: 5726086.541 | AQ29: 164896.0756 | AR29: 299210.2759 | AS29: 342905.1015 | AT29: 2899404.604 | AU29: 2867417.166 | AV29: 17421.31247 | AW29: 268.9967693 | AX29: 216879.4732 | AY29: =$JK29*AY$61/$JK$61 -> 647791.7035 | AZ29: 2579590.669 | BA29: 524421.4973 | BB29: 8432.059043 | BC29: 1231666.981 | BD29: 400612.5862 | BE29: 27612.91693 | BF29: 52971.35701 | BG29: 5720547.863 | BH29: 131690.6118 | BI29: =$JK29*BI$61/$JK$61 -> 811083.8075 | BJ29: 3601852.417 | BK29: 1676903.685 | BL29: 385659.0037 | BM29: 2303.294465 | BN29: 4683046.593 | BO29: 339980.1467 | BP29: 18272.97519 | BQ29: 363627.6084 | BR29: 2418442.635 | BS29: =$JK29*BS$61/$JK$61 -> 102463.5922 | BT29: 105546.374 | BU29: 79963.17907 | BV29: 2584138.389 | BW29: 6570724.146 | BX29: 558475.7648 | BY29: 46634.47233 | BZ29: 71636.38703 | CA29: 2624389.877 | CB29: 730390.7963 | CC29: =$JK29*CC$61/$JK$61 -> 28732.61346 | CD29: 340395.8144 | CE29: 477157.9474 | CF29: 240524.2461 | CG29: 37953.27354 | CH29: 447599.8032 | CI29: 3097695.924 | CJ29: 11808.26041 | CK29: 366992.4362 | CL29: 155079.9249 | CM29: =$JK29*CM$61/$JK$61 -> 163858.266 | CN29: 17058.11451 | CO29: 382304.0979 | CP29: 227994.6903 | CQ29: 5126833.667 | CR29: 640586.5545 | CS29: 1023283.681 | CT29: 64353.72316 | CU29: 10185.80524 | CV29: 87260.92305 | CW29: =$JK29*CW$61/$JK$61 -> 86208.6253 | CX29: 167875.3202 | CY29: 100766.1179 | CZ29: 74566.52445 | DA29: 720800.5529 | DB29: 39369.73613 | DC29: 414304.6562 | DD29: 12252.2342 | DE29: 292104.1081 | DF29: 1766220.773 | DG29: =$JK29*DG$61/$JK$61 -> 6631.727949 | DH29: 353484.5138 | DI29: 89528.09175 | DJ29: 5752800.314 | DK29: 131434.0922 | DL29: 810129.5528 | DM29: 781289.6486 | DN29: 816.2195825 | DO29: 323270.882 | DP29: 117124.4243 | DQ29: =$JK29*DQ$61/$JK$61 -> 111414.9751 | DR29: 44056.53548 | DS29: 130427.9903 | DT29: 351171.9866 | DU29: 468941.8076 | DV29: 283912.3668 | DW29: 141799.8498 | DX29: 3281538.622 | DY29: 77986.94622 | DZ29: 149304.2672 | EA29: =$JK29*EA$61/$JK$61 -> 389795.4042 | EB29: 260436.9165 | EC29: 6450014.666 | ED29: 7547.845764 | EE29: 327160.0765 | EF29: 132821.7277 | EG29: 129586.6104 | EH29: 15159.30806 | EI29: 723653.8394 | EJ29: 74665.15254 | EK29: =$JK29*EK$61/$JK$61 -> 106650.7606 | EL29: 38268.84074 | EM29: 121936.1637 | EN29: 135768.3643 | EO29: 134697.4026 | EP29: 120603.8058 | EQ29: 271670.4555 | ER29: 128385.5476 | ES29: 340418.1248 | ET29: 114693.782 | EU29: =$JK29*EU$61/$JK$61 -> 91546.4281 | EV29: 93901.62557 | EW29: 426248.4991 | EX29: 143322.4198 | EY29: 108407.4677 | EZ29: 366935.217 | FA29: 113714.0047 | FB29: 118489.0767 | FC29: 101846.0611 | FD29: 661.6709519 | FE29: =$JK29*FE$61/$JK$61 -> 136265.3504 | FF29: 925736.9688 | FG29: 97497.70173 | FH29: 95089.53604 | FI29: 97592.76944 | FJ29: 104206.6408 | FK29: 114103.2548 | FL29: 223677.7788 | FM29: 149142.5928 | FN29: 97200.2935 | FO29: =$JK29*FO$61/$JK$61 -> 24726.22771 | FP29: 4195.199472 | FQ29: 500605.6127 | FR29: 46500.49357 | FS29: 338724.7378 | FT29: 122690.3089 | FU29: 109154.5297 | FV29: 200406.7421 | FW29: 0.0260176186 | FX29: 50748.00447 | FY29: =$JK29*FY$61/$JK$61 -> 71254.58474 | FZ29: 117089.6009 | GA29: 227254.6104 | GB29: 188740.1487 | GC29: 97652.1896 | GD29: 30355.6886 | GE29: 64544.70778 | GF29: 568869.8739 | GG29: 572771.3565 | GH29: 129594.0462 | GI29: =$JK29*GI$61/$JK$61 -> 397041.1506 | GJ29: 72060.82776 | GK29: 20177.94495 | GL29: 356737.4933 | GM29: 134236.7518 | GN29: 55136.89812 | GO29: 503793.436 | GP29: 130985.093 | GQ29: 93673.72319 | GR29: 160339.5798 | GS29: =$JK29*GS$61/$JK$61 -> 641766.2081 | GT29: 598813.2117 | GU29: 255713.8054 | GV29: 9565600.478 | GW29: 2850260.408 | GX29: 2599934.756 | GY29: 9093596.252 | GZ29: 5362358.645 | HA29: 1246567.094 | HB29: 236850.9507 | HC29: =$JK29*HC$61/$JK$61 -> 715757.4112 | HD29: 743876.2994 | HE29: 0.1476170475 | HF29: 423384.5679 | HG29: 332073.8996 | HH29: 943224.0145 | HI29: 17342.28179 | HJ29: 2512646.54 | HK29: 705648.2851 | HL29: 96089.93855 | HM29: =$JK29*HM$61/$JK$61 -> 106322.1509 | HN29: 63770.36556 | HO29: 68094.8909 | HP29: 90967.589 | HQ29: 77505.7339 | HR29: 71224.82749 | HS29: 79516.29392 | HT29: 9.6334764 | HU29: 41341.05911 | HV29: 395.8190675 | HW29: =$JK29*HW$61/$JK$61 -> 38956.7973 | HX29: 33640.40544 | HY29: 92170.97587 | HZ29: 144516.9268 | IA29: 137851.1482 | IB29: 114742.7933 | IC29: 122454.0986 | ID29: 51589.99136 | IE29: 56534.87717 | IF29: 79681.25686 | IG29: =$JK29*IG$61/$JK$61 -> 62803.75698 | IH29: 59720.53499 | II29: 105899.1227 | IJ29: 79360.51001 | IK29: 133565.0787 | IL29: 1579087.489 | IM29: 3742915.941 | IN29: 119864.4601 | IO29: 527541.9683 | IP29: 260418.2806 | IQ29: =$JK29*IQ$61/$JK$61 -> 253321.628 | IR29: 122309.5369 | IS29: 175560.2905 | IT29: 167704.3042 | IU29: 183264.6005 | IV29: 290230.2317 | IW29: 1328825.809 | IX29: 95256.57572 | IY29: 356072.3371 | IZ29: 155097.0536 | JA29: =$JK29*JA$61/$JK$61 -> 95082.93662 | JB29: 6.547393775e-05 | JC29: 79336.9719 | JD29: 97535.57333 | JE29: 2178520.694 | JF29: 4543399.078 | JG29: 207.2928433 | JH29: 734394.0339 | JI29: 282056.4556 | JJ29: 683659.4539 | JK29: 226876106.8
A30: =+MATCH(B30,RUT[EMPRESA],0) -> 234 | B30: ORAFTI | C30: 23510920.03 | D30: 23510920.03 | F30: =IFERROR(INDEX($B$9:$B$511,MATCH(0,INDEX(COUNTIF($F$8:F29,$B$9:$B$511),0,0),0)),"") -> ORAFTI | H30: 23510920.03 | J30: ENORCHILE | K30: 32147077.31 | L30: 17119915.88 | M30: 2253388.102 | N30: 73416449.52 | O30: 15392977.73 | P30: 7820848.19 | Q30: 47152.20983 | R30: 157038.4969 | S30: 1106536.799 | T30: 4945724.263 | U30: 450810.5888 | V30: 518990.247 | W30: 438223.6651 | X30: 2077037.313 | Y30: 6249604.268 | Z30: 31920588.47 | AA30: 612346.959 | AB30: 69065.80416 | AC30: 237353.6717 | AD30: 1892869.564 | AE30: 198203.8687 | AF30: 1278763.734 | AG30: 107745.0685 | AH30: 2041350.439 | AI30: 5775169.765 | AJ30: 3506944.492 | AK30: 18219.81824 | AL30: 510263.8135 | AM30: 15179212.04 | AN30: 3548383.964 | AO30: 384821.1983 | AP30: 19694220.75 | AQ30: 567141.2211 | AR30: 1029099.575 | AS30: 1179382.937 | AT30: 9972171.029 | AU30: 9862153.89 | AV30: 59918.61478 | AW30: 925.1836693 | AX30: 745932.181 | AY30: 2228005.588 | AZ30: 8872207.523 | BA30: 1803687.852 | BB30: 29001.10415 | BC30: 4236177.927 | BD30: 1377861.241 | BE30: 94971.47444 | BF30: 182188.9332 | BG30: 19675171.1 | BH30: 452934.8204 | BI30: 2789630.132 | BJ30: 12388160.06 | BK30: 5767518.727 | BL30: 1326430.102 | BM30: 7921.91828 | BN30: 16106803.96 | BO30: 1169322.89 | BP30: 62847.81142 | BQ30: 1250655.634 | BR30: 8317957.262 | BS30: 352411.8244 | BT30: 363014.7003 | BU30: 275024.2228 | BV30: 8887848.887 | BW30: 22599255.34 | BX30: 1920813.616 | BY30: 160393.942 | BZ30: 246385.1725 | CA30: 9026289.281 | CB30: 2512095.735 | CC30: 98822.54279 | CD30: 1170752.531 | CE30: 1641130.27 | CF30: 827255.6772 | CG30: 130535.9502 | CH30: 1539468.408 | CI30: 10654171.38 | CJ30: 40613.16321 | CK30: 1262228.574 | CL30: 533379.6918 | CM30: 563571.7937 | CN30: 58669.43687 | CO30: 1314891.286 | CP30: 784161.7008 | CQ30: 17633158.92 | CR30: 2203224.301 | CS30: 3519467.365 | CT30: 221337.2817 | CU30: 35032.91392 | CV30: 300123.9798 | CW30: 296504.7219 | CX30: 577387.9929 | CY30: 346573.5553 | CZ30: 256463.0455 | DA30: 2479111.188 | DB30: 135407.7115 | DC30: 1424953.552 | DD30: 42140.16034 | DE30: 1004658.722 | DF30: 6074714.649 | DG30: 22809.07095 | DH30: 1215769.618 | DI30: 307921.6477 | DJ30: 19786099.72 | DK30: 452052.5507 | DL30: 2786348.082 | DM30: 2687156.525 | DN30: 2807.294044 | DO30: 1111853.282 | DP30: 402836.0821 | DQ30: 383199.0834 | DR30: 151527.4226 | DS30: 448592.1782 | DT30: 1207815.945 | DU30: 1612871.795 | DV30: 976484.1633 | DW30: 487704.3903 | DX30: 11286477.35 | DY30: 268227.1956 | DZ30: 513514.9767 | EA30: 1340656.779 | EB30: 895743.033 | EC30: 22184088.87 | ED30: 25959.95356 | EE30: 1125229.722 | EF30: 456825.1645 | EG30: 445698.3479 | EH30: 52138.70891 | EI30: 2488924.741 | EJ30: 256802.2656 | EK30: 366813.1118 | EL30: 131621.3075 | EM30: 419385.5101 | EN30: 466959.7845 | EO30: 463276.3343 | EP30: 414803.0173 | EQ30: 934379.5077 | ER30: 441567.4297 | ES30: 1170829.265 | ET30: 394476.1654 | EU30: 314863.485 | EV30: 322963.9178 | EW30: 1466033.036 | EX30: 492941.0957 | EY30: 372855.1052 | EZ30: 1262031.776 | FA30: 391106.3334 | FB30: 407529.6482 | FC30: 350287.8967 | FD30: 2275.741678 | FE30: 468669.1115 | FF30: 3183966.587 | FG30: 335332.2111 | FH30: 327049.6002 | FI30: 335659.1856 | FJ30: 358406.8407 | FK30: 392445.1145 | FL30: 769314.1768 | FM30: 512958.9162 | FN30: 334309.3094 | FO30: 85043.03652 | FP30: 14428.9095 | FQ30: 1721775.837 | FR30: 159933.1374 | FS30: 1165005.054 | FT30: 421979.3063 | FU30: 375424.5397 | FV30: 689276.1033 | FW30: 0.08948462802 | FX30: 174541.9661 | FY30: 245072.0071 | FZ30: 402716.311 | GA30: 781616.2804 | GB30: 649150.1879 | GC30: 335863.5545 | GD30: 104404.9244 | GE30: 221994.1516 | GF30: 1956562.967 | GG30: 1969981.672 | GH30: 445723.9224 | GI30: 1365577.696 | GJ30: 247844.9879 | GK30: 69399.73739 | GL30: 1226957.869 | GM30: 461691.9783 | GN30: 189637.0646 | GO30: 1732739.991 | GP30: 450508.2693 | GQ30: 322180.0736 | GR30: 551469.6744 | GS30: 2207281.584 | GT30: 2059549.659 | GU30: 879498.4317 | GV30: 32899790.47 | GW30: 9803145.18 | GX30: 8942178.688 | GY30: 31276385.84 | GZ30: 18443220.19 | HA30: 4287425.165 | HB30: 814621.7972 | HC30: 2461765.878 | HD30: 2558477.583 | HE30: 0.5077119773 | HF30: 1456182.872 | HG30: 1142130.255 | HH30: 3244111.284 | HI30: 59646.79778 | HJ30: 8641960.836 | HK30: 2426996.693 | HL30: 330490.3704 | HM30: 365682.8962 | HN30: 219330.8899 | HO30: 234204.601 | HP30: 312872.6341 | HQ30: 266572.1208 | HR30: 244969.6604 | HS30: 273487.2124 | HT30: 33.13324196 | HU30: 142187.8517 | HV30: 1361.374481 | HW30: 133987.4555 | HX30: 115702.3328 | HY30: 317011.5458 | HZ30: 497049.4663 | IA30: 474123.2818 | IB30: 394644.734 | IC30: 421166.8881 | ID30: 177437.8838 | IE30: 194445.2539 | IF30: 274054.5835 | IG30: 216006.3501 | IH30: 205401.9602 | II30: 364227.9392 | IJ30: 272951.4114 | IK30: 459381.8353 | IL30: 5431091.091 | IM30: 12873331.94 | IN30: 412260.1223 | IO30: 1814420.356 | IP30: 895678.9369 | IQ30: 871270.8106 | IR30: 420669.6847 | IS30: 603819.5707 | IT30: 576799.8027 | IU30: 630317.6651 | IV30: 998213.7384 | IW30: 4570344.622 | IX30: 327624.1141 | IY30: 1224670.141 | IZ30: 533438.6041 | JA30: 327026.9022 | JB30: 0.0002251901319 | JC30: 272870.4547 | JD30: 335462.4661 | JE30: 7492773.145 | JF30: 15626502.28 | JG30: 712.960062 | JH30: 2525864.413 | JI30: 970100.9689 | JJ30: 2351368.619 | JK30: 780314460.4
A31: =+MATCH(B31,RUT[EMPRESA],0) -> 130 | B31: GAS SUR | C31: -3808294.289 | D31: -3808294.289 | F31: =IFERROR(INDEX($B$9:$B$511,MATCH(0,INDEX(COUNTIF($F$8:F30,$B$9:$B$511),0,0),0)),"") -> GAS SUR | G31: -3808294.289 | J31: ALBA | K31: 11134.61452 | L31: 5929.735452 | M31: 780.4942157 | N31: 25428.87048 | O31: 5331.584944 | P31: 2708.86616 | Q31: 16.33186356 | R31: 54.39260035 | S31: 383.2653462 | T31: 1713.024568 | U31: 156.1448987 | V31: 179.7599292 | W31: 151.785232 | X31: 719.412518 | Y31: 2164.642645 | Z31: 11056.16677 | AA31: 212.0954038 | AB31: 23.92196027 | AC31: 82.21094613 | AD31: 655.6233008 | AE31: 68.65083423 | AF31: 442.918686 | AG31: 37.31909416 | AH31: 707.0518427 | AI31: 2000.315255 | AJ31: 1214.681966 | AK31: 6.310702863 | AL31: 176.7374002 | AM31: 5257.544043 | AN31: 1229.035139 | AO31: 133.2884997 | AP31: 6821.383926 | AQ31: 196.4377295 | AR31: 356.4438211 | AS31: 408.496681 | AT31: 3454.008565 | AU31: 3415.902506 | AV31: 20.75369627 | AW31: 0.320451014 | AX31: 258.3646164 | AY31: 771.7026074 | AZ31: 3073.019976 | BA31: 624.7338992 | BB31: 10.04496031 | BC31: 1467.262726 | BD31: 477.2425698 | BE31: 32.89477138 | BF31: 63.10382504 | BG31: 6814.785798 | BH31: 156.8806576 | BI31: 966.2295545 | BJ31: 4290.822013 | BK31: 1997.665205 | BL31: 459.428636 | BM31: 2.743873276 | BN31: 5578.829192 | BO31: 405.012235 | BP31: 21.76826674 | BQ31: 433.1830309 | BR31: 2881.047221 | BS31: 122.0630349 | BT31: 125.7354974 | BU31: 95.25869728 | BV31: 3078.437594 | BW31: 7827.585515 | BX31: 665.3021357 | BY31: 55.55480827 | BZ31: 85.33913966 | CA31: 3126.388466 | CB31: 870.1014213 | CC31: 34.22864572 | CD31: 405.5074125 | CE31: 568.4296822 | CF31: 286.5322091 | CG31: 45.21305227 | CH31: 533.2175965 | CI31: 3690.229449 | CJ31: 14.06696828 | CK31: 437.1914897 | CL31: 184.7439257 | CM31: 195.2014057 | CN31: 20.32102507 | CO31: 455.4319969 | CP31: 271.6059746 | CQ31: 6107.504753 | CR31: 763.119243 | CS31: 1219.019448 | CT31: 76.66343315 | CU31: 12.13416661 | CV31: 103.9523684 | CW31: 102.6987851 | CX31: 199.9868501 | CY31: 120.0408642 | CZ31: 88.82975967 | DA31: 858.6767367 | DB31: 46.90045868 | DC31: 493.5536866 | DD31: 14.59586627 | DE31: 347.9783712 | DF31: 2104.067045 | DG31: 7.90025825 | DH31: 421.0997447 | DI31: 106.6532057 | DJ31: 6853.207563 | DK31: 156.5750705 | DL31: 965.092768 | DM31: 930.7363087 | DN31: 0.9723477109 | DO31: 385.1067884 | DP31: 139.5282205 | DQ31: 132.7266562 | DR31: 52.48375846 | DS31: 155.3765194 | DT31: 418.3448727 | DU31: 558.6419426 | DV31: 338.219697 | DW31: 168.9236112 | DX31: 3909.23795 | DY31: 92.90444662 | DZ31: 177.8634886 | EA31: 464.3562554 | EB31: 310.2538153 | EC31: 7683.786483 | ED31: 8.991612929 | EE31: 389.7399159 | EF31: 158.2281357 | EG31: 154.3741986 | EH31: 18.05901108 | EI31: 862.0758056 | EJ31: 88.94725354 | EK31: 127.0511332 | EL31: 45.5889818 | EM31: 145.260359 | EN31: 161.7384109 | EO31: 160.4625936 | EP31: 143.673145 | EQ31: 323.6361283 | ER31: 152.9433941 | ES31: 405.5339905 | ET31: 136.63264 | EU31: 109.0576135 | EV31: 111.8633179 | EW31: 507.7821719 | EX31: 170.7374213 | EY31: 129.1438668 | EZ31: 437.1233256 | FA31: 135.4654489 | FB31: 141.1539063 | FC31: 121.3273812 | FD31: 0.7882367064 | FE31: 162.3304615 | FF31: 1102.813804 | FG31: 116.1472588 | FH31: 113.2784543 | FI31: 116.2605113 | FJ31: 124.1394972 | FK31: 135.9291555 | FL31: 266.4633156 | FM31: 177.6708888 | FN31: 115.7929617 | FO31: 29.45591042 | FP31: 4.99766569 | FQ31: 596.3624642 | FR31: 55.39520178 | FS31: 403.516689 | FT31: 146.1587586 | FU31: 130.0338283 | FV31: 238.740948 | FW31: 3.099432117e-05 | FX31: 60.45518515 | FY31: 84.88430545 | FZ31: 139.486736 | GA31: 270.7243307 | GB31: 224.8427451 | GC31: 116.3312974 | GD31: 36.16218595 | GE31: 76.89094969 | GF31: 677.6844509 | GG31: 682.3322171 | GH31: 154.3830568 | GI31: 472.9879828 | GJ31: 85.84476826 | GK31: 24.03762297 | GL31: 424.9749606 | GM31: 159.9138285 | GN31: 65.68359522 | GO31: 600.1600607 | GP31: 156.0401859 | GQ31: 111.5918219 | GR31: 191.0096581 | GS31: 764.524543 | GT31: 713.3554109 | GU31: 304.6272579 | GV31: 11395.32783 | GW31: 3395.463969 | GX31: 3097.255521 | GY31: 10833.03769 | GZ31: 6388.081424 | HA31: 1485.012962 | HB31: 282.1562784 | HC31: 852.6689328 | HD31: 886.1664585 | HE31: 0.0001758535341 | HF31: 504.3704222 | HG31: 395.593665 | HH31: 1123.645807 | HI31: 20.65954844 | HJ31: 2993.270639 | HK31: 840.6261125 | HL31: 114.4702158 | HM31: 126.6596664 | HN31: 75.96848972 | HO31: 81.120219 | HP31: 108.3680529 | HQ31: 92.33118704 | HR31: 84.84885618 | HS31: 94.72633103 | HT31: 0.0114761872 | HU31: 49.24886029 | HV31: 0.4715321373 | HW31: 46.40853207 | HX31: 40.07521005 | HY31: 109.8016261 | HZ31: 172.1604161 | IA31: 164.2195939 | IB31: 136.6910262 | IC31: 145.8773656 | ID31: 61.45822899 | IE31: 67.34898252 | IF31: 94.92284841 | IG31: 74.81698631 | IH31: 71.1439994 | II31: 126.1557206 | IJ31: 94.54074846 | IK31: 159.1136764 | IL31: 1881.13853 | IM31: 4458.868452 | IN31: 142.7923759 | IO31: 628.4512602 | IP31: 310.2316147 | IQ31: 301.7775 | IR31: 145.7051519 | IS31: 209.1418171 | IT31: 199.7831218 | IU31: 218.319823 | IV31: 345.7460559 | IW31: 1583.006291 | IX31: 113.4774457 | IY31: 424.182572 | IZ31: 184.7643309 | JA31: 113.2705925 | JB31: 7.799792464e-08 | JC31: 94.51270793 | JD31: 116.1923746 | JE31: 2595.232527 | JF31: 5412.469619 | JG31: 0.2469442365 | JH31: 874.8704062 | JI31: 336.0087835 | JJ31: 814.4312134 | JK31: 270273.4261
A32: =+MATCH(B32,RUT[EMPRESA],0) -> 246 | B32: PETROPOWER | C32: 0 | D32: 0 | F32: =IFERROR(INDEX($B$9:$B$511,MATCH(0,INDEX(COUNTIF($F$8:F31,$B$9:$B$511),0,0),0)),"") -> PETROPOWER | J32: ALMEYDA | K32: 2489532.177 | L32: 1325799.576 | M32: 174506.7564 | N32: 5685512.61 | O32: 1192062.127 | P32: 605661.6916 | Q32: 3651.558818 | R32: 12161.36656 | S32: 85692.36139 | T32: 383006.5039 | U32: 34911.64861 | V32: 40191.61391 | W32: 33936.89276 | X32: 160849.8083 | Y32: 483981.5069 | Z32: 2471992.441 | AA32: 47421.33922 | AB32: 5348.590173 | AC32: 18381.12988 | AD32: 146587.4997 | AE32: 15349.293 | AF32: 99029.9501 | AG32: 8343.98762 | AH32: 158086.1474 | AI32: 447240.3765 | AJ32: 271584.6008 | AK32: 1410.978153 | AL32: 39515.82193 | AM32: 1175507.696 | AN32: 274793.7541 | AO32: 29801.30188 | AP32: 1525158.751 | AQ32: 43920.51898 | AR32: 79695.47218 | AS32: 91333.708 | AT32: 772264.3155 | AU32: 763744.3743 | AV32: 4640.214041 | AW32: 71.64802238 | AX32: 57766.43857 | AY32: 172541.0851 | AZ32: 687081.0027 | BA32: 139681.0946 | BB32: 2245.901899 | BC32: 328057.856 | BD32: 106704.2538 | BE32: 7354.775654 | BF32: 14109.06526 | BG32: 1523683.509 | BH32: 35076.15323 | BI32: 216034.3819 | BJ32: 959363.2044 | BK32: 446647.8652 | BL32: 102721.3264 | BM32: 613.4887559 | BN32: 1247342.219 | BO32: 90554.63833 | BP32: 4867.056725 | BQ32: 96853.20418 | BR32: 644158.7847 | BS32: 27291.45695 | BT32: 28112.56427 | BU32: 21298.4106 | BV32: 688292.3004 | BW32: 1750130.278 | BX32: 148751.5415 | BY32: 12421.21876 | BZ32: 19080.54686 | CA32: 699013.3937 | CB32: 194541.5785 | CC32: 7653.009875 | CD32: 90665.35256 | CE32: 127092.3193 | CF32: 64064.28825 | CG32: 10108.95781 | CH32: 119219.427 | CI32: 825079.7488 | CJ32: 3145.162332 | CK32: 97749.43523 | CL32: 41305.9605 | CM32: 43644.09558 | CN32: 4543.475275 | CO32: 101827.738 | CP32: 60727.00692 | CQ32: 1365546.115 | CR32: 170621.9741 | CS32: 272554.3964 | CT32: 17140.78949 | CU32: 2713.016976 | CV32: 23242.18459 | CW32: 22961.90222 | CX32: 44714.0489 | CY32: 26839.33004 | CZ32: 19860.99694 | DA32: 191987.1911 | DB32: 10486.23648 | DC32: 110351.1739 | DD32: 3263.415959 | DE32: 77802.72502 | DF32: 470437.7148 | DG32: 1766.378807 | DH32: 94151.5633 | DI32: 23846.05115 | DJ32: 1532274.037 | DK32: 35007.82855 | DL32: 215780.2136 | DM32: 208098.6265 | DN32: 217.4023096 | DO32: 86104.08015 | DP32: 31196.40952 | DQ32: 29675.68215 | DR32: 11734.57825 | DS32: 34739.85057 | DT32: 93535.61539 | DU32: 124903.9281 | DV32: 75620.83239 | DW32: 37768.77633 | DX32: 874046.7525 | DY32: 20772.0356 | DZ32: 39767.59833 | EA32: 103823.0679 | EB32: 69368.08226 | EC32: 1717978.979 | ED32: 2010.389283 | EE32: 87139.97771 | EF32: 35377.42904 | EG32: 34515.74673 | EH32: 4037.723002 | EI32: 192747.1717 | EJ32: 19887.2668 | EK32: 28406.72065 | EL32: 10193.00999 | EM32: 32478.0294 | EN32: 36162.27372 | EO32: 35877.02017 | EP32: 32123.15225 | EQ32: 72360.16599 | ER32: 34195.84039 | ES32: 90671.295 | ET32: 30549.00131 | EU32: 24383.64054 | EV32: 25010.9538 | EW32: 113532.449 | EX32: 38174.31698 | EY32: 28874.62437 | EZ32: 97734.19476 | FA32: 30288.03497 | FB32: 31559.8884 | FC32: 27126.97586 | FD32: 176.2378607 | FE32: 36294.64733 | FF32: 246572.5638 | FG32: 25968.77848 | FH32: 25327.35699 | FI32: 25994.10003 | FJ32: 27755.72267 | FK32: 30391.71278 | FL32: 59577.18579 | FM32: 39724.53592 | FN32: 25889.56299 | FO32: 6585.898115 | FP32: 1117.402809 | FQ32: 133337.6688 | FR32: 12385.53315 | FS32: 90220.25676 | FT32: 32678.89803 | FU32: 29073.60637 | FV32: 53378.88175 | FW32: 0.006929863598 | FX32: 13516.86925 | FY32: 18978.85277 | FZ32: 31187.13421 | GA32: 60529.88462 | GB32: 50271.45283 | GC32: 26009.92675 | GD32: 8085.320361 | GE32: 17191.65877 | GF32: 151520.0408 | GG32: 152559.2113 | GH32: 34517.72727 | GI32: 105752.9922 | GJ32: 19193.5978 | GK32: 5374.450612 | GL32: 95018.00325 | GM32: 35754.32457 | GN32: 14685.86303 | GO32: 134186.7542 | GP32: 34888.23639 | GQ32: 24950.25138 | GR32: 42706.88393 | GS32: 170936.178 | GT32: 159495.5304 | GU32: 68110.06874 | GV32: 2547823.748 | GW32: 759174.625 | GX32: 692499.7058 | GY32: 2422104.137 | GZ32: 1428278.835 | HA32: 332026.5417 | HB32: 63085.89602 | HC32: 190643.9365 | HD32: 198133.479 | HE32: 0.03931820278 | HF32: 112769.6332 | HG32: 88448.78787 | HH32: 251230.286 | HI32: 4619.164004 | HJ32: 669250.2516 | HK32: 187951.3432 | HL32: 25593.81693 | HM32: 28319.19456 | HN32: 16985.41061 | HO32: 18137.25971 | HP32: 24229.46517 | HQ32: 20643.86339 | HR32: 18970.92685 | HS32: 21179.38152 | HT32: 2.565902685 | HU32: 11011.30373 | HV32: 105.427487 | HW32: 10376.2491 | HX32: 8960.213639 | HY32: 24549.99054 | HZ32: 38492.47719 | IA32: 36717.02888 | IB32: 30562.05559 | IC32: 32615.98278 | ID32: 13741.13475 | IE32: 15058.21856 | IF32: 21223.31985 | IG32: 16727.95178 | IH32: 15906.7272 | II32: 28206.51986 | IJ32: 21137.88806 | IK32: 35575.4226 | IL32: 420594.255 | IM32: 996935.8582 | IN32: 31926.22552 | IO32: 140512.2405 | IP32: 69363.11853 | IQ32: 67472.90577 | IR32: 32577.47838 | IS32: 46760.96169 | IT32: 44668.49832 | IU32: 48813.02564 | IV32: 77303.61294 | IW32: 353936.3746 | IX32: 25371.84847 | IY32: 94840.83709 | IZ32: 41310.52278 | JA32: 25325.59922 | JB32: 1.74391617e-05 | JC32: 21131.61862 | JD32: 25978.86569 | JE32: 580254.9221 | JF32: 1210146.723 | JG32: 55.21301356 | JH32: 195607.8518 | JI32: 75126.50541 | JJ32: 182094.5581 | JK32: 60429069.15
A33: =+MATCH(B33,RUT[EMPRESA],0) -> 336 | B33: ALTO_MANGA_ENERGY | C33: 19852090.87 | D33: 19852090.87 | F33: =IFERROR(INDEX($B$9:$B$511,MATCH(0,INDEX(COUNTIF($F$8:F32,$B$9:$B$511),0,0),0)),"") -> ALTO_MANGA_ENERGY | H33: 19852090.87 | J33: PUNTA_PALMERAS | K33: 40709.71313 | L33: 21679.94489 | M33: 2853.596373 | N33: 92971.5187 | O33: 19493.0227 | P33: 9903.994793 | Q33: 59.7115849 | R33: 198.8669794 | S33: 1401.271886 | T33: 6263.058195 | U33: 570.8876603 | V33: 657.2275256 | W33: 554.9481069 | X33: 2630.273115 | Y33: 7914.237257 | Z33: 40422.89714 | AA33: 775.4505581 | AB33: 87.46204352 | AC33: 300.574755 | AD33: 2397.050786 | AE33: 250.9970832 | AF33: 1619.372867 | AG33: 136.4438449 | AH33: 2585.080752 | AI33: 7313.433261 | AJ33: 4441.047716 | AK33: 23.0728152 | AL33: 646.1767355 | AM33: 19222.31877 | AN33: 4493.524928 | AO33: 487.3214581 | AP33: 24939.93683 | AQ33: 718.2039038 | AR33: 1303.208627 | AS33: 1493.521187 | AT33: 12628.33999 | AU33: 12489.01889 | AV33: 75.87842576 | AW33: 1.171613874 | AX33: 944.6172917 | AY33: 2821.453019 | AZ33: 11235.39225 | BA33: 2284.1148 | BB33: 36.72578441 | BC33: 5364.518414 | BD33: 1744.865803 | BE33: 120.2679 | BF33: 230.7164392 | BG33: 24915.81314 | BH33: 573.5776982 | BI33: 3532.670835 | BJ33: 15687.84738 | BK33: 7303.744307 | BL33: 1679.735561 | BM33: 10.03198572 | BN33: 20396.98236 | BO33: 1480.781563 | BP33: 79.58783778 | BQ33: 1583.777946 | BR33: 10533.51291 | BS33: 446.2795837 | BT33: 459.7066218 | BU33: 348.2791641 | BV33: 11255.19981 | BW33: 28618.75103 | BX33: 2432.437965 | BY33: 203.1161746 | BZ33: 312.0118695 | CA33: 11430.51494 | CB33: 3181.212891 | CC33: 125.1447318 | CD33: 1482.592002 | CE33: 2078.258681 | CF33: 1047.601963 | CG33: 165.3052635 | CH33: 1949.518355 | CI33: 13491.99669 | CJ33: 51.43080996 | CK33: 1598.433434 | CL33: 675.4497162 | CM33: 713.6837303 | CN33: 74.29651915 | CO33: 1665.123288 | CP33: 993.0295555 | CQ33: 22329.8944 | CR33: 2790.071035 | CS33: 4456.906157 | CT33: 280.2922692 | CU33: 44.36421582 | CV33: 380.0644458 | CW33: 375.4811691 | CX33: 731.1799866 | CY33: 438.886244 | CZ33: 324.7740661 | DA33: 3139.442641 | DB33: 171.4746581 | DC33: 1804.501535 | DD33: 53.36453521 | DE33: 1272.257754 | DF33: 7692.764364 | DG33: 28.88445274 | DH33: 1539.599756 | DI33: 389.939086 | DJ33: 25056.28851 | DK33: 572.4604288 | DL33: 3528.514584 | DM33: 3402.902547 | DN33: 3.555039673 | DO33: 1408.004457 | DP33: 510.134753 | DQ33: 485.2672797 | DR33: 191.8879856 | DS33: 568.0783578 | DT33: 1529.527558 | DU33: 2042.473332 | DV33: 1236.578672 | DW33: 617.6084262 | DX33: 14292.7225 | DY33: 339.6716934 | DZ33: 650.2938724 | EA33: 1697.751629 | EB33: 1134.331484 | EC33: 28093.00159 | ED33: 32.87459859 | EE33: 1424.943822 | EF33: 578.5042671 | EG33: 564.4137323 | EH33: 66.0262786 | EI33: 3151.870114 | EJ33: 325.2036402 | EK33: 464.5167712 | EL33: 166.6797146 | EM33: 531.0922559 | EN33: 591.3383257 | EO33: 586.6737585 | EP33: 525.2891788 | EQ33: 1183.259098 | ER33: 559.1825104 | ES33: 1482.689175 | ET33: 499.5481044 | EU33: 398.7299383 | EV33: 408.9879873 | EW33: 1856.522874 | EX33: 624.2399707 | EY33: 472.1680988 | EZ33: 1598.184216 | FA33: 495.2806902 | FB33: 516.0784886 | FC33: 443.5899305 | FD33: 2.881904006 | FE33: 593.5029459 | FF33: 4032.042015 | FG33: 424.6506762 | FH33: 414.1619245 | FI33: 425.0647431 | FJ33: 453.8714213 | FK33: 496.9760665 | FL33: 974.2272726 | FM33: 649.5897006 | FN33: 423.3553164 | FO33: 107.6949418 | FP33: 18.27216705 | FQ33: 2180.384852 | FR33: 202.5326309 | FS33: 1475.313637 | FT33: 534.3769309 | FU33: 475.421923 | FV33: 872.8704064 | FW33: 0.0001133195874 | FX33: 221.0326401 | FY33: 310.3489319 | FZ33: 509.9830798 | GA33: 989.8061416 | GB33: 822.0566266 | GC33: 425.3235472 | GD33: 132.2140262 | GE33: 281.1241016 | GF33: 2477.709447 | GG33: 2494.702332 | GH33: 564.4461189 | GI33: 1729.310436 | GJ33: 313.8605187 | GK33: 87.88492259 | GL33: 1553.768089 | GM33: 584.6673964 | GN33: 240.148441 | GO33: 2194.269398 | GP33: 570.5048154 | GQ33: 407.9953598 | GR33: 698.358113 | GS33: 2795.209009 | GT33: 2608.127482 | GU33: 1113.760001 | GV33: 41662.91758 | GW33: 12414.29273 | GX33: 11324.0008 | GY33: 39607.1059 | GZ33: 23355.72208 | HA33: 5429.415771 | HB33: 1031.602947 | HC33: 3117.477266 | HD33: 3239.948921 | HE33: 0.0006429451969 | HF33: 1844.049038 | HG33: 1446.34595 | HH33: 4108.206742 | HI33: 75.53420808 | HJ33: 10943.81748 | HK33: 3073.447026 | HL33: 418.5191718 | HM33: 463.0855135 | HN33: 277.7514585 | HO33: 296.5869036 | HP33: 396.208808 | HQ33: 337.5757759 | HR33: 310.2193244 | HS33: 346.3327585 | HT33: 0.04195855076 | HU33: 180.0607439 | HV33: 1.72398766 | HW33: 169.6761054 | HX33: 146.5205914 | HY33: 401.4501525 | HZ33: 629.4426392 | IA33: 600.4098788 | IB33: 499.7615726 | IC33: 533.3481184 | ID33: 224.6999091 | IE33: 246.2373306 | IF33: 347.0512536 | IG33: 273.5414004 | IH33: 260.1124449 | II33: 461.2430168 | IJ33: 345.6542425 | IK33: 581.741928 | IL33: 6877.706431 | IM33: 16302.24874 | IN33: 522.0689631 | IO33: 2297.705993 | IP33: 1134.250316 | IQ33: 1103.340886 | IR33: 532.7184809 | IS33: 764.6518305 | IT33: 730.4351272 | IU33: 798.207908 | IV33: 1264.096096 | IW33: 5787.69313 | IX33: 414.8894648 | IY33: 1550.871006 | IZ33: 675.5243203 | JA33: 414.1331807 | JB33: 2.851713573e-07 | JC33: 345.5517224 | JD33: 424.8156257 | JE33: 9488.534288 | JF33: 19788.74842 | JG33: 0.9028627803 | JH33: 3198.648969 | JI33: 1228.495262 | JJ33: 2977.674799 | JK33: 988157.5713
A34: =+MATCH(B34,RUT[EMPRESA],0) -> 136 | B34: GENPAC | C34: 94092438.99 | D34: 94092438.99 | F34: =IFERROR(INDEX($B$9:$B$511,MATCH(0,INDEX(COUNTIF($F$8:F33,$B$9:$B$511),0,0),0)),"") -> GENPAC | H34: 94092438.99 | J34: EOLICA_TALTAL | K34: 22372016.19 | L34: 11914210.17 | M34: 1568193.42 | N34: 51092482.9 | O34: 10712387.43 | P34: 5442738.719 | Q34: 32814.49171 | R34: 109287.316 | S34: 770068.736 | T34: 3441862.607 | U34: 313731.2203 | V34: 361179.2792 | W34: 304971.6414 | X34: 1445466.16 | Y34: 4349267.79 | Z34: 22214396.51 | AA34: 426148.7274 | AB34: 48064.75171 | AC34: 165180.8075 | AD34: 1317298.868 | AE34: 137935.406 | AF34: 889926.0944 | AG34: 74982.69268 | AH34: 1420630.704 | AI34: 4019096.053 | AJ34: 2440577.046 | AK34: 12679.66182 | AL34: 355106.3193 | AM34: 10563622.14 | AN34: 2469415.889 | AO34: 267807.4276 | AP34: 13705738.2 | AQ34: 394688.8378 | AR34: 716178.0878 | AS34: 820764.324 | AT34: 6939902.176 | AU34: 6863338.288 | AV34: 41698.97647 | AW34: 643.8602126 | AX34: 519114.2782 | AY34: 1550529.045 | AZ34: 6174407.971 | BA34: 1255234.915 | BB34: 20182.64882 | BC34: 2948070.217 | BD34: 958890.7166 | BE34: 66093.2048 | BF34: 126790.1814 | BG34: 13692481.04 | BH34: 315209.5302 | BI34: 1941378.679 | BJ34: 8621253.961 | BK34: 4013771.489 | BL34: 923098.4029 | BM34: 5513.076114 | BN34: 11209158.32 | BO34: 813763.2659 | BP34: 43737.48323 | BQ34: 870364.9112 | BR34: 5788690.299 | BS34: 245252.8722 | BT34: 252631.6988 | BU34: 191396.7577 | BV34: 6185293.217 | BW34: 15727429.95 | BX34: 1336745.886 | BY34: 111622.4605 | BZ34: 171466.0719 | CA34: 6281637.613 | CB34: 1748235.024 | CC34: 68773.26689 | CD34: 814758.1921 | CE34: 1142106.718 | CF34: 575709.4876 | CG34: 90843.48051 | CH34: 1071357.493 | CI34: 7414524.572 | CJ34: 28263.7932 | CK34: 878418.8322 | CL34: 371193.2811 | CM34: 392204.7773 | CN34: 40829.63995 | CO34: 915068.2305 | CP34: 545719.2298 | CQ34: 12271389.81 | CR34: 1533283.081 | CS34: 2449292.05 | CT34: 154034.5707 | CU34: 24380.34755 | CV34: 208864.3541 | CW34: 206345.6151 | CX34: 401819.842 | CY34: 241189.8636 | CZ34: 178479.5349 | DA34: 1725280.19 | DB34: 94233.87031 | DC34: 991663.5233 | DD34: 29326.4716 | DE34: 699169.0407 | DF34: 4227557.398 | DG34: 15873.44628 | DH34: 846086.7942 | DI34: 214290.9609 | DJ34: 13769679.25 | DK34: 314595.535 | DL34: 1939094.612 | DM34: 1870064.538 | DN34: 1953.671471 | DO34: 773768.6193 | DP34: 280344.4701 | DQ34: 266678.5542 | DR34: 105452.0111 | DS34: 312187.3686 | DT34: 840551.6191 | DU34: 1122440.885 | DV34: 679561.607 | DW34: 339406.6096 | DX34: 7854563.311 | DY34: 186666.5235 | DZ34: 357368.8912 | EA34: 932999.1302 | EB34: 623371.6815 | EC34: 15438504.43 | ED34: 18066.23028 | EE34: 783077.6442 | EF34: 317916.9254 | EG34: 310173.4743 | EH34: 36284.73061 | EI34: 1732109.705 | EJ34: 178715.6073 | EK34: 255275.1156 | EL34: 91598.80989 | EM34: 291861.6624 | EN34: 324969.8802 | EO34: 322406.468 | EP34: 288672.5823 | EQ34: 650259.844 | ER34: 307298.6571 | ES34: 814811.5934 | ET34: 274526.5791 | EU34: 219121.9724 | EV34: 224759.2815 | EW34: 1020251.842 | EX34: 343050.9738 | EY34: 259479.9015 | EZ34: 878281.8747 | FA34: 272181.4223 | FB34: 283610.849 | FC34: 243774.7737 | FD34: 1583.749875 | FE34: 326159.4468 | FF34: 2215808.03 | FG34: 233366.7097 | FH34: 227602.6179 | FI34: 233594.26 | FJ34: 249424.9654 | FK34: 273113.1161 | FL34: 535386.4383 | FM34: 356981.9137 | FN34: 232654.8449 | FO34: 59183.73767 | FP34: 10041.46641 | FQ34: 1198230.139 | FR34: 111301.7742 | FS34: 810758.3681 | FT34: 293666.755 | FU34: 261268.0401 | FV34: 479685.7891 | FW34: 0.06227476071 | FX34: 121468.4512 | FY34: 170552.2048 | FZ34: 280261.1181 | GA34: 543947.8032 | GB34: 451761.0847 | GC34: 233736.4858 | GD34: 72658.19647 | GE34: 154491.704 | GF34: 1361624.821 | GG34: 1370963.258 | GH34: 310191.2723 | GI34: 950342.2671 | GJ34: 172481.9967 | GK34: 48297.14484 | GL34: 853872.9994 | GM34: 321303.8721 | GN34: 131973.5365 | GO34: 1205860.389 | GP34: 313520.828 | GQ34: 224213.7832 | GR34: 383782.5868 | GS34: 1536106.654 | GT34: 1433296.031 | GU34: 612066.6264 | GV34: 22895849.54 | GW34: 6822272.538 | GX34: 6223102.788 | GY34: 21766078.57 | GZ34: 12835133.25 | HA34: 2983734.549 | HB34: 566917.2306 | HC34: 1713209.122 | HD34: 1780513.4 | HE34: 0.3533304278 | HF34: 1013396.847 | HG34: 794839.1801 | HH34: 2257664.343 | HI34: 41509.8117 | HJ34: 6014173.106 | HK34: 1689012.31 | HL34: 229997.1424 | HM34: 254488.5682 | HN34: 152638.2686 | HO34: 162989.2844 | HP34: 217736.4856 | HQ34: 185514.7124 | HR34: 170480.979 | HS34: 190327.1108 | HT34: 23.05831471 | HU34: 98952.35238 | HV34: 947.4171367 | HW34: 93245.47597 | HX34: 80520.36703 | HY34: 220616.8657 | HZ34: 345910.0994 | IA34: 329955.1507 | IB34: 274643.8905 | IC34: 293101.3712 | ID34: 123483.7983 | IE34: 135319.6848 | IF34: 190721.9596 | IG34: 150324.6319 | IH34: 142944.7515 | II34: 253476.0244 | IJ34: 189954.2325 | IK34: 319696.1814 | IL34: 3779642.444 | IM34: 8958898.129 | IN34: 286902.9133 | IO34: 1262703.953 | IP34: 623327.0754 | IQ34: 606340.8035 | IR34: 292755.354 | IS34: 420214.2884 | IT34: 401410.5047 | IU34: 438655.0253 | IV34: 694683.803 | IW34: 3180625.813 | IX34: 228002.4375 | IY34: 852280.9075 | IZ34: 371234.2797 | JA34: 227586.8217 | JB34: 0.0001567158728 | JC34: 189897.8925 | JD34: 233457.3576 | JE34: 5214422.466 | JF34: 10874903.46 | JG34: 496.1680933 | JH34: 1757817.018 | JI34: 675119.3702 | JJ34: 1636380.699 | JK34: 543041831.7
A35: =+MATCH(B35,RUT[EMPRESA],0) -> 229 | B35: NORVIND | C35: -118445149.1 | D35: -118445149.1 | F35: =IFERROR(INDEX($B$9:$B$511,MATCH(0,INDEX(COUNTIF($F$8:F34,$B$9:$B$511),0,0),0)),"") -> NORVIND | G35: -118445149.1 | J35: ACCIONA_ENERGIA | K35: 54151625.83 | L35: 28838431.25 | M35: 3795823.433 | N35: 123669721.7 | O35: 25929410.7 | P35: 13174188.15 | Q35: 79427.7128 | R35: 264530.733 | S35: 1863956.905 | T35: 8331053.152 | U35: 759388.6714 | V35: 874237.0386 | W35: 738186.0477 | X35: 3498761.22 | Y35: 10527433.91 | Z35: 53770106.26 | AA35: 1031496.054 | AB35: 116341.0766 | AC35: 399821.3305 | AD35: 3188531.367 | AE35: 333873.6406 | AF35: 2154072.501 | AG35: 181496.146 | AH35: 3438646.82 | AI35: 9728250.853 | AJ35: 5907434.263 | AK35: 30691.21247 | AL35: 859537.3955 | AM35: 25569323.23 | AN35: 5977238.891 | AO35: 648229.8014 | AP35: 33174837.73 | AQ35: 955347.1659 | AR35: 1733514.204 | AS35: 1986665.939 | AT35: 16798083.04 | AU35: 16612759.61 | AV35: 100932.6719 | AW35: 1558.468268 | AX35: 1256519.838 | AY35: 3753066.687 | AZ35: 14945198.83 | BA35: 3038305.123 | BB35: 48852.24637 | BC35: 7135825.128 | BD35: 2321001.864 | BE35: 159979.0768 | BF35: 306896.5445 | BG35: 33142748.67 | BH35: 762966.9311 | BI35: 4699121.033 | BJ35: 20867807.11 | BK35: 9715362.709 | BL35: 2234366.312 | BM35: 13344.44032 | BN35: 27131848.2 | BO35: 1969719.828 | BP35: 105866.8922 | BQ35: 2106724.517 | BR35: 14011566.43 | BS35: 593636.3381 | BT35: 611496.8409 | BU35: 463277.2262 | BV35: 14971546.64 | BW35: 38068357.11 | BX35: 3235603.014 | BY35: 270182.9672 | BZ35: 415034.8581 | CA35: 15204748.94 | CB35: 4231615.428 | CC35: 166466.1863 | CD35: 1972128.054 | CE35: 2764477.512 | CF35: 1393508.948 | CG35: 219887.2968 | CH35: 2593228.505 | CI35: 17946909.96 | CJ35: 68412.71438 | CK35: 2126219.09 | CL35: 898476.002 | CM35: 949334.4795 | CN35: 98828.43665 | CO35: 2214929.222 | CP35: 1320917.314 | CQ35: 29702987.15 | CR35: 3711322.706 | CS35: 5928528.993 | CT35: 372841.7843 | CU35: 59012.8063 | CV35: 505557.6687 | CW35: 499461.0428 | CX35: 972607.8128 | CY35: 583801.7966 | CZ35: 432010.9958 | DA35: 4176053.087 | DB35: 228093.7597 | DC35: 2400328.678 | DD35: 70984.93506 | DE35: 1692343.683 | DF35: 10232833.04 | DG35: 38421.79069 | DH35: 2047959.16 | DI35: 518692.8096 | DJ35: 33329607.5 | DK35: 761480.7514 | DL35: 4693592.432 | DM35: 4526504.642 | DN35: 4728.875822 | DO35: 1872912.499 | DP35: 678575.8027 | DQ35: 645497.3552 | DR35: 255247.35 | DS35: 755651.7673 | DT35: 2034561.229 | DU35: 2716876.223 | DV35: 1644883.749 | DW35: 821536.1354 | DX35: 19012026.89 | DY35: 451827.6605 | DZ35: 865013.9672 | EA35: 2258331.094 | EB35: 1508875.631 | EC35: 37369010.82 | ED35: 43729.4401 | EE35: 1895445.06 | EF35: 769520.2006 | EG35: 750777.1216 | EH35: 87827.45096 | EI35: 4192583.979 | EJ35: 432582.4106 | EK35: 617895.2503 | EL35: 221715.577 | EM35: 706453.2494 | EN35: 786591.9283 | EO35: 780387.1707 | EP35: 698734.0581 | EQ35: 1573958.621 | ER35: 743818.606 | ES35: 1972257.312 | ET35: 664493.5557 | EU35: 530386.3075 | EV35: 544031.4547 | EW35: 2469526.908 | EX35: 830357.3452 | EY35: 628072.9646 | EZ35: 2125887.584 | FA35: 658817.0869 | FB35: 686482.0963 | FC35: 590058.5902 | FD35: 3833.477944 | FE35: 789471.2829 | FF35: 5363379.246 | FG35: 564865.7963 | FH35: 550913.7707 | FI35: 565416.5836 | FJ35: 603734.9195 | FK35: 661072.2584 | FL35: 1295906.718 | FM35: 864077.2854 | FN35: 563142.7225 | FO35: 143254.662 | FP35: 24305.44155 | FQ35: 2900324.654 | FR35: 269406.7436 | FS35: 1962446.451 | FT35: 710822.489 | FU35: 632401.1669 | FV35: 1161082.897 | FW35: 0.1507365054 | FX35: 294015.2583 | FY35: 412822.8362 | FZ35: 678374.0487 | GA35: 1316629.563 | GB35: 1093490.949 | GC35: 565760.8422 | GD35: 175869.6863 | GE35: 373948.2789 | GF35: 3295822.656 | GG35: 3318426.411 | GH35: 750820.2018 | GI35: 2300310.281 | GJ35: 417493.9115 | GK35: 116903.5859 | GL35: 2066805.726 | GM35: 777718.3293 | GN35: 319442.8926 | GO35: 2918793.729 | GP35: 758879.4153 | GQ35: 542711.0722 | GR35: 928948.5069 | GS35: 3718157.185 | GT35: 3469303.334 | GU35: 1481511.664 | GV35: 55419568.21 | GW35: 16513359.66 | GX35: 15063064.98 | GY35: 52684949.46 | GZ35: 31067532.18 | HA35: 7222150.899 | HB35: 1372227.227 | HC35: 4146834.981 | HD35: 4309745.468 | HE35: 0.8552388375 | HF35: 2452934.345 | HG35: 1923913.942 | HH35: 5464692.753 | HI35: 100474.7973 | HJ35: 14557349.18 | HK35: 4088266.425 | HL35: 556709.7346 | HM35: 615991.4066 | HN35: 369462.0251 | HO35: 394516.7331 | HP35: 527032.7268 | HQ35: 449039.6935 | HR35: 412650.4337 | HS35: 460688.1382 | HT35: 55.81281632 | HU35: 239514.8794 | HV35: 2293.229982 | HW35: 225701.3441 | HX35: 194900.1265 | HY35: 534004.7074 | HZ35: 837277.8794 | IA35: 798658.8114 | IB35: 664777.5089 | IC35: 709453.9736 | ID35: 298893.4204 | IE35: 327542.2686 | IF35: 461643.8727 | IG35: 363861.8508 | IH35: 345998.7975 | II35: 613540.5372 | IJ35: 459785.5835 | IK35: 773826.9026 | IL35: 9148651.674 | IM35: 21685077.25 | IN35: 694450.5616 | IO35: 3056383.984 | IP35: 1508767.662 | IQ35: 1467652.268 | IR35: 708616.4365 | IS35: 1017131.702 | IT35: 971617.0088 | IU35: 1061767.638 | IV35: 1681487.133 | IW35: 7698727.617 | IX35: 551881.5372 | IY35: 2062952.056 | IZ35: 898575.2395 | JA35: 550875.5361 | JB35: 0.0003793318953 | JC35: 459649.2124 | JD35: 565085.2104 | JE35: 12621547.02 | JF35: 26322781.9 | JG35: 1200.978432 | JH35: 4254808.712 | JI35: 1634131.283 | JJ35: 3960871.231 | JK35: 1314436653
A36: =+MATCH(B36,RUT[EMPRESA],0) -> 226 | B36: MONTE REDONDO | C36: 283115043 | D36: 283115043 | F36: =IFERROR(INDEX($B$9:$B$511,MATCH(0,INDEX(COUNTIF($F$8:F35,$B$9:$B$511),0,0),0)),"") -> MONTE REDONDO | H36: 283115043 | J36: JAVIERA | K36: 9128719.022 | L36: 4861496.435 | M36: 639888.5545 | N36: 20847871.58 | O36: 4371102.457 | P36: 2220865.211 | Q36: 13389.68612 | R36: 44593.79931 | S36: 314220.2767 | T36: 1404424.008 | U36: 128015.4696 | V36: 147376.2636 | W36: 124441.1947 | X36: 589810.6956 | Y36: 1774683.304 | Z36: 9064403.595 | AA36: 173886.5179 | AB36: 19612.43052 | AC36: 67400.68334 | AD36: 537513.0755 | AE36: 56283.41915 | AF36: 363127.0957 | AG36: 30596.07713 | AH36: 579676.7901 | AI36: 1639959.415 | AJ36: 995857.5888 | AK36: 5173.832749 | AL36: 144898.2418 | AM36: 4310399.989 | AN36: 1007625.044 | AO36: 109276.64 | AP36: 5592514.862 | AQ36: 161049.5661 | AR36: 292230.6365 | AS36: 334906.1985 | AT36: 2831770.568 | AU36: 2800529.297 | AV36: 17014.92777 | AW36: 262.7219165 | AX36: 211820.3538 | AY36: 632680.7503 | AZ36: 2519416.891 | BA36: 512188.3849 | BB36: 8235.365492 | BC36: 1202936.045 | BD36: 391267.5482 | BE36: 26968.79399 | BF36: 51735.70102 | BG36: 5587105.383 | BH36: 128618.6819 | BI36: 792163.7605 | BJ36: 3517832.472 | BK36: 1637786.77 | BL36: 376662.7861 | BM36: 2249.565813 | BN36: 4573805.771 | BO36: 332049.4738 | BP36: 17846.72386 | BQ36: 355145.3142 | BR36: 2362027.937 | BS36: 100073.4373 | BT36: 103084.3074 | BU36: 78097.88834 | BV36: 2523858.528 | BW36: 6417449.714 | BX36: 545448.2729 | BY36: 45546.63603 | BZ36: 69965.3343 | CA36: 2563171.074 | CB36: 713353.0648 | CC36: 28062.3715 | CD36: 332455.4453 | CE36: 466027.3458 | CF36: 234913.5682 | CG36: 37067.94244 | CH36: 437158.7005 | CI36: 3025436.372 | CJ36: 11532.81065 | CK36: 358431.6511 | CL36: 151462.3955 | CM36: 160035.9655 | CN36: 16660.20208 | CO36: 373386.1396 | CP36: 222676.2877 | CQ36: 5007240.681 | CR36: 625643.6749 | CS36: 999413.6752 | CT36: 62852.55219 | CU36: 9948.202277 | CV36: 85225.39879 | CW36: 84197.64785 | CX36: 163959.3143 | CY36: 98415.55972 | CZ36: 72827.12078 | DA36: 703986.5317 | DB36: 38451.36339 | DC36: 404640.2251 | DD36: 11966.42791 | DE36: 285290.2334 | DF36: 1725020.369 | DG36: 6477.03049 | DH36: 345238.8263 | DI36: 87439.68154 | DJ36: 5618605.486 | DK36: 128368.1462 | DL36: 791231.7656 | DM36: 763064.6061 | DN36: 797.179734 | DO36: 315729.9839 | DP36: 114392.278 | DQ36: 108816.0124 | DR36: 43028.83437 | DS36: 127385.5135 | DT36: 342980.2431 | DU36: 458002.8628 | DV36: 277289.5797 | DW36: 138492.1031 | DX36: 3204990.596 | DY36: 76167.75482 | DZ36: 145821.4658 | EA36: 380702.6972 | EB36: 254361.7382 | EC36: 6299556.008 | ED36: 7371.778143 | EE36: 319528.4557 | EF36: 129723.4125 | EG36: 126563.7603 | EH36: 14805.68884 | EI36: 706773.2599 | EJ36: 72923.44818 | EK36: 104162.9321 | EL36: 37376.14844 | EM36: 119091.7746 | EN36: 132601.3132 | EO36: 131555.3338 | EP36: 117790.4964 | EQ36: 265333.234 | ER36: 125390.7146 | ES36: 332477.2353 | ET36: 112018.335 | EU36: 89410.93641 | EV36: 91711.1945 | EW36: 416305.4555 | EX36: 139979.1562 | EY36: 105878.6607 | EZ36: 358375.7667 | FA36: 111061.4129 | FB36: 115725.0974 | FC36: 99470.31125 | FD36: 646.2362393 | FE36: 133086.7062 | FF36: 904142.4223 | FG36: 95223.38546 | FH36: 92871.39474 | FI36: 95316.23554 | FJ36: 101775.8259 | FK36: 111441.5829 | FL36: 218460.0762 | FM36: 145663.5628 | FN36: 94932.91483 | FO36: 24149.44219 | FP36: 4097.338597 | FQ36: 488928.0504 | FR36: 45415.78257 | FS36: 330823.3497 | FT36: 119828.3279 | FU36: 106608.2961 | FV36: 195731.8799 | FW36: 0.02541070898 | FX36: 49564.21234 | FY36: 69592.43826 | FZ36: 114358.2669 | GA36: 221953.4715 | GB36: 184337.4317 | GC36: 95374.26961 | GD36: 29647.58538 | GE36: 63039.08174 | GF36: 555599.9199 | GG36: 559410.3932 | GH36: 126571.0226 | GI36: 387779.423 | GJ36: 70379.87416 | GK36: 19707.25664 | GL36: 348415.9239 | GM36: 131105.4285 | GN36: 53850.72683 | GO36: 492041.5117 | GP36: 127929.6207 | GQ36: 91488.60837 | GR36: 156599.3592 | GS36: 626795.8108 | GT36: 584844.7734 | GU36: 249748.8025 | GV36: 9342464.954 | GW36: 2783772.752 | GX36: 2539286.415 | GY36: 8881471.109 | GZ36: 5237271.599 | HA36: 1217488.585 | HB36: 231325.9593 | HC36: 699061.0307 | HD36: 726523.9932 | HE36: 0.1441736037 | HF36: 413508.3309 | HG36: 324327.6547 | HH36: 921221.55 | HI36: 16937.74063 | HJ36: 2454034.36 | HK36: 689187.7188 | HL36: 93848.46099 | HM36: 103841.9878 | HN36: 62282.80249 | HO36: 66506.45019 | HP36: 88845.59983 | HQ36: 75697.76768 | HR36: 69563.37516 | HS36: 77661.42762 | HT36: 9.408757542 | HU36: 40376.70157 | HV36: 386.5858474 | HW36: 38048.05713 | HX36: 32855.68005 | HY36: 90020.91544 | HZ36: 141145.7992 | IA36: 134635.5123 | IB36: 112066.203 | IC36: 119597.6277 | ID36: 50386.55831 | IE36: 55216.0954 | IF36: 77822.54249 | IG36: 61338.74187 | IH36: 58327.4418 | II36: 103428.8276 | IJ36: 77509.27767 | IK36: 130449.4234 | IL36: 1542252.32 | IM36: 3655605.425 | IN36: 117068.3974 | IO36: 515236.0651 | IP36: 254343.5371 | IQ36: 247412.4271 | IR36: 119456.4382 | IS36: 171465.0184 | IT36: 163792.2876 | IU36: 178989.6109 | IV36: 283460.0687 | IW36: 1297828.462 | IX36: 93034.53791 | IY36: 347766.2838 | IZ36: 151479.1247 | JA36: 92864.94926 | JB36: 6.394663568e-05 | JC36: 77486.28862 | JD36: 95260.37363 | JE36: 2127702.624 | JF36: 4437415.795 | JG36: 202.4573499 | JH36: 717262.9193 | JI36: 275476.9612 | JJ36: 667711.8183 | JK36: 221583797.2
A37: =+MATCH(B37,RUT[EMPRESA],0) -> 240 | B37: PANGUIPULLI | C37: 1446043364 | D37: 1446043364 | F37: =IFERROR(INDEX($B$9:$B$511,MATCH(0,INDEX(COUNTIF($F$8:F36,$B$9:$B$511),0,0),0)),"") -> PANGUIPULLI | H37: 1446043364 | J37: LOS_GUINDOS | K37: 180979.0058 | L37: 96380.31245 | M37: 12685.94138 | N37: 413313.9668 | O37: 86658.13625 | P37: 44029.17616 | Q37: 265.4536826 | R37: 884.0825798 | S37: 6229.491031 | T37: 27843.03691 | U37: 2537.936851 | V37: 2921.769156 | W37: 2467.07601 | X37: 11693.13603 | Y37: 35183.5147 | Z37: 179703.9373 | AA37: 3447.341193 | AB37: 388.8210567 | AC37: 1336.23443 | AD37: 10656.32339 | AE37: 1115.832048 | AF37: 7199.080244 | AG37: 606.574439 | AH37: 11492.22896 | AI37: 32512.58186 | AJ37: 19743.11137 | AK37: 102.5724535 | AL37: 2872.641789 | AM37: 85454.69552 | AN37: 19976.40395 | AO37: 2166.435138 | AP37: 110872.925 | AQ37: 3192.8456 | AR37: 5793.541234 | AS37: 6639.594307 | AT37: 56140.51881 | AU37: 55521.15326 | AV37: 337.3249527 | AW37: 5.208523905 | AX37: 4199.38843 | AY37: 12543.04497 | AZ37: 49948.03357 | BA37: 10154.25543 | BB37: 163.2680616 | BC37: 23848.49055 | BD37: 7756.971345 | BE37: 534.662696 | BF37: 1025.672464 | BG37: 110765.6808 | BH37: 2549.895678 | BI37: 15704.83323 | BJ37: 69741.85773 | BK37: 32469.50866 | BL37: 7467.428494 | BM37: 44.59817235 | BN37: 90676.77722 | BO37: 6582.959066 | BP37: 353.8155061 | BQ37: 7040.839545 | BR37: 46827.76045 | BS37: 1983.979477 | BT37: 2043.670686 | BU37: 1548.30904 | BV37: 50036.09006 | BW37: 127227.4528 | BX37: 10813.64054 | BY37: 902.9727923 | BZ37: 1387.07924 | CA37: 50815.47055 | CB37: 14142.39261 | CC37: 556.3431279 | CD37: 6591.007546 | CE37: 9239.101949 | CF37: 4657.216846 | CG37: 734.8806939 | CH37: 8666.774254 | CI37: 59979.98901 | CJ37: 228.6406888 | CK37: 7105.991948 | CL37: 3002.777684 | CM37: 3172.750728 | CN37: 330.2924323 | CO37: 7402.468207 | CP37: 4414.609877 | CQ37: 99269.72647 | CR37: 12403.53329 | CS37: 19813.61162 | CT37: 1246.066658 | CU37: 197.2254544 | CV37: 1689.613614 | CW37: 1669.23821 | CX37: 3250.532044 | CY37: 1951.111663 | CZ37: 1443.814831 | DA37: 13956.69889 | DB37: 762.3073403 | DC37: 8022.087816 | DD37: 237.2372533 | DE37: 5655.946106 | DF37: 34198.93532 | DG37: 128.4086558 | DH37: 6844.441087 | DI37: 1733.512292 | DJ37: 111390.1778 | DK37: 2544.928748 | DL37: 15686.35621 | DM37: 15127.93563 | DN37: 15.80427608 | DO37: 6259.421334 | DP37: 2267.853869 | DQ37: 2157.303087 | DR37: 853.0567812 | DS37: 2525.447823 | DT37: 6799.664144 | DU37: 9080.014683 | DV37: 5497.331262 | DW37: 2745.638579 | DX37: 63539.69381 | DY37: 1510.043688 | DZ37: 2890.944923 | EA37: 7547.520685 | EB37: 5042.781401 | EC37: 124890.1824 | ED37: 146.1472388 | EE37: 6334.726932 | EF37: 2571.797221 | EG37: 2509.156373 | EH37: 293.5262702 | EI37: 14011.94643 | EJ37: 1445.724545 | EK37: 2065.054675 | EL37: 740.9909506 | EM37: 2361.022495 | EN37: 2628.852282 | EO37: 2608.115493 | EP37: 2335.224349 | EQ37: 5260.293889 | ER37: 2485.900464 | ES37: 6591.439538 | ET37: 2220.789888 | EU37: 1772.592884 | EV37: 1818.196043 | EW37: 8253.353759 | EX37: 2775.119758 | EY37: 2099.069399 | EZ37: 7104.884026 | FA37: 2201.818681 | FB37: 2294.277326 | FC37: 1972.022361 | FD37: 12.81178573 | FE37: 2638.475312 | FF37: 17924.83658 | FG37: 1887.826056 | FH37: 1841.197286 | FI37: 1889.666831 | FJ37: 2017.729732 | FK37: 2209.355643 | FL37: 4331.022492 | FM37: 2887.814459 | FN37: 1882.067407 | FO37: 478.7683823 | FP37: 81.23070323 | FQ37: 9693.113815 | FR37: 900.3785917 | FS37: 6558.650867 | FT37: 2375.624838 | FU37: 2113.534593 | FV37: 3880.430644 | FW37: 0.0005037732935 | FX37: 982.6221895 | FY37: 1379.686488 | FZ37: 2267.179591 | GA37: 4400.279875 | GB37: 3654.533023 | GC37: 1890.81737 | GD37: 587.7703666 | GE37: 1249.764651 | GF37: 11014.89934 | GG37: 11090.44287 | GH37: 2509.30035 | GI37: 7687.818442 | GJ37: 1395.29759 | GK37: 390.701007 | GL37: 6907.427796 | GM37: 2599.196014 | GN37: 1067.603349 | GO37: 9754.838918 | GP37: 2536.234877 | GQ37: 1813.78322 | GR37: 3104.619199 | GS37: 12426.37465 | GT37: 11594.68545 | GU37: 4951.328864 | GV37: 185216.5693 | GW37: 55188.95081 | GX37: 50341.95156 | GY37: 176077.2577 | GZ37: 103830.1436 | HA37: 24136.99809 | HB37: 4586.091654 | HC37: 13859.04967 | HD37: 14403.50937 | HE37: 0.002858275669 | HF37: 8197.900104 | HG37: 6429.872182 | HH37: 18263.43431 | HI37: 335.7946994 | HJ37: 48651.80947 | HK37: 13663.30893 | HL37: 1860.567855 | HM37: 2058.691879 | HN37: 1234.771236 | HO37: 1318.506047 | HP37: 1761.384953 | HQ37: 1500.726082 | HR37: 1379.110305 | HS37: 1539.656104 | HT37: 0.1865308355 | HU37: 800.4776234 | HV37: 7.664155523 | HW37: 754.3116986 | HX37: 651.3715995 | HY37: 1784.685862 | HZ37: 2798.24873 | IA37: 2669.180757 | IB37: 2221.738882 | IC37: 2371.051152 | ID37: 998.9253921 | IE37: 1094.672103 | IF37: 1542.850244 | IG37: 1216.055012 | IH37: 1156.355279 | II37: 2050.50088 | IJ37: 1536.639695 | IK37: 2586.190559 | IL37: 30575.51567 | IM37: 72473.23899 | IN37: 2320.908565 | IO37: 10214.67641 | IP37: 5042.420558 | IQ37: 4905.009671 | IR37: 2368.252037 | IS37: 3399.334395 | IT37: 3247.220699 | IU37: 3548.511215 | IV37: 5619.662659 | IW37: 25729.75508 | IX37: 1844.431638 | IY37: 6894.548527 | IZ37: 3003.109343 | JA37: 1841.069503 | JB37: 1.267757121e-06 | JC37: 1536.183932 | JD37: 1888.559355 | JE37: 42182.20591 | JF37: 87972.81382 | JG37: 4.013764671 | JH37: 14219.9064 | JI37: 5461.395672 | JJ37: 13237.54414 | JK37: 4392950.995
A38: =+MATCH(B38,RUT[EMPRESA],0) -> 171 | B38: HIDROPALOMA | C38: 27740098.13 | D38: 27740098.13 | F38: =IFERROR(INDEX($B$9:$B$511,MATCH(0,INDEX(COUNTIF($F$8:F37,$B$9:$B$511),0,0),0)),"") -> HIDROPALOMA | H38: 27740098.13 | J38: ERNC1 | K38: 4143475.304 | L38: 2206606.466 | M38: 290441.8918 | N38: 9462734.125 | O38: 1984019.339 | P38: 1008038.492 | Q38: 6077.504809 | R38: 20240.87998 | S38: 142622.8536 | T38: 637460.3248 | U38: 58105.51682 | V38: 66893.27464 | W38: 56483.17315 | X38: 267711.8274 | Y38: 805518.9805 | Z38: 4114282.886 | AA38: 78926.13309 | AB38: 8901.974232 | AC38: 30592.79908 | AD38: 243974.2256 | AE38: 25546.73407 | AF38: 164821.3895 | AG38: 13887.39095 | AH38: 263112.1035 | AI38: 744368.5492 | AJ38: 452014.2766 | AK38: 2348.374199 | AL38: 65768.51417 | AM38: 1956466.823 | AN38: 457355.4598 | AO38: 49600.06523 | AP38: 2538411.705 | AQ38: 73099.51137 | AR38: 132641.877 | AS38: 152012.0796 | AT38: 1285325.07 | AU38: 1271144.829 | AV38: 7722.982036 | AW38: 119.2480314 | AX38: 96144.09236 | AY38: 287170.3092 | AZ38: 1143549.456 | BA38: 232479.4879 | BB38: 3737.987055 | BC38: 546006.0475 | BD38: 177594.1859 | BE38: 12240.98711 | BF38: 23482.54985 | BG38: 2535956.372 | BH38: 58379.31157 | BI38: 359558.7694 | BJ38: 1596724.791 | BK38: 743382.3977 | BL38: 170965.1648 | BM38: 1021.065537 | BN38: 2076025.257 | BO38: 150715.428 | BP38: 8100.5297 | BQ38: 161198.5028 | BR38: 1072111.476 | BS38: 45422.78221 | BT38: 46789.39957 | BU38: 35448.20153 | BV38: 1145565.49 | BW38: 2912845.092 | BX38: 247575.968 | BY38: 20673.36733 | BZ38: 31756.88003 | CA38: 1163409.238 | CB38: 323787.0285 | CC38: 12737.35592 | CD38: 150899.6962 | CE38: 211527.2464 | CF38: 106625.9752 | CG38: 16824.93499 | CH38: 198423.9273 | CI38: 1373228.912 | CJ38: 5234.679257 | CK38: 162690.153 | CL38: 68747.94742 | CM38: 72639.4436 | CN38: 7561.973999 | CO38: 169477.913 | CP38: 101071.541 | CQ38: 2272758.977 | CR38: 283976.2194 | CS38: 453628.3646 | CT38: 28528.42739 | CU38: 4515.434241 | CV38: 38683.33928 | CW38: 38216.84879 | CX38: 74420.23006 | CY38: 44670.2807 | CZ38: 33055.82916 | DA38: 319535.6108 | DB38: 17452.86214 | DC38: 183663.9703 | DD38: 5431.495746 | DE38: 129491.6662 | DF38: 782977.2481 | DG38: 2939.888478 | DH38: 156702.0024 | DI38: 39688.39003 | DJ38: 2550254.095 | DK38: 58265.59478 | DL38: 359135.7421 | DM38: 346350.8234 | DN38: 361.8354922 | DO38: 143308.1014 | DP38: 51922.02519 | DQ38: 49390.98889 | DR38: 19530.55102 | DS38: 57819.58321 | DT38: 155676.844 | DU38: 207884.9778 | DV38: 125860.2136 | DW38: 62860.80309 | DX38: 1454727.585 | DY38: 34572.12455 | DZ38: 66187.56049 | EA38: 172798.8582 | EB38: 115453.3925 | EC38: 2859333.788 | ED38: 3346.009512 | EE38: 145032.2068 | EF38: 58880.74269 | EG38: 57446.59397 | EH38: 6720.220648 | EI38: 320800.4914 | EJ38: 33099.55163 | EK38: 47278.98139 | EL38: 16964.828 | EM38: 54055.10078 | EN38: 60187.006 | EO38: 59712.24168 | EP38: 53464.45779 | EQ38: 120433.294 | ER38: 56914.15497 | ES38: 150909.5866 | ET38: 50844.5055 | EU38: 40583.13176 | EV38: 41627.20624 | EW38: 188958.7542 | EX38: 63535.76832 | EY38: 48057.74116 | EZ38: 162664.7874 | FA38: 50410.16382 | FB38: 52526.98454 | FC38: 45149.02662 | FD38: 293.323071 | FE38: 60407.3232 | FF38: 410385.2675 | FG38: 43221.37038 | FH38: 42153.81475 | FI38: 43263.51452 | FJ38: 46195.48704 | FK38: 50582.72092 | FL38: 99157.82582 | FM38: 66115.88918 | FN38: 43089.52736 | FO38: 10961.29885 | FP38: 1859.75943 | FQ38: 221921.7502 | FR38: 20613.97366 | FS38: 150158.897 | FT38: 54389.41829 | FU38: 48388.91865 | FV38: 88841.62264 | FW38: 0.0115337809 | FX38: 22496.92309 | FY38: 31587.62457 | FZ38: 51906.58774 | GA38: 100743.4587 | GB38: 83669.74534 | GC38: 43289.85587 | GD38: 13456.87577 | GE38: 28613.09212 | GF38: 252183.7447 | GG38: 253913.2975 | GH38: 57449.8903 | GI38: 176010.9451 | GJ38: 31945.03739 | GK38: 8945.015287 | GL38: 158144.0696 | GM38: 59508.03215 | GN38: 24442.54842 | GO38: 223334.9331 | GP38: 58066.5505 | GQ38: 41526.17563 | GR38: 71079.58695 | GS38: 284499.1675 | GT38: 265457.8226 | GU38: 113359.6064 | GV38: 4240493.405 | GW38: 1263539.125 | GX38: 1152568.123 | GY38: 4031250.837 | GZ38: 2377168.744 | HA38: 552611.3654 | HB38: 104997.5793 | HC38: 317299.953 | HD38: 329765.2404 | HE38: 0.06543960495 | HF38: 187689.1547 | HG38: 147210.5368 | HH38: 418137.3895 | HI38: 7687.947217 | HJ38: 1113872.684 | HK38: 312818.5111 | HL38: 42597.29974 | HM38: 47133.30655 | HN38: 28269.82114 | HO38: 30186.91157 | HP38: 40326.5286 | HQ38: 34358.79998 | HR38: 31574.43299 | HS38: 35250.09441 | HT38: 4.270583246 | HU38: 18326.76254 | HV38: 175.4691877 | HW38: 17269.80365 | HX38: 14913.01228 | HY38: 40859.99789 | HZ38: 64065.30113 | IA38: 61110.31774 | IB38: 50866.23252 | IC38: 54284.70472 | ID38: 22870.1814 | IE38: 25062.2817 | IF38: 35323.22356 | IG38: 27841.31722 | IH38: 26474.5047 | II38: 46945.77539 | IJ38: 35181.03439 | IK38: 59210.27505 | IL38: 700019.8367 | IM38: 1659259.175 | IN38: 53136.70102 | IO38: 233862.8132 | IP38: 115445.1311 | IQ38: 112299.1385 | IR38: 54220.61959 | IS38: 77827.02779 | IT38: 74344.41753 | IU38: 81242.39891 | IV38: 128660.9645 | IW38: 589077.1932 | IX38: 42227.86453 | IY38: 157849.2015 | IZ38: 68755.5407 | JA38: 42150.88918 | JB38: 2.902502586e-05 | JC38: 35170.59979 | JD38: 43238.15911 | JE38: 965752.5063 | JF38: 2014118.598 | JG38: 91.89427645 | JH38: 325561.69 | JI38: 125037.476 | JJ38: 303070.7181 | JK38: 100575665.6
A39: =+MATCH(B39,RUT[EMPRESA],0) -> 106 | B39: EMELDA | C39: -3126914.415 | D39: -3126914.415 | F39: =IFERROR(INDEX($B$9:$B$511,MATCH(0,INDEX(COUNTIF($F$8:F38,$B$9:$B$511),0,0),0)),"") -> EMELDA | G39: -3126914.415 | J39: ANDES_GENERACION | K39: =$JK39*K$61/$JK$61 -> 106588.2882 | L39: 56763.55926 | M39: 7471.434438 | N39: 243422.8657 | O39: 51037.64584 | P39: 25931.15427 | Q39: 156.3399771 | R39: 520.6838683 | S39: 3668.882932 | T39: 16398.2647 | U39: =$JK39*U$61/$JK$61 -> 1494.727764 | V39: 1720.78729 | W39: 1452.993996 | X39: 6886.717869 | Y39: 20721.4676 | Z39: 105837.3317 | AA39: 2030.324982 | AB39: 228.9976712 | AC39: 786.9804564 | AD39: 6276.083038 | AE39: =$JK39*AE$61/$JK$61 -> 657.1736174 | AF39: 4239.926264 | AG39: 357.2443712 | AH39: 6768.392874 | AI39: 19148.41133 | AJ39: 11627.78211 | AK39: 60.41044476 | AL39: 1691.853536 | AM39: 50328.87475 | AN39: 11765.18067 | AO39: =$JK39*AO$61/$JK$61 -> 1275.930387 | AP39: 65299.03971 | AQ39: 1880.438814 | AR39: 3412.128606 | AS39: 3910.414849 | AT39: 33064.17655 | AU39: 32699.3988 | AV39: 198.6688407 | AW39: 3.067580379 | AX39: 2473.246122 | AY39: =$JK39*AY$61/$JK$61 -> 7387.275038 | AZ39: 29417.08832 | BA39: 5980.388164 | BB39: 96.15735883 | BC39: 14045.66112 | BD39: 4568.498395 | BE39: 314.8916709 | BF39: 604.0737806 | BG39: 65235.87783 | BH39: 1501.770961 | BI39: =$JK39*BI$61/$JK$61 -> 9249.422511 | BJ39: 41074.73792 | BK39: 19123.04321 | BL39: 4397.971008 | BM39: 26.26626678 | BN39: 53404.44005 | BO39: 3877.059304 | BP39: 208.3810162 | BQ39: 4146.72979 | BR39: 27579.39135 | BS39: =$JK39*BS$61/$JK$61 -> 1168.472417 | BT39: 1203.627786 | BU39: 911.8826214 | BV39: 29468.94953 | BW39: 74931.10239 | BX39: 6368.735589 | BY39: 531.8093323 | BZ39: 816.9257044 | CA39: 29927.9687 | CB39: 8329.217044 | CC39: =$JK39*CC$61/$JK$61 -> 327.6604455 | CD39: 3881.799488 | CE39: 5441.404969 | CF39: 2742.885946 | CG39: 432.8108383 | CH39: 5104.330351 | CI39: 35325.44744 | CJ39: 134.6588215 | CK39: 4185.10155 | CL39: 1768.497577 | CM39: =$JK39*CM$61/$JK$61 -> 1868.603861 | CN39: 194.5270105 | CO39: 4359.712395 | CP39: 2600.001629 | CQ39: 58465.29087 | CR39: 7305.109093 | CS39: 11669.3035 | CT39: 733.8757969 | CU39: 116.1566972 | CV39: 995.1044991 | CW39: =$JK39*CW$61/$JK$61 -> 983.1043254 | CX39: 1914.413469 | CY39: 1149.11479 | CZ39: 850.3403513 | DA39: 8219.852003 | DB39: 448.9638681 | DC39: 4724.639769 | DD39: 139.7218015 | DE39: 3331.091421 | DF39: 20141.59575 | DG39: =$JK39*DG$61/$JK$61 -> 75.62677643 | DH39: 4031.060155 | DI39: 1020.958796 | DJ39: 65603.67774 | DK39: 1498.845668 | DL39: 9238.540399 | DM39: 8909.656433 | DN39: 9.307989767 | DO39: 3686.5105 | DP39: 1335.661342 | DQ39: =$JK39*DQ$61/$JK$61 -> 1270.55203 | DR39: 502.4111038 | DS39: 1487.372302 | DT39: 4004.688601 | DU39: 5347.709905 | DV39: 3237.674593 | DW39: 1617.054503 | DX39: 37421.9494 | DY39: 889.3460938 | DZ39: 1702.633238 | EA39: =$JK39*EA$61/$JK$61 -> 4445.141615 | EB39: 2969.965688 | EC39: 73554.55786 | ED39: 86.07398381 | EE39: 3730.862025 | EF39: 1514.66996 | EG39: 1477.777389 | EH39: 172.8734366 | EI39: 8252.390259 | EJ39: 851.4650844 | EK39: =$JK39*EK$61/$JK$61 -> 1216.22197 | EL39: 436.4094977 | EM39: 1390.533366 | EN39: 1548.27276 | EO39: 1536.059747 | EP39: 1375.339448 | EQ39: 3098.070512 | ER39: 1464.080731 | ES39: 3882.053911 | ET39: 1307.942828 | EU39: =$JK39*EU$61/$JK$61 -> 1043.975462 | EV39: 1070.83362 | EW39: 4860.844744 | EX39: 1634.417558 | EY39: 1236.255073 | EZ39: 4184.449036 | FA39: 1296.769662 | FB39: 1351.22354 | FC39: 1161.430227 | FD39: 7.545550954 | FE39: =$JK39*FE$61/$JK$61 -> 1553.940281 | FF39: 10556.90211 | FG39: 1111.842486 | FH39: 1084.380291 | FI39: 1112.926618 | FJ39: 1188.349761 | FK39: 1301.208585 | FL39: 2550.772514 | FM39: 1700.789539 | FN39: 1108.450908 | FO39: =$JK39*FO$61/$JK$61 -> 281.9724978 | FP39: 47.84113809 | FQ39: 5708.79702 | FR39: 530.2814678 | FS39: 3862.742895 | FT39: 1399.133473 | FU39: 1244.774405 | FV39: 2285.394695 | FW39: 0.0002966992374 | FX39: 578.7191541 | FY39: =$JK39*FY$61/$JK$61 -> 812.5717145 | FZ39: 1335.264223 | GA39: 2591.561919 | GB39: 2152.351415 | GC39: 1113.604232 | GD39: 346.1696398 | GE39: 736.0537439 | GF39: 6487.267738 | GG39: 6531.759393 | GH39: 1477.862185 | GI39: =$JK39*GI$61/$JK$61 -> 4527.770523 | GJ39: 821.7659337 | GK39: 230.1048752 | GL39: 4068.156422 | GM39: 1530.806585 | GN39: 628.7691382 | GO39: 5745.15026 | GP39: 1493.725379 | GQ39: 1068.234671 | GR39: 1828.477533 | GS39: =$JK39*GS$61/$JK$61 -> 7318.561604 | GT39: 6828.73502 | GU39: 2916.104361 | GV39: 109084.0177 | GW39: 32503.74688 | GX39: 29649.08785 | GY39: 103701.3846 | GZ39: 61151.16626 | HA39: 14215.57875 | HB39: 2700.996488 | HC39: =$JK39*HC$61/$JK$61 -> 8162.341117 | HD39: 8483.002773 | HE39: 0.001683392554 | HF39: 4828.185099 | HG39: 3786.898189 | HH39: 10756.32056 | HI39: 197.7675921 | HJ39: 28653.67211 | HK39: 8047.058851 | HL39: 1095.788663 | HM39: =$JK39*HM$61/$JK$61 -> 1212.474576 | HN39: 727.2233143 | HO39: 776.5392564 | HP39: 1037.374508 | HQ39: 883.8584536 | HR39: 812.2323694 | HS39: 906.7864407 | HT39: 0.1098580598 | HU39: 471.4444046 | HV39: 4.513834156 | HW39: =$JK39*HW$61/$JK$61 -> 444.2548039 | HX39: 383.6278328 | HY39: 1051.097668 | HZ39: 1648.039455 | IA39: 1572.024372 | IB39: 1308.501742 | IC39: 1396.439783 | ID39: 588.3209886 | IE39: 644.7113858 | IF39: 908.667642 | IG39: =$JK39*IG$61/$JK$61 -> 716.2003213 | IH39: 681.0399315 | II39: 1207.650456 | IJ39: 905.0099151 | IK39: 1523.146972 | IL39: 18007.56868 | IM39: 42683.39552 | IN39: 1366.908112 | IO39: 6015.973333 | IP39: 2969.753168 | IQ39: =$JK39*IQ$61/$JK$61 -> 2888.824492 | IR39: 1394.791233 | IS39: 2002.051192 | IT39: 1912.46324 | IU39: 2089.909459 | IV39: 3309.722144 | IW39: 15153.63917 | IX39: 1086.285175 | IY39: 4060.571127 | IZ39: 1768.692909 | JA39: =$JK39*JA$61/$JK$61 -> 1084.305033 | JB39: 7.466504794e-07 | JC39: 904.7414916 | JD39: 1112.274366 | JE39: 24843.37397 | JF39: 51811.9303 | JG39: 2.363922289 | JH39: 8374.86909 | JI39: 3216.510188 | JJ39: 7796.303026 | JK39: 2587245.547
A40: =+MATCH(B40,RUT[EMPRESA],0) -> 300 | B40: SWO | C40: -29117.80107 | D40: -29117.80107 | F40: =IFERROR(INDEX($B$9:$B$511,MATCH(0,INDEX(COUNTIF($F$8:F39,$B$9:$B$511),0,0),0)),"") -> SWO | G40: -29117.80107 | J40: EOLICA_ESPERANZA | K40: 1875700.314 | L40: 998903.6104 | M40: 131479.4726 | N40: 4283663.367 | O40: 898141.1554 | P40: 456326.6285 | Q40: 2751.211687 | R40: 9162.797448 | S40: 64563.61184 | T40: 288570.4496 | U40: 26303.65289 | V40: 30281.76278 | W40: 25569.23786 | X40: 121189.852 | Y40: 364648.5363 | Z40: 1862485.265 | AA40: 35728.88982 | AB40: 4029.814259 | AC40: 13848.98392 | AD40: 110444.1315 | AE40: 11564.69234 | AF40: 74612.61605 | AG40: 6286.651099 | AH40: 119107.6135 | AI40: 336966.488 | AJ40: 204621.3042 | AK40: 1063.08012 | AL40: 29772.59755 | AM40: 885668.4702 | AN40: 207039.1921 | AO40: 22453.33955 | AP40: 1149107.762 | AQ40: 33091.24983 | AR40: 60045.34649 | AS40: 68813.999 | AT40: 581850.8522 | AU40: 575431.6316 | AV40: 3496.098991 | AW40: 53.98211732 | AX40: 43523.24824 | AY40: 129998.4674 | AZ40: 517670.7753 | BA40: 105240.6052 | BB40: 1692.14077 | BC40: 247170.223 | BD40: 80394.70392 | BE40: 5541.344325 | BF40: 10630.26153 | BG40: 1147996.263 | BH40: 26427.59641 | BI40: 162767.8331 | BJ40: 722817.6763 | BK40: 336520.0694 | BL40: 77393.82758 | BM40: 462.2238115 | BN40: 939791.1031 | BO40: 68227.02076 | BP40: 3667.010175 | BQ40: 72972.5798 | BR40: 485331.6803 | BS40: 20562.3349 | BT40: 21180.98577 | BU40: 16046.96489 | BV40: 518583.4092 | BW40: 1318609.151 | BX40: 112074.596 | BY40: 9358.579149 | BZ40: 14375.94904 | CA40: 526661.0546 | CB40: 146574.4059 | CC40: 5766.044382 | CD40: 68310.43672 | CE40: 95755.7831 | CF40: 48268.2677 | CG40: 7616.441157 | CH40: 89824.07168 | CI40: 621643.8405 | CJ40: 2369.674924 | CK40: 73647.83151 | CL40: 31121.35034 | CM40: 32882.9828 | CN40: 3423.212633 | CO40: 76720.56699 | CP40: 45753.84363 | CQ40: 1028850.039 | CR40: 128552.5422 | CS40: 205351.982 | CT40: 12914.46824 | CU40: 2044.08155 | CV40: 17511.47197 | CW40: 17300.29746 | CX40: 33689.12293 | CY40: 20221.68672 | CZ40: 14963.96734 | DA40: 144649.8414 | DB40: 7900.696056 | DC40: 83142.42068 | DD40: 2458.771328 | DE40: 58619.28481 | DF40: 354444.1712 | DG40: 1330.85136 | DH40: 70937.0694 | DI40: 17966.44608 | DJ40: 1154468.666 | DK40: 26376.11821 | DL40: 162576.3338 | DM40: 156788.7584 | DN40: 163.7984775 | DO40: 64873.8151 | DP40: 23504.46227 | DQ40: 22358.69327 | DR40: 8841.24026 | DS40: 26174.21426 | DT40: 70472.99278 | DU40: 94106.97288 | DV40: 56975.37086 | DW40: 28456.3125 | DX40: 658537.2878 | DY40: 15650.37562 | DZ40: 29962.29466 | EA40: 78223.91805 | EB40: 52264.33096 | EC40: 1294385.242 | ED40: 1514.697357 | EE40: 65654.29643 | EF40: 26654.5881 | EG40: 26005.36662 | EH40: 3042.161243 | EI40: 145222.4373 | EJ40: 14983.75997 | EK40: 21402.61344 | EL40: 7679.769001 | EM40: 24470.07936 | EN40: 27245.91744 | EO40: 27030.99747 | EP40: 24202.70254 | EQ40: 54518.67113 | ER40: 25764.33803 | ES40: 68314.91396 | ET40: 23016.68236 | EU40: 18371.48466 | EV40: 18844.12434 | EW40: 85539.30422 | EX40: 28761.86096 | EY40: 21755.14841 | EZ40: 73636.34881 | FA40: 22820.06122 | FB40: 23778.31993 | FC40: 20438.40911 | FD40: 132.783747 | FE40: 27345.65233 | FF40: 185776.3637 | FG40: 19565.78284 | FH40: 19082.51353 | FI40: 19584.86097 | FJ40: 20912.12887 | FK40: 22898.1757 | FL40: 44887.52831 | FM40: 29929.84994 | FN40: 19506.09913 | FO40: 4962.045189 | FP40: 841.8902229 | FQ40: 100461.2471 | FR40: 9331.692367 | FS40: 67975.08603 | FT40: 24621.42078 | FU40: 21905.06839 | FV40: 40217.51 | FW40: 0.005221200772 | FX40: 10184.08042 | FY40: 14299.32918 | FZ40: 23497.47393 | GA40: 45605.32481 | GB40: 37876.26475 | GC40: 19596.78538 | GD40: 6091.76217 | GE40: 12952.79492 | GF40: 114160.4799 | GG40: 114943.4272 | GH40: 26006.85883 | GI40: 79677.99027 | GJ40: 14461.12557 | GK40: 4049.298415 | GL40: 71589.87546 | GM40: 26938.55433 | GN40: 11064.84108 | GO40: 101100.9777 | GP40: 26286.01331 | GQ40: 18798.38902 | GR40: 32176.85488 | GS40: 128789.2744 | GT40: 120169.4917 | GU40: 51316.49974 | GV40: 1919619.215 | GW40: 571988.6232 | GX40: 521753.4151 | GY40: 1824897.678 | GZ40: 1076115.056 | HA40: 250160.3692 | HB40: 47531.11289 | HC40: 143637.7866 | HD40: 149280.6689 | HE40: 0.02962370439 | HF40: 84964.57216 | HG40: 66640.39962 | HH40: 189285.654 | HI40: 3480.239159 | HJ40: 504236.466 | HK40: 141609.093 | HL40: 19283.27373 | HM40: 21336.66823 | HN40: 12797.40037 | HO40: 13665.24363 | HP40: 18255.32356 | HQ40: 15553.80621 | HR40: 14293.35751 | HS40: 15957.28424 | HT40: 1.933240516 | HU40: 8296.300021 | HV40: 79.43274335 | HW40: 7817.827728 | HX40: 6750.93726 | HY40: 18496.81855 | HZ40: 29001.57395 | IA40: 27663.88931 | IB40: 23026.51791 | IC40: 24574.01824 | ID40: 10353.04986 | IE40: 11345.38671 | IF40: 15990.38891 | IG40: 12603.42191 | IH40: 11984.6827 | II40: 21251.77519 | IJ40: 15926.02161 | IK40: 26803.76335 | IL40: 316890.3713 | IM40: 751126.2233 | IN40: 24054.33108 | IO40: 105866.8195 | IP40: 52260.59112 | IQ40: 50836.43895 | IR40: 24545.00769 | IS40: 35231.33837 | IT40: 33654.80353 | IU40: 36777.43488 | IV40: 58243.23637 | IW40: 266668.0009 | IX40: 19116.03496 | IY40: 71456.3923 | IZ40: 31124.78772 | JA40: 19081.18916 | JB40: 1.313927226e-05 | JC40: 15921.298 | JD40: 19573.38289 | JE40: 437184.2829 | JF40: 911766.72 | JG40: 41.59940884 | JH40: 147377.7733 | JI40: 56602.92768 | JJ40: 137196.3869 | JK40: 45529366.92
A41: =+MATCH(B41,RUT[EMPRESA],0) -> 131 | B41: GEN. INDUSTRIAL | C41: 0 | D41: 0 | F41: =IFERROR(INDEX($B$9:$B$511,MATCH(0,INDEX(COUNTIF($F$8:F40,$B$9:$B$511),0,0),0)),"") -> GEN. INDUSTRIAL | J41: KDM_ENERGIA | K41: 15844506.41 | L41: 8437986.888 | M41: 1110639.76 | N41: 36185168.36 | O41: 7586821.404 | P41: 3854704.366 | Q41: 23240.16842 | R41: 77400.42574 | S41: 545384.8644 | T41: 2437626.258 | U41: 222193.4888 | V41: 255797.5711 | W41: 215989.7027 | X41: 1023720.779 | Y41: 3080276.751 | Z41: 15732875.61 | AA41: 301810.806 | AB41: 34040.8419 | AC41: 116985.8067 | AD41: 932949.0093 | AE41: 97689.82845 | AF41: 630271.2988 | AG41: 53104.9032 | AH41: 1006131.593 | AI41: 2846439.614 | AJ41: 1728486.977 | AK41: 8980.101801 | AL41: 251496.5259 | AM41: 7481461.535 | AN41: 1748911.477 | AO41: 189668.9358 | AP41: 9706798.657 | AQ41: 279530.0059 | AR41: 507217.9548 | AS41: 581288.9404 | AT41: 4915038.659 | AU41: 4860813.908 | AV41: 29532.41648 | AW41: 456.0003522 | AX41: 367651.6874 | AY41: 1098129.341 | AZ41: 4372893.609 | BA41: 888993.5297 | BB41: 14293.93335 | BC41: 2087908.261 | BD41: 679114.0311 | BE41: 46809.11178 | BF41: 89796.45931 | BG41: 9697409.551 | BH41: 223240.4705 | BI41: 1374940.312 | BJ41: 6105820.433 | BK41: 2842668.605 | BL41: 653764.8833 | BM41: 3904.519335 | BN41: 7938648.857 | BO41: 576330.5894 | BP41: 30976.1457 | BQ41: 616417.5053 | BR41: 4099717.242 | BS41: 173695.1498 | BT41: 178921.0474 | BU41: 135552.6979 | BV41: 4380602.855 | BW41: 11138618.99 | BX41: 946721.9478 | BY41: 79054.24239 | BZ41: 121437.212 | CA41: 4448836.731 | CB41: 1238150.41 | CC41: 48707.20897 | CD41: 577035.2248 | CE41: 808872.8821 | CF41: 407734.0453 | CG41: 64337.97009 | CH41: 758766.2424 | CI41: 5251179.914 | CJ41: 20017.23262 | CK41: 622121.5242 | CL41: 262889.7757 | CM41: 277770.7227 | CN41: 28916.72731 | CO41: 648077.6839 | CP41: 386494.0807 | CQ41: 8690951.804 | CR41: 1085915.252 | CS41: 1734659.194 | CT41: 109091.7207 | CU41: 17266.86453 | CV41: 147923.7529 | CW41: 146139.9094 | CX41: 284580.3885 | CY41: 170817.6101 | CZ41: 126404.3486 | DA41: 1221893.136 | DB41: 66739.14183 | DC41: 702324.677 | DD41: 20769.85208 | DE41: 495171.6577 | DF41: 2994077.945 | DG41: 11242.03197 | DH41: 599223.0434 | DI41: 151767.0323 | DJ41: 9752083.55 | DK41: 222805.6214 | DL41: 1373322.67 | DM41: 1324433.583 | DN41: 1383.646421 | DO41: 548005.2284 | DP41: 198548.0304 | DQ41: 188869.4351 | DR41: 74684.15231 | DS41: 221100.0886 | DT41: 595302.8729 | DU41: 794944.9726 | DV41: 481285.1082 | DW41: 240377.5392 | DX41: 5562828.026 | DY41: 132202.6098 | DZ41: 253098.9446 | EA41: 660776.8637 | EB41: 441489.7842 | EC41: 10933993.62 | ED41: 12795.02477 | EE41: 554598.148 | EF41: 225157.9257 | EG41: 219673.7906 | EH41: 25697.89158 | EI41: 1226729.995 | EJ41: 126571.5419 | EK41: 180793.1913 | EL41: 64872.91612 | EM41: 206704.8378 | EN41: 230153.0315 | EO41: 228337.5492 | EP41: 204446.2394 | EQ41: 460532.7555 | ER41: 217637.7622 | ES41: 577073.0451 | ET41: 194427.6324 | EU41: 155188.4937 | EV41: 159180.9985 | EW41: 722571.7476 | EX41: 242958.5829 | EY41: 183771.1418 | EZ41: 622024.5269 | FA41: 192766.7248 | FB41: 200861.3741 | FC41: 172648.3179 | FD41: 1121.657289 | FE41: 230995.5169 | FF41: 1569299.084 | FG41: 165277.0271 | FH41: 161194.7312 | FI41: 165438.1848 | FJ41: 176649.9464 | FK41: 193426.5772 | FL41: 379176.1001 | FM41: 252824.8759 | FN41: 164772.8639 | FO41: 41915.6281 | FP41: 7111.655807 | FQ41: 848621.1053 | FR41: 78827.12307 | FS41: 574202.4342 | FT41: 207983.2564 | FU41: 185037.5531 | FV41: 339727.2955 | FW41: 0.04410477967 | FX41: 86027.45665 | FY41: 120789.985 | FZ41: 198488.9981 | GA41: 385239.5054 | GB41: 319950.2154 | GC41: 165538.9132 | GD41: 51458.62802 | GE41: 109415.4757 | GF41: 964341.9267 | GG41: 970955.677 | GH41: 219686.3956 | GI41: 673059.7729 | GJ41: 122156.7193 | GK41: 34205.42941 | GL41: 604737.4582 | GM41: 227556.6589 | GN41: 93467.46068 | GO41: 854025.068 | GP41: 222044.4829 | GQ41: 158794.6609 | GR41: 271805.8847 | GS41: 1087914.987 | GT41: 1015101.542 | GU41: 433483.2184 | GV41: 16215500.27 | GW41: 4831729.961 | GX41: 4407380.681 | GY41: 15415363.92 | GZ41: 9090211.145 | HA41: 2113166.769 | HB41: 401507.1156 | HC41: 1213344.058 | HD41: 1261010.886 | HE41: 0.2502387884 | HF41: 717716.8431 | HG41: 562928.0066 | HH41: 1598942.931 | HI41: 29398.44454 | HJ41: 4259410.662 | HK41: 1196207.179 | HL41: 162890.6025 | HM41: 180236.1358 | HN41: 108102.8193 | HO41: 115433.7069 | HP41: 154207.2521 | HQ41: 131386.864 | HR41: 120739.5409 | HS41: 134795.1432 | HT41: 16.33056279 | HU41: 70080.90677 | HV41: 670.9881113 | HW41: 66039.13248 | HX41: 57026.84372 | HY41: 156247.2202 | HZ41: 244983.4981 | IA41: 233683.7437 | IB41: 194510.7157 | IC41: 207582.8353 | ID41: 87454.78352 | IE41: 95837.29932 | IF41: 135074.7865 | IG41: 106464.2351 | IH41: 101237.5913 | II41: 179519.0231 | IJ41: 134531.06 | IK41: 226418.0461 | IL41: 2676851.67 | IM41: 6344949.76 | IN41: 203192.9088 | IO41: 894283.3177 | IP41: 441458.1928 | IQ41: 429428.0257 | IR41: 207337.776 | IS41: 297607.8654 | IT41: 284290.484 | IU41: 310668.1265 | IV41: 491995.0831 | IW41: 2252610.834 | IX41: 161477.895 | IY41: 603609.8928 | IZ41: 262918.8121 | JA41: 161183.5439 | JB41: 0.0001109906961 | JC41: 134491.1585 | JD41: 165341.2266 | JE41: 3693004.218 | JF41: 7701919.933 | JG41: 351.4005382 | JH41: 1244936.655 | JI41: 478138.9881 | JJ41: 1158931.955 | JK41: 384597870.2
A42: =+MATCH(B42,RUT[EMPRESA],0) -> 230 | B42: NUEVA DEGAN | C42: -5965844.994 | D42: -5965844.994 | F42: =IFERROR(INDEX($B$9:$B$511,MATCH(0,INDEX(COUNTIF($F$8:F41,$B$9:$B$511),0,0),0)),"") -> NUEVA DEGAN | G42: -5965844.994 | J42: RAGSA | K42: 19506.94333 | L42: 10388.41652 | M42: 1367.362687 | N42: 44549.32268 | O42: 9340.505245 | P42: 4745.714236 | Q42: 28.61210294 | R42: 95.29143288 | S42: 671.4498622 | T42: 3001.080378 | U42: 273.553223 | V42: 314.9248449 | W42: 265.9154398 | X42: 1260.352497 | Y42: 3792.278692 | Z42: 19369.50922 | AA42: 371.573979 | AB42: 41.90933797 | AC42: 144.0269229 | AD42: 1148.598952 | AE42: 120.2707045 | AF42: 775.9576848 | AG42: 65.38003209 | AH42: 1238.697594 | AI42: 3504.390407 | AJ42: 2128.02448 | AK42: 11.05584058 | AL42: 309.6296188 | AM42: 9210.79158 | AN42: 2153.170076 | AO42: 233.5106621 | AP42: 11950.51247 | AQ42: 344.143001 | AR42: 624.4607214 | AS42: 715.6531184 | AT42: 6051.143414 | AU42: 5984.384682 | AV42: 36.35879591 | AW42: 0.5614042369 | AX42: 452.6338939 | AY42: 1351.960501 | AZ42: 5383.682245 | BA42: 1094.483221 | BB42: 17.59795734 | BC42: 2570.525524 | BD42: 836.0903508 | BE42: 57.62897672 | BF42: 110.5527934 | BG42: 11938.95308 | BH42: 274.8422131 | BI42: 1692.755966 | BJ42: 7517.172837 | BK42: 3499.747734 | BL42: 804.8817807 | BM42: 4.807043871 | BN42: 9773.657153 | BO42: 709.548651 | BP42: 38.13624125 | BQ42: 758.9016051 | BR42: 5047.361518 | BS42: 213.8445564 | BT42: 220.2784134 | BU42: 166.8855267 | BV42: 5393.173472 | BW42: 13713.2962 | BX42: 1165.555487 | BY42: 97.32752708 | BZ42: 149.5072647 | CA42: 5477.17952 | CB42: 1524.347258 | CC42: 59.96581659 | CD42: 710.4161619 | CE42: 995.8427903 | CF42: 501.9812364 | CG42: 79.20960769 | CH42: 934.1540665 | CI42: 6464.98328 | CJ42: 24.64418975 | CK42: 765.9241004 | CL42: 323.6564034 | CM42: 341.9770617 | CN42: 35.60079099 | CO42: 797.8799926 | CP42: 475.8316817 | CQ42: 10699.85394 | CR42: 1336.923141 | CS42: 2135.623396 | CT42: 134.3081292 | CU42: 21.25807767 | CV42: 182.1161348 | CW42: 179.9199582 | CX42: 350.360773 | CY42: 210.3018771 | CZ42: 155.6225484 | DA42: 1504.332135 | DB42: 82.16580713 | DC42: 864.6661071 | DD42: 25.57077621 | DE42: 609.6299384 | DF42: 3686.155144 | DG42: 13.84061295 | DH42: 737.7326658 | DI42: 186.8477832 | DJ42: 12006.2649 | DK42: 274.3068492 | DL42: 1690.764408 | DM42: 1630.574672 | DN42: 1.70347448 | DO42: 674.6759199 | DP42: 244.4421479 | DQ42: 232.5263579 | DR42: 91.9472964 | DS42: 272.2070847 | DT42: 732.906353 | DU42: 978.6954628 | DV42: 592.5335312 | DW42: 295.9404928 | DX42: 6848.668446 | DY42: 162.7610701 | DZ42: 311.6024344 | EA42: 813.5145711 | EB42: 543.5395701 | EC42: 13461.37194 | ED42: 15.752578 | EE42: 682.7927843 | EF42: 277.2028856 | EG42: 270.4510998 | EH42: 31.63792559 | EI42: 1510.287029 | EJ42: 155.8283881 | EK42: 222.583301 | EL42: 79.8682058 | EM42: 254.4843906 | EN42: 283.3526036 | EO42: 281.1174749 | EP42: 251.7037202 | EQ42: 566.9842993 | ER42: 267.9444462 | ES42: 710.4627244 | ET42: 239.3693252 | EU42: 191.060111 | EV42: 195.975478 | EW42: 889.5932616 | EX42: 299.1181415 | EY42: 226.2496008 | EZ42: 765.8046824 | FA42: 237.324501 | FB42: 247.2902179 | FC42: 212.5557507 | FD42: 1.380926904 | FE42: 284.3898284 | FF42: 1932.040514 | FG42: 203.4805956 | FH42: 198.4546824 | FI42: 203.6790047 | FJ42: 217.4823503 | FK42: 238.1368774 | FL42: 466.8221594 | FM42: 311.2650152 | FN42: 202.8598958 | FO42: 51.60437068 | FP42: 8.755505742 | FQ42: 1044.778763 | FR42: 97.04790943 | FS42: 706.9285755 | FT42: 256.058314 | FU42: 227.8087414 | FV42: 418.2548154 | FW42: 5.429954178e-05 | FX42: 105.9125907 | FY42: 148.710432 | FZ42: 244.3694704 | GA42: 474.2871129 | GB42: 393.9062891 | GC42: 203.8030164 | GD42: 63.35322256 | GE42: 134.7067197 | GF42: 1187.248301 | GG42: 1195.390811 | GH42: 270.4666185 | GI42: 828.6366587 | GJ42: 150.3930851 | GK42: 42.11196966 | GL42: 744.5217304 | GM42: 280.1560829 | GN42: 115.0723419 | GO42: 1051.431845 | GP42: 273.3697746 | GQ42: 195.499839 | GR42: 334.6334593 | GS42: 1339.385113 | GT42: 1249.740936 | GU42: 533.6822971 | GV42: 19963.69194 | GW42: 5948.578019 | GX42: 5426.140959 | GY42: 18978.60512 | GZ42: 11191.40156 | HA42: 2601.622502 | HB42: 494.3149599 | HC42: 1493.806949 | HD42: 1552.491903 | HE42: 0.0003080811569 | HF42: 883.6161522 | HG42: 693.0480788 | HH42: 1968.536497 | HI42: 36.19385653 | HJ42: 5243.967863 | HK42: 1472.708903 | HL42: 200.5425521 | HM42: 221.8974828 | HN42: 133.0906445 | HO42: 142.1160572 | HP42: 189.8520566 | HQ42: 161.7567657 | HR42: 148.6483277 | HS42: 165.9528641 | HT42: 0.02010535101 | HU42: 86.28001667 | HV42: 0.8260861352 | HW42: 81.30399154 | HX42: 70.20852403 | HY42: 192.3635607 | HZ42: 301.6111131 | IA42: 287.6994353 | IB42: 239.4716132 | IC42: 255.5653361 | ID42: 107.6698423 | IE42: 117.9899657 | IF42: 166.2971467 | IG42: 131.0733038 | IH42: 124.638528 | II42: 221.0146104 | IJ42: 165.6277385 | IK42: 278.7542812 | IL42: 3295.602431 | IM42: 7811.576595 | IN42: 250.1606838 | IO42: 1100.995736 | IP42: 543.5006764 | IQ42: 528.6897519 | IR42: 255.2636316 | IS42: 366.3995341 | IT42: 350.0038574 | IU42: 382.4786575 | IV42: 605.7191028 | IW42: 2773.298881 | IX42: 198.8032991 | IY42: 743.1335298 | IZ42: 323.6921515 | JA42: 198.4409092 | JB42: 1.366460502e-07 | JC42: 165.5786137 | JD42: 203.5596348 | JE42: 4546.63731 | JF42: 9482.208647 | JG42: 0.4326263128 | JH42: 1532.702133 | JI42: 588.6601896 | JJ42: 1426.81756 | JK42: 473497.1647
A43: =+MATCH(B43,RUT[EMPRESA],0) -> 23 | B43: BARRICK | C43: 3128769.003 | D43: 3128769.003 | F43: =IFERROR(INDEX($B$9:$B$511,MATCH(0,INDEX(COUNTIF($F$8:F42,$B$9:$B$511),0,0),0)),"") -> BARRICK | H43: 3128769.003 | J43: EMBALSE_ANCOA | K43: 2476416.241 | L43: 1318814.688 | M43: 173587.3791 | N43: 5655558.863 | O43: 1185781.827 | P43: 602470.803 | Q43: 3632.320821 | R43: 12097.29521 | S43: 85240.89685 | T43: 380988.6595 | U43: 34727.71889 | V43: 39979.86705 | W43: 33758.09848 | X43: 160002.3818 | Y43: 481431.6823 | Z43: 2458968.912 | AA43: 47171.50303 | AB43: 5320.411479 | AC43: 18284.29011 | AD43: 145815.2132 | AE43: 15268.42627 | AF43: 98508.21735 | AG43: 8300.027872 | AH43: 157253.281 | AI43: 444884.1202 | AJ43: 270153.7753 | AK43: 1403.544508 | AL43: 39307.63544 | AM43: 1169314.612 | AN43: 273346.0213 | AO43: 29644.29569 | AP43: 1517123.553 | AQ43: 43689.12663 | AR43: 79275.60185 | AS43: 90852.5224 | AT43: 768195.692 | AU43: 759720.6376 | AV43: 4615.76738 | AW43: 71.27054951 | AX43: 57462.0999 | AY43: 171632.0638 | AZ43: 683461.1618 | BA43: 138945.194 | BB43: 2234.069513 | BC43: 326329.5048 | BD43: 106142.0895 | BE43: 7316.027504 | BF43: 14034.73258 | BG43: 1515656.083 | BH43: 34891.35683 | BI43: 214896.219 | BJ43: 954308.8627 | BK43: 444294.7305 | BL43: 102180.1458 | BM43: 610.2566309 | BN43: 1240770.679 | BO43: 90077.5572 | BP43: 4841.414958 | BQ43: 96342.93948 | BR43: 640765.0767 | BS43: 27147.67372 | BT43: 27964.45509 | BU43: 21186.20133 | BV43: 684666.0779 | BW43: 1740909.832 | BX43: 147967.8538 | BY43: 12355.77839 | BZ43: 18980.02226 | CA43: 695330.6878 | CB43: 193516.6491 | CC43: 7612.690498 | CD43: 90187.68814 | CE43: 126422.7418 | CF43: 63726.76978 | CG43: 10055.69943 | CH43: 118591.3274 | CI43: 820732.8707 | CJ43: 3128.592252 | CK43: 97234.44879 | CL43: 41088.34277 | CM43: 43414.15955 | CN43: 4519.538276 | CO43: 101291.2653 | CP43: 60407.0707 | CQ43: 1358351.826 | CR43: 169723.0635 | CS43: 271118.4615 | CT43: 17050.48438 | CU43: 2698.723625 | CV43: 23119.73468 | CW43: 22840.92896 | CX43: 44478.47589 | CY43: 26697.9288 | CZ43: 19756.36059 | DA43: 190975.7192 | DB43: 10430.99043 | DC43: 109769.7961 | DD43: 3246.222868 | DE43: 77392.82651 | DF43: 467959.2448 | DG43: 1757.072757 | DH43: 93655.53201 | DI43: 23720.41981 | DJ43: 1524201.352 | DK43: 34823.39212 | DL43: 214643.3898 | DM43: 207002.2726 | DN43: 216.2569399 | DO43: 85650.44649 | DP43: 31032.0533 | DQ43: 29519.33778 | DR43: 11672.7554 | DS43: 34556.82596 | DT43: 93042.82918 | DU43: 124245.88 | DV43: 75222.42904 | DW43: 37569.79403 | DX43: 869441.8949 | DY43: 20662.5995 | DZ43: 39558.08537 | EA43: 103276.0829 | EB43: 69002.6211 | EC43: 1708927.92 | ED43: 1999.79768 | EE43: 86680.88649 | EF43: 35191.04539 | EG43: 34333.9028 | EH43: 4016.450525 | EI43: 191731.6959 | EJ43: 19782.49205 | EK43: 28257.06172 | EL43: 10139.30879 | EM43: 32306.92105 | EN43: 35971.75517 | EO43: 35688.00446 | EP43: 31953.91354 | EQ43: 71978.94123 | ER43: 34015.68186 | ES43: 90193.59928 | ET43: 30388.05592 | EU43: 24255.17694 | EV43: 24879.18524 | EW43: 112934.3108 | EX43: 37973.19811 | EY43: 28722.50032 | EZ43: 97219.28861 | FA43: 30128.46446 | FB43: 31393.61721 | FC43: 26984.05918 | FD43: 175.3093632 | FE43: 36103.43138 | FF43: 245273.5125 | FG43: 25831.96369 | FH43: 25193.92149 | FI43: 25857.15183 | FJ43: 27609.49348 | FK43: 30231.59605 | FL43: 59263.30733 | FM43: 39515.24983 | FN43: 25753.16554 | FO43: 6551.200746 | FP43: 1111.515846 | FQ43: 132635.1881 | FR43: 12320.28079 | FS43: 89744.9373 | FT43: 32506.73141 | FU43: 28920.434 | FV43: 53097.65863 | FW43: 0.006893354069 | FX43: 13445.65652 | FY43: 18878.86394 | FZ43: 31022.82685 | GA43: 60210.98692 | GB43: 50006.601 | GC43: 25872.89517 | GD43: 8042.723385 | GE43: 17101.08565 | GF43: 150721.7674 | GG43: 151755.4632 | GH43: 34335.87291 | GI43: 105195.8395 | GJ43: 19092.4776 | GK43: 5346.135675 | GL43: 94517.40718 | GM43: 35565.95527 | GN43: 14608.49153 | GO43: 133479.8002 | GP43: 34704.43003 | GQ43: 24818.80263 | GR43: 42481.88553 | GS43: 170035.612 | GT43: 158655.2387 | GU43: 67751.23535 | GV43: 2534400.707 | GW43: 755174.9637 | GX43: 688851.3168 | GY43: 2409343.441 | GZ43: 1420754.042 | HA43: 330277.2818 | HB43: 62753.53214 | HC43: 189639.5415 | HD43: 197089.6258 | HE43: 0.03911105742 | HF43: 112175.5138 | HG43: 87982.80127 | HH43: 249906.6959 | HI43: 4594.828243 | HJ43: 665724.3509 | HK43: 186961.134 | HL43: 25458.97759 | HM43: 28169.99675 | HN43: 16895.92409 | HO43: 18041.70476 | HP43: 24101.81383 | HQ43: 20535.10256 | HR43: 18870.97978 | HS43: 21067.79935 | HT43: 2.552384396 | HU43: 10953.2914 | HV43: 104.8720493 | HW43: 10321.58251 | HX43: 8913.007346 | HY43: 24420.65054 | HZ43: 38289.68212 | IA43: 36523.58764 | IB43: 30401.04142 | IC43: 32444.14763 | ID43: 13668.74049 | IE43: 14978.88533 | IF43: 21111.50619 | IG43: 16639.82167 | IH43: 15822.92366 | II43: 28057.91567 | IJ43: 21026.52449 | IK43: 35387.99584 | IL43: 418378.3819 | IM43: 991683.5675 | IN43: 31758.02431 | IO43: 139771.9611 | IP43: 68997.68353 | IQ43: 67117.42923 | IR43: 32405.84609 | IS43: 46514.60466 | IT43: 44433.16528 | IU43: 48555.85744 | IV43: 76896.34396 | IW43: 352071.6842 | IX43: 25238.17856 | IY43: 94341.1744 | IZ43: 41092.88102 | JA43: 25192.17297 | JB43: 1.734728463e-05 | JC43: 21020.28808 | JD43: 25841.99775 | JE43: 577197.8874 | JF43: 1203771.145 | JG43: 54.92212745 | JH43: 194577.3047 | JI43: 74730.70638 | JJ43: 181135.205 | JK43: 60110702.59
A44: =+MATCH(B44,RUT[EMPRESA],0) -> 36 | B44: CARRAN | C44: 10752424.01 | D44: 10752424.01 | F44: =IFERROR(INDEX($B$9:$B$511,MATCH(0,INDEX(COUNTIF($F$8:F43,$B$9:$B$511),0,0),0)),"") -> CARRAN | H44: 10752424.01 | J44: AASA_ENERGIA | K44: 36588.21038 | L44: 19485.0399 | M44: 2564.694674 | N44: 83558.96477 | O44: 17519.52447 | P44: 8901.301856 | Q44: 53.66630865 | R44: 178.7334353 | S44: 1259.405351 | T44: 5628.978276 | U44: 513.0902728 | V44: 590.6889812 | W44: 498.76446 | X44: 2363.980944 | Y44: 7112.989885 | Z44: 36330.432 | AA44: 696.9429646 | AB44: 78.60727581 | AC44: 270.1441874 | AD44: 2154.370338 | AE44: 225.5858216 | AF44: 1455.425514 | AG44: 122.6300978 | AH44: 2323.363913 | AI44: 6573.012045 | AJ44: 3991.430438 | AK44: 20.73689426 | AL44: 580.7569869 | AM44: 17276.22695 | AN44: 4038.594792 | AO44: 437.9844185 | AP44: 22414.98613 | AQ44: 645.4920338 | AR44: 1171.27014 | AS44: 1342.315216 | AT44: 11349.83091 | AU44: 11224.61485 | AV44: 68.19639814 | AW44: 1.052998206 | AX44: 848.9830445 | AY44: 2535.805554 | AZ44: 10097.90695 | BA44: 2052.868134 | BB44: 33.00761963 | BC44: 4821.407797 | BD44: 1568.213386 | BE44: 108.091826 | BF44: 207.3584156 | BG44: 22393.30476 | BH44: 515.5079679 | BI44: 3175.018779 | BJ44: 14099.5899 | BK44: 6564.304012 | BL44: 1509.677012 | BM44: 9.016334824 | BN44: 18331.96611 | BO44: 1330.865368 | BP44: 71.5302646 | BQ44: 1423.434267 | BR44: 9467.086768 | BS44: 401.0976752 | BT44: 413.165343 | BU44: 313.0189419 | BV44: 10115.70918 | BW44: 25721.35254 | BX44: 2186.174874 | BY44: 182.5524367 | BZ44: 280.423394 | CA44: 10273.27517 | CB44: 2859.142881 | CC44: 112.4749212 | CD44: 1332.492516 | CE44: 1867.853149 | CF44: 941.541418 | CG44: 148.5695499 | CH44: 1752.146655 | CI44: 12126.04991 | CJ44: 46.22388982 | CK44: 1436.606015 | CL44: 607.0663342 | CM44: 641.4294884 | CN44: 66.77464575 | CO44: 1496.544104 | CP44: 892.4939896 | CQ44: 20069.1877 | CR44: 2507.600721 | CS44: 4005.683351 | CT44: 251.915126 | CU44: 39.8727266 | CV44: 341.5862415 | CW44: 337.4669815 | CX44: 657.1544016 | CY44: 394.4528465 | CZ44: 291.8935297 | DA44: 2821.601504 | DB44: 154.1143472 | DC44: 1621.811521 | DD44: 47.96184229 | DE44: 1143.452773 | DF44: 6913.939188 | DG44: 25.96015428 | DH44: 1383.728733 | DI44: 350.4611607 | DJ44: 22519.55823 | DK44: 514.5038123 | DL44: 3171.283312 | DM44: 3058.388397 | DN44: 3.195122968 | DO44: 1265.456309 | DP44: 458.4880666 | DQ44: 436.1382077 | DR44: 172.4610036 | DS44: 510.5653877 | DT44: 1374.676257 | DU44: 1835.690753 | DV44: 1111.385886 | DW44: 555.0809693 | DX44: 12845.70923 | DY44: 305.2829023 | DZ44: 584.4572998 | EA44: 1525.869111 | EB44: 1019.490333 | EC44: 25248.83064 | ED44: 29.54633272 | EE44: 1280.68071 | EF44: 519.9357648 | EG44: 507.2717735 | EH44: 59.3416948 | EI44: 2832.770804 | EJ44: 292.2796131 | EK44: 417.4885068 | EL44: 149.8048499 | EM44: 477.3238054 | EN44: 531.470487 | EO44: 527.2781665 | EP44: 472.1082392 | EQ44: 1063.464453 | ER44: 502.570167 | ES44: 1332.579851 | ET44: 448.9732236 | EU44: 358.3620159 | EV44: 367.5815271 | EW44: 1668.566154 | EX44: 561.0411279 | EY44: 424.3652044 | EZ44: 1436.382029 | FA44: 445.1378478 | FB44: 463.8300508 | FC44: 398.6803259 | FD44: 2.590136406 | FE44: 533.4159583 | FF44: 3623.832991 | FG44: 381.6585056 | FH44: 372.2316484 | FI44: 382.0306518 | FJ44: 407.9209056 | FK44: 446.6615821 | FL44: 875.5952735 | FM44: 583.8244192 | FN44: 380.4942896 | FO44: 96.79176995 | FP44: 16.42226979 | FQ44: 1959.639937 | FR44: 182.0279716 | FS44: 1325.951022 | FT44: 480.2759357 | FU44: 427.2896073 | FV44: 784.4999044 | FW44: 0.0001018469693 | FX44: 198.6550166 | FY44: 278.9288142 | FZ44: 458.351749 | GA44: 889.5969182 | GB44: 738.8305759 | GC44: 382.2632543 | GD44: 118.8285113 | GE44: 252.6627426 | GF44: 2226.863014 | GG44: 2242.135518 | GH44: 507.3008812 | GI44: 1554.232864 | GJ44: 282.0848835 | GK44: 78.98734207 | GL44: 1396.462646 | GM44: 525.474931 | GN44: 215.8355096 | GO44: 1972.118794 | GP44: 512.7461877 | GQ44: 366.6893945 | GR44: 627.655456 | GS44: 2512.21852 | GT44: 2344.077363 | GU44: 1001.001532 | GV44: 37444.9112 | GW44: 11157.45406 | GX44: 10177.54466 | GY44: 35597.2325 | GZ44: 20991.15929 | HA44: 4879.734864 | HB44: 927.1621619 | HC44: 2801.859932 | HD44: 2911.932402 | HE44: 0.0005778526135 | HF44: 1657.355185 | HG44: 1299.91606 | HH44: 3692.286705 | HI44: 67.88702949 | HJ44: 9835.851581 | HK44: 2762.287369 | HL44: 376.1477625 | HM44: 416.2021515 | HN44: 249.6315502 | HO44: 266.5600711 | HP44: 356.096128 | HQ44: 303.3991782 | HR44: 278.8123283 | HS44: 311.2695927 | HT44: 0.03771061411 | HU44: 161.8311669 | HV44: 1.549448973 | HW44: 152.4978823 | HX44: 131.6866617 | HY44: 360.8068322 | HZ44: 565.7170718 | IA44: 539.6236246 | IB44: 449.1650801 | IC44: 479.3512815 | ID44: 201.9510066 | IE44: 221.3079524 | IF44: 311.9153465 | IG44: 245.8477237 | IH44: 233.7783326 | II44: 414.5461915 | IJ44: 310.6597706 | IK44: 522.8456408 | IL44: 6181.398748 | IM44: 14651.7885 | IN44: 469.2140421 | IO44: 2065.083337 | IP44: 1019.417382 | IQ44: 991.6372617 | IR44: 478.7853893 | IS44: 687.2375138 | IT44: 656.4849527 | IU44: 717.3963317 | IV44: 1136.117412 | IW44: 5201.73977 | IX44: 372.8855316 | IY44: 1393.858867 | IZ44: 607.1333852 | JA44: 372.2058147 | JB44: 2.563002491e-07 | JC44: 310.5676298 | JD44: 381.8067554 | JE44: 8527.903097 | JF44: 17785.31054 | JG44: 0.8114558126 | JH44: 2874.813709 | JI44: 1104.120851 | JJ44: 2676.211243 | JK44: 888115.2512
A45: =+MATCH(B45,RUT[EMPRESA],0) -> 77 | B45: DONGO | C45: 85749405.09 | D45: 85749405.09 | F45: =IFERROR(INDEX($B$9:$B$511,MATCH(0,INDEX(COUNTIF($F$8:F44,$B$9:$B$511),0,0),0)),"") -> DONGO | H45: 85749405.09 | J45: ERSA | K45: 40877684.06 | L45: 21769397.75 | M45: 2865370.497 | N45: 93355125.24 | O45: 19573452.18 | P45: 9944859.32 | Q45: 59957.95878 | R45: 199687.5175 | S45: 1407053.625 | T45: 6288899.98 | U45: 573243.1799 | V45: 659939.2891 | W45: 557237.8589 | X45: 2641125.793 | Y45: 7946891.914 | Z45: 40589684.65 | AA45: 778650.1175 | AB45: 87822.9176 | AC45: 301814.946 | AD45: 2406941.174 | AE45: 252032.7135 | AF45: 1626054.505 | AG45: 137006.8211 | AH45: 2595746.963 | AI45: 7343608.963 | AJ45: 4459371.768 | AK45: 23168.01514 | AL45: 648842.9027 | AM45: 19301631.31 | AN45: 4512065.505 | AO45: 489332.1782 | AP45: 25042840.63 | AQ45: 721167.2598 | AR45: 1308585.751 | AS45: 1499683.552 | AT45: 12680445.34 | AU45: 12540549.39 | AV45: 76191.50508 | AW45: 1176.448029 | AX45: 948514.8441 | AY45: 2833094.518 | AZ45: 11281750.2 | BA45: 2293539.206 | BB45: 36877.31739 | BC45: 5386652.766 | BD45: 1752065.233 | BE45: 120764.1332 | BF45: 231668.3902 | BG45: 25018617.41 | BH45: 575944.3171 | BI45: 3547246.864 | BJ45: 15752576.46 | BK45: 7333880.031 | BL45: 1686666.259 | BM45: 10073.37835 | BN45: 20481141.64 | BO45: 1486891.364 | BP45: 79916.22238 | BQ45: 1590312.717 | BR45: 10576974.87 | BS45: 448120.9622 | BT45: 461603.4012 | BU45: 349716.1866 | BV45: 11301639.5 | BW45: 28736833.86 | BX45: 2442474.362 | BY45: 203954.2452 | BZ45: 313299.2508 | CA45: 11477677.98 | CB45: 3194338.782 | CC45: 125661.0871 | CD45: 1488709.273 | CE45: 2086833.712 | CF45: 1051924.437 | CG45: 165987.3237 | CH45: 1957562.195 | CI45: 13547665.54 | CJ45: 51643.01682 | CK45: 1605028.674 | CL45: 678236.6657 | CM45: 716628.4358 | CN45: 74603.07142 | CO45: 1671993.695 | CP45: 997126.86 | CQ45: 22422028.99 | CR45: 2801583.049 | CS45: 4475295.642 | CT45: 281448.7733 | CU45: 44547.26546 | CV45: 381632.6165 | CW45: 377030.4288 | CX45: 734196.8828 | CY45: 440697.1172 | CZ45: 326114.1051 | DA45: 3152396.185 | DB45: 172182.1737 | DC45: 1811947.025 | DD45: 53584.72075 | DE45: 1277507.172 | DF45: 7724505.21 | DG45: 29003.63187 | DH45: 1545952.245 | DI45: 391548.0001 | DJ45: 25159672.38 | DK45: 574822.4378 | DL45: 3543073.464 | DM45: 3416943.145 | DN45: 3569.707998 | DO45: 1413813.975 | DP45: 512239.6022 | DQ45: 487269.5241 | DR45: 192679.7279 | DS45: 570422.2861 | DT45: 1535838.488 | DU45: 2050900.71 | DV45: 1241680.876 | DW45: 620156.7187 | DX45: 14351695.2 | DY45: 341073.2009 | DZ45: 652977.0272 | EA45: 1704756.663 | EB45: 1139011.81 | EC45: 28208915.14 | ED45: 33010.24132 | EE45: 1430823.233 | EF45: 580891.2134 | EG45: 566742.5401 | EH45: 66298.70732 | EI45: 3164874.935 | EJ45: 326545.4516 | EK45: 466433.3976 | EL45: 167367.4459 | EM45: 533283.5771 | EN45: 593778.2261 | EO45: 589094.4126 | EP45: 527456.5561 | EQ45: 1188141.302 | ER45: 561489.7338 | ES45: 1488806.847 | ET45: 501609.2723 | EU45: 400375.124 | EV45: 410675.4983 | EW45: 1864183.008 | EX45: 626815.6254 | EY45: 474116.2951 | EZ45: 1604778.428 | FA45: 497324.2505 | FB45: 518207.862 | FC45: 445420.2114 | FD45: 2893.794929 | FE45: 595951.7776 | FF45: 4048678.483 | FG45: 426402.8125 | FH45: 415870.7835 | FI45: 426818.5879 | FJ45: 455744.1243 | FK45: 499026.6221 | FL45: 978246.9977 | FM45: 652269.95 | FN45: 425102.1079 | FO45: 108139.2982 | FP45: 18347.5592 | FQ45: 2189381.262 | FR45: 203368.2937 | FS45: 1481400.877 | FT45: 536581.8049 | FU45: 477383.5448 | FV45: 876471.9265 | FW45: 0.1137871514 | FX45: 221944.6351 | FY45: 311629.4518 | FZ45: 512087.3032 | GA45: 993890.1461 | GB45: 825448.4858 | GC45: 427078.4599 | GD45: 132759.5499 | GE45: 282284.0379 | GF45: 2487932.637 | GG45: 2504995.636 | GH45: 566775.0602 | GI45: 1736445.683 | GJ45: 315155.5276 | GK45: 88247.5415 | GL45: 1560179.038 | GM45: 587079.7721 | GN45: 241139.3091 | GO45: 2203323.096 | GP45: 572858.7554 | GQ45: 409678.7752 | GR45: 701239.584 | GS45: 2806742.223 | GT45: 2618888.785 | GU45: 1118355.447 | GV45: 41834821.49 | GW45: 12465514.91 | GX45: 11370724.36 | GY45: 39770527.4 | GZ45: 23452089.31 | HA45: 5451817.894 | HB45: 1035859.407 | HC45: 3130340.18 | HD45: 3253317.161 | HE45: 0.6455980306 | HF45: 1851657.704 | HG45: 1452313.667 | HH45: 4125157.47 | HI45: 75845.86714 | HJ45: 10988972.38 | HK45: 3086128.268 | HL45: 420246.0091 | HM45: 464996.2345 | HN45: 278897.4791 | HO45: 297810.6405 | HP45: 397843.5913 | HQ45: 338968.6355 | HR45: 311499.3095 | HS45: 347761.7499 | HT45: 42.13167447 | HU45: 180803.6863 | HV45: 1731.100945 | HW45: 170376.2 | HX45: 147125.1449 | HY45: 403106.5619 | HZ45: 632039.7605 | IA45: 602887.209 | IB45: 501823.6214 | IC45: 535548.7474 | ID45: 225627.0356 | IE45: 247253.3219 | IF45: 348483.2096 | IG45: 274670.05 | IH45: 261185.6858 | II45: 463146.1355 | IJ45: 347080.4344 | IK45: 584142.2331 | IL45: 6906084.295 | IM45: 16369512.88 | IN45: 524223.0536 | IO45: 2307186.477 | IP45: 1138930.306 | IQ45: 1107893.342 | IR45: 534916.512 | IS45: 767806.8337 | IT45: 733448.9501 | IU45: 801501.3658 | IV45: 1269311.839 | IW45: 5811573.528 | IX45: 416601.3258 | IY45: 1557270 | IZ45: 678311.5776 | JA45: 415841.9212 | JB45: 0.0002863479929 | JC45: 346977.4913 | JD45: 426568.4426 | JE45: 9527684.598 | JF45: 19870398.08 | JG45: 906.5880509 | JH45: 3211846.802 | JI45: 1233564.113 | JJ45: 2989960.879 | JK45: 992234773.7
A46: =+MATCH(B46,RUT[EMPRESA],0) -> 178 | B46: INACAL | C46: 8978888.01 | D46: 8978888.01 | F46: =IFERROR(INDEX($B$9:$B$511,MATCH(0,INDEX(COUNTIF($F$8:F45,$B$9:$B$511),0,0),0)),"") -> INACAL | H46: 8978888.01 | J46: NEOMAS | K46: 3827039.214 | L46: 2038088.526 | M46: 268260.923 | N46: 8740067.677 | O46: 1832500.318 | P46: 931054.8646 | Q46: 5613.367409 | R46: 18695.08945 | S46: 131730.7848 | T46: 588777.652 | U46: 53668.0142 | V46: 61784.65333 | W46: 52169.56848 | X46: 247266.7475 | Y46: 744001.7136 | Z46: 3800076.213 | AA46: 72898.56563 | AB46: 8222.132865 | AC46: 28256.43528 | AD46: 225341.9799 | AE46: 23595.73689 | AF46: 152234.0245 | AG46: 12826.81466 | AH46: 243018.3032 | AI46: 687521.3242 | AJ46: 417494.0684 | AK46: 2169.029496 | AL46: 60745.79051 | AM46: 1807051.98 | AN46: 422427.3469 | AO46: 45812.12164 | AP46: 2344553.889 | AQ46: 67516.92144 | AR46: 122512.0527 | AS46: 140402.9582 | AT46: 1187165.141 | AU46: 1174067.842 | AV46: 7133.179985 | AW46: 110.1410915 | AX46: 88801.59401 | AY46: 265239.1902 | AZ46: 1056216.893 | BA46: 214725.0922 | BB46: 3452.517994 | BC46: 504307.7132 | BD46: 164031.3659 | BE46: 11306.14623 | BF46: 21689.19386 | BG46: 2342286.069 | BH46: 53920.89932 | BI46: 332099.3634 | BJ46: 1474783.35 | BK46: 686610.4848 | BL46: 157908.6013 | BM46: 943.0870377 | BN46: 1917479.769 | BO46: 139205.3315 | BP46: 7481.894435 | BQ46: 148887.8167 | BR46: 990234.6119 | BS46: 41953.8566 | BT46: 43216.10577 | BU46: 32741.03196 | BV46: 1058078.963 | BW46: 2690391.899 | BX46: 228668.6582 | BY46: 19094.54785 | BZ46: 29331.61568 | CA46: 1074559.989 | CB46: 299059.5007 | CC46: 11764.60749 | CD46: 139375.5272 | CE46: 195372.9677 | CF46: 98482.97829 | CG46: 15540.01925 | CH46: 183270.3456 | CI46: 1268355.791 | CJ46: 4834.908216 | CK46: 150265.55 | CL46: 63497.68525 | CM46: 67091.98892 | CN46: 6984.468088 | CO46: 156534.9306 | CP46: 93352.7347 | CQ46: 2099188.988 | CR46: 262289.0322 | CS46: 418984.889 | CT46: 26349.71909 | CU46: 4170.591748 | CV46: 35729.10311 | CW46: 35298.23837 | CX46: 68736.77719 | CY46: 41258.82344 | CZ46: 30531.36441 | DA46: 295132.7625 | DB46: 16119.99177 | DC46: 169637.6025 | DD46: 5016.693884 | DE46: 119602.4226 | DF46: 723181.4872 | DG46: 2715.36999 | DH46: 144734.7129 | DI46: 36657.39841 | DJ46: 2355491.879 | DK46: 53815.86705 | DL46: 331708.6425 | DM46: 319900.1046 | DN46: 334.2022134 | DO46: 132363.7004 | DP46: 47956.75415 | DQ46: 45619.01242 | DR46: 18039.00811 | DS46: 53403.91727 | DT46: 143787.8455 | DU46: 192008.8582 | DV46: 116248.303 | DW46: 58060.14054 | DX46: 1343630.433 | DY46: 31931.86074 | DZ46: 61132.83438 | EA46: 159602.2561 | EB46: 106636.2481 | EC46: 2640967.24 | ED46: 3090.475669 | EE46: 133956.1364 | EF46: 54384.03628 | EG46: 53059.41311 | EH46: 6206.999213 | EI46: 296301.0445 | EJ46: 30571.74782 | EK46: 43668.29835 | EL46: 15669.22866 | EM46: 49926.92734 | EN46: 55590.54061 | EO46: 55152.03392 | EP46: 49381.3916 | EQ46: 111235.8359 | ER46: 52567.63633 | ES46: 139384.6622 | ET46: 46961.52435 | EU46: 37483.80896 | EV46: 38448.14775 | EW46: 174528.0252 | EX46: 58683.55886 | EY46: 44387.58445 | EZ46: 150242.1215 | FA46: 46560.35323 | FB46: 48515.51292 | FC46: 41701.00765 | FD46: 270.9220673 | FE46: 55794.03225 | FF46: 379044.2555 | FG46: 39920.56601 | FH46: 38934.5393 | FI46: 39959.49161 | FJ46: 42667.55017 | FK46: 46719.73219 | FL46: 91585.16945 | FM46: 61066.63659 | FN46: 39798.7918 | FO46: 10124.18742 | FP46: 1717.730105 | FQ46: 204973.6461 | FR46: 19039.69006 | FS46: 138691.3026 | FT46: 50235.71311 | FU46: 44693.47 | FV46: 82056.81193 | FW46: 0.01065294917 | FX46: 20778.83915 | FY46: 29175.28621 | FZ46: 47942.49566 | GA46: 93049.70796 | GB46: 77279.90949 | GC46: 39983.82127 | GD46: 12429.17781 | GE46: 26427.91801 | GF46: 232924.5402 | GG46: 234522.0076 | GH46: 53062.4577 | GI46: 162569.0368 | GJ46: 29505.40351 | GK46: 8261.886886 | GL46: 146066.6497 | GM46: 54963.41981 | GN46: 22575.8776 | GO46: 206278.9046 | GP46: 53632.02372 | GQ46: 38354.83281 | GR46: 65651.2581 | GS46: 262772.043 | GT46: 245184.8805 | GU46: 104702.3639 | GV46: 3916648.069 | GW46: 1167042.984 | GX46: 1064546.807 | GY46: 3723385.3 | GZ46: 2195625.009 | HA46: 510408.5847 | HB46: 96978.94252 | HC46: 293067.8413 | HD46: 304581.1581 | HE46: 0.060442 | HF46: 173355.3847 | HG46: 135968.1079 | HH46: 386204.35 | HI46: 7100.820765 | HJ46: 1028806.529 | HK46: 288928.6459 | HL46: 39344.15547 | HM46: 43533.74866 | HN46: 26110.86253 | HO46: 27881.54529 | HP46: 37246.80251 | HQ46: 31734.8277 | HR46: 29163.10207 | HS46: 32558.05423 | HT46: 3.944439958 | HU46: 16927.15264 | HV46: 162.0686532 | HW46: 15950.91341 | HX46: 13774.10956 | HY46: 37739.53089 | HZ46: 59172.65139 | IA46: 56443.33929 | IB46: 46981.59208 | IC46: 50138.99649 | ID46: 21123.59183 | IE46: 23148.28202 | IF46: 32625.59852 | IG46: 25715.08334 | IH46: 24452.65393 | II46: 43360.53921 | IJ46: 32494.26829 | IK46: 54688.40234 | IL46: 646559.5109 | IM46: 1532542.001 | IN46: 49078.66552 | IO46: 216002.7733 | IP46: 106628.6176 | IQ46: 103722.8836 | IR46: 50079.80552 | IS46: 71883.39871 | IT46: 68666.75444 | IU46: 75037.93886 | IV46: 118835.1614 | IW46: 544089.5271 | IX46: 39002.93393 | IY46: 145794.3006 | IZ46: 63504.69863 | JA46: 38931.83716 | JB46: 2.680839248e-05 | JC46: 32484.63058 | JD46: 39936.07258 | JE46: 891998.2483 | JF46: 1860300.905 | JG46: 84.87633539 | JH46: 300698.6317 | JI46: 115488.3977 | JJ46: 279925.2892 | JK46: 92894729.15
A47: =+MATCH(B47,RUT[EMPRESA],0) -> 166 | B47: HIDROLIRCAY | C47: 57929627.86 | D47: 57929627.86 | F47: =IFERROR(INDEX($B$9:$B$511,MATCH(0,INDEX(COUNTIF($F$8:F46,$B$9:$B$511),0,0),0)),"") -> HIDROLIRCAY | H47: 57929627.86 | J47: ENGIE | K47: 516730969.2 | L47: 275184914.6 | M47: 36220879.64 | N47: 1180093380 | O47: 247426172.6 | P47: 125712033.7 | Q47: 757922.9319 | R47: 2524231.174 | S47: 17786432.87 | T47: 79497394.65 | U47: 7246313.257 | V47: 8342230.641 | W47: 7043991.496 | X47: 33386223.37 | Y47: 100455915.1 | Z47: 513090395.6 | AA47: 9842843.085 | AB47: 1110161.262 | AC47: 3815214.418 | AD47: 30425917.57 | AE47: 3185921.886 | AF47: 20554802.45 | AG47: 1731890.372 | AH47: 32812593.84 | AI47: 92829871.94 | AJ47: 56370500.15 | AK47: 292864.7058 | AL47: 8201962.261 | AM47: 243990110.6 | AN47: 57036596.74 | AO47: 6185602.157 | AP47: 316564198.9 | AQ47: 9116207.673 | AR47: 16541709.71 | AS47: 18957359.09 | AT47: 160292319.9 | AU47: 158523908.4 | AV47: 963129.6677 | AW47: 14871.36916 | AX47: 11990087.16 | AY47: 35812882.01 | AZ47: 142611545.9 | BA47: 28992413.93 | BB47: 466162.7094 | BC47: 68092172.26 | BD47: 22147692.23 | BE47: 1526568.078 | BF47: 2928498.387 | BG47: 316257995.5 | BH47: 7280458.079 | BI47: 44840414.82 | BJ47: 199126841.1 | BK47: 92706889.43 | BL47: 21320989.95 | BM47: 127336.6307 | BN47: 258900189.9 | BO47: 18795654.24 | BP47: 1010213.47 | BQ47: 20102993.86 | BR47: 133702547.1 | BS47: 5664655.042 | BT47: 5835085.289 | BU47: 4420729.506 | BV47: 142862964.7 | BW47: 363259620.8 | BX47: 30875089.26 | BY47: 2578166.479 | BZ47: 3960386.437 | CA47: 145088250.6 | CB47: 40379336.86 | CC47: 1588470.013 | CD47: 18818634.25 | CE47: 26379469.17 | CF47: 13297278.12 | CG47: 2098230.187 | CH47: 24745360.05 | CI47: 171254769.1 | CJ47: 652814.5307 | CK47: 20289016.89 | CL47: 8573526.061 | CM47: 9058832.825 | CN47: 943050.4268 | CO47: 21135515.44 | CP47: 12604587.09 | CQ47: 283434764.9 | CR47: 35414548.49 | CS47: 56571792.35 | CT47: 3557767.539 | CU47: 563117.8034 | CV47: 4824182.101 | CW47: 4766006.279 | CX47: 9280913.915 | CY47: 5570810.913 | CZ47: 4122377.807 | DA47: 39849144.43 | DB47: 2176538.704 | DC47: 22904652.36 | DD47: 677359.4279 | DE47: 16148848.32 | DF47: 97644745.68 | DG47: 366632.1895 | DH47: 19542237.29 | DI47: 4949521.535 | DJ47: 318041058.2 | DK47: 7266276.508 | DL47: 44787659.26 | DM47: 43193257.73 | DN47: 45124.3439 | DO47: 17871889.82 | DP47: 6475172.755 | DQ47: 6159528.34 | DR47: 2435646.363 | DS47: 7210654.603 | DT47: 19414390.24 | DU47: 25925243.46 | DV47: 15695971.46 | DW47: 7839342.9 | DX47: 181418432.6 | DY47: 4311474.334 | DZ47: 8254221.341 | EA47: 21549669.04 | EB47: 14398141.43 | EC47: 356586249.8 | ED47: 417279.3636 | EE47: 18086902.25 | EF47: 7342991.331 | EG47: 7164139.28 | EH47: 838075.7394 | EI47: 40006887.13 | EJ47: 4127830.418 | EK47: 5896140.82 | EL47: 2115676.182 | EM47: 6741187.667 | EN47: 7505894.85 | EO47: 7446687.202 | EP47: 6667528.842 | EQ47: 15019182.74 | ER47: 7097739.047 | ES47: 18819867.67 | ET47: 6340795.752 | EU47: 5061104.38 | EV47: 5191310.446 | EW47: 23564962.51 | EX47: 7923517.515 | EY47: 5993259.606 | EZ47: 20285853.56 | FA47: 6286629.193 | FB47: 6550616.967 | FC47: 5630515.104 | FD47: 36580.19021 | FE47: 7533370.511 | FF47: 51178964.87 | FG47: 5390117.949 | FH47: 5256983.559 | FI47: 5395373.726 | FJ47: 5761018.719 | FK47: 6308148.713 | FL47: 12365928.52 | FM47: 8245283.244 | FN47: 5373675.865 | FO47: 1366978.723 | FP47: 231929.7745 | FQ47: 27675763.13 | FR47: 2570759.521 | FS47: 18726249.51 | FT47: 6782880.255 | FU47: 6034560.604 | FV47: 11079399.39 | FW47: 1.438372705 | FX47: 2805581.311 | FY47: 3939278.664 | FZ47: 6473247.557 | GA47: 12563672.09 | GB47: 10434416.87 | GC47: 5398658.744 | GD47: 1678201.015 | GE47: 3568326.04 | GF47: 31449723.06 | GG47: 31665414.82 | GH47: 7164550.364 | GI47: 21950246.97 | GJ47: 3983851.458 | GK47: 1115528.893 | GL47: 19722076.84 | GM47: 7421220.321 | GN47: 3048219.383 | GO47: 27852000.55 | GP47: 7241453.784 | GQ47: 5178710.962 | GR47: 8864303.793 | GS47: 35479765.12 | GT47: 33105127.44 | GU47: 14137026.29 | GV47: 528830053.6 | GW47: 157575404.5 | GX47: 143736259.9 | GY47: 502735505.7 | GZ47: 296455660.7 | HA47: 68915918.52 | HB47: 13094201.59 | HC47: 39570336.54 | HD47: 41124877.02 | HE47: 8.160944137 | HF47: 23406631.32 | HG47: 18358560.82 | HH47: 52145728.57 | HI47: 958760.4909 | HJ47: 138910568.9 | HK47: 39011457.91 | HL47: 5312290.376 | HM47: 5877973.775 | HN47: 3525516.868 | HO47: 3764596.367 | HP47: 5029103.513 | HQ47: 4284870.721 | HR47: 3937633.547 | HS47: 4396023.655 | HT47: 532.5825444 | HU47: 2285522.436 | HV47: 21882.68465 | HW47: 2153709.561 | HX47: 1859795.154 | HY47: 5095632.232 | HZ47: 7989555.317 | IA47: 7621040.648 | IB47: 6343505.318 | IC47: 6769821.473 | ID47: 2852130.189 | IE47: 3125506.046 | IF47: 4405143.559 | IG47: 3472078.334 | IH47: 3301623.75 | II47: 5854586.848 | IJ47: 4387411.21 | IK47: 7384087.166 | IL47: 87299163.66 | IM47: 206925476.6 | IN47: 6626654.439 | IO47: 29164927.81 | IP47: 14397111.15 | IQ47: 14004775.8 | IR47: 6761829.444 | IS47: 9705774.151 | IT47: 9271459.368 | IU47: 10131703.57 | IV47: 16045251.87 | IW47: 73463555.74 | IX47: 5266218.275 | IY47: 19685303.98 | IZ47: 8574473.015 | JA47: 5256618.713 | JB47: 0.003619698114 | JC47: 4386109.915 | JD47: 5392211.664 | JE47: 120438567.1 | JF47: 251179837.9 | JG47: 11460.0945 | JH47: 40600654.11 | JI47: 15593368.23 | JJ47: 37795814.96 | JK47: 1.254274669e+10
A48: =+MATCH(B48,RUT[EMPRESA],0) -> 200 | B48: LOS MORROS | C48: 4880989.005 | D48: 4880989.005 | F48: =IFERROR(INDEX($B$9:$B$511,MATCH(0,INDEX(COUNTIF($F$8:F47,$B$9:$B$511),0,0),0)),"") -> LOS MORROS | H48: 4880989.005 | J48: GEOTERMICA_DEL_NORTE | K48: 17071068.5 | L48: 9091192.144 | M48: 1196617.107 | N48: 38986350.97 | O48: 8174135.853 | P48: 4153106.483 | Q48: 25039.24684 | R48: 83392.18249 | S48: 587604.4441 | T48: 2626328.884 | U48: 239394.0316 | V48: 275599.4883 | W48: 232709.9952 | X48: 1102969.514 | Y48: 3318728.527 | Z48: 16950796.09 | AA48: 325174.7206 | AB48: 36676.02695 | AC48: 126041.9649 | AD48: 1005170.88 | AE48: 105252.2376 | AF48: 679062.1455 | AG48: 57215.88397 | AH48: 1084018.707 | AI48: 3066789.485 | AJ48: 1862293.392 | AK48: 9675.273501 | AL48: 270965.4887 | AM48: 8060619.818 | AN48: 1884299.003 | AO48: 204351.6732 | AP48: 10458225.74 | AQ48: 301169.1091 | AR48: 546482.9405 | AS48: 626287.9427 | AT48: 5295523.854 | AU48: 5237101.432 | AV48: 31818.59326 | AW48: 491.3004576 | AX48: 396112.5061 | AY48: 1183138.226 | AZ48: 4711410.026 | BA48: 957812.6988 | BB48: 15400.46178 | BC48: 2249538.36 | BD48: 731685.9135 | BE48: 50432.7199 | BF48: 96747.82341 | BG48: 10448109.8 | BH48: 240522.0627 | BI48: 1481377.813 | BJ48: 6578486.965 | BK48: 3062726.552 | BL48: 704374.426 | BM48: 4206.777751 | BN48: 8553199.131 | BO48: 620945.7535 | BP48: 33374.0851 | BQ48: 664135.8959 | BR48: 4417086.406 | BS48: 187141.3173 | BT48: 192771.7644 | BU48: 146046.1647 | BV48: 4719716.063 | BW48: 12000886.8 | BX48: 1020010.015 | BY48: 85174.02514 | BZ48: 130837.9644 | CA48: 4793232.091 | CB48: 1333998.67 | CC48: 52477.75345 | CD48: 621704.9364 | CE48: 871489.7153 | CF48: 439297.7375 | CG48: 69318.53012 | CH48: 817504.1978 | CI48: 5657686.628 | CJ48: 21566.81568 | CK48: 670281.4769 | CL48: 283240.7179 | CM48: 299273.6354 | CN48: 31155.24208 | CO48: 698246.9666 | CP48: 416413.5352 | CQ48: 9363739.694 | CR48: 1169978.614 | CS48: 1868943.415 | CT48: 117536.7783 | CU48: 18603.53485 | CV48: 159374.8933 | CW48: 157452.9581 | CX48: 306610.4542 | CY48: 184041.0201 | CZ48: 136189.6192 | DA48: 1316482.879 | DB48: 71905.58245 | DC48: 756693.3524 | DD48: 22377.69726 | DE48: 533504.1099 | DF48: 3225856.861 | DG48: 12112.30523 | DH48: 645610.3685 | DI48: 163515.6904 | DJ48: 10507016.25 | DK48: 240053.5509 | DL48: 1479634.945 | DM48: 1426961.234 | DN48: 1490.757883 | DO48: 590427.6569 | DP48: 213918.1203 | DQ48: 203490.2812 | DR48: 80465.63567 | DS48: 238215.9886 | DT48: 641386.728 | DU48: 856483.6122 | DV48: 518542.5686 | DW48: 258985.7539 | DX48: 5993460.184 | DY48: 142436.738 | DZ48: 272691.9545 | EA48: 711929.221 | EB48: 475666.5909 | EC48: 11780420.87 | ED48: 13785.51901 | EE48: 597530.9506 | EF48: 242587.9529 | EG48: 236679.2774 | EH48: 27687.22838 | EI48: 1321694.172 | EJ48: 136369.7553 | EK48: 194788.8356 | EL48: 69894.88763 | EM48: 222706.3662 | EN48: 247969.742 | EO48: 246013.7187 | EP48: 220272.9241 | EQ48: 496183.7254 | ER48: 234485.6351 | ES48: 621745.6846 | ET48: 209478.7522 | EU48: 167202.0156 | EV48: 171503.5899 | EW48: 778507.7984 | EX48: 261766.6026 | EY48: 197997.3165 | EZ48: 670176.9708 | FA48: 207689.2696 | FB48: 216410.5456 | FC48: 186013.4475 | FD48: 1208.48753 | FE48: 248877.4463 | FF48: 1690782.374 | FG48: 178071.527 | FH48: 173673.2106 | FI48: 178245.1604 | FJ48: 190324.8519 | FK48: 208400.2028 | FL48: 408529.0517 | FM48: 272396.6695 | FN48: 177528.3353 | FO48: 45160.41965 | FP48: 7662.186522 | FQ48: 914314.9459 | FR48: 84929.32396 | FS48: 618652.8526 | FT48: 224083.7503 | FU48: 199361.7638 | FV48: 366026.4185 | FW48: 0.04751903881 | FX48: 92687.05301 | FY48: 130140.6339 | FZ48: 213854.5182 | GA48: 415061.8401 | GB48: 344718.3461 | GC48: 178353.6864 | GD48: 55442.1666 | GE48: 117885.596 | GF48: 1038994 | GG48: 1046119.737 | GH48: 236692.8582 | GI48: 725162.9803 | GJ48: 131613.1704 | GK48: 36853.35558 | GL48: 651551.6678 | GM48: 245172.3779 | GN48: 100703.006 | GO48: 920137.2426 | GP48: 239233.4908 | GQ48: 171087.345 | GR48: 292847.0447 | GS48: 1172133.154 | GT48: 1093683.042 | GU48: 467040.2173 | GV48: 17470781.91 | GW48: 5205766.025 | GX48: 4748566.827 | GY48: 16608705.04 | GZ48: 9793906.68 | HA48: 2276752.19 | HB48: 432588.7659 | HC48: 1307271.996 | HD48: 1358628.831 | HE48: 0.2696103866 | HF48: 773277.0638 | HG48: 606505.644 | HH48: 1722721.024 | HI48: 31674.25022 | HJ48: 4589142.085 | HK48: 1288808.509 | HL48: 175500.3634 | HM48: 194188.657 | HN48: 116471.3236 | HO48: 124369.7132 | HP48: 166144.8136 | HQ48: 141557.8433 | HR48: 130086.2848 | HS48: 145229.9657 | HT48: 17.5947517 | HU48: 75506.0416 | HV48: 722.9309463 | HW48: 71151.38366 | HX48: 61441.43153 | HY48: 168342.7007 | HZ48: 263948.2714 | IA48: 251773.7753 | IB48: 209568.2672 | IC48: 223652.3316 | ID48: 94224.87276 | IE48: 103256.2997 | IF48: 145531.2569 | IG48: 114705.8926 | IH48: 109074.6415 | II48: 193416.0309 | IJ48: 144945.4392 | IK48: 243945.6223 | IL48: 2884073.322 | IM48: 6836127.879 | IN48: 218922.5702 | IO48: 963511.9822 | IP48: 475632.554 | IQ48: 462671.1021 | IR48: 223388.3016 | IS48: 320646.42 | IT48: 306298.1075 | IU48: 334717.708 | IV48: 530081.6289 | IW48: 2426990.963 | IX48: 173978.2948 | IY48: 650336.8147 | IZ48: 283272.0021 | JA48: 173661.1573 | JB48: 0.000119582758 | JC48: 144902.4488 | JD48: 178140.6964 | JE48: 3978888.73 | JF48: 8298144.44 | JG48: 378.6033156 | JH48: 1341310.254 | JI48: 515152.8996 | JJ48: 1248647.719 | JK48: 414370534.4
A49: =+MATCH(B49,RUT[EMPRESA],0) -> 75 | B49: DIUTO | C49: 92475778.1 | D49: 92475778.1 | F49: =IFERROR(INDEX($B$9:$B$511,MATCH(0,INDEX(COUNTIF($F$8:F48,$B$9:$B$511),0,0),0)),"") -> DIUTO | H49: 92475778.1 | J49: ATACAMA_GX_CHILE | K49: =$JK49*K$61/$JK$61 -> 9606958.313 | L49: 5116182.619 | M49: 673411.3136 | N49: 21940058.91 | O49: 4600097.668 | P49: 2337212.861 | Q49: 14091.1508 | R49: 46929.9986 | S49: 330681.7848 | T49: 1477999.582 | U49: =$JK49*U$61/$JK$61 -> 134721.9995 | V49: 155097.0752 | W49: 130960.474 | X49: 620709.9541 | Y49: 1867656.182 | Z49: 9539273.501 | AA49: 182996.1602 | AB49: 20639.89504 | AC49: 70931.69957 | AD49: 565672.5436 | AE49: =$JK49*AE$61/$JK$61 -> 59232.01932 | AF49: 382150.7555 | AG49: 32198.95768 | AH49: 610045.1491 | AI49: 1725874.32 | AJ49: 1048029.008 | AK49: 5444.881742 | AL49: 152489.2337 | AM49: 4536215.092 | AN49: 1060412.942 | AO49: =$JK49*AO$61/$JK$61 -> 115001.472 | AP49: 5885497.955 | AQ49: 169486.7007 | AR49: 307540.1419 | AS49: 352451.4097 | AT49: 2980122.592 | AU49: 2947244.64 | AV49: 17906.31319 | AW49: 276.4855062 | AX49: 222917.2904 | AY49: =$JK49*AY$61/$JK$61 -> 665825.9038 | AZ49: 2651405.196 | BA49: 539021.1321 | BB49: 8666.803391 | BC49: 1265955.98 | BD49: 411765.4422 | BE49: 28381.64686 | BF49: 54446.05336 | BG49: 5879805.083 | BH49: 135356.8132 | BI49: =$JK49*BI$61/$JK$61 -> 833663.9791 | BJ49: 3702126.205 | BK49: 1723587.854 | BL49: 396395.5594 | BM49: 2367.417042 | BN49: 4813420.291 | BO49: 349445.0256 | BP49: 18781.68577 | BQ49: 373750.821 | BR49: 2485770.88 | BS49: =$JK49*BS$61/$JK$61 -> 105316.1279 | BT49: 108484.7328 | BU49: 82189.31438 | BV49: 2656079.523 | BW49: 6753649.852 | BX49: 574023.4535 | BY49: 47932.75295 | BZ49: 73630.70857 | CA49: 2697451.591 | CB49: 750724.5144 | CC49: =$JK49*CC$61/$JK$61 -> 29532.51519 | CD49: 349872.2653 | CE49: 490441.7884 | CF49: 247220.322 | CG49: 39009.87388 | CH49: 460060.7601 | CI49: 3183934.244 | CJ49: 12136.99653 | CK49: 377209.3239 | CL49: 159397.2732 | CM49: =$JK49*CM$61/$JK$61 -> 168419.999 | CN49: 17533.00398 | CO49: 392947.2546 | CP49: 234341.9496 | CQ49: 5269562.177 | CR49: 658420.167 | CS49: 1051771.392 | CT49: 66145.29894 | CU49: 10469.37301 | CV49: 89690.22394 | CW49: =$JK49*CW$61/$JK$61 -> 88608.63074 | CX49: 172548.886 | CY49: 103571.3967 | CZ49: 76642.41957 | DA49: 740867.2834 | DB49: 40465.77009 | DC49: 425838.6927 | DD49: 12593.33033 | DE49: 300236.1419 | DF49: 1815391.484 | DG49: =$JK49*DG$61/$JK$61 -> 6816.351972 | DH49: 363325.3476 | DI49: 92020.5095 | DJ49: 5912955.426 | DK49: 135093.1523 | DL49: 832683.1584 | DM49: 803040.3655 | DN49: 838.9427315 | DO49: 332270.5833 | DP49: 120385.1103 | DQ49: =$JK49*DQ$61/$JK$61 -> 114516.7128 | DR49: 45283.04761 | DS49: 134059.041 | DT49: 360948.4409 | DU49: 481996.9153 | DV49: 291816.3465 | DW49: 145747.4874 | DX49: 3372895.033 | DY49: 80158.06419 | DZ49: 153460.824 | EA49: =$JK49*EA$61/$JK$61 -> 400647.1152 | EB49: 267687.3513 | EC49: 6629579.88 | ED49: 7757.974053 | EE49: 336268.051 | EF49: 136519.4188 | EG49: 133194.2375 | EH49: 15581.33569 | EI49: 743800.004 | EJ49: 76743.79341 | EK49: =$JK49*EK$61/$JK$61 -> 109619.865 | EL49: 39334.22632 | EM49: 125330.8061 | EN49: 139548.0883 | EO49: 138447.3116 | EP49: 123961.356 | EQ49: 279233.6265 | ER49: 131959.7377 | ES49: 349895.1969 | ET49: 117886.8001 | EU49: =$JK49*EU$61/$JK$61 -> 94095.03532 | EV49: 96515.80033 | EW49: 438115.0463 | EX49: 147312.445 | EY49: 111425.4779 | EZ49: 377150.5118 | FA49: 116879.7463 | FB49: 121787.7539 | FC49: 104681.4051 | FD49: 680.0915436 | FE49: =$JK49*FE$61/$JK$61 -> 140058.9103 | FF49: 951509.0276 | FG49: 100211.9895 | FH49: 97736.78164 | FI49: 100309.7038 | FJ49: 107107.702 | FK49: 117279.8329 | FL49: 229904.8574 | FM49: 153294.6487 | FN49: 99906.30154 | FO49: =$JK49*FO$61/$JK$61 -> 25414.59364 | FP49: 4311.991748 | FQ49: 514542.2251 | FR49: 47795.04428 | FS49: 348154.6668 | FT49: 126105.9463 | FU49: 112193.3378 | FV49: 205985.9665 | FW49: 0.02674193622 | FX49: 52160.80379 | FY49: =$JK49*FY$61/$JK$61 -> 73238.27709 | FZ49: 120349.3174 | GA49: 233581.2662 | GB49: 193994.581 | GC49: 100370.7782 | GD49: 31200.77594 | GE49: 66341.60048 | GF49: 584706.9295 | GG49: 588717.0275 | GH49: 133201.8802 | GI49: =$JK49*GI$61/$JK$61 -> 408094.5796 | GJ49: 74066.96552 | GK49: 20739.68895 | GL49: 366668.8884 | GM49: 137973.8365 | GN49: 56671.88206 | GO49: 517818.7957 | GP49: 134631.6532 | GQ49: 96281.55326 | GR49: 164803.3543 | GS49: =$JK49*GS$61/$JK$61 -> 659632.6615 | GT49: 615483.875 | GU49: 262832.7511 | GV49: 9831902.059 | GW49: 2929610.246 | GX49: 2672315.653 | GY49: 9346757.469 | GZ49: 5511644.055 | HA49: 1281270.905 | HB49: 243444.7639 | HC49: =$JK49*HC$61/$JK$61 -> 735683.7431 | HD49: 764585.4472 | HE49: 0.151726633 | HF49: 435171.3847 | HG49: 341318.6725 | HH49: 969482.904 | HI49: 17825.08233 | HJ49: 2582597.376 | HK49: 725293.1839 | HL49: 98765.03486 | HM49: =$JK49*HM$61/$JK$61 -> 109282.1069 | HN49: 65545.70096 | HO49: 69990.61894 | HP49: 93500.08164 | HQ49: 79663.45515 | HR49: 73207.69142 | HS49: 81729.98817 | HT49: 9.901667612 | HU49: 42491.97372 | HV49: 406.8384744 | HW49: =$JK49*HW$61/$JK$61 -> 40041.33524 | HX49: 34576.93767 | HY49: 94736.9702 | HZ49: 148540.2065 | IA49: 141688.8559 | IB49: 117937.1758 | IC49: 125863.16 | ID49: 53026.23118 | IE49: 58108.78015 | IF49: 81899.54359 | IG49: =$JK49*IG$61/$JK$61 -> 64552.18248 | IH49: 61383.12512 | II49: 108847.3019 | IJ49: 81569.86731 | IK49: 137283.4643 | IL49: 1623048.503 | IM49: 3847116.867 | IN49: 123201.4273 | IO49: 542228.4755 | IP49: 267668.1966 | IQ49: =$JK49*IQ$61/$JK$61 -> 260373.9766 | IR49: 125714.5739 | IS49: 180447.8021 | IT49: 172373.1089 | IU49: 188366.5962 | IV49: 298310.0977 | IW49: 1365819.662 | IX49: 97908.47162 | IY49: 365985.2146 | IZ49: 159414.8788 | JA49: =$JK49*JA$61/$JK$61 -> 97729.99849 | JB49: 6.729669976e-05 | JC49: 81545.67391 | JD49: 100250.9154 | JE49: 2239169.631 | JF49: 4669885.058 | JG49: 213.0637734 | JH49: 754839.2002 | JI49: 289908.7677 | JJ49: 702692.1946 | JK49: 233192225.2
A50: =+MATCH(B50,RUT[EMPRESA],0) -> 195 | B50: LICAN | C50: 261622555.1 | D50: 261622555.1 | F50: =IFERROR(INDEX($B$9:$B$511,MATCH(0,INDEX(COUNTIF($F$8:F49,$B$9:$B$511),0,0),0)),"") -> LICAN | H50: 261622555.1 | J50: ANDINA | K50: 97491489.64 | L50: 51919062.05 | M50: 6833783.385 | N50: 222647893 | O50: 46681827.85 | P50: 23718054.77 | Q50: 142997.1108 | R50: 476246.0004 | S50: 3355761.391 | T50: 14998751.55 | U50: 1367159.926 | V50: 1573926.357 | W50: 1328987.936 | X50: 6298969.568 | Y50: 18952989.84 | Z50: 96804623.63 | AA50: 1857046.494 | AB50: 209453.8196 | AC50: 719815.4534 | AD50: 5740449.487 | AE50: 601087.0048 | AF50: 3878068.917 | AG50: 326755.2796 | AH50: 6190743.043 | AI50: 17514186.37 | AJ50: 10635406.74 | AK50: 55254.70338 | AL50: 1547461.961 | AM50: 46033546.96 | AN50: 10761079 | AO50: 1167035.855 | AP50: 59726080.23 | AQ50: 1719952.391 | AR50: 3120919.814 | AS50: 3576679.719 | AT50: 30242307.85 | AU50: 29908662.13 | AV50: 181713.4092 | AW50: 2805.777124 | AX50: 2262166.442 | AY50: 6756806.586 | AZ50: 26906481.09 | BA50: 5469990.751 | BB50: 87950.78999 | BC50: 12846931.39 | BD50: 4178598.994 | BE50: 288017.1789 | BF50: 552518.9841 | BG50: 59668308.91 | BH50: 1373602.021 | BI50: 8460028.714 | BJ50: 37569206.28 | BK50: 17490983.3 | BL50: 4022625.301 | BM50: 24024.56704 | BN50: 48846627.53 | BO50: 3546170.909 | BP50: 190596.6971 | BQ50: 3792826.314 | BR50: 25225622.73 | BS50: 1068748.907 | BT50: 1100903.934 | BU50: 834057.8184 | BV50: 26953916.2 | BW50: 68536092.61 | BX50: 5825194.588 | BY50: 486421.9595 | BZ50: 747205.0183 | CA50: 27373760.28 | CB50: 7618358.365 | CC50: 299696.1999 | CD50: 3550506.541 | CE50: 4977007.184 | CF50: 2508793.801 | CG50: 395872.5115 | CH50: 4668700.265 | CI50: 32310590.12 | CJ50: 123166.3377 | CK50: 3827923.229 | CL50: 1617564.801 | CM50: 1709127.494 | CN50: 177925.0643 | CO50: 3987631.876 | CP50: 2378103.975 | CQ50: 53475559.04 | CR50: 6681653.11 | CS50: 10673384.48 | CT50: 671243.0216 | CU50: 106243.2809 | CV50: 910177.1084 | CW50: 899201.092 | CX50: 1751027.472 | CY50: 1051043.361 | CZ50: 777767.8855 | DA50: 7518327.105 | DB50: 410646.9578 | DC50: 4321414.452 | DD50: 127797.2167 | DE50: 3046798.764 | DF50: 18422607.27 | DG50: 69172.39422 | DH50: 3687028.528 | DI50: 933824.8648 | DJ50: 60004718.86 | DK50: 1370926.388 | DL50: 8450075.338 | DM50: 8149260.039 | DN50: 8513.597536 | DO50: 3371884.531 | DP50: 1221669.06 | DQ50: 1162116.515 | DR50: 459532.7286 | DS50: 1360432.218 | DT50: 3662907.659 | DU50: 4891308.544 | DV50: 2961354.613 | DW50: 1479046.666 | DX50: 34228165.71 | DY50: 813444.6752 | DZ50: 1557321.667 | EA50: 4065770.123 | EB50: 2716493.377 | EC50: 67277029.54 | ED50: 78727.98261 | EE50: 3412450.866 | EF50: 1385400.152 | EG50: 1351656.185 | EH50: 158119.5189 | EI50: 7548088.377 | EJ50: 778796.6281 | EK50: 1112423.265 | EL50: 399164.0426 | EM50: 1271858.021 | EN50: 1416135.114 | EO50: 1404964.424 | EP50: 1257960.83 | EQ50: 2833665.07 | ER50: 1339128.471 | ES50: 3550739.251 | ET50: 1196316.188 | EU50: 954877.1695 | EV50: 979443.1121 | EW50: 4445994.986 | EX50: 1494927.867 | EY50: 1130746.639 | EZ50: 3827326.404 | FA50: 1186096.598 | FB50: 1235903.099 | FC50: 1062307.734 | FD50: 6901.574413 | FE50: 1421318.939 | FF50: 9655921.207 | FG50: 1016952.069 | FH50: 991833.6402 | FI50: 1017943.675 | FJ50: 1086929.815 | FK50: 1190156.68 | FL50: 2333076.328 | FM50: 1555635.319 | FN50: 1013849.945 | FO50: 257907.4991 | FP50: 43758.12668 | FQ50: 5221578.607 | FR50: 485024.4909 | FS50: 3533076.338 | FT50: 1279724.15 | FU50: 1138538.887 | FV50: 2090347.232 | FW50: 0.2713773822 | FX50: 529328.2532 | FY50: 743222.6205 | FZ50: 1221305.834 | GA50: 2370384.554 | GB50: 1968658.557 | GC50: 1018563.458 | GD50: 316625.7233 | GE50: 673235.0912 | GF50: 5933610.587 | GG50: 5974305.094 | GH50: 1351733.744 | GI50: 4141347.051 | GJ50: 751632.1573 | GK50: 210466.529 | GL50: 3720958.807 | GM50: 1400159.594 | GN50: 575106.7115 | GO50: 5254829.272 | GP50: 1366243.091 | GQ50: 977065.971 | GR50: 1672425.755 | GS50: 6693957.514 | GT50: 6245935.276 | GU50: 2667228.856 | GV50: 99774220.57 | GW50: 29729708.16 | GX50: 27118680.57 | GY50: 94850969.4 | GZ50: 55932207.86 | HA50: 13002347.37 | HB50: 2470479.407 | HC50: 7465724.497 | HD50: 7759019.221 | HE50: 1.539723083 | HF50: 4416122.685 | HG50: 3463704.613 | HH50: 9838320.248 | HI50: 180889.0778 | HJ50: 26208218.78 | HK50: 7360281.019 | HL50: 1002268.362 | HM50: 1108995.693 | HN50: 665158.2965 | HO50: 710265.3597 | HP50: 948839.5748 | HQ50: 808425.3788 | HR50: 742912.2369 | HS50: 829396.5723 | HT50: 100.482202 | HU50: 431208.8885 | HV50: 4128.600085 | HW50: 406339.7896 | HX50: 350887.0394 | HY50: 961391.5297 | HZ50: 1507387.201 | IA50: 1437859.64 | IB50: 1196827.401 | IC50: 1277260.353 | ID50: 538110.6172 | IE50: 589688.3648 | IF50: 831117.2221 | IG50: 655076.063 | IH50: 622916.4436 | II50: 1104583.288 | IJ50: 827771.6646 | IK50: 1393153.692 | IL50: 16470709.17 | IM50: 39040572.67 | IN50: 1250249.068 | IO50: 5502538.897 | IP50: 2716298.995 | IQ50: 2642277.193 | IR50: 1275752.499 | IS50: 1831185.736 | IT50: 1749243.685 | IU50: 1911545.722 | IV50: 3027253.252 | IW50: 13860348.83 | IX50: 993575.9515 | IY50: 3714020.879 | IZ50: 1617743.462 | JA50: 991764.8048 | JB50: 0.0006829274463 | JC50: 827526.1498 | JD50: 1017347.09 | JE50: 22723111.29 | JF50: 47390030.85 | JG50: 2162.172873 | JH50: 7660114.228 | JI50: 2941996.489 | JJ50: 7130925.999 | JK50: 2366436563
A51: =+MATCH(B51,RUT[EMPRESA],0) -> 111 | B51: ENERGIA PACIFICO | C51: 158869057.7 | D51: 158869057.7 | F51: =IFERROR(INDEX($B$9:$B$511,MATCH(0,INDEX(COUNTIF($F$8:F50,$B$9:$B$511),0,0),0)),"") -> ENERGIA PACIFICO | H51: 158869057.7 | J51: TAMAKAYA_ENERGIA | K51: 98748141.69 | L51: 52588291.7 | M51: 6921869.924 | N51: 225517794 | O51: 47283550.26 | P51: 24023777.27 | Q51: 144840.3241 | R51: 482384.7466 | S51: 3399016.7 | T51: 15192083.42 | U51: 1384782.432 | V51: 1594214.054 | W51: 1346118.409 | X51: 6380162.43 | Y51: 19197291.3 | Z51: 98052422.07 | AA51: 1880983.571 | AB51: 212153.6508 | AC51: 729093.7767 | AD51: 5814443.101 | AE51: 608834.9346 | AF51: 3928056.698 | AG51: 330967.1107 | AH51: 6270540.879 | AI51: 17739941.85 | AJ51: 10772495.69 | AK51: 55966.929 | AL51: 1567408.535 | AM51: 46626913.13 | AN51: 10899787.84 | AO51: 1182078.789 | AP51: 60495941.28 | AQ51: 1742122.344 | AR51: 3161148.046 | AS51: 3622782.634 | AT51: 30632127.09 | AU51: 30294180.72 | AV51: 184055.6703 | AW51: 2841.943209 | AX51: 2291325.46 | AY51: 6843900.904 | AZ51: 27253301.97 | BA51: 5540498.188 | BB51: 89084.46371 | BC51: 13012526.59 | BD51: 4232460.567 | BE51: 291729.6812 | BF51: 559640.8787 | BG51: 60437425.3 | BH51: 1391307.564 | BI51: 8569077.334 | BJ51: 38053468.24 | BK51: 17716439.69 | BL51: 4074476.394 | BM51: 24334.24044 | BN51: 49476253.92 | BO51: 3591880.57 | BP51: 193053.4626 | BQ51: 3841715.33 | BR51: 25550777.58 | BS51: 1082524.935 | BT51: 1115094.436 | BU51: 844808.7103 | BV51: 27301348.51 | BW51: 69419513.52 | BX51: 5900280.554 | BY51: 492691.8724 | BZ51: 756836.3894 | CA51: 27726604.33 | CB51: 7716557.968 | CC51: 303559.2431 | CD51: 3596272.088 | CE51: 5041160.13 | CF51: 2541131.812 | CG51: 400975.2544 | CH51: 4728879.177 | CI51: 32727069.24 | CJ51: 124753.9351 | CK51: 3877264.639 | CL51: 1638414.991 | CM51: 1731157.915 | CN51: 180218.4942 | CO51: 4039031.909 | CP51: 2408757.412 | CQ51: 54164851.72 | CR51: 6767778.711 | CS51: 10810962.96 | CT51: 679895.2529 | CU51: 107612.7423 | CV51: 921909.1676 | CW51: 910791.6718 | CX51: 1773597.978 | CY51: 1064591.167 | CZ51: 787793.2078 | DA51: 7615237.319 | DB51: 415940.1413 | DC51: 4377116.897 | DD51: 129444.5055 | DE51: 3086071.586 | DF51: 18660072.18 | DG51: 70064.01697 | DH51: 3734553.824 | DI51: 945861.7404 | DJ51: 60778171.53 | DK51: 1388597.442 | DL51: 8558995.66 | DM51: 8254302.893 | DN51: 8623.336651 | DO51: 3415347.664 | DP51: 1237416.208 | DQ51: 1177096.039 | DR51: 465456.043 | DS51: 1377968.004 | DT51: 3710122.041 | DU51: 4954356.846 | DV51: 2999526.072 | DW51: 1498111.376 | DX51: 34669362.12 | DY51: 823929.8665 | DZ51: 1577395.332 | EA51: 4118177.347 | EB51: 2751508.608 | EC51: 68144221.31 | ED51: 79742.7756 | EE51: 3456436.894 | EF51: 1403257.772 | EG51: 1369078.849 | EH51: 160157.658 | EI51: 7645382.21 | EJ51: 788835.2107 | EK51: 1126762.249 | EL51: 404309.2129 | EM51: 1288252.098 | EN51: 1434388.903 | EO51: 1423074.224 | EP51: 1274175.774 | EQ51: 2870190.628 | ER51: 1356389.655 | ES51: 3596507.797 | ET51: 1211736.541 | EU51: 967185.4064 | EV51: 992068.0007 | EW51: 4503303.257 | EX51: 1514197.284 | EY51: 1145321.81 | EZ51: 3876660.121 | FA51: 1201385.222 | FB51: 1251833.722 | FC51: 1076000.736 | FD51: 6990.534769 | FE51: 1439639.547 | FF51: 9780384.718 | FG51: 1030060.443 | FH51: 1004618.241 | FI51: 1031064.831 | FJ51: 1100940.193 | FK51: 1205497.638 | FL51: 2363149.365 | FM51: 1575687.247 | FN51: 1026918.333 | FO51: 261231.8917 | FP51: 44322.16298 | FQ51: 5288884.046 | FR51: 491276.3906 | FS51: 3578617.211 | FT51: 1296219.62 | FU51: 1153214.499 | FV51: 2117291.524 | FW51: 0.2748753997 | FX51: 536151.2224 | FY51: 752802.6591 | FZ51: 1237048.3 | GA51: 2400938.488 | GB51: 1994034.298 | GC51: 1031692.603 | GD51: 320706.9858 | GE51: 681913 | GF51: 6010094.021 | GG51: 6051313.074 | GH51: 1369157.408 | GI51: 4194728.451 | GJ51: 761320.5936 | GK51: 213179.414 | GL51: 3768921.46 | GM51: 1418207.461 | GN51: 582519.7588 | GO51: 5322563.307 | GP51: 1383853.779 | GQ51: 989660.2185 | GR51: 1693983.096 | GS51: 6780241.716 | GT51: 6326444.533 | GU51: 2701609.073 | GV51: 101060296.7 | GW51: 30112920.06 | GX51: 27468236.68 | GY51: 96073585.5 | GZ51: 56653166.41 | HA51: 13169945.86 | HB51: 2502323.551 | HC51: 7561956.671 | HD51: 7859031.924 | HE51: 1.559569904 | HF51: 4473045.906 | HG51: 3508351.294 | HH51: 9965134.858 | HI51: 183220.7134 | HJ51: 26546039.16 | HK51: 7455154.041 | HL51: 1015187.465 | HM51: 1123290.497 | HN51: 673732.0965 | HO51: 719420.5836 | HP51: 961069.9879 | HQ51: 818845.872 | HR51: 752488.2746 | HS51: 840087.3814 | HT51: 101.7774039 | HU51: 436767.1124 | HV51: 4181.817179 | HW51: 411577.4543 | HX51: 355409.9256 | HY51: 973783.7358 | HZ51: 1526817.217 | IA51: 1456393.455 | IB51: 1212254.344 | IC51: 1293724.065 | ID51: 545046.7899 | IE51: 597289.3677 | IF51: 841830.2101 | IG51: 663519.9044 | IH51: 630945.7519 | II51: 1118821.217 | IJ51: 838441.5288 | IK51: 1411111.254 | IL51: 16683014.37 | IM51: 39543800.35 | IN51: 1266364.609 | IO51: 5573465.875 | IP51: 2751311.72 | IQ51: 2676335.787 | IR51: 1292196.775 | IS51: 1854789.471 | IT51: 1771791.199 | IU51: 1936185.287 | IV51: 3066274.135 | IW51: 14039006.84 | IX51: 1006383.01 | IY51: 3761894.104 | IZ51: 1638595.955 | JA51: 1004548.518 | JB51: 0.0006917302882 | JC51: 838192.8493 | JD51: 1030460.555 | JE51: 23016009.11 | JF51: 48000881.9 | JG51: 2190.042987 | JH51: 7758852.059 | JI51: 2979918.423 | JJ51: 7222842.666 | JK51: 2396939608
A52: =+MATCH(B52,RUT[EMPRESA],0) -> 78 | B52: DONGUIL | C52: 825381.0009 | D52: 825381.0009 | F52: =IFERROR(INDEX($B$9:$B$511,MATCH(0,INDEX(COUNTIF($F$8:F51,$B$9:$B$511),0,0),0)),"") -> DONGUIL | H52: 825381.0009 | J52: POZO_ALMONTE_SOLAR_2 | K52: 44310.90712 | L52: 23597.75961 | M52: 3106.026403 | N52: 101195.8084 | O52: 21217.3816 | P52: 10780.10528 | Q52: 64.99369042 | R52: 216.4588147 | S52: 1525.228837 | T52: 6817.090287 | U52: 621.3885617 | V52: 715.3660787 | W52: 604.0389905 | X52: 2862.9479 | Y52: 8614.333166 | Z52: 43998.7193 | AA52: 844.0471576 | AB52: 95.19896331 | AC52: 327.1636921 | AD52: 2609.094651 | AE52: 273.2003639 | AF52: 1762.623099 | AG52: 148.5137103 | AH52: 2813.757806 | AI52: 7960.381861 | AJ52: 4833.90419 | AK52: 25.11384367 | AL52: 703.3377321 | AM52: 20922.73112 | AN52: 4891.023553 | AO52: 530.4300671 | AP52: 27146.13146 | AQ52: 781.7364463 | AR52: 1418.490871 | AS52: 1625.638539 | AT52: 13745.4469 | AU52: 13593.80142 | AV52: 82.5906551 | AW52: 1.275255204 | AX52: 1028.178434 | AY52: 3071.039638 | AZ52: 12229.27857 | BA52: 2486.168311 | BB52: 39.97455882 | BC52: 5839.065395 | BD52: 1899.217179 | BE52: 130.9068362 | BF52: 251.1256878 | BG52: 27119.87379 | BH52: 624.3165612 | BI52: 3845.172004 | BJ52: 17075.59928 | BK52: 7949.835819 | BL52: 1828.325496 | BM52: 10.91941833 | BN52: 22201.30582 | BO52: 1611.771965 | BP52: 86.62820287 | BQ52: 1723.87944 | BR52: 11465.31077 | BS52: 485.7576156 | BT52: 500.3724137 | BU52: 379.0880482 | BV52: 12250.83832 | BW52: 31150.37472 | BX52: 2647.61219 | BY52: 221.0838951 | BZ52: 339.6125374 | CA52: 12441.66187 | CB52: 3462.623981 | CC52: 136.215074 | CD52: 1613.742555 | CE52: 2262.102096 | CF52: 1140.273162 | CG52: 179.9282189 | CH52: 2121.97336 | CI52: 14685.50294 | CJ52: 55.98039553 | CK52: 1739.831357 | CL52: 735.2002099 | CM52: 776.8164169 | CN52: 80.86881253 | CO52: 1812.420616 | CP52: 1080.873261 | CQ52: 24305.20386 | CR52: 3036.881594 | CS52: 4851.165474 | CT52: 305.0870112 | CU52: 48.28868827 | CV52: 413.6850659 | CW52: 408.696351 | CX52: 795.8603975 | CY52: 477.7102588 | CZ52: 353.5036819 | DA52: 3417.158721 | DB52: 186.6433601 | DC52: 1964.128306 | DD52: 58.08517873 | DE52: 1384.802074 | DF52: 8373.268712 | DG52: 31.43958049 | DH52: 1675.793233 | DI52: 424.4332199 | DJ52: 27272.77565 | DK52: 623.1004579 | DL52: 3840.64809 | DM52: 3703.924374 | DN52: 3.869519597 | DO52: 1532.556973 | DP52: 555.2614332 | DQ52: 528.1941755 | DR52: 208.8624569 | DS52: 618.3307475 | DT52: 1664.830045 | DU52: 2223.151163 | DV52: 1345.966809 | DW52: 672.2422612 | DX52: 15557.06121 | DY52: 369.7191579 | DZ52: 707.8190723 | EA52: 1847.935271 | EB52: 1234.674803 | EC52: 30578.11732 | ED52: 35.78269589 | EE52: 1550.994799 | EF52: 629.678936 | EG52: 614.3419481 | EH52: 71.86698392 | EI52: 3430.685532 | EJ52: 353.9712562 | EK52: 505.6080704 | EL52: 181.4242544 | EM52: 578.0728434 | EN52: 643.6482995 | EO52: 638.5711031 | EP52: 571.7564243 | EQ52: 1287.930569 | ER52: 608.6479706 | ES52: 1613.848324 | ET52: 543.7382863 | EU52: 434.0017137 | EV52: 445.1671929 | EW52: 2020.751469 | EX52: 679.4604343 | EY52: 513.9362369 | EZ52: 1739.560093 | FA52: 539.0933753 | FB52: 561.7309535 | FC52: 482.8300348 | FD52: 3.136838138 | FE52: 646.0044026 | FF52: 4388.717716 | FG52: 462.2154082 | FH52: 450.7988182 | FI52: 462.6661036 | FJ52: 494.0210296 | FK52: 540.9387252 | FL52: 1060.407723 | FM52: 707.0526093 | FN52: 460.8054604 | FO52: 117.2216702 | FP52: 19.88852867 | FQ52: 2373.26238 | FR52: 220.4487309 | FS52: 1605.820344 | FT52: 581.6480818 | FU52: 517.4778955 | FV52: 950.0847963 | FW52: 0.0001233438736 | FX52: 240.5852568 | FY52: 337.8024957 | FZ52: 555.096343 | GA52: 1077.364703 | GB52: 894.7760136 | GC52: 462.9478016 | GD52: 143.9097204 | GE52: 305.9924278 | GF52: 2696.888401 | GG52: 2715.384482 | GH52: 614.3771995 | GI52: 1882.285779 | GJ52: 341.6247186 | GK52: 95.6592504 | GL52: 1691.214902 | GM52: 636.3872576 | GN52: 261.3920474 | GO52: 2388.375157 | GP52: 620.9718503 | GQ52: 444.0867573 | GR52: 760.1350907 | GS52: 3042.474074 | GT52: 2838.843257 | GU52: 1212.28356 | GV52: 45348.43233 | GW52: 13512.46496 | GX52: 12325.72546 | GY52: 43110.76291 | GZ52: 25421.77658 | HA52: 5909.703593 | HB52: 1122.858867 | HC52: 3393.250283 | HD52: 3526.555819 | HE52: 0.0006998203307 | HF52: 2007.174194 | HG52: 1574.290166 | HH52: 4471.619999 | HI52: 82.21598782 | HJ52: 11911.91101 | HK52: 3345.325114 | HL52: 455.541509 | HM52: 504.0502033 | HN52: 302.3214396 | HO52: 322.8230741 | HP52: 431.2575634 | HQ52: 367.4378349 | HR52: 337.6614231 | HS52: 376.9694629 | HT52: 0.04567021732 | HU52: 195.9889738 | HV52: 1.876492149 | HW52: 184.6857069 | HX52: 159.4818488 | HY52: 436.9625589 | HZ52: 685.1233325 | IA52: 653.522325 | IB52: 543.9706381 | IC52: 580.5282602 | ID52: 244.5769335 | IE52: 268.0195621 | IF52: 377.7515163 | IG52: 297.7389585 | IH52: 283.1220733 | II52: 502.0447187 | IJ52: 376.2309252 | IK52: 633.2030014 | IL52: 7486.110498 | IM52: 17744.35078 | IN52: 568.2513473 | IO52: 2500.961786 | IP52: 1234.586454 | IQ52: 1200.942767 | IR52: 579.8429248 | IS52: 832.2931712 | IT52: 795.0496476 | IU52: 868.8176299 | IV52: 1375.918433 | IW52: 6299.674279 | IX52: 451.590717 | IY52: 1688.061541 | IZ52: 735.2814135 | JA52: 450.7675318 | JB52: 3.10397705e-07 | JC52: 376.1193362 | JD52: 462.3949492 | JE52: 10327.89301 | JF52: 21539.26731 | JG52: 0.982730305 | JH52: 3481.60246 | JI52: 1337.168338 | JJ52: 3241.080845 | JK52: 1075570.3
A53: =+MATCH(B53,RUT[EMPRESA],0) -> 245 | B53: PEHUI | C53: 23115601.46 | D53: 23115601.46 | F53: =IFERROR(INDEX($B$9:$B$511,MATCH(0,INDEX(COUNTIF($F$8:F52,$B$9:$B$511),0,0),0)),"") -> PEHUI | H53: 23115601.46 | J53: INERSA | K53: 28923.79985 | L53: 15403.36049 | M53: 2027.448587 | N53: 66055.23331 | O53: 13849.57652 | P53: 7036.6785 | Q53: 42.42441908 | R53: 141.2927841 | S53: 995.5881401 | T53: 4449.833412 | U53: 405.6093535 | V53: 466.9528706 | W53: 394.2844776 | X53: 1868.779888 | Y53: 5622.97783 | Z53: 28720.02027 | AA53: 550.9490245 | AB53: 62.14081227 | AC53: 213.5550312 | AD53: 1703.078009 | AE53: 178.3306449 | AF53: 1150.546469 | AG53: 96.94183916 | AH53: 1836.671215 | AI53: 5196.113252 | AJ53: 3155.315167 | AK53: 16.3929794 | AL53: 459.1014067 | AM53: 13657.24438 | AN53: 3192.599644 | AO53: 346.2364933 | AP53: 17719.54862 | AQ53: 510.2759113 | AR53: 925.9152815 | AS53: 1061.130245 | AT53: 8972.295559 | AU53: 8873.309462 | AV53: 53.91078028 | AW53: 0.8324186682 | AX53: 671.1401133 | AY53: 2004.61109 | AZ53: 7982.62163 | BA53: 1622.838242 | BB53: 26.09326266 | BC53: 3811.43086 | BD53: 1239.707809 | BE53: 85.44900963 | BF53: 163.9214722 | BG53: 17702.40901 | BH53: 407.5205956 | BI53: 2509.923463 | BJ53: 11146.04164 | BK53: 5189.229357 | BL53: 1193.433494 | BM53: 7.127614638 | BN53: 14491.82984 | BO53: 1052.078884 | BP53: 56.5462764 | BQ53: 1125.256672 | BR53: 7483.944146 | BS53: 317.0766965 | BT53: 326.6164583 | BU53: 247.4484849 | BV53: 7996.694688 | BW53: 20333.30532 | BX53: 1728.220207 | BY53: 144.3117902 | BZ53: 221.6809742 | CA53: 8121.254137 | CB53: 2260.21649 | CC53: 88.91394453 | CD53: 1053.365181 | CE53: 1476.579753 | CF53: 744.3095808 | CG53: 117.4475571 | CH53: 1385.111178 | CI53: 9585.914067 | CJ53: 36.54102029 | CK53: 1135.669234 | CL53: 479.899535 | CM53: 507.0643782 | CN53: 52.78685317 | CO53: 1183.051636 | CP53: 705.53649 | CQ53: 15865.14241 | CR53: 1982.314538 | CS53: 3166.582413 | CT53: 199.1445498 | CU53: 31.5202835 | CV53: 270.0315752 | CW53: 266.7752079 | CX53: 519.4952743 | CY53: 311.8238107 | CZ53: 230.7483734 | DA53: 2230.539191 | DB53: 121.8308435 | DC53: 1282.078335 | DD53: 37.91491064 | DE53: 903.9250295 | DF53: 5465.623795 | DG53: 20.52208345 | DH53: 1093.868558 | DI53: 277.0473976 | DJ53: 17802.2152 | DK53: 406.7267881 | DL53: 2506.970493 | DM53: 2417.724534 | DN53: 2.525816275 | DO53: 1000.371557 | DP53: 362.4450864 | DQ53: 344.7770223 | DR53: 136.3342864 | DS53: 403.6133752 | DT53: 1086.712373 | DU53: 1451.154659 | DV53: 878.5754372 | DW53: 438.8039397 | DX53: 10154.82088 | DY53: 241.3329724 | DZ53: 462.0265869 | EA53: 1206.233711 | EB53: 805.9299437 | EC53: 19959.76618 | ED53: 23.35703783 | EE53: 1012.406788 | EF53: 411.0208682 | EG53: 401.0096995 | EH53: 46.91093895 | EI53: 2239.368773 | EJ53: 231.053581 | EK53: 330.0340161 | EL53: 118.4240893 | EM53: 377.3351599 | EN53: 420.1393246 | EO53: 416.8252013 | EP53: 373.2121379 | EQ53: 840.6924713 | ER53: 397.2929742 | ES53: 1053.434221 | ET53: 354.9233899 | EU53: 283.2932007 | EV53: 290.5814307 | EW53: 1319.038919 | EX53: 443.5155786 | EY53: 335.4701995 | EZ53: 1135.492168 | FA53: 351.8914394 | FB53: 366.6680447 | FC53: 315.1657278 | FD53: 2.047560846 | FE53: 421.6772632 | FF53: 2864.721151 | FG53: 301.7095976 | FH53: 294.2574557 | FI53: 302.0037875 | FJ53: 322.470613 | FK53: 353.0959855 | FL53: 692.1776764 | FM53: 461.5262807 | FN53: 300.7892588 | FO53: 76.51606221 | FP53: 12.98217211 | FQ53: 1549.139265 | FR53: 143.8971889 | FS53: 1048.193983 | FT53: 379.668885 | FU53: 337.7820056 | FV53: 620.1647467 | FW53: 8.051231053e-05 | FX53: 157.0412403 | FY53: 220.4994754 | FZ53: 362.3373243 | GA53: 703.2462902 | GB53: 584.0621195 | GC53: 302.187665 | GD53: 93.93659983 | GE53: 199.7355575 | GF53: 1760.385093 | GG53: 1772.458349 | GH53: 401.0327097 | GI53: 1228.655893 | GJ53: 222.9944189 | GK53: 62.44126317 | GL53: 1103.935002 | GM53: 415.3997033 | GN53: 170.6228049 | GO53: 1559.00408 | GP53: 405.3373465 | GQ53: 289.8761799 | GR53: 496.175697 | GS53: 1985.965012 | GT53: 1853.045661 | GU53: 791.314133 | GV53: 29601.04105 | GW53: 8820.217353 | GX53: 8045.577025 | GY53: 28140.40964 | GZ53: 16593.9816 | HA53: 3857.539712 | HB53: 732.9424567 | HC53: 2214.933036 | HD53: 2301.947789 | HE53: 0.0004568054344 | HF53: 1310.176397 | HG53: 1027.612762 | HH53: 2918.835345 | HI53: 53.66621744 | HJ53: 7775.460991 | HK53: 2183.650038 | HL53: 297.3532317 | HM53: 329.0171234 | HN53: 197.339332 | HO53: 210.7217069 | HP53: 281.5019655 | HQ53: 239.8438463 | HR53: 220.4073907 | HS53: 246.0655853 | HT53: 0.02981108515 | HU53: 127.9311623 | HV53: 1.22487412 | HW53: 120.5529918 | HX53: 104.1012558 | HY53: 285.2258827 | HZ53: 447.2120169 | IA53: 426.5845625 | IB53: 355.0750568 | IC53: 378.9379252 | ID53: 159.6467943 | IE53: 174.9488935 | IF53: 246.5760681 | IG53: 194.3481324 | IH53: 184.8070084 | II53: 327.7080499 | IJ53: 245.5835072 | IK53: 413.3211904 | IL53: 4886.53417 | IM53: 11582.567 | IN53: 370.9242104 | IO53: 1632.494635 | IP53: 805.8722744 | IQ53: 783.9114674 | IR53: 378.4905747 | IS53: 543.2766483 | IT53: 518.9660599 | IU53: 567.1178693 | IV53: 898.1262621 | IW53: 4112.091804 | IX53: 294.7743651 | IY53: 1101.876656 | IZ53: 479.9525404 | JA53: 294.2370336 | JB53: 2.026110878e-07 | JC53: 245.5106678 | JD53: 301.8267924 | JE53: 6741.498417 | JF53: 14059.68636 | JG53: 0.6414739959 | JH53: 2272.604631 | JI53: 872.8322639 | JJ53: 2115.604933 | JK53: 702074.9992
A54: =+MATCH(B54,RUT[EMPRESA],0) -> 61 | B54: COMASA | C54: 687637662.4 | D54: 687637662.4 | F54: =IFERROR(INDEX($B$9:$B$511,MATCH(0,INDEX(COUNTIF($F$8:F53,$B$9:$B$511),0,0),0)),"") -> COMASA | H54: 687637662.4 | J54: HORNITOS | K54: 587283.5709 | L54: 312757.6804 | M54: 41166.34923 | N54: 1341219.117 | O54: 281208.8589 | P54: 142876.3059 | Q54: 861.407023 | R54: 2868.880687 | S54: 20214.92892 | T54: 90351.68509 | U54: 8235.698998 | V54: 9481.249029 | W54: 8005.752947 | X54: 37944.65911 | Y54: 114171.8071 | Z54: 583145.9264 | AA54: 11186.74974 | AB54: 1261.738717 | AC54: 4336.130173 | AD54: 34580.16372 | AE54: 3620.916286 | AF54: 23361.28179 | AG54: 1968.356501 | AH54: 37292.70825 | AI54: 105504.5312 | AJ54: 64067.12699 | AK54: 332.8514071 | AL54: 9321.828905 | AM54: 277303.6492 | AN54: 64824.17002 | AO54: 7030.162191 | AP54: 359786.7444 | AQ54: 10360.90212 | AR54: 18800.25569 | AS54: 21545.72922 | AT54: 182178.061 | AU54: 180168.1969 | AV54: 1094.631954 | AW54: 16.90185281 | AX54: 13627.17085 | AY54: 40702.64506 | AZ54: 162083.2172 | BA54: 32950.93462 | BB54: 529.8109014 | BC54: 77389.23435 | BD54: 25171.65906 | BE54: 1735.000234 | BF54: 3328.345101 | BG54: 359438.7331 | BH54: 8274.505832 | BI54: 50962.76497 | BJ54: 226314.9091 | BK54: 105364.7571 | BL54: 24232.08179 | BM54: 144.7227196 | BN54: 294249.4975 | BO54: 21361.94577 | BP54: 1148.14441 | BQ54: 22847.78487 | BR54: 151957.8155 | BS54: 6438.086818 | BT54: 6631.787002 | BU54: 5024.32013 | BV54: 162368.9638 | BW54: 412857.7925 | BX54: 35090.66372 | BY54: 2930.180125 | BZ54: 4501.123462 | CA54: 164898.0823 | CB54: 45892.58735 | CC54: 1805.354037 | CD54: 21388.06338 | CE54: 29981.22771 | CF54: 15112.841 | CG54: 2384.715046 | CH54: 28124.00316 | CI54: 194637.2839 | CJ54: 741.947496 | CK54: 23059.20682 | CL54: 9744.1247 | CM54: 10295.69352 | CN54: 1071.811165 | CO54: 24021.28326 | CP54: 14325.57241 | CQ54: 322133.9358 | CR54: 40249.92451 | CS54: 64295.90291 | CT54: 4043.532416 | CU54: 640.0038979 | CV54: 5482.858702 | CW54: 5416.73976 | CX54: 10548.09677 | CY54: 6331.429546 | CZ54: 4685.232555 | DA54: 45290.00434 | DB54: 2473.715528 | DC54: 26031.97182 | DD54: 769.8436658 | DE54: 18353.75441 | DF54: 110976.8106 | DG54: 416.6908397 | DH54: 22210.4646 | DI54: 5625.311535 | DJ54: 361465.2488 | DK54: 8258.387961 | DL54: 50902.80636 | DM54: 49090.71093 | DN54: 51.28546071 | DO54: 20312.05385 | DP54: 7359.269725 | DQ54: 7000.528349 | DR54: 2768.200822 | DS54: 8195.171639 | DT54: 22065.16176 | DU54: 29464.98365 | DV54: 17839.04337 | DW54: 8909.698791 | DX54: 206188.6577 | DY54: 4900.147647 | DZ54: 9381.223254 | EA54: 24491.98392 | EB54: 16364.01225 | EC54: 405273.2633 | ED54: 474.2531982 | EE54: 20556.42331 | EF54: 8345.577151 | EG54: 8142.305279 | EH54: 952.5036087 | EI54: 45469.28467 | EJ54: 4691.429646 | EK54: 6701.178837 | EL54: 2404.543055 | EM54: 7661.605364 | EN54: 8530.722935 | EO54: 8463.431287 | EP54: 7577.889425 | EQ54: 17069.84833 | ER54: 8066.838996 | ES54: 21389.46521 | ET54: 7206.545366 | EU54: 5752.129503 | EV54: 5900.11344 | EW54: 26782.43836 | EX54: 9005.366308 | EY54: 6811.557875 | EZ54: 23055.61158 | FA54: 7144.983099 | FB54: 7445.01482 | FC54: 6399.285534 | FD54: 41.57471879 | FE54: 8561.950024 | FF54: 58166.75801 | FG54: 6126.06541 | FH54: 5974.753325 | FI54: 6132.038792 | FJ54: 6547.607647 | FK54: 7169.440816 | FL54: 14054.32825 | FM54: 9371.064781 | FN54: 6107.378382 | FO54: 1553.621117 | FP54: 263.5966379 | FQ54: 31454.51302 | FR54: 2921.761848 | FS54: 21283.06476 | FT54: 7708.990509 | FU54: 6858.497964 | FV54: 12592.14103 | FW54: 0.001634762979 | FX54: 3188.645366 | FY54: 4477.133708 | FZ54: 7357.081668 | GA54: 14279.07103 | GB54: 11859.09489 | GC54: 6135.772335 | GD54: 1907.33659 | GE54: 4055.532538 | GF54: 35743.75596 | GG54: 35988.89751 | GH54: 8142.772491 | GI54: 24947.25533 | GJ54: 4527.792312 | GK54: 1267.839225 | GL54: 22414.8588 | GM54: 8434.487249 | GN54: 3464.412375 | GO54: 31654.81326 | GP54: 8230.17603 | GQ54: 5885.793668 | GR54: 10074.60419 | GS54: 40324.04558 | GT54: 37625.18335 | GU54: 16067.24538 | GV54: 601034.6211 | GW54: 179090.1876 | GX54: 163361.4957 | GY54: 571377.2168 | GZ54: 336932.6582 | HA54: 78325.45199 | HB54: 14882.03712 | HC54: 44973.12902 | HD54: 46739.9209 | HE54: 0.009275210313 | HF54: 26602.4892 | HG54: 20865.17316 | HH54: 59265.52018 | HI54: 1089.666225 | HJ54: 157876.9221 | HK54: 44337.94309 | HL54: 6037.611537 | HM54: 6680.531329 | HN54: 4006.878354 | HO54: 4278.600914 | HP54: 5715.759352 | HQ54: 4869.911671 | HR54: 4475.263974 | HS54: 4996.24103 | HT54: 0.6052994635 | HU54: 2597.579509 | HV54: 24.87046828 | HW54: 2447.769375 | HX54: 2113.724944 | HY54: 5791.371664 | HZ54: 9080.420675 | IA54: 8661.59033 | IB54: 7209.624887 | IC54: 7694.148727 | ID54: 3241.549862 | IE54: 3552.251482 | IF54: 5006.606133 | IG54: 3946.143514 | IH54: 3752.415669 | II54: 6653.951234 | IJ54: 4986.452672 | IK54: 8392.284065 | IL54: 99218.67979 | IM54: 235178.3424 | IN54: 7531.434178 | IO54: 33147.00293 | IP54: 16362.8413 | IQ54: 15916.93789 | IR54: 7685.065495 | IS54: 11030.9659 | IT54: 10537.35133 | IU54: 11515.0502 | IV54: 18236.01328 | IW54: 83494.00736 | IX54: 5985.248916 | IY54: 22373.0651 | IZ54: 9745.200948 | JA54: 5974.338664 | JB54: 4.113918771e-06 | JC54: 4984.973704 | JD54: 6128.444993 | JE54: 136882.8191 | JF54: 285475.0362 | JG54: 13.02481489 | JH54: 46144.12246 | JI54: 17722.43105 | JJ54: 42956.3206 | JK54: 14255288.54
A55: =+MATCH(B55,RUT[EMPRESA],0) -> 44 | B55: CHACAYES | C55: -331386310.6 | D55: -331386310.6 | F55: =IFERROR(INDEX($B$9:$B$511,MATCH(0,INDEX(COUNTIF($F$8:F54,$B$9:$B$511),0,0),0)),"") -> CHACAYES | G55: -331386310.6 | J55: ON GROUP | K55: 2372540.804 | L55: 1263495.857 | M55: 166306.1052 | N55: 5418331.518 | O55: 1136043.175 | P55: 577199.6401 | Q55: 3479.959959 | R55: 11589.86362 | S55: 81665.39315 | T55: 365007.7581 | U55: 33271.03446 | V55: 38302.87669 | W55: 32342.08562 | X55: 153290.9424 | Y55: 461237.6109 | Z55: 2355825.318 | AA55: 45192.85323 | AB55: 5097.242183 | AC55: 17517.33963 | AD55: 139698.867 | AE55: 14627.97882 | AF55: 94376.20433 | AG55: 7951.87597 | AH55: 150657.1551 | AI55: 426223.068 | AJ55: 258821.9397 | AK55: 1344.671611 | AL55: 37658.84241 | AM55: 1120266.691 | AN55: 261880.2842 | AO55: 28400.83988 | AP55: 1453486.483 | AQ55: 41856.54813 | AR55: 75950.31764 | AS55: 87041.63417 | AT55: 735973.0542 | AU55: 727853.4933 | AV55: 4422.154995 | AW55: 68.2810442 | AX55: 55051.80205 | AY55: 164432.8073 | AZ55: 654792.7878 | BA55: 133117.0167 | BB55: 2140.35952 | BC55: 312641.3293 | BD55: 101689.867 | BE55: 7009.150355 | BF55: 13446.03349 | BG55: 1452080.567 | BH55: 33427.80846 | BI55: 205882.2099 | BJ55: 914279.5458 | BK55: 425658.4008 | BL55: 97894.11057 | BM55: 584.6588847 | BN55: 1188725.471 | BO55: 86299.17556 | BP55: 4638.337588 | BQ55: 92301.75092 | BR55: 613887.6272 | BS55: 26008.94088 | BT55: 26791.46165 | BU55: 20297.52765 | BV55: 655947.1626 | BW55: 1667885.852 | BX55: 141761.2132 | BY55: 11837.5045 | BZ55: 18183.88868 | CA55: 666164.4361 | CB55: 185399.4246 | CC55: 7293.369561 | CD55: 86404.68697 | CE55: 121119.8297 | CF55: 61053.69489 | CG55: 9633.904357 | CH55: 113616.9108 | CI55: 786306.5151 | CJ55: 2997.360723 | CK55: 93155.86509 | CL55: 39364.85643 | CM55: 41593.11479 | CN55: 4329.962304 | CO55: 97042.51493 | CP55: 57873.24348 | CQ55: 1301374.574 | CR55: 162603.8816 | CS55: 259746.1614 | CT55: 16335.28695 | CU55: 2585.523311 | CV55: 22149.95726 | CW55: 21882.84628 | CX55: 42612.78746 | CY55: 25578.06091 | CZ55: 18927.66283 | DA55: 182965.0762 | DB55: 9993.453451 | DC55: 105165.4063 | DD55: 3110.05722 | DE55: 74146.51695 | DF55: 448330.2864 | DG55: 1683.370809 | DH55: 89727.0691 | DI55: 22725.44613 | DJ55: 1460267.398 | DK55: 33362.69459 | DL55: 205639.9857 | DM55: 198319.3819 | DN55: 207.1858541 | DO55: 82057.76387 | DP55: 29730.38678 | DQ55: 28281.12343 | DR55: 11183.13151 | DS55: 33107.30978 | DT55: 89140.06663 | DU55: 119034.2783 | DV55: 72067.1587 | DW55: 35993.89628 | DX55: 832972.3969 | DY55: 19795.88876 | DZ55: 37898.787 | EA55: 98944.07761 | EB55: 66108.24602 | EC55: 1637245.449 | ED55: 1915.914424 | EE55: 83044.98117 | EF55: 33714.92633 | EG55: 32893.73732 | EH55: 3847.977008 | EI55: 183689.3429 | EJ55: 18952.69818 | EK55: 27071.79464 | EL55: 9714.00665 | EM55: 30951.77909 | EN55: 34462.88855 | EO55: 34191.04001 | EP55: 30613.57879 | EQ55: 68959.72182 | ER55: 32588.86444 | ES55: 86410.35015 | ET55: 29113.40243 | EU55: 23237.7724 | EV55: 23835.60614 | EW55: 108197.1827 | EX55: 36380.37923 | EY55: 27517.71001 | EZ55: 93141.34082 | FA55: 28864.69976 | FB55: 30076.78458 | FC55: 25852.1893 | FD55: 167.9558592 | FE55: 34589.04148 | FF55: 234985.3013 | FG55: 24748.41946 | FH55: 24137.14049 | FI55: 24772.55106 | FJ55: 26451.38921 | FK55: 28963.50541 | FL55: 56777.45626 | FM55: 37857.74824 | FN55: 24672.92657 | FO55: 6276.404922 | FP55: 1064.892345 | FQ55: 127071.6896 | FR55: 11803.49587 | FS55: 85980.5077 | FT55: 31143.20823 | FU55: 27707.34119 | FV55: 50870.43107 | FW55: 0.006604206325 | FX55: 12881.66674 | FY55: 18086.97354 | FZ55: 29721.54734 | GA55: 57685.3846 | GB55: 47909.03054 | GC55: 24787.63403 | GD55: 7705.364344 | GE55: 16383.76571 | GF55: 144399.6116 | GG55: 145389.948 | GH55: 32895.62479 | GI55: 100783.3084 | GJ55: 18291.62699 | GK55: 5121.887355 | GL55: 90552.79216 | GM55: 34074.11028 | GN55: 13995.72562 | GO55: 127880.8736 | GP55: 33248.72246 | GQ55: 23777.75632 | GR55: 40699.94582 | GS55: 162903.3201 | GT55: 152000.3065 | GU55: 64909.35074 | GV55: 2428093.061 | GW55: 723498.4917 | GX55: 659956.848 | GY55: 2308281.431 | GZ55: 1361159.276 | HA55: 316423.5134 | HB55: 60121.28055 | HC55: 181684.9457 | HD55: 188822.5297 | HE55: 0.03747051003 | HF55: 107470.2141 | HG55: 84292.286 | HH55: 239424.1417 | HI55: 4402.094168 | HJ55: 637799.9628 | HK55: 179118.8863 | HL55: 24391.07859 | HM55: 26988.38169 | HN55: 16187.20983 | HO55: 17284.92973 | HP55: 23090.84225 | HQ55: 19673.73978 | HR55: 18079.42008 | HS55: 20184.09215 | HT55: 2.445322408 | HU55: 10493.84605 | HV55: 100.4730998 | HW55: 9888.634739 | HX55: 8539.143485 | HY55: 23396.30507 | HZ55: 36683.58803 | IA55: 34991.57393 | IB55: 29125.84325 | IC55: 31083.24958 | ID55: 13095.39326 | IE55: 14350.58293 | IF55: 20225.96567 | IG55: 15941.84985 | IH55: 15159.21734 | II55: 26881.00195 | IJ55: 20144.5486 | IK55: 33903.61551 | IL55: 400829.1361 | IM55: 950086.536 | IN55: 30425.9063 | IO55: 133909.1044 | IP55: 66103.51556 | IQ55: 64302.13017 | IR55: 31046.55463 | IS55: 44563.50903 | IT55: 42569.37744 | IU55: 46519.13969 | IV55: 73670.8598 | IW55: 337303.7306 | IX55: 24179.54116 | IY55: 90383.95163 | IZ55: 39369.20432 | JA55: 24135.46532 | JB55: 1.661963766e-05 | JC55: 20138.57378 | JD55: 24758.03263 | JE55: 552986.819 | JF55: 1153277.915 | JG55: 52.61837095 | JH55: 186415.5901 | JI55: 71596.06177 | JJ55: 173537.331 | JK55: 57589306.78
A56: =+MATCH(B56,RUT[EMPRESA],0) -> 109 | B56: ENERBOSCH | C56: 160746318.6 | D56: 160746318.6 | F56: =IFERROR(INDEX($B$9:$B$511,MATCH(0,INDEX(COUNTIF($F$8:F55,$B$9:$B$511),0,0),0)),"") -> ENERBOSCH | H56: 160746318.6 | J56: LA HIGUERA | K56: 6453471.989 | L56: 3436794.472 | M56: 452363.8917 | N56: 14738229.42 | O56: 3090114.527 | P56: 1570022.19 | Q56: 9465.72724 | R56: 31525.21553 | S56: 222135.4112 | T56: 992845.8718 | U56: 90499.47152 | V56: 104186.4238 | W56: 87972.66765 | X56: 416961.7658 | Y56: 1254597.601 | Z56: 6408004.733 | AA56: 122927.6276 | AB56: 13864.84464 | AC56: 47648.35252 | AD56: 379990.3982 | AE56: 39789.09506 | AF56: 256709.6802 | AG56: 21629.64226 | AH56: 409797.6856 | AI56: 1159355.669 | AJ56: 704013.2398 | AK56: 3657.598031 | AL56: 102434.6069 | AM56: 3047201.422 | AN56: 712332.1445 | AO56: 77252.21176 | AP56: 3953581.868 | AQ56: 113852.6513 | AR56: 206590.018 | AS56: 236759.1516 | AT56: 2001896.651 | AU56: 1979810.894 | AV56: 12028.56168 | AW56: 185.7290738 | AX56: 149744.6374 | AY56: 447268.3944 | AZ56: 1781080.817 | BA56: 362087.3188 | BB56: 5821.923141 | BC56: 850405.6318 | BD56: 276603.339 | BE56: 19065.36461 | BF56: 36574.12355 | BG56: 3949757.683 | BH56: 90925.90745 | BI56: 560013.5821 | BJ56: 2486902.408 | BK56: 1157819.736 | BL56: 266278.6239 | BM56: 1590.311842 | BN56: 3233413.949 | BO56: 234739.6138 | BP56: 12616.593 | BQ56: 251067.0261 | BR56: 1669816.005 | BS56: 70746.08418 | BT56: 72874.59376 | BU56: 55210.65262 | BV56: 1784220.795 | BW56: 4536762.701 | BX56: 385600.12 | BY56: 32198.81553 | BZ56: 49461.41118 | CA56: 1812012.473 | CB56: 504299.0162 | CC56: 19838.46014 | CD56: 235026.612 | CE56: 329454.1561 | CF56: 166070.1932 | CG56: 26204.87361 | CH56: 309045.7075 | CI56: 2138807.08 | CJ56: 8153.02457 | CK56: 253390.2747 | CL56: 107075.0808 | CM56: 113136.0948 | CN56: 11777.7913 | CO56: 263962.226 | CP56: 157419.1496 | CQ56: 3539827.154 | CR56: 442293.5925 | CS56: 706527.1855 | CT56: 44433.08902 | CU56: 7032.79886 | CV56: 60249.38685 | CW56: 59522.82688 | CX56: 115909.6736 | CY56: 69574.06142 | CZ56: 51484.52733 | DA56: 497677.4235 | DB56: 27182.87155 | DC56: 286057.0417 | DD56: 8459.566689 | DE56: 201683.5577 | DF56: 1219488.803 | DG56: 4578.882835 | DH56: 244063.7169 | DI56: 61814.75563 | DJ56: 3972026.418 | DK56: 90748.79329 | DL56: 559354.716 | DM56: 539442.1768 | DN56: 563.5595828 | DO56: 223202.6862 | DP56: 80868.66956 | DQ56: 76926.57491 | DR56: 30418.87659 | DS56: 90054.12928 | DT56: 242467.0303 | DU56: 323781.3146 | DV56: 196027.5622 | DW56: 97905.84044 | DX56: 2265741.446 | DY56: 53846.16078 | DZ56: 103087.2725 | EA56: 269134.6055 | EB56: 179818.9153 | EC56: 4453418.727 | ED56: 5211.417247 | EE56: 225887.9843 | EF56: 91706.88752 | EG56: 89473.19771 | EH56: 10466.75859 | EI56: 499647.4779 | EJ56: 51552.62519 | EK56: 73637.11853 | EL56: 26422.75728 | EM56: 84190.93954 | EN56: 93741.39554 | EO56: 93001.94906 | EP56: 83271.01177 | EQ56: 187575.123 | ER56: 88643.92278 | ES56: 235042.0163 | ET56: 79190.43026 | EU56: 63208.31787 | EV56: 64834.46619 | EW56: 294303.6794 | EX56: 98957.10029 | EY56: 74850.0386 | EZ56: 253350.7677 | FA56: 78513.94212 | FB56: 81810.89509 | FC56: 70319.70924 | FD56: 456.8513346 | FE56: 94084.54007 | FF56: 639175.9657 | FG56: 67317.38038 | FH56: 65654.6601 | FI56: 67383.01997 | FJ56: 71949.57367 | FK56: 78782.70018 | FL56: 154438.534 | FM56: 102975.6443 | FN56: 67112.03458 | FO56: 17072.24731 | FP56: 2896.579444 | FQ56: 345643.6188 | FR56: 32106.30976 | FS56: 233872.8156 | FT56: 84711.63979 | FU56: 75365.84827 | FV56: 138371.0246 | FW56: 0.01796388937 | FX56: 35039.00769 | FY56: 49197.79543 | FZ56: 80844.62569 | GA56: 156908.1607 | GB56: 130315.8142 | GC56: 67424.04667 | GD56: 20959.11391 | GE56: 44564.95454 | GF56: 392776.7425 | GG56: 395470.5248 | GH56: 89478.33175 | GI56: 274137.4379 | GJ56: 49754.46668 | GK56: 13931.88118 | GL56: 246309.7396 | GM56: 92683.89225 | GN56: 38069.32346 | GO56: 347844.6544 | GP56: 90438.78138 | GQ56: 64677.11077 | GR56: 110706.6146 | GS56: 443108.0854 | GT56: 413451.1484 | GU56: 176557.8388 | GV56: 6604577.897 | GW56: 1967964.994 | GX56: 1795127.412 | GY56: 6278682.133 | GZ56: 3702445.598 | HA56: 860693.4291 | HB56: 163533.963 | HC56: 494195.3816 | HD56: 513610.0945 | HE56: 0.1019223301 | HF56: 292326.2754 | HG56: 229280.738 | HH56: 651249.9129 | HI56: 11973.99487 | HJ56: 1734859.18 | HK56: 487215.5258 | HL56: 66345.38896 | HM56: 73410.22965 | HN56: 44030.30921 | HO56: 47016.18183 | HP56: 62808.65787 | HQ56: 53513.90728 | HR56: 49177.24951 | HS56: 54902.10035 | HT56: 6.651442892 | HU56: 28543.97336 | HV56: 273.2936496 | HW56: 26897.75754 | HX56: 23227.04975 | HY56: 63639.53747 | HZ56: 99781.84881 | IA56: 95179.45562 | IB56: 79224.27013 | IC56: 84548.54819 | ID56: 35620.35833 | IE56: 39034.55941 | IF56: 55015.99916 | IG56: 43362.91341 | IH56: 41234.09987 | II56: 73118.14945 | IJ56: 54794.5392 | IK56: 92220.13491 | IL56: 1090282.451 | IM56: 2584299.851 | IN56: 82760.52986 | IO56: 364241.851 | IP56: 179806.0481 | IQ56: 174906.1576 | IR56: 84448.73544 | IS56: 121215.7687 | IT56: 115791.5954 | IU56: 126535.2168 | IV56: 200389.738 | IW56: 917489.0368 | IX56: 65769.9928 | IY56: 245850.4819 | IZ56: 107086.9074 | JA56: 65650.10352 | JB56: 4.520654225e-05 | JC56: 54778.28729 | JD56: 67343.52886 | JE56: 1504161.674 | JF56: 3136994.191 | JG56: 143.1255397 | JH56: 507063.0553 | JI56: 194746.1466 | JJ56: 472033.3166 | JK56: 156646822.5
A57: =+MATCH(B57,RUT[EMPRESA],0) -> 168 | B57: HIDROMUCHI | C57: 17432891.02 | D57: 17432891.02 | F57: =IFERROR(INDEX($B$9:$B$511,MATCH(0,INDEX(COUNTIF($F$8:F56,$B$9:$B$511),0,0),0)),"") -> HIDROMUCHI | H57: 17432891.02 | J57: LA CONFLUENCIA | K57: 7064747.055 | L57: 3762328.816 | M57: 495211.9536 | N57: 16134239.53 | O57: 3382811.228 | P57: 1718735.227 | Q57: 10362.32415 | R57: 34511.29469 | S57: 243176.1531 | T57: 1086888.571 | U57: 99071.6123 | V57: 114054.9974 | W57: 96305.46871 | X57: 456456.5263 | Y57: 1373433.514 | Z57: 7014973.125 | AA57: 134571.3744 | AB57: 15178.12745 | AC57: 52161.62071 | AD57: 415983.2183 | AE57: 43557.9317 | AF57: 281025.3086 | AG57: 23678.40934 | AH57: 448613.862 | AI57: 1269170.233 | AJ57: 770697.6138 | AK57: 4004.046963 | AL57: 112137.2478 | AM57: 3335833.379 | AN57: 779804.488 | AO57: 84569.56759 | AP57: 4328066.49 | AQ57: 124636.8133 | AR57: 226158.2949 | AS57: 259185.0592 | AT57: 2191516.984 | AU57: 2167339.257 | AV57: 13167.91114 | AW57: 203.321395 | AX57: 163928.5005 | AY57: 489633.8091 | AZ57: 1949785.399 | BA57: 396384.3531 | BB57: 6373.377685 | BC57: 930956.3431 | BD57: 302803.3016 | BE57: 20871.24244 | BF57: 40038.437 | BG57: 4323880.076 | BH57: 99538.44039 | BI57: 613058.2594 | BJ57: 2722462.652 | BK57: 1267488.816 | BL57: 291500.6259 | BM57: 1740.946721 | BN57: 3539684.02 | BO57: 256974.2301 | BP57: 13811.64099 | BQ57: 274848.1804 | BR57: 1827981.546 | BS57: 77447.17739 | BT57: 79777.30012 | BU57: 60440.22445 | BV57: 1953222.797 | BW57: 4966486.41 | BX57: 422124.2948 | BY57: 35248.69831 | BZ57: 54146.41291 | CA57: 1983646.912 | CB57: 552066.3908 | CC57: 21717.56584 | CD57: 257288.4128 | CE57: 360660.1661 | CF57: 181800.4185 | CG57: 28687.00817 | CH57: 338318.6222 | CI57: 2341395.616 | CJ57: 8925.281836 | CK57: 277391.4878 | CL57: 117217.269 | CM57: 123852.3842 | CN57: 12893.38771 | CO57: 288964.818 | CP57: 172329.9451 | CQ57: 3875120.789 | CR57: 484187.7923 | CS57: 773449.6813 | CT57: 48641.80636 | CU57: 7698.947965 | CV57: 65956.22931 | CW57: 65160.84932 | CX57: 126888.6774 | CY57: 76164.14023 | CZ57: 56361.15931 | DA57: 544817.5987 | DB57: 29757.6424 | DC57: 313152.4622 | DD57: 9260.859729 | DE57: 220787.0931 | DF57: 1334999.198 | DG57: 5012.596178 | DH57: 267181.5153 | DI57: 67669.87035 | DJ57: 4348258.114 | DK57: 99344.54992 | DL57: 612336.9853 | DM57: 590538.3237 | DN57: 616.9401385 | DO57: 244344.5207 | DP57: 88528.5775 | DQ57: 84213.0863 | DR57: 33300.16295 | DS57: 98584.0871 | DT57: 265433.5901 | DU57: 354449.9911 | DV57: 214595.3597 | DW57: 107179.515 | DX57: 2480353.247 | DY57: 58946.48748 | DZ57: 112851.7341 | EA57: 294627.127 | EB57: 196851.4243 | EC57: 4875248.066 | ED57: 5705.044465 | EE57: 247284.1711 | EF57: 100393.3952 | EG57: 97948.12949 | EH57: 11458.17353 | EI57: 546974.2573 | EJ57: 56435.70742 | EK57: 80612.05149 | EL57: 28925.52986 | EM57: 92165.53402 | EN57: 102620.6125 | EO57: 101811.1254 | EP57: 91158.47038 | EQ57: 205342.3026 | ER57: 97040.30535 | ES57: 257305.2762 | ET57: 86691.3748 | EU57: 69195.43128 | EV57: 70975.60892 | EW57: 322180.2242 | EX57: 108330.3506 | EY57: 81939.85977 | EZ57: 277348.2387 | FA57: 85950.80947 | FB57: 89560.05095 | FC57: 76980.41607 | FD57: 500.1244487 | FE57: 102996.2598 | FF57: 699718.931 | FG57: 73693.70559 | FH57: 71873.49188 | FI57: 73765.56258 | FJ57: 78764.66181 | FK57: 86245.02439 | FL57: 169067.0045 | FM57: 112729.5324 | FN57: 73468.90937 | FO57: 18689.33639 | FP57: 3170.944436 | FQ57: 378383.1002 | FR57: 35147.43037 | FS57: 256025.3284 | FT57: 92735.55518 | FU57: 82504.52711 | FV57: 151477.5752 | FW57: 0.01966543509 | FX57: 38357.91444 | FY57: 53857.82738 | FZ57: 88502.25619 | GA57: 171770.5551 | GB57: 142659.3725 | GC57: 73810.47535 | GD57: 22944.36832 | GE57: 48786.16222 | GF57: 429980.6894 | GG57: 432929.6277 | GH57: 97953.74983 | GI57: 300103.8295 | GJ57: 54467.22672 | GK57: 15251.51371 | GL57: 269640.2821 | GM57: 101462.9421 | GN57: 41675.26275 | GO57: 380792.6186 | GP57: 99005.17357 | GQ57: 70803.34875 | GR57: 121192.7828 | GS57: 485079.4342 | GT57: 452613.3821 | GU57: 193281.4575 | GV57: 7230165.767 | GW57: 2154371.309 | GX57: 1965162.492 | GY57: 6873401.045 | GZ57: 4053142.507 | HA57: 942218.604 | HB57: 179023.9557 | HC57: 541005.7365 | HD57: 562259.4177 | HE57: 0.1115764479 | HF57: 320015.5198 | HG57: 250998.2877 | HH57: 712936.5266 | HI57: 13108.17574 | HJ57: 1899185.633 | HK57: 533364.7465 | HL57: 72629.64681 | HM57: 80363.67162 | HN57: 48200.87511 | HO57: 51469.57059 | HP57: 68757.91535 | HQ57: 58582.76282 | HR57: 53835.33534 | HS57: 60102.446 | HT57: 7.281469829 | HU57: 31247.66825 | HV57: 299.1801172 | HW57: 29445.5223 | HX57: 25427.12382 | HY57: 69667.49614 | HZ57: 109233.2195 | IA57: 104194.8861 | IB57: 86728.41999 | IC57: 92557.01549 | ID57: 38994.33081 | IE57: 42731.92618 | IF57: 60227.13335 | IG57: 47470.26334 | IH57: 45139.80786 | II57: 80043.92549 | IJ57: 59984.69663 | IK57: 100955.2575 | IL57: 1193554.376 | IM57: 2829085.614 | IN57: 90599.63546 | IO57: 398742.9632 | IP57: 196837.3383 | IQ57: 191473.3285 | IR57: 92447.74844 | IS57: 132697.3676 | IT57: 126759.4148 | IU57: 138520.6756 | IV57: 219370.7223 | IW57: 1004393.911 | IX57: 71999.74894 | IY57: 269137.5234 | IZ57: 117230.2157 | JA57: 71868.5037 | JB57: 4.948852133e-05 | JC57: 59966.90533 | JD57: 73722.33086 | JE57: 1646636.38 | JF57: 3434131.349 | JG57: 156.6824396 | JH57: 555092.2407 | JI57: 213192.5679 | JJ57: 516744.4732 | JK57: 171484462.9
A58: =+MATCH(B58,RUT[EMPRESA],0) -> 184 | B58: LA ARENA SPA | C58: -106218284.4 | D58: -106218284.4 | F58: =IFERROR(INDEX($B$9:$B$511,MATCH(0,INDEX(COUNTIF($F$8:F57,$B$9:$B$511),0,0),0)),"") -> LA ARENA SPA | G58: -106218284.4 | J58: TRANSELEC | K58: 807605.0198 | L58: 430089.7985 | M58: 56610.04654 | N58: 1844382.075 | O58: 386705.3282 | P58: 196476.8429 | Q58: 1184.566827 | R58: 3945.151131 | S58: 27798.62893 | T58: 124247.4301 | U58: 11325.34977 | V58: 13038.17217 | W58: 11009.13866 | X58: 52179.72832 | Y58: 157003.7528 | Z58: 801915.1238 | AA58: 15383.49733 | AB58: 1735.084331 | AC58: 5962.844302 | AD58: 47553.03092 | AE58: 4979.315469 | AF58: 32125.3469 | AG58: 2706.792203 | AH58: 51283.19585 | AI58: 145084.9185 | AJ58: 88102.12974 | AK58: 457.7217558 | AL58: 12818.94504 | AM58: 381335.0657 | AN58: 89143.18007 | AO58: 9667.551685 | AP58: 494761.9775 | AQ58: 14247.83014 | AR58: 25853.23619 | AS58: 29628.68355 | AT58: 250522.7864 | AU58: 247758.9148 | AV58: 1505.286892 | AW58: 23.24264095 | AX58: 18739.4508 | AY58: 55972.38217 | AZ58: 222889.2929 | BA58: 45312.59092 | BB58: 728.5712809 | BC58: 106422.0714 | BD58: 34614.89342 | BE58: 2385.891531 | BF58: 4576.985198 | BG58: 494283.4085 | BH58: 11378.71512 | BI58: 70081.6213 | BJ58: 311217.7246 | BK58: 144892.7077 | BL58: 33322.83051 | BM58: 199.015945 | BN58: 404638.2073 | BO58: 29375.9531 | BP58: 1578.874729 | BQ58: 31419.20984 | BR58: 208965.312 | BS58: 8853.357202 | BT58: 9119.724675 | BU58: 6909.211085 | BV58: 223282.2383 | BW58: 567742.8115 | BX58: 48255.04675 | BY58: 4029.447264 | BZ58: 6189.735389 | CA58: 226760.1643 | CB58: 63109.34914 | CC58: 2482.638806 | CD58: 29411.86883 | CE58: 41228.78827 | CF58: 20782.47522 | CG58: 3279.349087 | CH58: 38674.81956 | CI58: 267656.1295 | CJ58: 1020.291648 | CK58: 31709.94747 | CL58: 13399.66655 | CM58: 14158.15831 | CN58: 1473.904805 | CO58: 33032.95018 | CP58: 19699.86011 | CQ58: 442983.5883 | CR58: 55349.82194 | CS58: 88416.73174 | CT58: 5560.477492 | CU58: 880.1035585 | CV58: 7539.771977 | CW58: 7448.848288 | CX58: 14505.2515 | CY58: 8706.687089 | CZ58: 6442.913642 | DA58: 62280.70504 | DB58: 3401.738405 | DC58: 35797.95546 | DD58: 1058.653161 | DE58: 25239.22842 | DF58: 152610.1423 | DG58: 573.0138395 | DH58: 30542.79669 | DI58: 7735.666479 | DJ58: 497070.1785 | DK58: 11356.55057 | DL58: 69999.16901 | DM58: 67507.25975 | DN58: 70.52537746 | DO58: 27932.19063 | DP58: 10120.12504 | DQ58: 9626.800605 | DR58: 3806.700869 | DS58: 11269.61843 | DT58: 30342.98299 | DU58: 40518.87347 | DV58: 24531.42177 | DW58: 12252.2029 | DX58: 283541.0409 | DY58: 6738.454868 | DZ58: 12900.62138 | EA58: 33680.23581 | EB58: 22503.02766 | EC58: 557312.9201 | ED58: 652.1709145 | EE58: 28268.23612 | EF58: 11476.44909 | EG58: 11196.91907 | EH58: 1309.838609 | EI58: 62527.243 | EJ58: 6451.435592 | EK58: 9215.149095 | EL58: 3306.615641 | EM58: 10535.88293 | EN58: 11731.05295 | EO58: 11638.51661 | EP58: 10420.76067 | EQ58: 23473.66056 | ER58: 11093.14136 | ES58: 29413.79656 | ET58: 9910.105615 | EU58: 7910.060644 | EV58: 8113.561264 | EW58: 36829.9621 | EX58: 12383.76041 | EY58: 9366.93721 | EZ58: 31705.00346 | FA58: 9825.448051 | FB58: 10238.0377 | FC58: 8799.999484 | FD58: 57.17161734 | FE58: 11773.99499 | FF58: 79988.21708 | FG58: 8424.279892 | FH58: 8216.202558 | FI58: 8432.494208 | FJ58: 9003.965147 | FK58: 9859.081165 | FL58: 19326.85777 | FM58: 12886.65192 | FN58: 8398.582361 | FO58: 2136.467416 | FP58: 362.485822 | FQ58: 43254.78162 | FR58: 4017.870842 | FS58: 29267.47961 | FT58: 10601.04478 | FU58: 9431.487033 | FV58: 17316.12599 | FW58: 0.002248049926 | FX58: 4384.876628 | FY58: 6156.745798 | FZ58: 10117.11613 | GA58: 19635.91357 | GB58: 16308.07508 | GC58: 8437.628402 | GD58: 2622.880463 | GE58: 5576.9795 | GF58: 49153.14878 | GG58: 49490.25603 | GH58: 11197.56156 | GI58: 34306.30386 | GJ58: 6226.409151 | GK58: 1743.473466 | GL58: 30823.87008 | GM58: 11598.71411 | GN58: 4764.098577 | GO58: 43530.22519 | GP58: 11317.75484 | GQ58: 8093.86938 | GR58: 13854.12655 | GS58: 55451.74979 | GT58: 51740.40012 | GU58: 22094.92768 | GV58: 826514.8237 | GW58: 246276.4867 | GX58: 224647.1219 | GY58: 785731.3423 | GZ58: 463334.1023 | HA58: 107709.5144 | HB58: 20465.08447 | HC58: 61844.95285 | HD58: 64274.56278 | HE58: 0.01275483732 | HF58: 36582.5044 | HG58: 28692.81455 | HH58: 81499.18365 | HI58: 1498.458253 | HJ58: 217104.9917 | HK58: 60971.47474 | HL58: 8302.642245 | HM58: 9186.755605 | HN58: 5510.072532 | HO58: 5883.732744 | HP58: 7860.046106 | HQ58: 6696.875762 | HR58: 6154.174625 | HS58: 6870.598015 | HT58: 0.8323796364 | HU58: 3572.070385 | HV58: 34.20070988 | HW58: 3366.058464 | HX58: 2906.696117 | HY58: 7964.024637 | HZ58: 12486.97168 | IA58: 11911.01569 | IB58: 9914.340428 | IC58: 10580.63505 | ID58: 4457.628428 | IE58: 4884.890828 | IF58: 6884.851622 | IG58: 5426.552807 | IH58: 5160.147297 | II58: 9150.203896 | IJ58: 6857.13752 | IK58: 11540.67826 | IL58: 136440.9083 | IM58: 323406.3053 | IN58: 10356.87758 | IO58: 45582.21493 | IP58: 22501.41743 | IQ58: 21888.23181 | IR58: 10568.14421 | IS58: 15169.27065 | IT58: 14490.47488 | IU58: 15834.96084 | IV58: 25077.3163 | IW58: 114817.071 | IX58: 8230.635606 | IY58: 30766.39732 | IZ58: 13401.14656 | JA58: 8215.632336 | JB58: 5.65726953e-06 | JC58: 6855.103712 | JD58: 8427.552183 | JE58: 188234.8789 | JF58: 392571.9767 | JG58: 17.91111893 | JH58: 63455.24851 | JI58: 24371.06194 | JJ58: 59071.53182 | JK58: 19603209
A59: =+MATCH(B59,RUT[EMPRESA],0) -> 34 | B59: CARDONES SA | C59: -2396130.997 | D59: -2396130.997 | F59: =IFERROR(INDEX($B$9:$B$511,MATCH(0,INDEX(COUNTIF($F$8:F58,$B$9:$B$511),0,0),0)),"") -> CARDONES SA | G59: -2396130.997 | J59: INTERCHILE | K59: 21540.07894 | L59: 11471.16225 | M59: 1509.877776 | N59: 49192.53166 | O59: 10314.03111 | P59: 5240.342249 | Q59: 31.59423522 | R59: 105.2233019 | S59: 741.4325655 | T59: 3313.871741 | U59: 302.0646505 | V59: 347.7482815 | W59: 293.6308097 | X59: 1391.714315 | Y59: 4187.53369 | Z59: 21388.32059 | AA59: 410.3017425 | AB59: 46.27739123 | AC59: 159.0383094 | AD59: 1268.313117 | AE59: 132.8060694 | AF59: 856.8328468 | AG59: 72.19434786 | AH59: 1367.802403 | AI59: 3869.639888 | AJ59: 2349.820498 | AK59: 12.20814942 | AL59: 341.9011538 | AM59: 10170.79787 | AN59: 2377.586925 | AO59: 257.8486034 | AP59: 13196.0696 | AQ59: 380.0117366 | AR59: 689.5459226 | AS59: 790.2429615 | AT59: 6681.831419 | AU59: 6608.114675 | AV59: 40.14833697 | AW59: 0.619917297 | AX59: 499.8102287 | AY59: 1492.870278 | AZ59: 5944.803274 | BA59: 1208.557106 | BB59: 19.4321265 | BC59: 2838.441768 | BD59: 923.2329153 | BE59: 63.63542903 | BF59: 122.0752968 | BG59: 13183.30542 | BH59: 303.4879872 | BI59: 1869.185577 | BJ59: 8300.659596 | BK59: 3864.513327 | BL59: 888.7715929 | BM59: 5.308064042 | BN59: 10792.32882 | BO59: 783.5022483 | BP59: 42.11103878 | BQ59: 837.9990758 | BR59: 5573.429097 | BS59: 236.1327733 | BT59: 243.2372071 | BU59: 184.2793798 | BV59: 5955.283736 | BW59: 15142.58168 | BX59: 1287.036968 | BY59: 107.4716106 | BZ59: 165.0898467 | CA59: 6048.045419 | CB59: 1683.224261 | CC59: 66.21582896 | CD59: 784.4601766 | CE59: 1099.635753 | CF59: 554.3008598 | CG59: 87.46532831 | CH59: 1031.517445 | CI59: 7138.804264 | CJ59: 27.21276131 | CK59: 845.7534996 | CL59: 357.3898976 | CM59: 377.6200495 | CN59: 39.31132804 | CO59: 881.0400346 | CP59: 525.425835 | CQ59: 11815.05963 | CR59: 1476.265631 | CS59: 2358.211421 | CT59: 148.3065622 | CU59: 23.47372746 | CV59: 201.0974172 | CW59: 198.6723413 | CX59: 386.8775636 | CY59: 232.2208538 | CZ59: 171.8425035 | DA59: 1661.123037 | DB59: 90.72964134 | DC59: 954.7870156 | DD59: 28.2359224 | DE59: 673.1693827 | DF59: 4070.349283 | DG59: 15.28316818 | DH59: 814.6237773 | DI59: 206.3222275 | DJ59: 13257.63291 | DK59: 302.8968243 | DL59: 1866.986447 | DM59: 1800.523361 | DN59: 1.881021243 | DO59: 744.9948631 | DP59: 269.919437 | DQ59: 256.7617089 | DR59: 101.5306186 | DS59: 300.5782092 | DT59: 809.294436 | DU59: 1080.701224 | DV59: 654.291081 | DW59: 326.7852616 | DX59: 7562.479497 | DY59: 179.7250466 | DZ59: 344.0795886 | EA59: 898.3041467 | EB59: 600.1906629 | EC59: 14864.40029 | ED59: 17.39441019 | EE59: 753.9577178 | EF59: 306.0947038 | EG59: 298.6392046 | EH59: 34.93542803 | EI59: 1667.698587 | EJ59: 172.0697972 | EK59: 245.7823244 | EL59: 88.19256963 | EM59: 281.0083451 | EN59: 312.8853838 | EO59: 310.417296 | EP59: 277.9378558 | EQ59: 626.0789484 | ER59: 295.8712918 | ES59: 784.5115921 | ET59: 264.3178931 | EU59: 210.9735905 | EV59: 216.4012678 | EW59: 982.312234 | EX59: 330.2941046 | EY59: 249.8307489 | EZ59: 845.6216351 | FA59: 262.0599445 | FB59: 273.0643507 | FC59: 234.7096401 | FD59: 1.524855741 | FE59: 314.0307146 | FF59: 2133.409858 | FG59: 224.6886157 | FH59: 219.1388703 | FI59: 224.9077042 | FJ59: 240.1497208 | FK59: 262.9569918 | FL59: 515.477284 | FM59: 343.7070015 | FN59: 224.0032226 | FO59: 56.98290088 | FP59: 9.668059299 | FQ59: 1153.672139 | FR59: 107.1628494 | FS59: 780.6090922 | FT59: 282.7463126 | FU59: 251.5523929 | FV59: 461.8479476 | FW59: 5.995897957e-05 | FX59: 116.9514632 | FY59: 164.2099631 | FZ59: 269.8391846 | GA59: 523.7202816 | GB59: 434.9616656 | GC59: 225.0446411 | GD59: 69.95629157 | GE59: 148.7466964 | GF59: 1310.990743 | GG59: 1319.981917 | GH59: 298.6563408 | GI59: 915.0023528 | GJ59: 166.0679928 | GK59: 46.50114247 | GL59: 822.1204407 | GM59: 309.3557017 | GN59: 127.0659009 | GO59: 1161.018647 | GP59: 301.8620819 | GQ59: 215.8760547 | GR59: 369.5110509 | GS59: 1478.984205 | GT59: 1379.996751 | GU59: 589.3060033 | GV59: 22044.43275 | GW59: 6568.576017 | GX59: 5991.6873 | GY59: 20956.67402 | GZ59: 12357.83941 | HA59: 2872.779868 | HB59: 545.8355561 | HC59: 1649.50085 | HD59: 1714.302316 | HE59: 0.0003401913016 | HF59: 975.712153 | HG59: 765.2818832 | HH59: 2173.70968 | HI59: 39.96620658 | HJ59: 5790.526984 | HK59: 1626.203834 | HL59: 221.4443509 | HM59: 245.025026 | HN59: 146.9621838 | HO59: 156.9282814 | HP59: 209.6396251 | HQ59: 178.6160673 | HR59: 164.141386 | HS59: 183.2495093 | HT59: 0.02220085641 | HU59: 95.27265952 | HV59: 0.9121859978 | HW59: 89.77800194 | HX59: 77.52609542 | HY59: 212.4128939 | HZ59: 333.0469093 | IA59: 317.6852695 | IB59: 264.4308421 | IC59: 282.2019535 | ID59: 118.8918665 | IE59: 130.2876177 | IF59: 183.6296752 | IG59: 144.7345831 | IH59: 137.6291348 | II59: 244.0501352 | IJ59: 182.8904971 | IK59: 307.8077955 | IL59: 3639.090724 | IM59: 8625.747954 | IN59: 276.2339946 | IO59: 1215.748397 | IP59: 600.1477155 | IQ59: 583.7931038 | IR59: 281.8688035 | IS59: 404.5879846 | IT59: 386.4834481 | IU59: 422.3429749 | IV59: 668.8509353 | IW59: 3062.349432 | IX59: 219.5238221 | IY59: 820.5875531 | IZ59: 357.4293717 | JA59: 219.1236616 | JB59: 1.508881561e-07 | JC59: 182.8362523 | JD59: 224.7758928 | JE59: 5020.516281 | JF59: 10470.50373 | JG59: 0.4777173324 | JH59: 1692.449934 | JI59: 650.0140355 | JJ59: 1575.529408 | JK59: 522848
A60: =+MATCH(B60,RUT[EMPRESA],0) -> 32 | B60: CAPULLO | C60: -8800348.439 | D60: -8800348.439 | F60: =IFERROR(INDEX($B$9:$B$511,MATCH(0,INDEX(COUNTIF($F$8:F59,$B$9:$B$511),0,0),0)),"") -> CAPULLO | G60: -8800348.439 | J60: TEN | K60: 243837.469 | L60: 129855.5672 | M60: 17092.08107 | N60: 556868.0804 | O60: 116756.6399 | P60: 59321.59274 | Q60: 357.6522802 | R60: 1191.14622 | S60: 8393.146593 | T60: 37513.60893 | U60: 3419.424786 | V60: 3936.571497 | W60: 3323.952231 | X60: 15754.44998 | Y60: 47403.61533 | Z60: 242119.5378 | AA60: 4644.687639 | AB60: 523.8681798 | AC60: 1800.341537 | AD60: 14357.52678 | AE60: 1503.387982 | AF60: 9699.498004 | AG60: 817.2526713 | AH60: 15483.76294 | AI60: 43805.00177 | AJ60: 26600.37989 | AK60: 138.1983912 | AL60: 3870.380986 | AM60: 115135.2146 | AN60: 26914.70072 | AO60: 2918.891384 | AP60: 149381.8208 | AQ60: 4301.799463 | AR60: 7805.780701 | AS60: 8945.68883 | AT60: 75639.50279 | AU60: 74805.01633 | AV60: 454.4862113 | AW60: 7.017572455 | AX60: 5657.939391 | AY60: 16899.55321 | AZ60: 67296.21501 | BA60: 13681.07827 | BB60: 219.9750779 | BC60: 32131.65831 | BD60: 10451.15842 | BE60: 720.3642101 | BF60: 1381.913756 | BG60: 149237.3281 | BH60: 3435.537208 | BI60: 21159.50835 | BJ60: 93964.92149 | BK60: 43746.9682 | BL60: 10061.05021 | BM60: 60.0882153 | BN60: 122171.0538 | BO60: 8869.382776 | BP60: 476.7043398 | BQ60: 9486.296415 | BR60: 63092.19424 | BS60: 2673.064381 | BT60: 2753.487816 | BU60: 2086.074878 | BV60: 67414.85568 | BW60: 171416.6787 | BX60: 14569.48406 | BY60: 1216.597468 | BZ60: 1868.846 | CA60: 68464.93419 | CB60: 19054.39365 | CC60: 749.5747896 | CD60: 8880.226692 | CE60: 12448.06946 | CF60: 6274.782885 | CG60: 990.1228466 | CH60: 11676.95827 | CI60: 80812.51549 | CJ60: 308.0532276 | CK60: 9574.077851 | CL60: 4045.716281 | CM60: 4274.725147 | CN60: 445.0111236 | CO60: 9973.527613 | CP60: 5947.912544 | CQ60: 133748.5458 | CR60: 16711.58569 | CS60: 26695.36661 | CT60: 1678.856278 | CU60: 265.7267091 | CV60: 2276.458009 | CW60: 2249.005725 | CX60: 4379.521828 | CY60: 2628.780766 | CZ60: 1945.287259 | DA60: 18804.20393 | DB60: 1027.075442 | DC60: 10808.35636 | DD60: 319.6355905 | DE60: 7620.395399 | DF60: 46077.0673 | DG60: 173.0081425 | DH60: 9221.683939 | DI60: 2335.603778 | DJ60: 150078.7282 | DK60: 3428.84514 | DL60: 21134.61381 | DM60: 20382.24002 | DN60: 21.29349016 | DO60: 8433.472426 | DP60: 3055.535336 | DQ60: 2906.587548 | DR60: 1149.344398 | DS60: 3402.598011 | DT60: 9161.354862 | DU60: 12233.72727 | DV60: 7406.689715 | DW60: 3699.266437 | DX60: 85608.59338 | DY60: 2034.519028 | DZ60: 3895.04125 | EA60: 10168.96039 | EB60: 6794.2635 | EC60: 168267.6166 | ED60: 196.907772 | EE60: 8534.933513 | EF60: 3465.045696 | EG60: 3380.648139 | EH60: 395.4751685 | EI60: 18878.6403 | EJ60: 1947.860263 | EK60: 2782.298991 | EL60: 998.3553458 | EM60: 3181.063719 | EN60: 3541.917384 | EO60: 3513.978197 | EP60: 3146.305242 | EQ60: 7087.323429 | ER60: 3349.314881 | ES60: 8880.808725 | ET60: 2992.124877 | EU60: 2388.258022 | EV60: 2449.70028 | EW60: 11119.94666 | EX60: 3738.987155 | EY60: 2828.127866 | EZ60: 9572.585122 | FA60: 2966.564503 | FB60: 3091.13631 | FC60: 2656.954264 | FD60: 17.26163425 | FE60: 3554.882729 | FF60: 24150.57351 | FG60: 2543.514511 | FH60: 2480.690421 | FI60: 2545.994632 | FJ60: 2718.536931 | FK60: 2976.719236 | FL60: 5835.293203 | FM60: 3890.823498 | FN60: 2535.755742 | FO60: 645.0564254 | FP60: 109.4441258 | FQ60: 13059.77082 | FR60: 1213.102238 | FS60: 8836.631741 | FT60: 3200.737816 | FU60: 2847.617177 | FV60: 5228.199716 | FW60: 0.0006787461578 | FX60: 1323.911061 | FY60: 1858.885564 | FZ60: 3054.626865 | GA60: 5928.605381 | GB60: 4923.842291 | GC60: 2547.544781 | GD60: 791.9174818 | GE60: 1683.838674 | GF60: 14840.64499 | GG60: 14942.42665 | GH60: 3380.842123 | GI60: 10357.98701 | GJ60: 1879.918786 | GK60: 526.4010831 | GL60: 9306.547483 | GM60: 3501.960764 | GN60: 1438.40827 | GO60: 13142.93457 | GP60: 3417.131675 | GQ60: 2443.754775 | GR60: 4182.929861 | GS60: 16742.36042 | GT60: 15621.80509 | GU60: 6671.047246 | GV60: 249546.8425 | GW60: 74357.4318 | GX60: 67826.9504 | GY60: 237233.2231 | GZ60: 139892.9081 | HA60: 32520.37162 | HB60: 6178.954164 | HC60: 18672.63873 | HD60: 19406.20269 | HE60: 0.003851025159 | HF60: 11045.23259 | HG60: 8663.12505 | HH60: 24606.77457 | HI60: 452.4244634 | HJ60: 65549.78037 | HK60: 18408.91242 | HL60: 2506.788865 | HM60: 2773.72624 | HN60: 1663.637678 | HO60: 1776.45565 | HP60: 2373.1573 | HQ60: 2021.965188 | HR60: 1858.109258 | HS60: 2074.416564 | HT60: 0.2513175857 | HU60: 1078.503204 | HV60: 10.32610537 | HW60: 1016.302717 | HX60: 877.6089882 | HY60: 2404.551189 | HZ60: 3770.149387 | IA60: 3596.252931 | IB60: 2993.40348 | IC60: 3194.575576 | ID60: 1345.876767 | IE60: 1474.878668 | IF60: 2078.720108 | IG60: 1638.420849 | IH60: 1557.985928 | II60: 2762.690305 | IJ60: 2070.352482 | IK60: 3484.438194 | IL60: 41195.14483 | IM60: 97644.97868 | IN60: 3127.017234 | IO60: 13762.48494 | IP60: 6793.777328 | IQ60: 6608.640257 | IR60: 3190.804259 | IS60: 4580.006898 | IT60: 4375.060371 | IU60: 4780.9965 | IV60: 7571.509817 | IW60: 34666.33231 | IX60: 2485.048143 | IY60: 9289.194926 | IZ60: 4046.163134 | JA60: 2480.518255 | JB60: 1.708080373e-06 | JC60: 2069.738421 | JD60: 2544.502503 | JE60: 56833.12426 | JF60: 118527.9373 | JG60: 5.407843933 | JH60: 19158.82989 | JI60: 7358.272811 | JJ60: 17835.26904 | JK60: 5918731
A61: =+MATCH(B61,RUT[EMPRESA],0) -> 24 | B61: BE FORESTALES | C61: 892173314.8 | D61: 892173314.8 | F61: =IFERROR(INDEX($B$9:$B$511,MATCH(0,INDEX(COUNTIF($F$8:F60,$B$9:$B$511),0,0),0)),"") -> BE FORESTALES | H61: 892173314.8 | J61: Total | K61: 1456303597 | L61: 775554021.3 | M61: 102081354.6 | N61: 3325858787 | O61: 697321520.8 | P61: 354294396.4 | Q61: 2136055.236 | R61: 7114044.171 | S61: 50127528.09 | T61: 224047616.1 | U61: 20422294.56 | V61: 23510920.03 | W61: 19852090.87 | X61: 94092438.99 | Y61: 283115043 | Z61: 1446043364 | AA61: 27740098.13 | AB61: 3128769.003 | AC61: 10752424.01 | AD61: 85749405.09 | AE61: 8978888.01 | AF61: 57929627.86 | AG61: 4880989.005 | AH61: 92475778.1 | AI61: 261622555.1 | AJ61: 158869057.7 | AK61: 825381.0009 | AL61: 23115601.46 | AM61: 687637662.4 | AN61: 160746318.6 | AO61: 17432891.02 | AP61: 892173314.8 | AQ61: 25692220.56 | AR61: 46619523.09 | AS61: 53427551.06 | AT61: 451752064.5 | AU61: 446768147.8 | AV61: 2714389.66 | AW61: 41912.00005 | AX61: 33791679.04 | AY61: 100931494.4 | AZ61: 401922314.9 | BA61: 81709359.83 | BB61: 1313787.001 | BC61: 191904262.2 | BD61: 62418871.32 | BE61: 4302328.903 | BF61: 8253391.009 | BG61: 891310341.3 | BH61: 20518524.96 | BI61: 126373802.4 | BJ61: 561199448.8 | BK61: 261275953.3 | BL61: 60088975.13 | BM61: 358873.0004 | BN61: 729658759.4 | BO61: 52971818.06 | BP61: 2847086.003 | BQ61: 56656295.08 | BR61: 376814071.3 | BS61: 15964705.05 | BT61: 16445028.85 | BU61: 12458948.01 | BV61: 402630888.7 | BW61: 1023775086 | BX61: 87015306.3 | BY61: 7266050.114 | BZ61: 11161562.51 | CA61: 408902415.1 | CB61: 113801140.3 | CC61: 4476787.21 | CD61: 53036582.65 | CE61: 74345294.05 | CF61: 37475737.12 | CG61: 5913445.006 | CH61: 69739882.08 | CI61: 482647550.1 | CJ61: 1839828.085 | CK61: 57180564.06 | CL61: 24162780.22 | CM61: 25530520.94 | CN61: 2657800.308 | CO61: 59566252.06 | CP61: 35523525.04 | CQ61: 798804585.7 | CR61: 99808870.46 | CS61: 159436359.8 | CT61: 10026861.12 | CU61: 1587035.676 | CV61: 13595999.01 | CW61: 13432042.01 | CX61: 26156412.38 | CY61: 15700224.02 | CZ61: 11618103.01 | DA61: 112306898.3 | DB61: 6134142.007 | DC61: 64552213.07 | DD61: 1909003.002 | DE61: 45512321.3 | DF61: 275192320.3 | DG61: 1033280.001 | DH61: 55075914.09 | DI61: 13949243.31 | DJ61: 896335549.4 | DK61: 20478557.02 | DL61: 126225121.4 | DM61: 121731617.3 | DN61: 127174.0001 | DO61: 50368371.54 | DP61: 18248988.23 | DQ61: 17359407.15 | DR61: 6864385.477 | DS61: 20321797.73 | DT61: 54715602.56 | DU61: 73065149.11 | DV61: 44235977.85 | DW61: 22093630.82 | DX61: 511291816.7 | DY61: 12151034.01 | DZ61: 23262883.3 | EA61: 60733461.74 | EB61: 40578301.68 | EC61: 1004967516 | ED61: 1176019.001 | EE61: 50974341.35 | EF61: 20694762.51 | EG61: 20190703.53 | EH61: 2361950.003 | EI61: 112751464.7 | EJ61: 11633470.11 | EK61: 16617101.74 | EL61: 5962613.078 | EM61: 18998698.42 | EN61: 21153873.72 | EO61: 20987008.73 | EP61: 18791105.65 | EQ61: 42328583.25 | ER61: 20003567.67 | ES61: 53040058.8 | ET61: 17870273.34 | EU61: 14263717.4 | EV61: 14630677.33 | EW61: 66413166.07 | EX61: 22330860.25 | EY61: 16890811.75 | EZ61: 57171648.83 | FA61: 17717615.65 | FB61: 18461612.76 | FC61: 15868488.42 | FD61: 103094.0001 | FE61: 21231308.41 | FF61: 144237746.7 | FG61: 15190976.79 | FH61: 14815763.95 | FI61: 15205789.15 | FJ61: 16236286.94 | FK61: 17778264.14 | FL61: 34850913.27 | FM61: 23237693.05 | FN61: 15144638.04 | FO61: 3852558.004 | FP61: 653648.0007 | FQ61: 77998641.08 | FR61: 7245175.075 | FS61: 52776214.61 | FT61: 19116200.7 | FU61: 17007210.4 | FV61: 31225086.47 | FW61: 4.053767763 | FX61: 7906973.645 | FY61: 11102074.45 | FZ61: 18243562.44 | GA61: 35408214.25 | GB61: 29407331.33 | GC61: 15215047.32 | GD61: 4729676.216 | GE61: 10056618.16 | GF61: 88634797.5 | GG61: 89242681.91 | GH61: 20191862.09 | GI61: 61862411.07 | GJ61: 11227694.01 | GK61: 3143896.605 | GL61: 55582756.15 | GM61: 20915235.38 | GN61: 8590800.857 | GO61: 78495331.24 | GP61: 20408599.1 | GQ61: 14595168.19 | GR61: 24982279.51 | GS61: 99992670.57 | GT61: 93300225.94 | GU61: 39842400.52 | GV61: 1490402463 | GW61: 444094978 | GX61: 405092097.9 | GY61: 1416860163 | GZ61: 835501394.1 | HA61: 194225827.4 | HB61: 36903406.25 | HC61: 111521133.6 | HD61: 115902297.2 | HE61: 23.00000002 | HF61: 65966941.07 | HG61: 51739957.06 | HH61: 146962378.2 | HI61: 2702076.003 | HJ61: 391491846.4 | HK61: 109946045.2 | HL61: 14971635.23 | HM61: 16565901.53 | HN61: 9935969.011 | HO61: 10609767.09 | HP61: 14173529.31 | HQ61: 12076057.01 | HR61: 11097438.01 | HS61: 12389319.48 | HT61: 1500.978113 | HU61: 6441291.007 | HV61: 61672.00007 | HW61: 6069802.6 | HX61: 5241463.225 | HY61: 14361027.29 | HZ61: 22516974.68 | IA61: 21478389.28 | IB61: 17877909.72 | IC61: 19079397.12 | ID61: 8038162.413 | IE61: 8808617.963 | IF61: 12415022.12 | IG61: 9785363.118 | IH61: 9304970.731 | II61: 16499990.12 | IJ61: 12365047.01 | IK61: 20810582.96 | IL61: 246035352.4 | IM61: 583178353.6 | IN61: 18675909.27 | IO61: 82195555.93 | IP61: 40575398.04 | IQ61: 39469678.8 | IR61: 19056873.17 | IS61: 27353796.57 | IT61: 26129766.62 | IU61: 28554194.03 | IV61: 45220355.31 | IW61: 207042439.6 | IX61: 14841790.17 | IY61: 55479119.12 | IZ61: 24165449.03 | JA61: 14814735.71 | JB61: 0.01020140015 | JC61: 12361379.57 | JD61: 15196877.51 | JE61: 339432178.5 | JF61: 707900480.8 | JG61: 32298 | JH61: 114424879 | JI61: 43946811 | JJ61: 106519997 | JK61: =SUM($JK$9:$JK$60) -> 3.534924014e+10
A62: =+MATCH(B62,RUT[EMPRESA],0) -> 10 | B62: ALLIPEN | C62: 25692220.56 | D62: 25692220.56 | F62: =IFERROR(INDEX($B$9:$B$511,MATCH(0,INDEX(COUNTIF($F$8:F61,$B$9:$B$511),0,0),0)),"") -> ALLIPEN | H62: 25692220.56
A63: =+MATCH(B63,RUT[EMPRESA],0) -> 90 | B63: EL CANELO | C63: 46619523.09 | D63: 46619523.09 | F63: =IFERROR(INDEX($B$9:$B$511,MATCH(0,INDEX(COUNTIF($F$8:F62,$B$9:$B$511),0,0),0)),"") -> EL CANELO | H63: 46619523.09
A64: =+MATCH(B64,RUT[EMPRESA],0) -> 33 | B64: CARBOMET | C64: 53427551.06 | D64: 53427551.06 | F64: =IFERROR(INDEX($B$9:$B$511,MATCH(0,INDEX(COUNTIF($F$8:F63,$B$9:$B$511),0,0),0)),"") -> CARBOMET | H64: 53427551.06
A65: =+MATCH(B65,RUT[EMPRESA],0) -> 235 | B65: ORAZUL_CHILE | C65: -8035607.991 | D65: -8035607.991 | F65: =IFERROR(INDEX($B$9:$B$511,MATCH(0,INDEX(COUNTIF($F$8:F64,$B$9:$B$511),0,0),0)),"") -> ORAZUL_CHILE | G65: -8035607.991
A66: =+MATCH(B66,RUT[EMPRESA],0) -> 170 | B66: HIDRONALCAS | C66: 0 | D66: 0 | F66: =IFERROR(INDEX($B$9:$B$511,MATCH(0,INDEX(COUNTIF($F$8:F65,$B$9:$B$511),0,0),0)),"") -> HIDRONALCAS
A67: =+MATCH(B67,RUT[EMPRESA],0) -> 163 | B67: HIDROCALLAO | C67: 0 | D67: 0 | F67: =IFERROR(INDEX($B$9:$B$511,MATCH(0,INDEX(COUNTIF($F$8:F66,$B$9:$B$511),0,0),0)),"") -> HIDROCALLAO
A68: =+MATCH(B68,RUT[EMPRESA],0) -> 397 | B68: HIDROENERSUR | C68: 451752064.5 | D68: 451752064.5 | F68: =IFERROR(INDEX($B$9:$B$511,MATCH(0,INDEX(COUNTIF($F$8:F67,$B$9:$B$511),0,0),0)),"") -> HIDROENERSUR | H68: 451752064.5
A69: =+MATCH(B69,RUT[EMPRESA],0) -> 280 | B69: RUCATAYO | C69: 446768147.8 | D69: 446768147.8 | F69: =IFERROR(INDEX($B$9:$B$511,MATCH(0,INDEX(COUNTIF($F$8:F68,$B$9:$B$511),0,0),0)),"") -> RUCATAYO | H69: 446768147.8
A70: =+MATCH(B70,RUT[EMPRESA],0) -> 181 | B70: KALTEMP | C70: 2714389.66 | D70: 2714389.66 | F70: =IFERROR(INDEX($B$9:$B$511,MATCH(0,INDEX(COUNTIF($F$8:F69,$B$9:$B$511),0,0),0)),"") -> KALTEMP | H70: 2714389.66
A71: =+MATCH(B71,RUT[EMPRESA],0) -> 127 | B71: ESTANCILLA SPA | C71: 41912.00005 | D71: 41912.00005 | F71: =IFERROR(INDEX($B$9:$B$511,MATCH(0,INDEX(COUNTIF($F$8:F70,$B$9:$B$511),0,0),0)),"") -> ESTANCILLA SPA | H71: 41912.00005
A72: =+MATCH(B72,RUT[EMPRESA],0) -> 217 | B72: MAPOCHO TREBAL | C72: 33791679.04 | D72: 33791679.04 | F72: =IFERROR(INDEX($B$9:$B$511,MATCH(0,INDEX(COUNTIF($F$8:F71,$B$9:$B$511),0,0),0)),"") -> MAPOCHO TREBAL | H72: 33791679.04
A73: =+MATCH(B73,RUT[EMPRESA],0) -> 318 | B73: UCUQUER | C73: 100931494.4 | D73: 100931494.4 | F73: =IFERROR(INDEX($B$9:$B$511,MATCH(0,INDEX(COUNTIF($F$8:F72,$B$9:$B$511),0,0),0)),"") -> UCUQUER | H73: 100931494.4
A74: =+MATCH(B74,RUT[EMPRESA],0) -> 303 | B74: TAMM | C74: 0 | D74: =+C74 -> 0 | F74: =IFERROR(INDEX($B$9:$B$511,MATCH(0,INDEX(COUNTIF($F$8:F73,$B$9:$B$511),0,0),0)),"") -> TAMM | G74: =IF(SUMIF($B$9:$B$400,F74,$D$9:$D$400)<-0.00001,SUMIF($B$9:$B$400,F74,$D$9:$D$400),"") ->  | H74: =IF(SUMIF($B$9:$B$400,F74,$D$9:$D$400)>0.00001,SUMIF($B$9:$B$400,F74,$D$9:$D$400),"") -> 
A75: =+MATCH(B75,RUT[EMPRESA],0) -> 301 | B75: TALINAY | C75: 401922314.9 | D75: 401922314.9 | F75: =IFERROR(INDEX($B$9:$B$511,MATCH(0,INDEX(COUNTIF($F$8:F74,$B$9:$B$511),0,0),0)),"") -> TALINAY | H75: 401922314.9
A76: =+MATCH(B76,RUT[EMPRESA],0) -> 279 | B76: ROBLERIA | C76: 0 | D76: 0 | F76: =IFERROR(INDEX($B$9:$B$511,MATCH(0,INDEX(COUNTIF($F$8:F75,$B$9:$B$511),0,0),0)),"") -> ROBLERIA
A77: =+MATCH(B77,RUT[EMPRESA],0) -> 135 | B77: GENERHOM | C77: 81709359.83 | D77: 81709359.83 | F77: =IFERROR(INDEX($B$9:$B$511,MATCH(0,INDEX(COUNTIF($F$8:F76,$B$9:$B$511),0,0),0)),"") -> GENERHOM | H77: 81709359.83
A78: =+MATCH(B78,RUT[EMPRESA],0) -> 323 | B78: WENKE | C78: -4863.999995 | D78: -4863.999995 | F78: =IFERROR(INDEX($B$9:$B$511,MATCH(0,INDEX(COUNTIF($F$8:F77,$B$9:$B$511),0,0),0)),"") -> WENKE | G78: -4863.999995
